Workbook

Sheet Info Météo
B4: Calculateur météo et ventilation
B6: INSTRUCTIONS
B8: Données météorologiques
B10: 1. | C10: S’assurer que la virgule est le symbole décimal sélectionné dans l’option << Région et langue >> du panneau de configuration de votre ordinateur (voir Exemple 1 ci-dessous).
B12: 2. | C12: Aller sur le site : | D12: http://climat.meteo.gc.ca/
B14: 3. | C14: Sélectionner l’intervalle de données horaires et personnaliser à votre convenance les autres options (année, endroit...).
C15: Bien qu’une seule journée soit choisie, ce fichier contient le mois complet.
B17: 4. | C17: Télécharger les fichiers mensuels en format .csv (un pour chaque mois afin de créer une année complète - voir Exemple 2 ci-dessous).
B19: 5. | C19: Enregistrer les fichiers téléchargés dans un dossier, sans modifier leur nom, pour utiliser la sélection automatique.
C20: Le dossier ne doit contenir que les fichiers d’une seule station météo.
B22: 6. | C22: Sélectionner l'onglet Météo.
B24: 7. | C24: Appuyer sur le bouton Sélectionner un dossier.
B26: 8. | C26: Choisir le nombre d'années à étudier, les températures d'équilibre du bâtiment, ainsi que la date de début d’analyse.
C27: La température d'équilibre ne correspond pas à la température de référence de 18oc utilisé habituellement dans les calculs de degrés-jours.
B29: 9. | C29: Appuyer sur le bouton Exécuter, et sélectionner un dossier.
B32: Données manquantes | D32: Certains fichiers météo sont incomplets. Il est donc recommandé de vérifier les lignes 50 et 51 de l'onglet Résultats, où le nombre d’heures pour lesquelles des données de température sont disponibles à chaque mois est comparé au nombre d’heures totales du mois*. Le pourcentage de données manquantes est indiqué à la ligne 53.
D34: Pour résoudre ce problème, vous pouvez cliquer sur l’onglet du mois problématique, effacer les données incomplètes en appuyant sur Effacer données, et resélectionner un fichier d’une autre année ou d’une autre station météo à proximité, en appuyant sur Sélection manuelle.
D36: *Le nombre d’heures mensuelles tient compte des années bissextiles seulement pour l'option de un an.
B40: Exemple 1
B74: Exemple 2
D110: Version | F110: Date d'affichage | H110: Modifications apportées
D111: V1 | F111: 15-10-2014 | H111: Version initiale du calculateur météo-ventilation
D112: V1.1 | F112: 21-11-2014 | H112: Ajout de l'onglet Résultats avec les calculs d'économies

Sheet Info Ventilation
B4: Calculateur météo et ventilation
B6: INSTRUCTIONS
B8: Calculateur de ventilation
B10: 1. | C10: Sélectionner l'onglet Ventilation.
B12: 2. | C12: Entrer les valeurs des débits d'air circulant dans l'installation, et sélectionner les heures d'opération.
B14: 3. | C14: Sélectionner la technologie de chauffage utilisée parmi les choix de la liste déroulante, et entrer son efficacité.
B16: 4. | C16: Sélectionner la technologie d'humidification utilisée parmi les choix de la liste déroulante, et entrer son efficacité.
B18: 5. | C18: Si l'installation est équippée d'un système de récupération de chaleur ou d'énergie, cocher la case correspondante et sélectionner la technologie utilisée parmi les choix de la liste déroulante. S'il s'agit d'un système de récupération de chaleur, entrer son efficacité sensible. S'il s'agit d'un système de récupération d'énergie, entrer ses efficacités sensible et totale.
B20: 6. | C20: Si le système de récupération est équippé d'un dispositif de dégivrage, cocher la case correspondante et sélectionner la technologie utilisée parmi les choix de la liste déroulante.
B22: 7. | C22: Entrer les valeurs des points de consigne.
B24: 8. | C24: Appuyer sur le bouton Afficher les résultats.
B28: Définitions des termes techniques
B30: 1. | C30: Débit d'air total : débit d'air circulant dans le système de ventilation.
B32: 2. | C32: Pourcentage d'air neuf : proportion du débit d'air total qui est renouvellé à chaque cycle. Le débit d'air neuf est automatiquement calculé à partir du pourcentage d'air neuf et du débit d'air total saisis.
B35: 3. | C35: Débit d'air de récupération : débit d'air vicié étant évacué à travers le récupérateur de chaleur, s'il y en a un. Si le système de ventilation ne présente pas de recirculation d'air, ce débit est égal à celui de l'air neuf ; il suffit alors à l'utilisateur de cocher la case correspondante. Si le système de ventilation présente une recirculation d'air, l'utilisateur peut saisir la valeur souhaitée, qui doit cependant être inférieure à la valeur du débit d'air neuf.
C39: Pour activer cette cellule, la case Présence d'un système de récupération doit être cochée.
B41: 4. | C41: Heures d'opération : heures durant lesquelles le système de ventilation est actif.
B43: 5. | C43: Température de la pièce : température de consigne désirée. Cette valeur est identique à celle de la température d'équilibre de l'onglet Météo, et est donc automatiquement saisie dans la cellule.
B46: 6. | C46: Humidité relative : Humidité de consigne désirée dans la pièce.
B48: 7. | C48: Température de récupération : température du débit d'air de récupération. L'utilisateur peut décider si cette température est identique à celle de la température de consigne en cochant la case correspondante, ou bien rentrer une autre valeur s'il dispose de plus d'informations.
C51: Pour activer cette cellule, la case Présence d'un système de récupération doit être cochée.
B53: 8. | C53: Efficacité : performance de l'appareil considéré. Idéalement, l'utilisateur doit saisir les valeurs d'efficaticité réelles des appareils qui sont/seront utilisés dans le système de ventilation, telles que fournies par la documentation technique ou le manufacturier. Dans le cas ou l'utilisateur ne disposerait pas de ces valeurs, des exemples d'efficacité typiques sont fournies à titre d'exemple par le calculateur, dans le but de permettre un calcul approximatif.
B60: Hypothèses considérées
B62: 1. | C62: Le système de ventilation considéré est une installation comportant un appareil de chauffage de l'air neuf et un humidificateur, et pouvant éventuellement comporter un récupérateur de chaleur ou d'énérgie et une boucle de recirculation (voir Figure 1 ci-dessous).
B65: 2. | C65: Étant donné que le but de ce calculateur est de pouvoir estimer les besoins en chauffage et en humidification de l'air neuf, la modélisation du système de ventilation peut-être simplifiée de manière à ce que seul le chauffage et l'humidification de l'air neuf soient pris en compte pour le calcul de la consommation d'énergie (voir Figure 2 ci-dessous). En conséquence, l'air neuf doit être chauffé et humidifié de manière à atteindre la température et l'humidité de consigne.
B70: 3. | C70: Le chauffage apporte uniquement de la chaleur sensible, alors que l'humidification apporte uniquement de la chaleur latente.
B72: 4. | C72: On néglige les pertes d'énergie dans le réseau de ventilation.
B75: Sources | D75: ASHRAE. "2013 ASHRAE Handbook - Fundamentals". Chapter 1: Psychometrics, p1.1-1.16. SI Edition, 2013. ASHRAE, Atlanta GA.
D77: Riopelle, G. "Programme d’efficacité énergétique - Unités de récupération d’énergie (VRÉ et VRC)". Rapport de projet, CTGN, 2010.
B82: Figure 1 : modélisation du système de ventilation
B100: Figure 2 : modélisation simplifiée du système de ventitaltion, montrant le chauffage et l'humidification de l'air neuf seul
J107: Lexique :
J112: mRECIRC | K112: Débit d'air recirculé
B116: Légende des figures
D118: mTOT | E118: Débit d'air total | I118: mE | J118: Débit d'air évacué
D119: mAN | E119: Débit d'air neuf | I119: qC | J119: Énergie de chauffage
D120: mRECUP | E120: Débit d'air de récupération | I120: qHR | J120: Énergie d'humidification
D121: mRECIRC | E121: Débit d'air recirculé | I121: mW | J121: Débit d'eau ou de vapeur
D122: mRA | E122: Débit de retour d'air | I122: hW | J122: Enthalpie d'humidification

Sheet Météo
BQ1: 4
A2: Données météorologiques | K2: =Janvier!B1 -> MONTREAL/PIERRE ELLIOTT TRUDEAU INTL | BQ2: 2014
C5: Températures d'équilibre | L5: Date de début | AB5: Nombre de fichiers
C6: Chauffage | F6: 68 | G6: OF | H6: =IF(F6="","",(F6-32)*5/9) -> 20 | I6: OC | L6: Mois | N6: 4 | AB6: Moyenne sur : | AE6: 1 | AF6: =IF(AE6=1,"an","ans") -> an
C7: Refroidissement | F7: 68 | G7: OF | H7: =IF(F7="","",(F7-32)*5/9) -> 20 | I7: OC | L7: Année | N7: 2014
A10: Plage horaire | B10: Degrés-jours | D10: Avril | E10: Mai | F10: Juin | G10: Juillet | H10: Août | I10: Septembre | J10: Octobre | K10: Novembre | L10: Décembre | M10: Janvier | N10: Février | O10: Mars | P10: Total | R10: Plage horaire | S10: Degrés-jours | U10: =D10 -> Avril | V10: =E10 -> Mai | W10: Juin | X10: Juillet | Y10: Août | Z10: Septembre | AA10: Octobre | AB10: Novembre | AC10: Décembre | AD10: Janvier | AE10: Février | AF10: Mars | AG10: Total | AI10: Plage horaire | AJ10: Degrés-jours | AL10: =D10 -> Avril | AM10: =E10 -> Mai | AN10: Juin | AO10: Juillet | AP10: Août | AQ10: Septembre | AR10: Octobre | AS10: Novembre | AT10: Décembre | AU10: Janvier | AV10: Février | AW10: Mars | AX10: Total | AZ10: Plage horaire | BA10: Degrés-jours | BC10: =D10 -> Avril | BD10: =E10 -> Mai | BE10: Juin | BF10: Juillet | BG10: Août | BH10: Septembre | BI10: Octobre | BJ10: Novembre | BK10: Décembre | BL10: Janvier | BM10: Février | BN10: Mars | BO10: Total
A11: 0 à 24 | B11: DJC (chauffage) | R11: 0 à 8 | S11: DJC (chauffage) | AI11: 8 à 16 | AJ11: DJC (chauffage) | AZ11: 16 à 24 | BA11: DJC (chauffage)
B12: (OF-jours) | D12: =IF(ISERROR(INDIRECT(D$10 & "!" & "AB9")),"",INDIRECT(D$10 & "!" & "AB9")) -> 758.565 | E12: =IF(ISERROR(INDIRECT(E$10 & "!" & "AB9")),"",INDIRECT(E$10 & "!" & "AB9")) -> 323.7975 | F12: 90.2775 | G12: 50.7375 | H12: 78.8025 | I12: 257.9025 | J12: 513.39 | K12: 972.78 | L12: 1298.9175 | M12: 1648.515 | N12: 1419.0075 | O12: 1431.045 | P12: =SUM(D12:O12) -> 8843.7375 | S12: (OF-jours) | U12: =IF(ISERROR(INDIRECT(U$10 & "!" & "AD9")),"",INDIRECT(U$10 & "!" & "AD9")) -> 297.585 | V12: =IF(ISERROR(INDIRECT(V$10 & "!" & "AD9")),"",INDIRECT(V$10 & "!" & "AD9")) -> 158.6475 | W12: 60.63 | X12: 35.6475 | Y12: 51.135 | Z12: 123.0075 | AA12: 200.775 | AB12: 343.7325 | AC12: 435.6375 | AD12: 574.5375 | AE12: 497.49 | AF12: 513.3075 | AG12: =SUM(U12:AF12) -> 3292.1325 | AJ12: (OF-jours) | AL12: =IF(ISERROR(INDIRECT(AL$10 & "!" & "AF9")),"",INDIRECT(AL$10 & "!" & "AF9")) -> 225.06 | AM12: =IF(ISERROR(INDIRECT(AM$10 & "!" & "AF9")),"",INDIRECT(AM$10 & "!" & "AF9")) -> 82.92 | AN12: 12.885 | AO12: 7.8225 | AP12: 11.2725 | AQ12: 63.03 | AR12: 149.3475 | AS12: 310.17 | AT12: 429.435 | AU12: 539.1675 | AV12: 462.9675 | AW12: 466.605 | AX12: =SUM(AL12:AW12) -> 2760.6825 | BA12: (OF-jours) | BC12: =IF(ISERROR(INDIRECT(BC$10 & "!" & "AH9")),"",INDIRECT(BC$10 & "!" & "AH9")) -> 235.92 | BD12: =IF(ISERROR(INDIRECT(BD$10 & "!" & "AH9")),"",INDIRECT(BD$10 & "!" & "AH9")) -> 82.23 | BE12: 16.7625 | BF12: 7.2675 | BG12: 16.395 | BH12: 71.865 | BI12: 163.2675 | BJ12: 318.8775 | BK12: 433.845 | BL12: 534.81 | BM12: 458.55 | BN12: 451.1325 | BO12: =SUM(BC12:BN12) -> 2790.9225
B13: (OC-jours) | D13: =IF(D12="","",D12*(5/9)) -> 421.425 | E13: =IF(E12="","",E12*(5/9)) -> 179.8875 | F13: 50.15416667 | G13: 28.1875 | H13: 43.77916667 | I13: 143.2791667 | J13: 285.2166667 | K13: 540.4333333 | L13: 721.6208333 | M13: 915.8416667 | N13: 788.3375 | O13: 795.025 | P13: =SUM(D13:O13) -> 4913.1875 | S13: (OC-jours) | U13: =IF(U12="","",U12*(5/9)) -> 165.325 | V13: =IF(V12="","",V12*(5/9)) -> 88.1375 | W13: 33.68333333 | X13: 19.80416667 | Y13: 28.40833333 | Z13: 68.3375 | AA13: 111.5416667 | AB13: 190.9625 | AC13: 242.0208333 | AD13: 319.1875 | AE13: 276.3833333 | AF13: 285.1708333 | AG13: =SUM(U13:AF13) -> 1828.9625 | AJ13: (OC-jours) | AL13: =IF(AL12="","",AL12*(5/9)) -> 125.0333333 | AM13: =IF(AM12="","",AM12*(5/9)) -> 46.06666667 | AN13: 7.158333333 | AO13: 4.345833333 | AP13: 6.2625 | AQ13: 35.01666667 | AR13: 82.97083333 | AS13: 172.3166667 | AT13: 238.575 | AU13: 299.5375 | AV13: 257.2041667 | AW13: 259.225 | AX13: =SUM(AL13:AW13) -> 1533.7125 | BA13: (OC-jours) | BC13: =IF(BC12="","",BC12*(5/9)) -> 131.0666667 | BD13: =IF(BD12="","",BD12*(5/9)) -> 45.68333333 | BE13: 9.3125 | BF13: 4.0375 | BG13: 9.108333333 | BH13: 39.925 | BI13: 90.70416667 | BJ13: 177.1541667 | BK13: 241.025 | BL13: 297.1166667 | BM13: 254.75 | BN13: 250.6291667 | BO13: =SUM(BC13:BN13) -> 1550.5125
B14: DJR (refroidissement) | S14: DJR (refroidissement) | AJ14: DJR (refroidissement) | BA14: DJR (refroidissement)
B15: (OF-jours) | D15: =IF(ISERROR(INDIRECT(D$10 & "!" & "AC9")),"",INDIRECT(D$10 & "!" & "AC9")) -> 0.4875 | E15: =IF(ISERROR(INDIRECT(E$10 & "!" & "AC9")),"",INDIRECT(E$10 & "!" & "AC9")) -> 16.0275 | F15: 97.425 | G15: 121.335 | H15: 100.3725 | I15: 42.9225 | J15: 5.1075 | K15: 0 | L15: 0 | M15: 0 | N15: 0 | O15: 0 | P15: =SUM(D15:O15) -> 383.6775 | S15: (OF-jours) | U15: =IF(ISERROR(INDIRECT(U$10 & "!" & "AE9")),"",INDIRECT(U$10 & "!" & "AE9")) -> 0 | V15: =IF(ISERROR(INDIRECT(V$10 & "!" & "AE9")),"",INDIRECT(V$10 & "!" & "AE9")) -> 0.6075 | W15: 4.5525 | X15: 11.535 | Y15: 3.4725 | Z15: 3.0375 | AA15: 0 | AB15: 0 | AC15: 0 | AD15: 0 | AE15: 0 | AF15: 0 | AG15: =SUM(U15:AF15) -> 23.205 | AJ15: (OF-jours) | AL15: =IF(ISERROR(INDIRECT(AL$10 & "!" & "AG9")),"",INDIRECT(AL$10 & "!" & "AG9")) -> 0.3075 | AM15: =IF(ISERROR(INDIRECT(AM$10 & "!" & "AG9")),"",INDIRECT(AM$10 & "!" & "AG9")) -> 9.315 | AN15: 48.09 | AO15: 57.69 | AP15: 54.165 | AQ15: 24.2775 | AR15: 3.09 | AS15: 0 | AT15: 0 | AU15: 0 | AV15: 0 | AW15: 0 | AX15: =SUM(AL15:AW15) -> 196.935 | BA15: (OF-jours) | BC15: =IF(ISERROR(INDIRECT(BC$10 & "!" & "AI9")),"",INDIRECT(BC$10 & "!" & "AI9")) -> 0.18 | BD15: =IF(ISERROR(INDIRECT(BD$10 & "!" & "AI9")),"",INDIRECT(BD$10 & "!" & "AI9")) -> 6.105 | BE15: 44.7825 | BF15: 52.11 | BG15: 42.735 | BH15: 15.6075 | BI15: 2.0175 | BJ15: 0 | BK15: 0 | BL15: 0 | BM15: 0 | BN15: 0 | BO15: =SUM(BC15:BN15) -> 163.5375
B16: (OC-jours) | D16: =IF(D15="","",D15*(5/9)) -> 0.2708333333 | E16: =IF(E15="","",E15*(5/9)) -> 8.904166667 | F16: 54.125 | G16: 67.40833333 | H16: 55.7625 | I16: 23.84583333 | J16: 2.8375 | K16: 0 | L16: 0 | M16: 0 | N16: 0 | O16: 0 | P16: =SUM(D16:O16) -> 213.1541667 | S16: (OC-jours) | U16: =IF(U15="","",U15*(5/9)) -> 0 | V16: =IF(V15="","",V15*(5/9)) -> 0.3375 | W16: 2.529166667 | X16: 6.408333333 | Y16: 1.929166667 | Z16: 1.6875 | AA16: 0 | AB16: 0 | AC16: 0 | AD16: 0 | AE16: 0 | AF16: 0 | AG16: =SUM(U16:AF16) -> 12.89166667 | AJ16: (OC-jours) | AL16: =IF(AL15="","",AL15*(5/9)) -> 0.1708333333 | AM16: =IF(AM15="","",AM15*(5/9)) -> 5.175 | AN16: 26.71666667 | AO16: 32.05 | AP16: 30.09166667 | AQ16: 13.4875 | AR16: 1.716666667 | AS16: 0 | AT16: 0 | AU16: 0 | AV16: 0 | AW16: 0 | AX16: =SUM(AL16:AW16) -> 109.4083333 | BA16: (OC-jours) | BC16: =IF(BC15="","",BC15*(5/9)) -> 0.1 | BD16: =IF(BD15="","",BD15*(5/9)) -> 3.391666667 | BE16: 24.87916667 | BF16: 28.95 | BG16: 23.74166667 | BH16: 8.670833333 | BI16: 1.120833333 | BJ16: 0 | BK16: 0 | BL16: 0 | BM16: 0 | BN16: 0 | BO16: =SUM(BC16:BN16) -> 90.85416667
A18: Plage horaire | B18: BIN (oF) | D18: Nombre d'heures | P18: Total | R18: Plage horaire | S18: BIN (oF) | U18: Nombre d'heures | AG18: Total | AI18: Plage horaire | AJ18: Bin (oF) | AL18: Nombre d'heures | AX18: Total | AZ18: Plage horaire | BA18: Bin (oF) | BC18: Nombre d'heures | BO18: Total
D19: =D10 -> Avril | E19: =E10 -> Mai | F19: Juin | G19: Juillet | H19: Août | I19: Septembre | J19: Octobre | K19: Novembre | L19: Décembre | M19: Janvier | N19: Février | O19: Mars | U19: =D10 -> Avril | V19: =E10 -> Mai | W19: Juin | X19: Juillet | Y19: Août | Z19: Septembre | AA19: Octobre | AB19: Novembre | AC19: Décembre | AD19: Janvier | AE19: Février | AF19: Mars | AL19: =D10 -> Avril | AM19: =E10 -> Mai | AN19: Juin | AO19: Juillet | AP19: Août | AQ19: Septembre | AR19: Octobre | AS19: Novembre | AT19: Décembre | AU19: Janvier | AV19: Février | AW19: Mars | BC19: =D10 -> Avril | BD19: =E10 -> Mai | BE19: Juin | BF19: Juillet | BG19: Août | BH19: Septembre | BI19: Octobre | BJ19: Novembre | BK19: Décembre | BL19: Janvier | BM19: Février | BN19: Mars
A20: 0 à 24 | B20: 95 | C20: 100 | D20: =IF(SUM(U20,AL20,BC20)=0,"",SUM(U20,AL20,BC20)) ->  | E20: =IF(SUM(V20,AM20,BD20)=0,"",SUM(V20,AM20,BD20)) ->  | P20: =SUM(D20:O20) -> 0 | R20: 0 à 8 | S20: 95 | T20: 100 | U20: =IF(ISERROR(INDIRECT(U$19&"!"&$BU20&"10")),"",(IF(INDIRECT(U$19&"!"&$BU20&"10")=0,"",INDIRECT(U$19&"!"&$BU20&"10")))) ->  | V20: =IF(ISERROR(INDIRECT(V$19&"!"&$BU20&"10")),"",(IF(INDIRECT(V$19&"!"&$BU20&"10")=0,"",INDIRECT(V$19&"!"&$BU20&"10")))) ->  | AG20: =SUM(U20:AF20) -> 0 | AI20: 8 à 16 | AJ20: 95 | AK20: 100 | AL20: =IF(ISERROR(INDIRECT(AL$19&"!"&$BV20&"10")),"",(IF((INDIRECT(AL$19&"!"&$BV20&"10"))=0,"",(INDIRECT(AL$19&"!"&$BV20&"10"))))) ->  | AM20: =IF(ISERROR(INDIRECT(AM$19&"!"&$BV20&"10")),"",(IF((INDIRECT(AM$19&"!"&$BV20&"10"))=0,"",(INDIRECT(AM$19&"!"&$BV20&"10"))))) ->  | AX20: =SUM(AL20:AW20) -> 0 | AZ20: 16 à 24 | BA20: 95 | BB20: 100 | BC20: =IF(ISERROR(INDIRECT(BC$19 & "!" & $BW20 & "10")),"",(IF((INDIRECT(BC$19 & "!" & $BW20 & "10"))=0,"",(INDIRECT(BC$19 & "!" & $BW20 & "10"))))) ->  | BD20: =IF(ISERROR(INDIRECT(BD$19 & "!" & $BW20 & "10")),"",(IF((INDIRECT(BD$19 & "!" & $BW20 & "10"))=0,"",(INDIRECT(BD$19 & "!" & $BW20 & "10"))))) ->  | BO20: =SUM(BC20:BN20) -> 0 | BS20: 1 | BT20: 1 | BU20: DP | BV20: DQ | BW20: DR
B21: 90 | C21: 95 | D21: =IF(SUM(U21,AL21,BC21)=0,"",SUM(U21,AL21,BC21)) ->  | G21: 1 | P21: =SUM(D21:O21) -> 1 | S21: 90 | T21: 95 | U21: =IF(ISERROR(INDIRECT(U$19&"!"&$BU21&"10")),"",(IF(INDIRECT(U$19&"!"&$BU21&"10")=0,"",INDIRECT(U$19&"!"&$BU21&"10")))) ->  | AG21: =SUM(U21:AF21) -> 0 | AJ21: 90 | AK21: 95 | AL21: =IF(ISERROR(INDIRECT(AL$19&"!"&$BV21&"10")),"",(IF((INDIRECT(AL$19&"!"&$BV21&"10"))=0,"",(INDIRECT(AL$19&"!"&$BV21&"10"))))) ->  | AO21: 1 | AX21: =SUM(AL21:AW21) -> 1 | BA21: 90 | BB21: 95 | BC21: =IF(ISERROR(INDIRECT(BC$19 & "!" & $BW21 & "10")),"",(IF((INDIRECT(BC$19 & "!" & $BW21 & "10"))=0,"",(INDIRECT(BC$19 & "!" & $BW21 & "10"))))) ->  | BO21: =SUM(BC21:BN21) -> 0 | BS21: 2 | BT21: =IF($AE$6>1,2,"") ->  | BU21: DM | BV21: DN | BW21: DO
B22: 85 | C22: 90 | F22: 7 | G22: 9 | I22: 2 | P22: =SUM(D22:O22) -> 18 | S22: 85 | T22: 90 | AG22: =SUM(U22:AF22) -> 0 | AJ22: 85 | AK22: 90 | AN22: 3 | AO22: 5 | AQ22: 1 | AX22: =SUM(AL22:AW22) -> 9 | BA22: 85 | BB22: 90 | BE22: 4 | BF22: 4 | BH22: 1 | BO22: =SUM(BC22:BN22) -> 9 | BS22: 3 | BT22: =IF($AE$6>1,3,"") ->  | BU22: DJ | BV22: DK | BW22: DL
B23: 80 | C23: 85 | E23: 4 | F23: 49 | G23: 52 | H23: 51 | I23: 14 | P23: =SUM(D23:O23) -> 170 | S23: 80 | T23: 85 | AG23: =SUM(U23:AF23) -> 0 | AJ23: 80 | AK23: 85 | AM23: 4 | AN23: 26 | AO23: 29 | AP23: 30 | AQ23: 12 | AX23: =SUM(AL23:AW23) -> 101 | BA23: 80 | BB23: 85 | BE23: 23 | BF23: 23 | BG23: 21 | BH23: 2 | BO23: =SUM(BC23:BN23) -> 69 | BS23: 4 | BT23: =IF($AE$6>1,4,"") ->  | BU23: DG | BV23: DH | BW23: DI
B24: 75 | C24: 80 | D24: 1 | E24: 12 | F24: 94 | G24: 98 | H24: 104 | I24: 40 | J24: 1 | P24: 350 | S24: 75 | T24: 80 | W24: 4 | X24: 9 | Y24: 1 | AG24: 14 | AJ24: 75 | AK24: 80 | AL24: 1 | AM24: 6 | AN24: 48 | AO24: 49 | AP24: 61 | AQ24: 26 | AR24: 1 | AX24: 192 | BA24: 75 | BB24: 80 | BD24: 6 | BE24: 42 | BF24: 40 | BG24: 42 | BH24: 14 | BO24: 144 | BS24: 5 | BT24: =IF($AE$6>1,5,"") ->  | BU24: DD | BV24: DE | BW24: DF
B25: 70 | C25: 75 | D25: 1 | E25: 45 | F25: 123 | G25: 218 | H25: 153 | I25: 99 | J25: 21 | P25: 660 | S25: 70 | T25: 75 | V25: 2 | W25: 14 | X25: 43 | Y25: 13 | Z25: 19 | AG25: 91 | AJ25: 70 | AK25: 75 | AM25: 24 | AN25: 57 | AO25: 79 | AP25: 65 | AQ25: 36 | AR25: 13 | AX25: 274 | BA25: 70 | BB25: 75 | BC25: 1 | BD25: 19 | BE25: 52 | BF25: 96 | BG25: 75 | BH25: 44 | BI25: 8 | BO25: 295 | BS25: 6 | BT25: =IF($AE$6>5,6,"") ->  | BU25: DA | BV25: DB | BW25: DC
B26: 65 | C26: 70 | D26: 2 | E26: 110 | F26: 185 | G26: 196 | H26: 193 | I26: 114 | J26: 37 | P26: 837 | S26: 65 | T26: 70 | V26: 12 | W26: 58 | X26: 80 | Y26: 85 | Z26: 25 | AA26: 9 | AG26: 269 | AJ26: 65 | AK26: 70 | AL26: 1 | AM26: 51 | AN26: 60 | AO26: 56 | AP26: 56 | AQ26: 43 | AR26: 10 | AX26: 277 | BA26: 65 | BB26: 70 | BC26: 1 | BD26: 47 | BE26: 67 | BF26: 60 | BG26: 52 | BH26: 46 | BI26: 18 | BO26: 291 | BS26: 7 | BT26: =IF($AE$6>5,7,"") ->  | BU26: CX | BV26: CY | BW26: CZ
B27: 60 | C27: 65 | D27: 17 | E27: 129 | F27: 154 | G27: 126 | H27: 162 | I27: 124 | J27: 51 | K27: 3 | P27: 766 | S27: 60 | T27: 65 | V27: 19 | W27: 76 | X27: 78 | Y27: 88 | Z27: 44 | AA27: 6 | AG27: 311 | AJ27: 60 | AK27: 65 | AL27: 9 | AM27: 50 | AN27: 42 | AO27: 26 | AP27: 26 | AQ27: 39 | AR27: 29 | AS27: 1 | AX27: 222 | BA27: 60 | BB27: 65 | BC27: 8 | BD27: 60 | BE27: 36 | BF27: 22 | BG27: 48 | BH27: 41 | BI27: 16 | BJ27: 2 | BO27: 233 | BS27: 8 | BT27: =IF($AE$6>5,8,"") ->  | BU27: CU | BV27: CV | BW27: CW
B28: 55 | C28: 60 | D28: 39 | E28: 145 | F28: 92 | G28: 42 | H28: 65 | I28: 84 | J28: 139 | K28: 6 | P28: 612 | S28: 55 | T28: 60 | U28: 8 | V28: 53 | W28: 72 | X28: 36 | Y28: 45 | Z28: 34 | AA28: 49 | AG28: 297 | AJ28: 55 | AK28: 60 | AL28: 16 | AM28: 41 | AN28: 4 | AO28: 3 | AP28: 10 | AQ28: 22 | AR28: 51 | AS28: 3 | AX28: 150 | BA28: 55 | BB28: 60 | BC28: 15 | BD28: 51 | BE28: 16 | BF28: 3 | BG28: 10 | BH28: 28 | BI28: 39 | BJ28: 3 | BO28: 165 | BS28: 9 | BT28: =IF($AE$6>5,9,"") ->  | BU28: CR | BV28: CS | BW28: CT
B29: 50 | C29: 55 | D29: 87 | E29: 150 | F29: 15 | G29: 2 | H29: 16 | I29: 119 | J29: 135 | K29: 25 | P29: 549 | S29: 50 | T29: 55 | U29: 3 | V29: 63 | W29: 15 | X29: 2 | Y29: 16 | Z29: 43 | AA29: 27 | AB29: 7 | AG29: 176 | AJ29: 50 | AK29: 55 | AL29: 45 | AM29: 40 | AQ29: 42 | AR29: 52 | AS29: 12 | AX29: 191 | BA29: 50 | BB29: 55 | BC29: 39 | BD29: 47 | BH29: 34 | BI29: 56 | BJ29: 6 | BO29: 182 | BS29: 10 | BT29: =IF($AE$6>5,10,"") ->  | BU29: CO | BV29: CP | BW29: CQ
B30: 45 | C30: 50 | D30: 109 | E30: 111 | F30: 1 | I30: 100 | J30: 165 | K30: 44 | L30: 6 | P30: 536 | S30: 45 | T30: 50 | U30: 25 | V30: 68 | W30: 1 | Z30: 58 | AA30: 54 | AB30: 12 | AC30: 6 | AG30: 224 | AJ30: 45 | AK30: 50 | AL30: 47 | AM30: 25 | AQ30: 18 | AR30: 53 | AS30: 18 | AX30: 161 | BA30: 45 | BB30: 50 | BC30: 37 | BD30: 18 | BH30: 24 | BI30: 58 | BJ30: 14 | BO30: 151 | BS30: 11 | BU30: CL | BV30: CM | BW30: CN
B31: 40 | C31: 45 | D31: 158 | E31: 30 | I31: 17 | J31: 161 | K31: 138 | L31: 45 | M31: 13 | N31: 4 | O31: 7 | P31: 573 | S31: 40 | T31: 45 | U31: 49 | V31: 26 | Z31: 10 | AA31: 76 | AB31: 29 | AC31: 16 | AD31: 5 | AG31: 211 | AJ31: 40 | AK31: 45 | AL31: 52 | AM31: 4 | AQ31: 1 | AR31: 37 | AS31: 53 | AT31: 19 | AU31: 4 | AV31: 4 | AW31: 4 | AX31: 178 | BA31: 40 | BB31: 45 | BC31: 57 | BH31: 6 | BI31: 48 | BJ31: 56 | BK31: 10 | BL31: 4 | BN31: 3 | BO31: 184 | BS31: 12 | BU31: CI | BV31: CJ | BW31: CK
B32: 35 | C32: 40 | D32: 194 | E32: 5 | I32: 7 | J32: 34 | K32: 158 | L32: 83 | M32: 72 | N32: 35 | O32: 94 | P32: 682 | S32: 35 | T32: 40 | U32: =IF(ISERROR(INDIRECT(U$19&"!"&$BU32&"10")),"",(IF(INDIRECT(U$19&"!"&$BU32&"10")=0,"",INDIRECT(U$19&"!"&$BU32&"10")))) -> 89 | V32: 5 | Z32: 7 | AA32: 27 | AB32: 58 | AC32: 25 | AD32: 16 | AE32: 4 | AF32: 15 | AG32: 246 | AJ32: 35 | AK32: 40 | AL32: 50 | AR32: 2 | AS32: 45 | AT32: 31 | AU32: 30 | AV32: 15 | AW32: 41 | AX32: 214 | BA32: 35 | BB32: 40 | BC32: 55 | BI32: 5 | BJ32: 55 | BK32: 27 | BL32: 26 | BM32: 16 | BN32: 38 | BO32: 222 | BU32: CF | BV32: CG | BW32: CH
B33: 30 | C33: 35 | D33: 72 | K33: 168 | L33: 172 | M33: 76 | N33: 51 | O33: 130 | P33: 669 | S33: 30 | T33: 35 | U33: 38 | AB33: 67 | AC33: 52 | AD33: 20 | AE33: 16 | AF33: 47 | AG33: 240 | AJ33: 30 | AK33: 35 | AL33: 13 | AS33: 55 | AT33: 59 | AU33: 31 | AV33: 15 | AW33: 32 | AX33: 205 | BA33: 30 | BB33: 35 | BC33: 21 | BJ33: 46 | BK33: 61 | BL33: 25 | BM33: 20 | BN33: 51 | BO33: 224 | BU33: CC | BV33: CD | BW33: CE
B34: 25 | C34: 30 | D34: 26 | K34: 90 | L34: 132 | M34: 77 | N34: 62 | O34: 104 | P34: 491 | S34: 25 | T34: 30 | U34: 19 | AB34: 24 | AC34: 49 | AD34: 36 | AE34: 20 | AF34: 29 | AG34: 177 | AJ34: 25 | AK34: 30 | AL34: 3 | AS34: 29 | AT34: 36 | AU34: 18 | AV34: 24 | AW34: 38 | AX34: 148 | BA34: 25 | BB34: 30 | BC34: 4 | BJ34: 37 | BK34: 47 | BL34: 23 | BM34: 18 | BN34: 37 | BO34: 166 | BU34: BZ | BV34: CA | BW34: CB
B35: 20 | C35: 25 | D35: 12 | K35: 64 | L35: 91 | M35: 66 | N35: 72 | O35: 84 | P35: 389 | S35: 20 | T35: 25 | U35: 7 | AB35: 29 | AC35: 30 | AD35: 13 | AE35: 33 | AF35: 22 | AG35: 134 | AJ35: 20 | AK35: 25 | AL35: 3 | AS35: 21 | AT35: 34 | AU35: 22 | AV35: 16 | AW35: 29 | AX35: 125 | BA35: 20 | BB35: 25 | BC35: 2 | BJ35: 14 | BK35: 27 | BL35: 31 | BM35: 23 | BN35: 33 | BO35: 130 | BU35: BW | BV35: BX | BW35: BY
B36: 15 | C36: 20 | D36: 2 | E36: =IF(SUM(V36,AM36,BD36)=0,"",SUM(V36,AM36,BD36)) ->  | F36: =IF(SUM(W36,AN36,BE36)=0,"",SUM(W36,AN36,BE36)) ->  | G36: =IF(SUM(X36,AO36,BF36)=0,"",SUM(X36,AO36,BF36)) ->  | H36: =IF(SUM(Y36,AP36,BG36)=0,"",SUM(Y36,AP36,BG36)) ->  | I36: =IF(SUM(Z36,AQ36,BH36)=0,"",SUM(Z36,AQ36,BH36)) ->  | J36: =IF(SUM(AA36,AR36,BI36)=0,"",SUM(AA36,AR36,BI36)) ->  | K36: =IF(SUM(AB36,AS36,BJ36)=0,"",SUM(AB36,AS36,BJ36)) -> 22 | L36: =IF(SUM(AC36,AT36,BK36)=0,"",SUM(AC36,AT36,BK36)) -> 92 | M36: =IF(SUM(AD36,AU36,BL36)=0,"",SUM(AD36,AU36,BL36)) -> 42 | N36: =IF(SUM(AE36,AV36,BM36)=0,"",SUM(AE36,AV36,BM36)) -> 149 | O36: =IF(SUM(AF36,AW36,BN36)=0,"",SUM(AF36,AW36,BN36)) -> 88 | P36: 395 | S36: 15 | T36: 20 | U36: 2 | AB36: 14 | AC36: 17 | AD36: 5 | AE36: 30 | AF36: 24 | AG36: 92 | AJ36: 15 | AK36: 20 | AS36: 1 | AT36: 32 | AU36: 22 | AV36: 56 | AW36: 34 | AX36: 145 | BA36: 15 | BB36: 20 | BJ36: 7 | BK36: 43 | BL36: 15 | BM36: 63 | BN36: 30 | BO36: 158 | BU36: BT | BV36: BU | BW36: BV
B37: 10 | C37: 15 | L37: 76 | M37: 97 | N37: 142 | O37: 106 | P37: 421 | S37: 10 | T37: 15 | AC37: 22 | AD37: 43 | AE37: 38 | AF37: 31 | AG37: 134 | AJ37: 10 | AK37: 15 | AT37: 26 | AU37: 23 | AV37: 55 | AW37: 39 | AX37: 143 | BA37: 10 | BB37: 15 | BK37: 28 | BL37: 31 | BM37: 49 | BN37: 36 | BO37: 144 | BU37: BQ | BV37: BR | BW37: BS
B38: 5 | C38: 10 | L38: 47 | M38: 85 | N38: 92 | O38: 81 | P38: 305 | S38: 5 | T38: 10 | AC38: 31 | AD38: 29 | AE38: 40 | AF38: 41 | AG38: 141 | AJ38: 5 | AK38: 10 | AT38: 11 | AU38: 26 | AV38: 22 | AW38: 25 | AX38: 84 | BA38: 5 | BB38: 10 | BK38: 5 | BL38: 30 | BM38: 30 | BN38: 15 | BO38: 80 | BU38: BN | BV38: BO | BW38: BP
B39: 0 | C39: 5 | M39: 43 | N39: 52 | O39: 45 | P39: 140 | S39: 0 | T39: 5 | AD39: 12 | AE39: 33 | AF39: 34 | AG39: 79 | AJ39: 0 | AK39: 5 | AU39: 21 | AV39: 14 | AW39: 6 | AX39: 41 | BA39: 0 | BB39: 5 | BL39: 10 | BM39: 5 | BN39: 5 | BO39: 20 | BU39: BK | BV39: BL | BW39: BM
B40: -5 | C40: 0 | M40: 63 | N40: 10 | O40: 5 | P40: 78 | S40: -5 | T40: 0 | AD40: 16 | AE40: 7 | AF40: 5 | AG40: 28 | AJ40: -5 | AK40: 0 | AU40: 22 | AV40: 3 | AX40: 25 | BA40: -5 | BB40: 0 | BL40: 25 | BO40: 25 | BU40: BH | BV40: BI | BW40: BJ
B41: -10 | C41: -5 | M41: 78 | N41: 3 | P41: 81 | S41: -10 | T41: -5 | AC41: =IF(ISERROR(INDIRECT(AC$19&"!"&$BU41&"10")),"",(IF(INDIRECT(AC$19&"!"&$BU41&"10")=0,"",INDIRECT(AC$19&"!"&$BU41&"10")))) ->  | AD41: 39 | AE41: 3 | AG41: 42 | AJ41: -10 | AK41: -5 | AT41: =IF(ISERROR(INDIRECT(AT$19&"!"&$BV41&"10")),"",(IF((INDIRECT(AT$19&"!"&$BV41&"10"))=0,"",(INDIRECT(AT$19&"!"&$BV41&"10"))))) ->  | AU41: 19 | AX41: 19 | BA41: -10 | BB41: -5 | BK41: =IF(ISERROR(INDIRECT(BK$19 & "!" & $BW41 & "10")),"",(IF((INDIRECT(BK$19 & "!" & $BW41 & "10"))=0,"",(INDIRECT(BK$19 & "!" & $BW41 & "10"))))) ->  | BL41: 20 | BO41: 20 | BU41: BE | BV41: BF | BW41: BG
B42: -15 | C42: -10 | M42: 25 | P42: 25 | S42: -15 | T42: -10 | AD42: 13 | AG42: 13 | AJ42: -15 | AK42: -10 | AU42: 6 | AX42: 6 | BA42: -15 | BB42: -10 | BL42: 6 | BO42: 6 | BU42: BB | BV42: BC | BW42: BD
B43: -20 | C43: -15 | M43: 4 | P43: 4 | S43: -20 | T43: -15 | AD43: 1 | AG43: 1 | AJ43: -20 | AK43: -15 | AU43: 3 | AX43: 3 | BA43: -20 | BB43: -15 | BO43: 0 | BU43: AY | BV43: AZ | BW43: BA
B44: -25 | C44: -20 | P44: 0 | S44: -25 | T44: -20 | AG44: 0 | AJ44: -25 | AK44: -20 | AX44: 0 | BA44: -25 | BB44: -20 | BO44: 0 | BU44: AV | BV44: AW | BW44: AX
B45: -30 | C45: -25 | P45: 0 | S45: -30 | T45: -25 | AG45: 0 | AJ45: -30 | AK45: -25 | AX45: 0 | BA45: -30 | BB45: -25 | BO45: 0 | BU45: AS | BV45: AT | BW45: AU
B46: -35 | C46: -30 | P46: 0 | S46: -35 | T46: -30 | AG46: 0 | AJ46: -35 | AK46: -30 | AX46: 0 | BA46: -35 | BB46: -30 | BO46: 0 | BU46: AP | BV46: AQ | BW46: AR
B47: -40 | C47: -35 | P47: 0 | S47: -40 | T47: -35 | AG47: 0 | AJ47: -40 | AK47: -35 | AX47: 0 | BA47: -40 | BB47: -35 | BO47: 0 | BU47: AM | BV47: AN | BW47: AO
B48: -45 | C48: -40 | P48: 0 | S48: -45 | T48: -40 | AG48: 0 | AJ48: -45 | AK48: -40 | AX48: 0 | BA48: -45 | BB48: -40 | BO48: 0 | BU48: AJ | BV48: AK | BW48: AL
A50: Nombre d'heures BIN | D50: =SUM(D20:D48) -> 720 | E50: 741 | F50: 720 | G50: 744 | H50: 744 | I50: 720 | J50: 744 | K50: 718 | L50: 744 | M50: 741 | N50: 672 | O50: 744 | P50: =SUM(D50:O50) -> 8752
A51: Nombre d'heures mensuelles | D51: =31*24 -> 744 | E51: =IF(D52="",28*24,(IF(D52="Année non bissextile",28*24,29*24))) -> 672 | F51: =31*24 -> 744 | G51: =30*24 -> 720 | H51: =31*24 -> 744 | I51: =30*24 -> 720 | J51: =31*24 -> 744 | K51: =31*24 -> 744 | L51: =30*24 -> 720 | M51: =31*24 -> 744 | N51: =30*24 -> 720 | O51: =31*24 -> 744 | P51: =SUM(D51:O51) -> 8760
D52: =IF(OR(Février!B18="",AE6=5,AE6=10),"",IF(OR(MOD(Février!B18,400)=0,AND(MOD(Février!B18,4)=0,MOD(Février!B18,100)<>0)),"Année bissextile", "Année non bissextile")) -> Année non bissextile
A53: Données manquantes | D53: =(D51-D50)/D51 -> 0.03225806452 | E53: =(E51-E50)/E51 -> -0.1026785714 | F53: 0.03225806452 | G53: -0.03333333333 | H53: 0 | I53: 0 | J53: 0 | K53: 0.03494623656 | L53: -0.03333333333 | M53: 0.004032258065 | N53: 0.06666666667 | O53: 0 | P53: 0.0009132420091
A56: Plage horaire | B56: BIN (oF) | D56: Humidité relative (%) | P56: Moyenne | R56: Plage horaire | S56: BIN (oF) | U56: Humidité relative (%) | AG56: Moyenne | AI56: Plage horaire | AJ56: Bin (oF) | AL56: Humidité relative (%) | AX56: Moyenne | AZ56: Plage horaire | BA56: Bin (oF) | BC56: Humidité relative (%) | BO56: Moyenne
D57: =D10 -> Avril | E57: =E10 -> Mai | F57: Juin | G57: Juillet | H57: Août | I57: Septembre | J57: Octobre | K57: Novembre | L57: Décembre | M57: Janvier | N57: Février | O57: Mars | U57: =D10 -> Avril | V57: =E10 -> Mai | W57: Juin | X57: Juillet | Y57: Août | Z57: Septembre | AA57: Octobre | AB57: Novembre | AC57: Décembre | AD57: Janvier | AE57: Février | AF57: Mars | AL57: =D10 -> Avril | AM57: =E10 -> Mai | AN57: Juin | AO57: Juillet | AP57: Août | AQ57: Septembre | AR57: Octobre | AS57: Novembre | AT57: Décembre | AU57: Janvier | AV57: Février | AW57: Mars | BC57: =D10 -> Avril | BD57: =E10 -> Mai | BE57: Juin | BF57: Juillet | BG57: Août | BH57: Septembre | BI57: Octobre | BJ57: Novembre | BK57: Décembre | BL57: Janvier | BM57: Février | BN57: Mars
A58: 0 à 24 | B58: 95 | C58: 100 | D58: =IF(SUM(U58,AL58,BC58)=0,"",AVERAGE(U58,AL58,BC58)) ->  | E58: =IF(SUM(V58,AM58,BD58)=0,"",AVERAGE(V58,AM58,BD58)) ->  | P58: =IF(SUM(D58:O58)=0,"",AVERAGE(D58:O58)) ->  | R58: 0 à 8 | S58: 95 | T58: 100 | U58: =IF(INDIRECT(U$57 & "!" & $BR58 & "$10")=0,"",INDIRECT(U$57 & "!" & $BR58 & "$10")) ->  | V58: =IF(INDIRECT(V$57 & "!" & $BR58 & "$10")=0,"",INDIRECT(V$57 & "!" & $BR58 & "$10")) ->  | AG58: =IF(SUM(U58:AF58)=0,"",AVERAGE(U58:AF58)) ->  | AI58: 8 à 16 | AJ58: 95 | AK58: 100 | AL58: =IF(INDIRECT(AL$57 & "!" & $BS58 & "$10")=0,"",INDIRECT(AL$57 & "!" & $BS58 & "$10")) ->  | AM58: =IF(INDIRECT(AM$57 & "!" & $BS58 & "$10")=0,"",INDIRECT(AM$57 & "!" & $BS58 & "$10")) ->  | AX58: =IF(SUM(AL58:AW58)=0,"",AVERAGE(AL58:AW58)) ->  | AZ58: 16 à 24 | BA58: 95 | BB58: 100 | BC58: =IF(INDIRECT(BC$57 & "!" & $BT58 & "$10")=0,"",INDIRECT(BC$57 & "!" & $BT58 & "$10")) ->  | BD58: =IF(INDIRECT(BD$57 & "!" & $BT58 & "$10")=0,"",INDIRECT(BD$57 & "!" & $BT58 & "$10")) ->  | BO58: =IF(SUM(BC58:BN58)=0,"",AVERAGE(BC58:BN58)) ->  | BR58: HB | BS58: HC | BT58: HD
B59: 90 | C59: 95 | D59: =IF(SUM(U59,AL59,BC59)=0,"",AVERAGE(U59,AL59,BC59)) ->  | G59: 49 | P59: =IF(SUM(D59:O59)=0,"",AVERAGE(D59:O59)) -> 49 | S59: 90 | T59: 95 | U59: =IF(INDIRECT(U$57 & "!" & $BR59 & "$10")=0,"",INDIRECT(U$57 & "!" & $BR59 & "$10")) ->  | AG59: =IF(SUM(U59:AF59)=0,"",AVERAGE(U59:AF59)) ->  | AJ59: 90 | AK59: 95 | AL59: =IF(INDIRECT(AL$57 & "!" & $BS59 & "$10")=0,"",INDIRECT(AL$57 & "!" & $BS59 & "$10")) ->  | AO59: 49 | AX59: =IF(SUM(AL59:AW59)=0,"",AVERAGE(AL59:AW59)) -> 49 | BA59: 90 | BB59: 95 | BC59: =IF(INDIRECT(BC$57 & "!" & $BT59 & "$10")=0,"",INDIRECT(BC$57 & "!" & $BT59 & "$10")) ->  | BO59: =IF(SUM(BC59:BN59)=0,"",AVERAGE(BC59:BN59)) ->  | BR59: GY | BS59: GZ | BT59: HA
B60: 85 | C60: 90 | F60: 43.66666667 | G60: 56.975 | I60: 59 | P60: 53.21388889 | S60: 85 | T60: 90 | AJ60: 85 | AK60: 90 | AN60: 45.33333333 | AO60: 61.2 | AQ60: 57 | AX60: 54.51111111 | BA60: 85 | BB60: 90 | BE60: 42 | BF60: 52.75 | BH60: 61 | BO60: 51.91666667 | BR60: GV | BS60: GW | BT60: GX
B61: 80 | C61: 85 | E61: 54 | F61: 41.66973244 | G61: 52.2143928 | H61: 46.44047619 | I61: 56.875 | P61: 50.23992029 | S61: 80 | T61: 85 | AJ61: 80 | AK61: 85 | AM61: 54 | AN61: 43.73076923 | AO61: 53.68965517 | AP61: 47.83333333 | AQ61: 59.75 | AX61: 51.80075155 | BA61: 80 | BB61: 85 | BE61: 39.60869565 | BF61: 50.73913043 | BG61: 45.04761905 | BH61: 54 | BO61: 47.34886128 | BR61: GS | BS61: GT | BT61: GU
B62: 75 | C62: 80 | D62: 51 | E62: 53.25 | F62: 54.81349206 | G62: 60.31948224 | H62: 59.25474889 | I62: 57.59615385 | J62: 59 | P62: 56.46198243 | S62: 75 | T62: 80 | W62: 71.75 | X62: 74.22222222 | Y62: 70 | AG62: 71.99074074 | AJ62: 75 | AK62: 80 | AL62: 51 | AM62: 52.66666667 | AN62: 49.16666667 | AO62: 54.06122449 | AP62: 54.57377049 | AQ62: 59.19230769 | AR62: 59 | AX62: 54.23723372 | BA62: 75 | BB62: 80 | BD62: 53.83333333 | BE62: 43.52380952 | BF62: 52.675 | BG62: 53.19047619 | BH62: 56 | BO62: 51.84452381 | BR62: GP | BS62: GQ | BT62: GR
B63: 70 | C63: 75 | D63: 48 | E63: 54.09356725 | F63: 54.80754772 | G63: 68.49790461 | H63: 67.32649573 | I63: 70.49738614 | J63: 65.41826923 | P63: 61.23445295 | S63: 70 | T63: 75 | V63: 70 | W63: 63.57142857 | X63: 77.39534884 | Y63: 74.30769231 | Z63: 84.36842105 | AG63: 73.92857815 | AJ63: 70 | AK63: 75 | AM63: 49.33333333 | AN63: 52.94736842 | AO63: 63.20253165 | AP63: 62.93846154 | AQ63: 60.30555556 | AR63: 63.46153846 | AX63: 58.69813149 | BA63: 70 | BB63: 75 | BC63: 48 | BD63: 42.94736842 | BE63: 47.90384615 | BF63: 64.89583333 | BG63: 64.73333333 | BH63: 66.81818182 | BI63: 67.375 | BO63: 57.52479472 | BR63: GM | BS63: GN | BT63: GO
B64: 65 | C64: 70 | D64: 58.5 | E64: 58.36316229 | F64: 66.526148 | G64: 70.30892857 | H64: 73.56203943 | I64: 77.40190765 | J64: 77.62592593 | P64: 68.89830169 | S64: 65 | T64: 70 | V64: 69.5 | W64: 71.24137931 | X64: 76.9375 | Y64: 81.63529412 | Z64: 87.64 | AA64: 82.88888889 | AG64: 78.30717705 | AJ64: 65 | AK64: 70 | AL64: 66 | AM64: 54.82352941 | AN64: 61.08333333 | AO64: 66.58928571 | AP64: 68.58928571 | AQ64: 74.6744186 | AR64: 76.1 | AX64: 66.83712183 | BA64: 65 | BB64: 70 | BC64: 51 | BD64: 50.76595745 | BE64: 67.25373134 | BF64: 67.4 | BG64: 70.46153846 | BH64: 69.89130435 | BI64: 73.88888889 | BO64: 64.38020293 | BR64: GJ | BS64: GK | BT64: GL
B65: 60 | C65: 65 | D65: 49.52083333 | E65: 60.94362573 | F65: 74.16882484 | G65: 76.3997669 | H65: 77.54093823 | I65: 73.47441109 | J65: 74.04118774 | K65: 71 | P65: 69.63619848 | S65: 60 | T65: 65 | V65: 72.68421053 | W65: 78.02631579 | X65: 77 | Y65: 81.82954545 | Z65: 82.25 | AA65: 82.16666667 | AG65: 78.99278974 | AJ65: 60 | AK65: 65 | AL65: 48.66666667 | AM65: 53.48 | AN65: 73.61904762 | AO65: 75.15384615 | AP65: 72.23076923 | AQ65: 70.05128205 | AR65: 70.20689655 | AS65: 75 | AX65: 67.30106353 | BA65: 60 | BB65: 65 | BC65: 50.375 | BD65: 56.66666667 | BE65: 70.86111111 | BF65: 77.04545455 | BG65: 78.5625 | BH65: 68.12195122 | BI65: 69.75 | BJ65: 67 | BO65: 67.29783544 | BR65: GG | BS65: GH | BT65: GI
B66: 55 | C66: 60 | D66: 62.53888889 | E66: 63.40477759 | F66: 79.43287037 | G66: 83.89814815 | H66: 79.8 | I66: 77.23020117 | J66: 77.04773191 | K66: 80.33333333 | P66: 75.46074393 | S66: 55 | T66: 60 | U66: 94.75 | V66: 73.13207547 | W66: 79.73611111 | X66: 78.69444444 | Y66: 84.8 | Z66: 87.35294118 | AA66: 82.95918367 | AG66: 83.06067941 | AJ66: 55 | AK66: 60 | AL66: 41 | AM66: 57.2195122 | AN66: 74 | AO66: 85.66666667 | AP66: 76.6 | AQ66: 69.90909091 | AR66: 75.23529412 | AS66: 82 | AX66: 70.20382049 | BA66: 55 | BB66: 60 | BC66: 51.86666667 | BD66: 59.8627451 | BE66: 84.5625 | BF66: 87.33333333 | BG66: 78 | BH66: 74.42857143 | BI66: 72.94871795 | BJ66: 78.66666667 | BO66: 73.45865014 | BR66: GD | BS66: GE | BT66: GF
B67: 50 | C67: 55 | D67: 60.63361823 | E67: 68.57485647 | F67: 78.2 | G67: 85 | H67: 87.875 | I67: 74.46544199 | J67: 75.6872541 | K67: 70.47619048 | P67: 75.11404516 | S67: 50 | T67: 55 | U67: 87.66666667 | V67: 72.38095238 | W67: 78.2 | X67: 85 | Y67: 87.875 | Z67: 86.88372093 | AA67: 88.03703704 | AB67: 85.42857143 | AG67: 83.93399356 | AJ67: 50 | AK67: 55 | AL67: 52.64444444 | AM67: 65.45 | AQ67: 67.07142857 | AR67: 64.34615385 | AS67: 64 | AX67: 62.70240537 | BA67: 50 | BB67: 55 | BC67: 41.58974359 | BD67: 67.89361702 | BH67: 69.44117647 | BI67: 74.67857143 | BJ67: 62 | BO67: 63.1206217 | BR67: GA | BS67: GB | BT67: GC
B68: 45 | C68: 50 | D68: 58.91892659 | E68: 76.9716122 | F68: 82 | I68: 73.92560664 | J68: 75.35260689 | K68: 66.14021164 | L68: 86 | P68: 74.18699485 | S68: 45 | T68: 50 | U68: 62.36 | V68: 76.89705882 | W68: 82 | Z68: 81.63793103 | AA68: 81.81481481 | AB68: 69.83333333 | AC68: 86 | AG68: 77.22044829 | AJ68: 45 | AK68: 50 | AL68: 55.53191489 | AM68: 79.24 | AQ68: 66.22222222 | AR68: 73.01886792 | AS68: 61.94444444 | AX68: 67.1914899 | BA68: 45 | BB68: 50 | BC68: 58.86486486 | BD68: 74.77777778 | BH68: 73.91666667 | BI68: 71.22413793 | BJ68: 66.64285714 | BO68: 69.08526088 | BR68: FX | BS68: FY | BT68: FZ
B69: 40 | C69: 45 | D69: 69.35173327 | E69: 77.46153846 | I69: 72.63333333 | J69: 69.09141378 | K69: 68.26317502 | L69: 85.81381579 | M69: 91.65 | N69: 43.75 | O69: 54.75 | P69: 70.30722329 | S69: 40 | T69: 45 | U69: 78.7755102 | V69: 78.92307692 | Z69: 87.4 | AA69: 76.89473684 | AB69: 70.93103448 | AC69: 88.5625 | AD69: 89.2 | AG69: 81.52669406 | AJ69: 40 | AK69: 45 | AL69: 64.78846154 | AM69: 76 | AQ69: 63 | AR69: 62.83783784 | AS69: 65.35849057 | AT69: 78.57894737 | AU69: 91.5 | AV69: 43.75 | AW69: 55.5 | AX69: 66.81263748 | BA69: 40 | BB69: 45 | BC69: 64.49122807 | BH69: 67.5 | BI69: 67.54166667 | BJ69: 68.5 | BK69: 90.3 | BL69: 94.25 | BN69: 54 | BO69: 72.36898496 | BR69: FU | BS69: FV | BT69: FW
B70: 35 | C70: 40 | D70: 66.28748383 | E70: 77.8 | I70: 72.14285714 | J70: 66.02839506 | K70: 67.32830605 | L70: 80.03769016 | M70: 81.7832265 | N70: 71.575 | O70: 72.73226359 | P70: 72.85724693 | S70: 35 | T70: 40 | U70: 71.58426966 | V70: 77.8 | Z70: 72.14285714 | AA70: 74.18518519 | AB70: 77.01724138 | AC70: 82.72 | AD70: 86.0625 | AE70: 73.75 | AF70: 79.2 | AG70: 77.16245037 | AJ70: 35 | AK70: 40 | AL70: 60.46 | AR70: 65.5 | AS70: 62.22222222 | AT70: 79.09677419 | AU70: 79.63333333 | AV70: 73.6 | AW70: 70.70731707 | AX70: 70.17423526 | BA70: 35 | BB70: 40 | BC70: 66.81818182 | BI70: 58.4 | BJ70: 62.74545455 | BK70: 78.2962963 | BL70: 79.65384615 | BM70: 67.375 | BN70: 68.28947368 | BO70: 68.79689321 | BR70: FR | BS70: FS | BT70: FT
B71: 30 | C71: 35 | D71: 58.99582289 | K71: 67.49491082 | L71: 87.43795641 | M71: 77.11709677 | N71: 65.41111111 | O71: 74.60876877 | P71: 71.8442778 | S71: 30 | T71: 35 | U71: 64.36842105 | AB71: 67.1641791 | AC71: 88.69230769 | AD71: 79.55 | AE71: 69.5 | AF71: 81.57446809 | AG71: 75.14156266 | AJ71: 30 | AK71: 35 | AL71: 52 | AS71: 63.47272727 | AT71: 85.45762712 | AU71: 76.16129032 | AV71: 60.73333333 | AW71: 69.78125 | AX71: 67.93437134 | BA71: 30 | BB71: 35 | BC71: 60.61904762 | BJ71: 71.84782609 | BK71: 88.16393443 | BL71: 75.64 | BM71: 66 | BN71: 72.47058824 | BO71: 72.45689939 | BR71: FO | BS71: FP | BT71: FQ
B72: 25 | C72: 30 | D72: 65.77631579 | K72: 63.98750906 | L72: 82.79518261 | M72: 79.08816425 | N72: 78.61111111 | O72: 65.8993558 | P72: 72.69293977 | S72: 25 | T72: 30 | U72: 72.57894737 | AB72: 72.45833333 | AC72: 81.89795918 | AD72: 81.13888889 | AE72: 77.5 | AF72: 76.03448276 | AG72: 76.93476859 | AJ72: 25 | AK72: 30 | AL72: 49 | AS72: 57.20689655 | AT72: 87.08333333 | AU72: 79.77777778 | AV72: 77.16666667 | AW72: 62.44736842 | AX72: 68.78034046 | BA72: 25 | BB72: 30 | BC72: 75.75 | BJ72: 62.2972973 | BK72: 79.40425532 | BL72: 76.34782609 | BM72: 81.16666667 | BN72: 59.21621622 | BO72: 72.36371026 | BR72: FL | BS72: FM | BT72: FN
B73: 20 | C73: 25 | D73: 67.71428571 | K73: 66.05582923 | L73: 73.9449528 | M73: 75.63549891 | N73: 75.69120553 | O73: 60.57210031 | P73: 69.93564542 | S73: 20 | T73: 25 | U73: 67.14285714 | AB73: 71.31034483 | AC73: 82.3 | AD73: 78.53846154 | AE73: 80.81818182 | AF73: 78.22727273 | AG73: 76.38951968 | AJ73: 20 | AK73: 25 | AL73: 54 | AS73: 62.85714286 | AT73: 66.79411765 | AU73: 75.04545455 | AV73: 68.125 | AW73: 51.03448276 | AX73: 62.97603297 | BA73: 20 | BB73: 25 | BC73: 82 | BJ73: 64 | BK73: 72.74074074 | BL73: 73.32258065 | BM73: 78.13043478 | BN73: 52.45454545 | BO73: 70.4413836 | BR73: FI | BS73: FJ | BT73: FK
B74: 15 | C74: 20 | D74: 65.5 | E74: =IF(SUM(V74,AM74,BD74)=0,"",AVERAGE(V74,AM74,BD74)) ->  | F74: =IF(SUM(W74,AN74,BE74)=0,"",AVERAGE(W74,AN74,BE74)) ->  | G74: =IF(SUM(X74,AO74,BF74)=0,"",AVERAGE(X74,AO74,BF74)) ->  | H74: =IF(SUM(Y74,AP74,BG74)=0,"",AVERAGE(Y74,AP74,BG74)) ->  | I74: =IF(SUM(Z74,AQ74,BH74)=0,"",AVERAGE(Z74,AQ74,BH74)) ->  | J74: =IF(SUM(AA74,AR74,BI74)=0,"",AVERAGE(AA74,AR74,BI74)) ->  | K74: =IF(SUM(AB74,AS74,BJ74)=0,"",AVERAGE(AB74,AS74,BJ74)) -> 68.97619048 | L74: =IF(SUM(AC74,AT74,BK74)=0,"",AVERAGE(AC74,AT74,BK74)) -> 70.4001653 | M74: =IF(SUM(AD74,AU74,BL74)=0,"",AVERAGE(AD74,AU74,BL74)) -> 68.84242424 | N74: =IF(SUM(AE74,AV74,BM74)=0,"",AVERAGE(AE74,AV74,BM74)) -> 69.17777778 | O74: =IF(SUM(AF74,AW74,BN74)=0,"",AVERAGE(AF74,AW74,BN74)) -> 54.47271242 | P74: 66.2282117 | S74: 15 | T74: 20 | U74: 65.5 | AB74: 73.35714286 | AC74: 77.11764706 | AD74: 63.6 | AE74: 76.03333333 | AF74: 62.54166667 | AG74: 69.69163165 | AJ74: 15 | AK74: 20 | AS74: 71 | AT74: 65.6875 | AU74: 72.72727273 | AV74: 64.92857143 | AW74: 52.17647059 | AX74: 65.30396295 | BA74: 15 | BB74: 20 | BJ74: 62.57142857 | BK74: 68.39534884 | BL74: 70.2 | BM74: 66.57142857 | BN74: 48.7 | BO74: 63.2876412 | BR74: FF | BS74: FG | BT74: FH
B75: 10 | C75: 15 | L75: 63.34332334 | M75: 67.86859758 | N75: 68.1027927 | O75: 58.9432497 | P75: 64.56449083 | S75: 10 | T75: 15 | AC75: 69.40909091 | AD75: 73.8372093 | AE75: 74.97368421 | AF75: 63.77419355 | AG75: 70.49854449 | AJ75: 10 | AK75: 15 | AT75: 57.69230769 | AU75: 64.47826087 | AV75: 65.6 | AW75: 53 | AX75: 60.19264214 | BA75: 10 | BB75: 15 | BK75: 62.92857143 | BL75: 65.29032258 | BM75: 63.73469388 | BN75: 60.05555556 | BO75: 63.00228586 | BR75: FC | BS75: FD | BT75: FE
B76: 5 | C76: 10 | L76: 58.37478006 | M76: 64.55643973 | N76: 64.22853535 | O76: 60.09300813 | P76: 61.81319082 | S76: 5 | T76: 10 | AC76: 59.4516129 | AD76: 69.31034483 | AE76: 70.725 | AF76: 65.43902439 | AG76: 66.23149553 | AJ76: 5 | AK76: 10 | AT76: 59.27272727 | AU76: 62.19230769 | AV76: 62.22727273 | AW76: 59.24 | AX76: 60.73307692 | BA76: 5 | BB76: 10 | BK76: 56.4 | BL76: 62.16666667 | BM76: 59.73333333 | BN76: 55.6 | BO76: 58.475 | BR76: EZ | BS76: FA | BT76: FB
B77: 0 | C77: 5 | M77: 63.49761905 | N77: 65.12467532 | O77: 54.50130719 | P77: 61.04120052 | S77: 0 | T77: 5 | AD77: 73.58333333 | AE77: 69.54545455 | AF77: 61.97058824 | AG77: 68.3664587 | AJ77: 0 | AK77: 5 | AU77: 58.80952381 | AV77: 66.42857143 | AW77: 56.33333333 | AX77: 60.52380952 | BA77: 0 | BB77: 5 | BL77: 58.1 | BM77: 59.4 | BN77: 45.2 | BO77: 54.23333333 | BR77: EW | BS77: EX | BT77: EY
B78: -5 | C78: 0 | M78: 58.88227273 | N78: 76.5952381 | O78: 62.2 | P78: 65.89250361 | S78: -5 | T78: 0 | AD78: 66.125 | AE78: 73.85714286 | AF78: 62.2 | AG78: 67.39404762 | AJ78: -5 | AK78: 0 | AU78: 53.68181818 | AV78: 79.33333333 | AX78: 66.50757576 | BA78: -5 | BB78: 0 | BL78: 56.84 | BO78: 56.84 | BR78: ET | BS78: EU | BT78: EV
B79: -10 | C79: -5 | M79: 62.6237067 | N79: 74.66666667 | P79: 68.64518668 | S79: -10 | T79: -5 | AC79: =IF(INDIRECT(AC$57 & "!" & $BR79 & "$10")=0,"",INDIRECT(AC$57 & "!" & $BR79 & "$10")) ->  | AD79: 66.8974359 | AE79: 74.66666667 | AG79: 70.78205128 | AJ79: -10 | AK79: -5 | AT79: =IF(INDIRECT(AT$57 & "!" & $BS79 & "$10")=0,"",INDIRECT(AT$57 & "!" & $BS79 & "$10")) ->  | AU79: 60.47368421 | AX79: 60.47368421 | BA79: -10 | BB79: -5 | BK79: =IF(INDIRECT(BK$57 & "!" & $BT79 & "$10")=0,"",INDIRECT(BK$57 & "!" & $BT79 & "$10")) ->  | BL79: 60.5 | BO79: 60.5 | BR79: EQ | BS79: ER | BT79: ES
B80: -15 | C80: -10 | M80: 62.41452991 | P80: 62.41452991 | S80: -15 | T80: -10 | AD80: 62.07692308 | AG80: 62.07692308 | AJ80: -15 | AK80: -10 | AU80: 61.33333333 | AX80: 61.33333333 | BA80: -15 | BB80: -10 | BL80: 63.83333333 | BO80: 63.83333333 | BR80: EN | BS80: EO | BT80: EP
B81: -20 | C81: -15 | M81: 56.66666667 | P81: 56.66666667 | S81: -20 | T81: -15 | AD81: 54 | AG81: 54 | AJ81: -20 | AK81: -15 | AU81: 59.33333333 | AX81: 59.33333333 | BA81: -20 | BB81: -15 | BR81: EK | BS81: EL | BT81: EM
B82: -25 | C82: -20 | S82: -25 | T82: -20 | AJ82: -25 | AK82: -20 | BA82: -25 | BB82: -20 | BR82: EH | BS82: EI | BT82: EJ
B83: -30 | C83: -25 | S83: -30 | T83: -25 | AJ83: -30 | AK83: -25 | BA83: -30 | BB83: -25 | BR83: EE | BS83: EF | BT83: EG
B84: -35 | C84: -30 | S84: -35 | T84: -30 | AJ84: -35 | AK84: -30 | BA84: -35 | BB84: -30 | BR84: EB | BS84: EC | BT84: ED
B85: -40 | C85: -35 | S85: -40 | T85: -35 | AJ85: -40 | AK85: -35 | BA85: -40 | BB85: -35 | BR85: DY | BS85: DZ | BT85: EA
B86: -45 | C86: -40 | S86: -45 | T86: -40 | AJ86: -45 | AK86: -40 | BA86: -45 | BB86: -40 | BR86: DV | BS86: DW | BT86: DX

Sheet Ventilation
A2: Calculateur de ventilation
C4: Information générales
C5: Nom de la personne ayant rempli le formulaire : | M5: Nom de la personne ressource sur site :
C6: Compagnie représentée : | N6: - Téléphone :
D7: - Téléphone : | N7: - Fax :
D8: - Fax : | N8: - Courriel :
D9: - Courriel : | N9: - Adresse :
D10: - Adresse : | M10: Nom du site :
C11: Date du rapport : | M11: Coordonnées du site :
M12: Nom du système :
M13: Numéro du système :
C25: Ventilation | M25: Chauffage de l'air de ventilation
C26: Débit d'air total | H26: 15000 | I26: pcm | M26: Technologie de chauffage
C27: Pourcentage d'air neuf | H27: 1 | M27: Efficacité du système de chauffage | S27: 0.9 | T27: Efficacité typique : 90%
C28: Débit d'air neuf | H28: =H26*H27 -> 15000 | I28: pcm
C29: Récupération de la totalité du débit d'air neuf ? | M29: Humidification
C30: Débit d'air de récupération | H30: 15000 | I30: pcm | M30: Technologie d'humidification
M31: Efficacité du système d'humidification | S31: 0.8 | T31: Efficacité typique : 75% à 85%
C32: Opération
I33: 0-8 hrs | M33: Récupération de chaleur ou d'énergie
C34: Heures d'opération | I34: 8-16 hrs | M34: Présence d'un système de récupération
I35: 16-24 hrs | M35: Technologie
M36: Efficacité de récupération sensible | S36: 0.75 | T36: Efficacité typique : 50% à 85%
C37: Points de consigne | M37: Efficacité de récupération totale | S37: 0.75 | T37: Efficacité typique : 50% à 85%
C38: Température de la pièce | H38: =Météo!H6 -> 20 | I38: oC | M38: Présence d'un système de dégivrage | T38: (si une seule des deux efficacité est connue, la rentrer deux fois)
C39: Humidité relative | H39: 0.3 | I39: Humidité typique : 30% | M39: Technologie de dégivrage
C40: Récupération à la température de consigne ?
C41: Température de récupération | H41: 20 | I41: oC

Sheet Résultats
A2: Résultats
C4: Système : | J4: Site :
C5: No. :
J6: Date :
C8: Informations détaillées des réglages : | J8: Technologies utilisées :
C10: Débit d'air total : | G10: 15000 | H10: pcm | J10: Technologie de chauffage : | M10: Chaudière à condensation
C11: Pourcentage d'air neuf : | G11: 1 | K11: Efficacité : | M11: 0.9
C12: Débit d'air neuf : | G12: 15000 | H12: pcm | J12: Technologie d'humidification : | M12: Humidificateur à vapeur (gaz naturel)
C13: Débit d'air de récupération : | G13: 15000 | H13: pcm | K13: Efficacité : | M13: 0.8
C14: Heures d'opération : | F14: 0-8h 8-16h | J14: Système de récupération : | M14: Roue enthalpique (récupération sensible et latente)
C15: Température de la pièce : | G15: 20 | H15: oC | K15: Efficacité sensible : | M15: 0.75
C16: Humidité relative : | G16: 0.3 | K16: Efficacité totale : | M16: 0.75
C17: Température débit récupérateur : | G17: 20 | H17: oC | J17: Système de dégivrage : | M17: n/a
B21: Plage horaire | C21: Volume de gaz naturel (m3) | E21: =Météo!D10 -> Avril | F21: =Météo!E10 -> Mai | G21: =Météo!F10 -> Juin | H21: =Météo!G10 -> Juillet | I21: =Météo!H10 -> Août | J21: =Météo!I10 -> Septembre | K21: =Météo!J10 -> Octobre | L21: =Météo!K10 -> Novembre | M21: =Météo!L10 -> Décembre | N21: =Météo!M10 -> Janvier | O21: =Météo!N10 -> Février | P21: =Météo!O10 -> Mars | Q21: Total
B22: 0 à 24 | C22: Consommation (sans récupérateur)
C23: Chauffage | E23: =E33+E43+E53 -> 6429.441076 | F23: =F33+F43+F53 -> 2970.320608 | G23: 897.9623529 | H23: 551.5908597 | I23: 777.4853118 | J23: 2270.685927 | K23: 4306.543723 | L23: 8009.170753 | M23: 10566.2449 | N23: 13613.6504 | O23: 11771.52581 | P23: 11959.89881 | Q23: =SUM(E23:P23) -> 74124.52052
C24: Humidification | E24: =E34+E44+E54 -> 748.5888347 | F24: 14.26428503 | G24: 0 | H24: 0 | I24: 0 | J24: 13.90168396 | K24: 102.6059813 | L24: 1507.842942 | M24: 2648.698084 | N24: 3619.331113 | O24: 3330.989779 | P24: 3228.873142 | Q24: 15215.09585
C25: Total | E25: =SUM(E23:E24) -> 7178.029911 | F25: 2984.584893 | G25: 897.9623529 | H25: 551.5908597 | I25: 777.4853118 | J25: 2284.587611 | K25: 4409.149704 | L25: 9517.013695 | M25: 13214.94298 | N25: 17232.98151 | O25: 15102.51559 | P25: 15188.77195 | Q25: =SUM(E25:P25) -> 89339.61637
C26: Économies possibles grâce au récupérateur
C27: Chauffage | E27: =Résultats!E37+Résultats!E47+Résultats!E57 -> 4822.080807 | F27: =Résultats!F37+Résultats!F47+Résultats!F57 -> 2227.740456 | G27: =Résultats!G37+Résultats!G47+Résultats!G57 -> 673.4717646 | H27: =Résultats!H37+Résultats!H47+Résultats!H57 -> 413.6931448 | I27: =Résultats!I37+Résultats!I47+Résultats!I57 -> 583.1139838 | J27: =Résultats!J37+Résultats!J47+Résultats!J57 -> 1703.014445 | K27: =Résultats!K37+Résultats!K47+Résultats!K57 -> 3229.907792 | L27: =Résultats!L37+Résultats!L47+Résultats!L57 -> 6006.878065 | M27: =Résultats!M37+Résultats!M47+Résultats!M57 -> 7924.683675 | N27: =Résultats!N37+Résultats!N47+Résultats!N57 -> 10210.2378 | O27: =Résultats!O37+Résultats!O47+Résultats!O57 -> 8828.644355 | P27: =Résultats!P37+Résultats!P47+Résultats!P57 -> 8969.924106 | Q27: =SUM(E27:P27) -> 55593.39039
C28: Humidification | E28: =Résultats!E38+Résultats!E48+Résultats!E58 -> 563.4228486 | F28: =Résultats!F38+Résultats!F48+Résultats!F58 -> 10.72948461 | G28: =Résultats!G38+Résultats!G48+Résultats!G58 -> 0 | H28: =Résultats!H38+Résultats!H48+Résultats!H58 -> 0 | I28: =Résultats!I38+Résultats!I48+Résultats!I58 -> 0 | J28: =Résultats!J38+Résultats!J48+Résultats!J58 -> 10.45820576 | K28: =Résultats!K38+Résultats!K48+Résultats!K58 -> 77.17525984 | L28: =Résultats!L38+Résultats!L48+Résultats!L58 -> 1135.338397 | M28: =Résultats!M38+Résultats!M48+Résultats!M58 -> 1995.962006 | N28: =Résultats!N38+Résultats!N48+Résultats!N58 -> 2731.027303 | O28: =Résultats!O38+Résultats!O48+Résultats!O58 -> 2512.077563 | P28: =Résultats!P38+Résultats!P48+Résultats!P58 -> 2434.378347 | Q28: =SUM(E28:P28) -> 11470.56942
C29: Total | E29: =SUM(E27:E28) -> 5385.503656 | F29: 2238.469941 | G29: 673.4717646 | H29: 413.6931448 | I29: 583.1139838 | J29: 1713.472651 | K29: 3307.083052 | L29: 7142.216462 | M29: 9920.645681 | N29: 12941.2651 | O29: 11340.72192 | P29: 11404.30245 | Q29: =SUM(E29:P29) -> 67063.95981
B31: Plage horaire | C31: Volume de gaz naturel (m3) | E31: =Météo!D10 -> Avril | F31: =Météo!E10 -> Mai | G31: =Météo!F10 -> Juin | H31: =Météo!G10 -> Juillet | I31: =Météo!H10 -> Août | J31: =Météo!I10 -> Septembre | K31: =Météo!J10 -> Octobre | L31: =Météo!K10 -> Novembre | M31: =Météo!L10 -> Décembre | N31: =Météo!M10 -> Janvier | O31: =Météo!N10 -> Février | P31: =Météo!O10 -> Mars | Q31: Total
B32: 0 à 8 | C32: Consommation (sans récupérateur)
C33: Chauffage | E33: 3647.493469 | F33: 1966.940845 | G33: 743.282084 | H33: 448.2154325 | I33: 636.5884332 | J33: 1498.560823 | K33: 2470.289838 | L33: 4206.486519 | M33: 5331.619564 | N33: 7023.913595 | O33: 6088.685038 | P33: 6276.037047 | Q33: =SUM(E33:P33) -> 40338.11269
C34: Humidification | E34: 453.4508427 | F34: 8.98748931 | G34: 0 | H34: 0 | I34: 0 | J34: 12.58248503 | K34: 48.53244227 | L34: 758.7500106 | M34: 1261.82541 | N34: 1826.842508 | O34: 1688.639995 | P34: 1662.499132 | Q34: =SUM(E34:P34) -> 7722.110315
C35: Total | E35: =SUM(E33:E34) -> 4100.944311 | F35: 1975.928334 | G35: 743.282084 | H35: 448.2154325 | I35: 636.5884332 | J35: 1511.143308 | K35: 2518.822281 | L35: 4965.23653 | M35: 6593.444974 | N35: 8850.756103 | O35: 7777.325033 | P35: 7938.53618 | Q35: =SUM(E35:P35) -> 48060.223
C36: Économies possibles grâce au récupérateur
C37: Chauffage | E37: 2735.620101 | F37: 1475.205633 | G37: 557.461563 | H37: 336.1615744 | I37: 477.4413249 | J37: 1123.920617 | K37: 1852.717379 | L37: 3154.86489 | M37: 3998.714673 | N37: 5267.935196 | O37: 4566.513779 | P37: 4707.027785 | Q37: =SUM(E37:P37) -> 30253.58452
C38: Humidification | E38: 341.3473674 | F38: 6.761595308 | G38: 0 | H38: 0 | I38: 0 | J38: 9.466233431 | K38: 36.51261466 | L38: 571.3947273 | M38: 950.9916792 | N38: 1378.715238 | O38: 1273.707973 | P38: 1253.738873 | Q38: =SUM(E38:P38) -> 5822.636301
C39: Total | E39: =SUM(E37:E38) -> 3076.967469 | F39: 1481.967229 | G39: 557.461563 | H39: 336.1615744 | I39: 477.4413249 | J39: 1133.38685 | K39: 1889.229993 | L39: 3726.259617 | M39: 4949.706352 | N39: 6646.650434 | O39: 5840.221751 | P39: 5960.766658 | Q39: =SUM(E39:P39) -> 36076.22082
B41: Plage horaire | C41: Volume de gaz naturel (m3) | E41: =Météo!D10 -> Avril | F41: =Météo!E10 -> Mai | G41: =Météo!F10 -> Juin | H41: =Météo!G10 -> Juillet | I41: =Météo!H10 -> Août | J41: =Météo!I10 -> Septembre | K41: =Météo!J10 -> Octobre | L41: =Météo!K10 -> Novembre | M41: =Météo!L10 -> Décembre | N41: =Météo!M10 -> Janvier | O41: =Météo!N10 -> Février | P41: =Météo!O10 -> Mars | Q41: Total
B42: 8 à 16 | C42: Consommation (sans récupérateur)
C43: Chauffage | E43: 2781.947608 | F43: 1003.379764 | G43: 154.6802689 | H43: 103.3754272 | I43: 140.8968786 | J43: 772.1251044 | K43: 1836.253885 | L43: 3802.684233 | M43: 5234.625336 | N43: 6589.7368 | O43: 5682.840769 | P43: 5683.86176 | Q43: =SUM(E43:P43) -> 33786.40783
C44: Humidification | E44: 295.137992 | F44: 5.276795721 | G44: 0 | H44: 0 | I44: 0 | J44: 1.31919893 | K44: 54.07353901 | L44: 749.0929314 | M44: 1386.872674 | N44: 1792.488605 | O44: 1642.349785 | P44: 1566.37401 | Q44: =SUM(E44:P44) -> 7492.985531
C45: Total | E45: =SUM(E43:E44) -> 3077.0856 | F45: 1008.65656 | G45: 154.6802689 | H45: 103.3754272 | I45: 140.8968786 | J45: 773.4443034 | K45: 1890.327424 | L45: 4551.777165 | M45: 6621.49801 | N45: 8382.225405 | O45: 7325.190553 | P45: 7250.235771 | Q45: =SUM(E45:P45) -> 41279.39336
C46: Économies possibles grâce au récupérateur
C47: Chauffage | E47: 2086.460706 | F47: 752.5348229 | G47: 116.0102016 | H47: 77.5315704 | I47: 105.6726589 | J47: 579.0938283 | K47: 1377.190414 | L47: 2852.013175 | M47: 3925.969002 | N47: 4942.3026 | O47: 4262.130576 | P47: 4262.89632 | Q47: =SUM(E47:P47) -> 25339.80588
C48: Humidification | E48: 222.0754811 | F48: 3.967889307 | G48: 0 | H48: 0 | I48: 0 | J48: 0.9919723266 | K48: 40.66264518 | L48: 563.9436701 | M48: 1044.970326 | N48: 1352.312065 | O48: 1238.36959 | P48: 1180.639474 | Q48: =SUM(E48:P48) -> 5647.933114
C49: Total | E49: =SUM(E47:E48) -> 2308.536187 | F49: 756.5027122 | G49: 116.0102016 | H49: 77.5315704 | I49: 105.6726589 | J49: 580.0858007 | K49: 1417.853059 | L49: 3415.956845 | M49: 4970.939329 | N49: 6294.614665 | O49: 5500.500167 | P49: 5443.535794 | Q49: =SUM(E49:P49) -> 30987.73899
B51: Plage horaire | C51: Volume de gaz naturel (m3) | E51: =Météo!D10 -> Avril | F51: =Météo!E10 -> Mai | G51: =Météo!F10 -> Juin | H51: =Météo!G10 -> Juillet | I51: =Météo!H10 -> Août | J51: =Météo!I10 -> Septembre | K51: =Météo!J10 -> Octobre | L51: =Météo!K10 -> Novembre | M51: =Météo!L10 -> Décembre | N51: =Météo!M10 -> Janvier | O51: =Météo!N10 -> Février | P51: =Météo!O10 -> Mars | Q51: Total
B52: 16 à 24 | C52: Consommation (sans récupérateur)
C53: Chauffage | E53: 0 | F53: 0 | G53: 0 | H53: 0 | I53: 0 | J53: 0 | K53: 0 | L53: 0 | M53: 0 | N53: 0 | O53: 0 | P53: 0 | Q53: =SUM(E53:P53) -> 0
C54: Humidification | E54: 0 | F54: 0 | G54: 0 | H54: 0 | I54: 0 | J54: 0 | K54: 0 | L54: 0 | M54: 0 | N54: 0 | O54: 0 | P54: 0 | Q54: =SUM(E54:P54) -> 0
C55: Total | E55: =SUM(E53:E54) -> 0 | F55: 0 | G55: 0 | H55: 0 | I55: 0 | J55: 0 | K55: 0 | L55: 0 | M55: 0 | N55: 0 | O55: 0 | P55: 0 | Q55: =SUM(E55:P55) -> 0
C56: Économies possibles grâce au récupérateur
C57: Chauffage | E57: 0 | F57: 0 | G57: 0 | H57: 0 | I57: 0 | J57: 0 | K57: 0 | L57: 0 | M57: 0 | N57: 0 | O57: 0 | P57: 0 | Q57: =SUM(E57:P57) -> 0
C58: Humidification | E58: 0 | F58: 0 | G58: 0 | H58: 0 | I58: 0 | J58: 0 | K58: 0 | L58: 0 | M58: 0 | N58: 0 | O58: 0 | P58: 0 | Q58: =SUM(E58:P58) -> 0
C59: Total | E59: =SUM(E57:E58) -> 0 | F59: 0 | G59: 0 | H59: 0 | I59: 0 | J59: 0 | K59: 0 | L59: 0 | M59: 0 | N59: 0 | O59: 0 | P59: 0 | Q59: =SUM(E59:P59) -> 0
C63: Analyse effectué par : | J63: Personne ressource :
C64: Firme : | J64: Téléphone :
C65: Téléphone : | J65: Fax :
C66: Fax : | J66: Courriel :
C67: Courriel : | J67: Adresse :
C68: Adresse :
B78: Gaz Métro ne peut être tenu responsable des dommages, qu’ils soient directs ou indirects découlant des résultats des outils de calculs. L’utilisateur demeure responsable de s’assurer de l’exactitude des données qu’il utilise. Les résultats se trouvant dans le chiffrier de calculs sont fournis au client à titre indicatif seulement et ne peuvent en aucun cas être interprétés comme une garantie d’efficacité ou une représentation en ce sens de Gaz Métro. Gaz Métro, ses employés, mandataires et représentants ne peuvent donc être tenus responsables advenant un écart entre cette estimation et la performance réelle des équipements du client. Version 1.2 – Novembre 2015

Sheet Janvier
A1: Nom de la Station | B1: MONTREAL/PIERRE ELLIOTT TRUDEAU INTL | Z1: 10 | DS1: Idéal : | DT1: =31*24 -> 744
A2: Province | B2: QUEBEC
A3: Latitude | B3: 45.47 | AA3: Fichier en cour : | AB3: =SUM(AB18:AB799) -> 1648.515 | AC3: =SUM(AC18:AC799) -> 0 | AD3: 574.5375 | AE3: 0 | AF3: 539.1675 | AG3: 0 | AH3: 534.81 | AI3: 0 | AJ3: =SUM(AJ18:AJ799) -> 0 | AK3: =SUM(AK18:AK799) -> 0 | AL3: 0 | AM3: 0 | AN3: 0 | AO3: 0 | AP3: 0 | AQ3: 0 | AR3: 0 | AS3: =SUM(AS18:AS799) -> 0 | AT3: =SUM(AT18:AT799) -> 0 | AU3: 0 | AV3: 0 | AW3: 0 | AX3: 0 | AY3: 1 | AZ3: 3 | BA3: 0 | BB3: 13 | BC3: 6 | BD3: 6 | BE3: 39 | BF3: 19 | BG3: 20 | BH3: 16 | BI3: 22 | BJ3: 25 | BK3: 12 | BL3: 21 | BM3: 10 | BN3: 29 | BO3: 26 | BP3: 30 | BQ3: 43 | BR3: 23 | BS3: 31 | BT3: 5 | BU3: 22 | BV3: 15 | BW3: 13 | BX3: 22 | BY3: 31 | BZ3: 36 | CA3: 18 | CB3: 23 | CC3: 20 | CD3: 31 | CE3: 25 | CF3: 16 | CG3: 30 | CH3: 26 | CI3: 5 | CJ3: 4 | CK3: 4 | CL3: 0 | CM3: 0 | CN3: 0 | CO3: 0 | CP3: 0 | CQ3: 0 | CR3: 0 | CS3: 0 | CT3: 0 | CU3: 0 | CV3: 0 | CW3: 0 | CX3: 0 | CY3: 0 | CZ3: 0 | DA3: 0 | DB3: 0 | DC3: 0 | DD3: 0 | DE3: 0 | DF3: =SUM(DF18:DF799) -> 0 | DG3: 0 | DH3: 0 | DI3: 0 | DJ3: 0 | DK3: 0 | DL3: 0 | DM3: 0 | DN3: 0 | DO3: 0 | DP3: 0 | DQ3: 0 | DR3: 0 | DS3: =B18 -> 2014 | DT3: =COUNT(G18:G799) -> 741 | DV3: =IF(SUM(DV18:DV799)=0,"",(AVERAGE(DV18:DV799))) ->  | DW3: =IF(SUM(DW18:DW799)=0,"",(AVERAGE(DW18:DW799))) ->  | EE3: =IF(SUM(EE18:EE799)=0,"",(AVERAGE(EE18:EE799))) ->  | EF3: =IF(SUM(EF18:EF799)=0,"",(AVERAGE(EF18:EF799))) ->  | EK3: 54 | EL3: 59.33333333 | EN3: 62.07692308 | EO3: 61.33333333 | EP3: 63.83333333 | EQ3: 66.8974359 | ER3: 60.47368421 | ES3: 60.5 | ET3: 66.125 | EU3: 53.68181818 | EV3: 56.84 | EW3: 73.58333333 | EX3: 58.80952381 | EY3: 58.1 | EZ3: 69.31034483 | FA3: 62.19230769 | FB3: 62.16666667 | FC3: 73.8372093 | FD3: 64.47826087 | FE3: 65.29032258 | FF3: 63.6 | FG3: 72.72727273 | FH3: 70.2 | FI3: 78.53846154 | FJ3: 75.04545455 | FK3: 73.32258065 | FL3: 81.13888889 | FM3: 79.77777778 | FN3: 76.34782609 | FO3: 79.55 | FP3: 76.16129032 | FQ3: 75.64 | FR3: 86.0625 | FS3: 79.63333333 | FT3: 79.65384615 | FU3: 89.2 | FV3: 91.5 | FW3: 94.25 | GR3: =IF(SUM(GR18:GR799)=0,"",(AVERAGE(GR18:GR799))) -> 
A4: Longitude | B4: -73.74
A5: Altitude | B5: 32.1
A6: Identification Climat | B6: 702S006
A7: Identification OMM | B7: 71183 | AB7: 0-24 | AD7: 0-8h | AF7: 8-16 | AH7: 16-24
A8: Identification TC | B8: WTQ | AA8: Moyenne : | AB8: DJC | AC8: DJR | AD8: DJC | AE8: DJR | AF8: DJC | AG8: DJR | AH8: DJC | AI8: DJR
A9: Toutes les heures sont exprimées en heure normale locale (HNL). Pour convertir l'heure locale en heure avancée de l'Est (HAE), ajoutez 1 heure s'il y a lieu. | AB9: =AVERAGE(AB800:AB809) -> 1648.515 | AC9: =AVERAGE(AC800:AC809) -> 0 | AD9: 574.5375 | AE9: 0 | AF9: 539.1675 | AG9: 0 | AH9: 534.81 | AI9: 0
AJ10: =AVERAGE(AJ800:AJ809) -> 0 | AK10: =AVERAGE(AK800:AK809) -> 0 | AL10: 0 | AM10: 0 | AN10: 0 | AO10: 0 | AP10: 0 | AQ10: 0 | AR10: 0 | AS10: =AVERAGE(AS800:AS809) -> 0 | AT10: =AVERAGE(AT800:AT809) -> 0 | AU10: 0 | AV10: 0 | AW10: 0 | AX10: 0 | AY10: 1 | AZ10: 3 | BA10: 0 | BB10: 13 | BC10: 6 | BD10: 6 | BE10: 39 | BF10: 19 | BG10: 20 | BH10: 16 | BI10: 22 | BJ10: 25 | BK10: 12 | BL10: 21 | BM10: 10 | BN10: 29 | BO10: 26 | BP10: 30 | BQ10: 43 | BR10: 23 | BS10: 31 | BT10: 5 | BU10: 22 | BV10: 15 | BW10: 13 | BX10: 22 | BY10: 31 | BZ10: 36 | CA10: 18 | CB10: 23 | CC10: 20 | CD10: 31 | CE10: 25 | CF10: 16 | CG10: 30 | CH10: 26 | CI10: 5 | CJ10: 4 | CK10: 4 | CL10: 0 | CM10: 0 | CN10: 0 | CO10: 0 | CP10: 0 | CQ10: 0 | CR10: 0 | CS10: 0 | CT10: 0 | CU10: 0 | CV10: 0 | CW10: 0 | CX10: 0 | CY10: 0 | CZ10: 0 | DA10: 0 | DB10: 0 | DC10: 0 | DD10: 0 | DE10: 0 | DF10: =AVERAGE(DF800:DF809) -> 0 | DG10: 0 | DH10: 0 | DI10: 0 | DJ10: 0 | DK10: 0 | DL10: 0 | DM10: 0 | DN10: 0 | DO10: 0 | DP10: 0 | DQ10: 0 | DR10: 0 | DV10: =IF(SUM(DV800:DV810)=0,0,(AVERAGE(DV800:DV810))) -> 0 | DW10: =IF(SUM(DW800:DW810)=0,0,(AVERAGE(DW800:DW810))) -> 0 | DX10: 0 | DY10: 0 | DZ10: 0 | EA10: 0 | EB10: 0 | EC10: 0 | ED10: 0 | EE10: =IF(SUM(EE800:EE810)=0,0,(AVERAGE(EE800:EE810))) -> 0 | EF10: =IF(SUM(EF800:EF810)=0,0,(AVERAGE(EF800:EF810))) -> 0 | EG10: 0 | EH10: 0 | EI10: 0 | EJ10: 0 | EK10: 54 | EL10: 59.33333333 | EM10: 0 | EN10: 62.07692308 | EO10: 61.33333333 | EP10: 63.83333333 | EQ10: 66.8974359 | ER10: 60.47368421 | ES10: 60.5 | ET10: 66.125 | EU10: 53.68181818 | EV10: 56.84 | EW10: 73.58333333 | EX10: 58.80952381 | EY10: 58.1 | EZ10: 69.31034483 | FA10: 62.19230769 | FB10: 62.16666667 | FC10: 73.8372093 | FD10: 64.47826087 | FE10: 65.29032258 | FF10: 63.6 | FG10: 72.72727273 | FH10: 70.2 | FI10: 78.53846154 | FJ10: 75.04545455 | FK10: 73.32258065 | FL10: 81.13888889 | FM10: 79.77777778 | FN10: 76.34782609 | FO10: 79.55 | FP10: 76.16129032 | FQ10: 75.64 | FR10: 86.0625 | FS10: 79.63333333 | FT10: 79.65384615 | FU10: 89.2 | FV10: 91.5 | FW10: 94.25 | FX10: 0 | FY10: 0 | FZ10: 0 | GA10: 0 | GB10: 0 | GC10: 0 | GD10: 0 | GE10: 0 | GF10: 0 | GG10: 0 | GH10: 0 | GI10: 0 | GJ10: 0 | GK10: 0 | GL10: 0 | GM10: 0 | GN10: 0 | GO10: 0 | GP10: 0 | GQ10: 0 | GR10: =IF(SUM(GR800:GR810)=0,0,(AVERAGE(GR800:GR810))) -> 0 | GS10: 0 | GT10: 0 | GU10: 0 | GV10: 0 | GW10: 0 | GX10: 0 | GY10: 0 | GZ10: 0 | HA10: 0 | HB10: 0 | HC10: 0 | HD10: 0
A11: Légende
A12: M | B12: Données Manquantes
A13: E | B13: Valeur Estimée | AJ13: T -30 à -25 | AM13: T -25 à -20 | AP13: T -20 à -15 | AS13: T -30 à -25 | AV13: T -25 à -20 | AY13: T -20 à -15 | BB13: T -15 à -10 | BE13: T -10 à -5 | BH13: T -5 à 0 | BK13: T 0 à 5 | BN13: T 5 à 10 | BQ13: T 10 à 15 | BT13: T 15 à 20 | BW13: T 20 à 25 | BZ13: T 25 à 30 | CC13: T 30 à 35 | CF13: T 35 à 40 | CI13: T 40 à 45 | CL13: T 45 à 50 | CO13: T 50 à 55 | CR13: T 55 à 60 | CU13: T 60 à 65 | CX13: T 65 à 70 | DA13: T 70 à 75 | DD13: T 75 à 80 | DG13: T 80 à 85 | DJ13: T 85 à 90 | DM13: T 90 à 95 | DP13: T 95 à 100 | DV13: T -30 à -25 | DY13: T -25 à -20 | EB13: T -20 à -15 | EE13: T -30 à -25 | EH13: T -25 à -20 | EK13: T -20 à -15 | EN13: T -15 à -10 | EQ13: T -10 à -5 | ET13: T -5 à 0 | EW13: T 0 à 5 | EZ13: T 5 à 10 | FC13: T 10 à 15 | FF13: T 15 à 20 | FI13: T 20 à 25 | FL13: T 25 à 30 | FO13: T 30 à 35 | FR13: T 35 à 40 | FU13: T 40 à 45 | FX13: T 45 à 50 | GA13: T 50 à 55 | GD13: T 55 à 60 | GG13: T 60 à 65 | GJ13: T 65 à 70 | GM13: T 70 à 75 | GP13: T 75 à 80 | GS13: T 80 à 85 | GV13: T 85 à 90 | GY13: T 90 à 95 | HB13: T 95 à 100
A14: ND | B14: Non Disponible | AJ14: -45 | AM14: =AJ15 -> -40 | AP14: =AM15 -> -35 | AS14: -30 | AV14: =AS15 -> -25 | AY14: =AV15 -> -20 | BB14: =AY15 -> -15 | BE14: =BB15 -> -10 | BH14: =BE15 -> -5 | BK14: =BH15 -> 0 | BN14: =BK15 -> 5 | BQ14: =BN15 -> 10 | BT14: =BQ15 -> 15 | BW14: =BT15 -> 20 | BZ14: =BW15 -> 25 | CC14: =BZ15 -> 30 | CF14: =CC15 -> 35 | CI14: =CF15 -> 40 | CL14: =CI15 -> 45 | CO14: =CL15 -> 50 | CR14: =CO15 -> 55 | CU14: =CR15 -> 60 | CX14: =CU15 -> 65 | DA14: =CX15 -> 70 | DD14: =DA15 -> 75 | DG14: =DD15 -> 80 | DJ14: =DG15 -> 85 | DM14: =DJ15 -> 90 | DP14: =DM15 -> 95 | DV14: -45 | DY14: =DV15 -> -40 | EB14: =DY15 -> -35 | EE14: -30 | EH14: =EE15 -> -25 | EK14: =EH15 -> -20 | EN14: =EK15 -> -15 | EQ14: =EN15 -> -10 | ET14: =EQ15 -> -5 | EW14: =ET15 -> 0 | EZ14: =EW15 -> 5 | FC14: =EZ15 -> 10 | FF14: =FC15 -> 15 | FI14: =FF15 -> 20 | FL14: =FI15 -> 25 | FO14: =FL15 -> 30 | FR14: =FO15 -> 35 | FU14: =FR15 -> 40 | FX14: =FU15 -> 45 | GA14: =FX15 -> 50 | GD14: =GA15 -> 55 | GG14: =GD15 -> 60 | GJ14: =GG15 -> 65 | GM14: =GJ15 -> 70 | GP14: =GM15 -> 75 | GS14: =GP15 -> 80 | GV14: =GS15 -> 85 | GY14: =GV15 -> 90 | HB14: =GY15 -> 95
A15: ** | B15: Données fournies par un partenaire, non assujetties à un révision par les Archives climatiques nationales du Canada | AJ15: =AJ14+5 -> -40 | AM15: =AM14+5 -> -35 | AP15: =AP14+5 -> -30 | AS15: =AS14+5 -> -25 | AV15: =AV14+5 -> -20 | AY15: =AY14+5 -> -15 | BB15: =BB14+5 -> -10 | BE15: =BE14+5 -> -5 | BH15: =BH14+5 -> 0 | BK15: =BK14+5 -> 5 | BN15: =BN14+5 -> 10 | BQ15: =BQ14+5 -> 15 | BT15: =BT14+5 -> 20 | BW15: =BW14+5 -> 25 | BZ15: =BZ14+5 -> 30 | CC15: =CC14+5 -> 35 | CF15: =CF14+5 -> 40 | CI15: =CI14+5 -> 45 | CL15: =CL14+5 -> 50 | CO15: =CO14+5 -> 55 | CR15: =CR14+5 -> 60 | CU15: =CU14+5 -> 65 | CX15: =CX14+5 -> 70 | DA15: =DA14+5 -> 75 | DD15: =DD14+5 -> 80 | DG15: =DG14+5 -> 85 | DJ15: =DJ14+5 -> 90 | DM15: =DM14+5 -> 95 | DP15: =DP14+5 -> 100 | DV15: =DV14+5 -> -40 | DY15: =DY14+5 -> -35 | EB15: =EB14+5 -> -30 | EE15: =EE14+5 -> -25 | EH15: =EH14+5 -> -20 | EK15: =EK14+5 -> -15 | EN15: =EN14+5 -> -10 | EQ15: =EQ14+5 -> -5 | ET15: =ET14+5 -> 0 | EW15: =EW14+5 -> 5 | EZ15: =EZ14+5 -> 10 | FC15: =FC14+5 -> 15 | FF15: =FF14+5 -> 20 | FI15: =FI14+5 -> 25 | FL15: =FL14+5 -> 30 | FO15: =FO14+5 -> 35 | FR15: =FR14+5 -> 40 | FU15: =FU14+5 -> 45 | FX15: =FX14+5 -> 50 | GA15: =GA14+5 -> 55 | GD15: =GD14+5 -> 60 | GG15: =GG14+5 -> 65 | GJ15: =GJ14+5 -> 70 | GM15: =GM14+5 -> 75 | GP15: =GP14+5 -> 80 | GS15: =GS14+5 -> 85 | GV15: =GV14+5 -> 90 | GY15: =GY14+5 -> 95 | HB15: =HB14+5 -> 100
AB16: 0-24 | AD16: 0-8h | AF16: 8-16 | AH16: 16-24
A17: Date/Heure | B17: Année | C17: Mois | D17: Jour | E17: Heure | F17: Qualité des Données | G17: Temp (°C) | H17: Temp Indicateur | I17: Point de rosée (°C) | J17: Point de rosée Indicateur | K17: Hum. rel (%) | L17: Hum. rel. Indicateur | M17: Dir. du vent (10s deg) | N17: Dir. du vent Indicateur | O17: Vit. du vent (km/h) | P17: Vit. du vent Indicateur | Q17: Visibilité (km) | R17: Visibilité Indicateur | S17: Pression à la station (kPa) | T17: Pression à la station Indicateur | U17: Hmdx | V17: Hmdx Indicateur | W17: Refroid. éolien | X17: Refroid. éolien Indicateur | Y17: Temps | Z17: Temp (°F) | AB17: DJC | AC17: DJR | AD17: DJC | AE17: DJR | AF17: DJC | AG17: DJR | AH17: DJC | AI17: DJR | AJ17: 0-8h | AK17: 8-16h | AL17: 16-24h | AM17: 0-8h | AN17: 8-16h | AO17: 16-24h | AP17: 0-8h | AQ17: 8-16h | AR17: 16-24h | AS17: 0-8h | AT17: 8-16h | AU17: 16-24h | AV17: 0-8h | AW17: 8-16h | AX17: 16-24h | AY17: 0-8h | AZ17: 8-16h | BA17: 16-24h | BB17: 0-8h | BC17: 8-16h | BD17: 16-24h | BE17: 0-8h | BF17: 8-16h | BG17: 16-24h | BH17: 0-8h | BI17: 8-16h | BJ17: 16-24h | BK17: 0-8h | BL17: 8-16h | BM17: 16-24h | BN17: 0-8h | BO17: 8-16h | BP17: 16-24h | BQ17: 0-8h | BR17: 8-16h | BS17: 16-24h | BT17: 0-8h | BU17: 8-16h | BV17: 16-24h | BW17: 0-8h | BX17: 8-16h | BY17: 16-24h | BZ17: 0-8h | CA17: 8-16h | CB17: 16-24h | CC17: 0-8h | CD17: 8-16h | CE17: 16-24h | CF17: 0-8h | CG17: 8-16h | CH17: 16-24h | CI17: 0-8h | CJ17: 8-16h | CK17: 16-24h | CL17: 0-8h | CM17: 8-16h | CN17: 16-24h | CO17: 0-8h | CP17: 8-16h | CQ17: 16-24h | CR17: 0-8h | CS17: 8-16h | CT17: 16-24h | CU17: 0-8h | CV17: 8-16h | CW17: 16-24h | CX17: 0-8h | CY17: 8-16h | CZ17: 16-24h | DA17: 0-8h | DB17: 8-16h | DC17: 16-24h | DD17: 0-8h | DE17: 8-16h | DF17: 16-24h | DG17: 0-8h | DH17: 8-16h | DI17: 16-24h | DJ17: 0-8h | DK17: 8-16h | DL17: 16-24h | DM17: 0-8h | DN17: 8-16h | DO17: 16-24h | DP17: 0-8h | DQ17: 8-16h | DR17: 16-24h | DV17: 0-8h | DW17: 8-16h | DX17: 16-24h | DY17: 0-8h | DZ17: 8-16h | EA17: 16-24h | EB17: 0-8h | EC17: 8-16h | ED17: 16-24h | EE17: 0-8h | EF17: 8-16h | EG17: 16-24h | EH17: 0-8h | EI17: 8-16h | EJ17: 16-24h | EK17: 0-8h | EL17: 8-16h | EM17: 16-24h | EN17: 0-8h | EO17: 8-16h | EP17: 16-24h | EQ17: 0-8h | ER17: 8-16h | ES17: 16-24h | ET17: 0-8h | EU17: 8-16h | EV17: 16-24h | EW17: 0-8h | EX17: 8-16h | EY17: 16-24h | EZ17: 0-8h | FA17: 8-16h | FB17: 16-24h | FC17: 0-8h | FD17: 8-16h | FE17: 16-24h | FF17: 0-8h | FG17: 8-16h | FH17: 16-24h | FI17: 0-8h | FJ17: 8-16h | FK17: 16-24h | FL17: 0-8h | FM17: 8-16h | FN17: 16-24h | FO17: 0-8h | FP17: 8-16h | FQ17: 16-24h | FR17: 0-8h | FS17: 8-16h | FT17: 16-24h | FU17: 0-8h | FV17: 8-16h | FW17: 16-24h | FX17: 0-8h | FY17: 8-16h | FZ17: 16-24h | GA17: 0-8h | GB17: 8-16h | GC17: 16-24h | GD17: 0-8h | GE17: 8-16h | GF17: 16-24h | GG17: 0-8h | GH17: 8-16h | GI17: 16-24h | GJ17: 0-8h | GK17: 8-16h | GL17: 16-24h | GM17: 0-8h | GN17: 8-16h | GO17: 16-24h | GP17: 0-8h | GQ17: 8-16h | GR17: 16-24h | GS17: 0-8h | GT17: 8-16h | GU17: 16-24h | GV17: 0-8h | GW17: 8-16h | GX17: 16-24h | GY17: 0-8h | GZ17: 8-16h | HA17: 16-24h | HB17: 0-8h | HC17: 8-16h | HD17: 16-24h
A18: 2014-01-01 00:00 | B18: 2014 | C18: 1 | D18: 1 | E18: 00:00:00 | G18: -18.7 | I18: -21.1 | K18: 81 | M18: 25 | O18: 5 | S18: 101.67 | W18: -23 | Y18: ND | Z18: =IF(G18="","",(G18*9/5)+32) -> -1.66 | AB18: =IF(Z18="","",IF(Météo!$F$6>Z18,(Météo!$F$6-Z18)/24,"")) -> 2.9025 | AC18: =IF(Z18="","",IF(Météo!$F$7<=Z18,(Z18-Météo!$F$7)/24,"")) ->  | AD18: =IF(Z18="","",IF(Météo!$F$6>Z18,(Météo!$F$6-Z18)/24,"")) -> 2.9025 | AE18: =IF(Z18="","",IF(Météo!$F$7<=Z18,(Z18-Météo!$F$7)/24,"")) ->  | AJ18: =IF(AND($Z18>AJ$14,$Z18<=AJ$15),1,"") ->  | AM18: =IF(AND($Z18>AM$14,$Z18<=AM$15),1,"") ->  | AP18: =IF(AND($Z18>AP$14,$Z18<=AP$15),1,"") ->  | AS18: =IF(AND($Z18>AS$14,$Z18<=AS$15),1,"") ->  | AV18: =IF(AND($Z18>AV$14,$Z18<=AV$15),1,"") ->  | AY18: =IF(AND($Z18>AY$14,$Z18<=AY$15),1,"") ->  | BB18: =IF(AND($Z18>BB$14,$Z18<=BB$15),1,"") ->  | BE18: =IF(AND($Z18>BE$14,$Z18<=BE$15),1,"") ->  | BH18: =IF(AND($Z18>BH$14,$Z18<=BH$15),1,"") -> 1 | BK18: =IF(AND($Z18>BK$14,$Z18<=BK$15),1,"") ->  | BN18: =IF(AND($Z18>BN$14,$Z18<=BN$15),1,"") ->  | BQ18: =IF(AND($Z18>BQ$14,$Z18<=BQ$15),1,"") ->  | BT18: =IF(AND($Z18>BT$14,$Z18<=BT$15),1,"") ->  | BW18: =IF(AND($Z18>BW$14,$Z18<=BW$15),1,"") ->  | BZ18: =IF(AND($Z18>BZ$14,$Z18<=BZ$15),1,"") ->  | CC18: =IF(AND($Z18>CC$14,$Z18<=CC$15),1,"") ->  | CF18: =IF(AND($Z18>CF$14,$Z18<=CF$15),1,"") ->  | CI18: =IF(AND($Z18>CI$14,$Z18<=CI$15),1,"") ->  | CL18: =IF(AND($Z18>CL$14,$Z18<=CL$15),1,"") ->  | CO18: =IF(AND($Z18>CO$14,$Z18<=CO$15),1,"") ->  | CR18: =IF(AND($Z18>CR$14,$Z18<=CR$15),1,"") ->  | CU18: =IF(AND($Z18>CU$14,$Z18<=CU$15),1,"") ->  | CX18: =IF(AND($Z18>CX$14,$Z18<=CX$15),1,"") ->  | DA18: =IF(AND($Z18>DA$14,$Z18<=DA$15),1,"") ->  | DD18: =IF(AND($Z18>DD$14,$Z18<=DD$15),1,"") ->  | DG18: =IF(AND($Z18>DG$14,$Z18<=DG$15),1,"") ->  | DJ18: =IF(AND($Z18>DJ$14,$Z18<=DJ$15),1,"") ->  | DM18: =IF(AND($Z18>DM$14,$Z18<=DM$15),1,"") ->  | DP18: =IF(AND($Z18>DP$14,$Z18<=DP$15),1,"") ->  | DV18: =IF(AND($Z18>DV$14,$Z18<=DV$15),$K18,"") ->  | DY18: =IF(AND($Z18>DY$14,$Z18<=DY$15),$K18,"") ->  | EB18: =IF(AND($Z18>EB$14,$Z18<=EB$15),$K18,"") ->  | EE18: =IF(AND($Z18>EE$14,$Z18<=EE$15),$K18,"") ->  | EH18: =IF(AND($Z18>EH$14,$Z18<=EH$15),$K18,"") ->  | EK18: =IF(AND($Z18>EK$14,$Z18<=EK$15),$K18,"") ->  | EN18: =IF(AND($Z18>EN$14,$Z18<=EN$15),$K18,"") ->  | EQ18: =IF(AND($Z18>EQ$14,$Z18<=EQ$15),$K18,"") ->  | ET18: =IF(AND($Z18>ET$14,$Z18<=ET$15),$K18,"") -> 81 | EW18: =IF(AND($Z18>EW$14,$Z18<=EW$15),$K18,"") ->  | EZ18: =IF(AND($Z18>EZ$14,$Z18<=EZ$15),$K18,"") ->  | FC18: =IF(AND($Z18>FC$14,$Z18<=FC$15),$K18,"") ->  | FF18: =IF(AND($Z18>FF$14,$Z18<=FF$15),$K18,"") ->  | FI18: =IF(AND($Z18>FI$14,$Z18<=FI$15),$K18,"") ->  | FL18: =IF(AND($Z18>FL$14,$Z18<=FL$15),$K18,"") ->  | FO18: =IF(AND($Z18>FO$14,$Z18<=FO$15),$K18,"") ->  | FR18: =IF(AND($Z18>FR$14,$Z18<=FR$15),$K18,"") ->  | FU18: =IF(AND($Z18>FU$14,$Z18<=FU$15),$K18,"") ->  | FX18: =IF(AND($Z18>FX$14,$Z18<=FX$15),$K18,"") ->  | GA18: =IF(AND($Z18>GA$14,$Z18<=GA$15),$K18,"") ->  | GD18: =IF(AND($Z18>GD$14,$Z18<=GD$15),$K18,"") ->  | GG18: =IF(AND($Z18>GG$14,$Z18<=GG$15),$K18,"") ->  | GJ18: =IF(AND($Z18>GJ$14,$Z18<=GJ$15),$K18,"") ->  | GM18: =IF(AND($Z18>GM$14,$Z18<=GM$15),$K18,"") ->  | GP18: =IF(AND($Z18>GP$14,$Z18<=GP$15),$K18,"") ->  | GS18: =IF(AND($Z18>GS$14,$Z18<=GS$15),$K18,"") ->  | GV18: =IF(AND($Z18>GV$14,$Z18<=GV$15),$K18,"") ->  | GY18: =IF(AND($Z18>GY$14,$Z18<=GY$15),$K18,"") ->  | HB18: =IF(AND($Z18>HB$14,$Z18<=HB$15),$K18,"") -> 
A19: 2014-01-01 01:00 | B19: 2014 | C19: 1 | D19: 1 | E19: 01:00:00 | G19: -18.1 | I19: -20.5 | K19: 81 | M19: 24 | O19: 10 | S19: 101.73 | W19: -25 | Y19: ND | Z19: =IF(G19="","",(G19*9/5)+32) -> -0.58 | AB19: =IF(Z19="","",IF(Météo!$F$6>Z19,(Météo!$F$6-Z19)/24,"")) -> 2.8575 | AC19: =IF(Z19="","",IF(Météo!$F$7<=Z19,(Z19-Météo!$F$7)/24,"")) ->  | AD19: =IF(Z19="","",IF(Météo!$F$6>Z19,(Météo!$F$6-Z19)/24,"")) -> 2.8575 | AE19: =IF(Z19="","",IF(Météo!$F$7<=Z19,(Z19-Météo!$F$7)/24,"")) ->  | AJ19: =IF(AND($Z19>AJ$14,$Z19<=AJ$15),1,"") ->  | AS19: =IF(AND($Z19>AS$14,$Z19<=AS$15),1,"") ->  | BH19: 1 | DV19: =IF(AND($Z19>DV$14,$Z19<=DV$15),$K19,"") ->  | EE19: =IF(AND($Z19>EE$14,$Z19<=EE$15),$K19,"") ->  | ET19: 81
A20: 2014-01-01 02:00 | B20: 2014 | C20: 1 | D20: 1 | E20: 02:00:00 | G20: -17.6 | I20: -20 | K20: 82 | M20: 26 | O20: 5 | S20: 101.82 | W20: -22 | Y20: ND | Z20: 0.32 | AB20: =IF(Z20="","",IF(Météo!$F$6>Z20,(Météo!$F$6-Z20)/24,"")) -> 2.82 | AC20: =IF(Z20="","",IF(Météo!$F$7<=Z20,(Z20-Météo!$F$7)/24,"")) ->  | AD20: =IF(Z20="","",IF(Météo!$F$6>Z20,(Météo!$F$6-Z20)/24,"")) -> 2.82 | AE20: =IF(Z20="","",IF(Météo!$F$7<=Z20,(Z20-Météo!$F$7)/24,"")) ->  | BK20: 1 | EW20: 82
A21: 2014-01-01 03:00 | B21: 2014 | C21: 1 | D21: 1 | E21: 03:00:00 | G21: -16.6 | I21: -19.1 | K21: 81 | M21: 26 | O21: 8 | S21: 101.88 | W21: -22 | Y21: ND | Z21: 2.12 | AB21: =IF(Z21="","",IF(Météo!$F$6>Z21,(Météo!$F$6-Z21)/24,"")) -> 2.745 | AC21: =IF(Z21="","",IF(Météo!$F$7<=Z21,(Z21-Météo!$F$7)/24,"")) ->  | AD21: =IF(Z21="","",IF(Météo!$F$6>Z21,(Météo!$F$6-Z21)/24,"")) -> 2.745 | AE21: =IF(Z21="","",IF(Météo!$F$7<=Z21,(Z21-Météo!$F$7)/24,"")) ->  | BK21: 1 | EW21: 81
A22: 2014-01-01 04:00 | B22: 2014 | C22: 1 | D22: 1 | E22: 04:00:00 | G22: -16.3 | I22: -18.8 | K22: 81 | M22: 25 | O22: 6 | S22: 101.92 | W22: -21 | Y22: ND | Z22: 2.66 | AB22: =IF(Z22="","",IF(Météo!$F$6>Z22,(Météo!$F$6-Z22)/24,"")) -> 2.7225 | AC22: =IF(Z22="","",IF(Météo!$F$7<=Z22,(Z22-Météo!$F$7)/24,"")) ->  | AD22: =IF(Z22="","",IF(Météo!$F$6>Z22,(Météo!$F$6-Z22)/24,"")) -> 2.7225 | AE22: =IF(Z22="","",IF(Météo!$F$7<=Z22,(Z22-Météo!$F$7)/24,"")) ->  | BK22: 1 | EW22: 81
A23: 2014-01-01 05:00 | B23: 2014 | C23: 1 | D23: 1 | E23: 05:00:00 | G23: -17.3 | I23: -19.4 | K23: 83 | M23: 28 | O23: 6 | S23: 102 | W23: -22 | Y23: ND | Z23: 0.86 | AB23: =IF(Z23="","",IF(Météo!$F$6>Z23,(Météo!$F$6-Z23)/24,"")) -> 2.7975 | AC23: =IF(Z23="","",IF(Météo!$F$7<=Z23,(Z23-Météo!$F$7)/24,"")) ->  | AD23: =IF(Z23="","",IF(Météo!$F$6>Z23,(Météo!$F$6-Z23)/24,"")) -> 2.7975 | AE23: =IF(Z23="","",IF(Météo!$F$7<=Z23,(Z23-Météo!$F$7)/24,"")) ->  | BK23: 1 | EW23: 83
A24: 2014-01-01 06:00 | B24: 2014 | C24: 1 | D24: 1 | E24: 06:00:00 | G24: -17.6 | I24: -20.3 | K24: 80 | M24: 28 | O24: 9 | S24: 102.05 | W24: -24 | Y24: ND | Z24: 0.32 | AB24: =IF(Z24="","",IF(Météo!$F$6>Z24,(Météo!$F$6-Z24)/24,"")) -> 2.82 | AC24: =IF(Z24="","",IF(Météo!$F$7<=Z24,(Z24-Météo!$F$7)/24,"")) ->  | AD24: =IF(Z24="","",IF(Météo!$F$6>Z24,(Météo!$F$6-Z24)/24,"")) -> 2.82 | AE24: =IF(Z24="","",IF(Météo!$F$7<=Z24,(Z24-Météo!$F$7)/24,"")) ->  | BK24: 1 | EW24: 80
A25: 2014-01-01 07:00 | B25: 2014 | C25: 1 | D25: 1 | E25: 07:00:00 | G25: -17.4 | I25: -19.9 | K25: 81 | M25: 25 | O25: 6 | S25: 102.15 | W25: -22 | Y25: ND | Z25: 0.68 | AB25: =IF(Z25="","",IF(Météo!$F$6>Z25,(Météo!$F$6-Z25)/24,"")) -> 2.805 | AC25: =IF(Z25="","",IF(Météo!$F$7<=Z25,(Z25-Météo!$F$7)/24,"")) ->  | AD25: =IF(Z25="","",IF(Météo!$F$6>Z25,(Météo!$F$6-Z25)/24,"")) -> 2.805 | AE25: =IF(Z25="","",IF(Météo!$F$7<=Z25,(Z25-Météo!$F$7)/24,"")) ->  | BK25: 1 | EW25: 81
A26: 2014-01-01 08:00 | B26: 2014 | C26: 1 | D26: 1 | E26: 08:00:00 | G26: -17.7 | I26: -21.5 | K26: 72 | M26: 27 | O26: 10 | S26: 102.25 | W26: -24 | Y26: ND | Z26: 0.14 | AB26: =IF(Z26="","",IF(Météo!$F$6>Z26,(Météo!$F$6-Z26)/24,"")) -> 2.8275 | AC26: =IF(Z26="","",IF(Météo!$F$7<=Z26,(Z26-Météo!$F$7)/24,"")) ->  | AF26: =IF(Z26="","",IF(Météo!$F$6>Z26,(Météo!$F$6-Z26)/24,"")) -> 2.8275 | AG26: =IF(Z26="","",IF(Météo!$F$7<=Z26,(Z26-Météo!$F$7)/24,"")) ->  | AK26: =IF(AND($Z26>AJ$14,$Z26<=AJ$15),1,"") ->  | AN26: =IF(AND($Z26>AM$14,$Z26<=AM$15),1,"") ->  | AQ26: =IF(AND($Z26>AP$14,$Z26<=AP$15),1,"") ->  | AT26: =IF(AND($Z26>AS$14,$Z26<=AS$15),1,"") ->  | AW26: =IF(AND($Z26>AV$14,$Z26<=AV$15),1,"") ->  | AZ26: =IF(AND($Z26>AY$14,$Z26<=AY$15),1,"") ->  | BC26: =IF(AND($Z26>BB$14,$Z26<=BB$15),1,"") ->  | BF26: =IF(AND($Z26>BE$14,$Z26<=BE$15),1,"") ->  | BI26: =IF(AND($Z26>BH$14,$Z26<=BH$15),1,"") ->  | BL26: =IF(AND($Z26>BK$14,$Z26<=BK$15),1,"") -> 1 | BO26: =IF(AND($Z26>BN$14,$Z26<=BN$15),1,"") ->  | BR26: =IF(AND($Z26>BQ$14,$Z26<=BQ$15),1,"") ->  | BU26: =IF(AND($Z26>BT$14,$Z26<=BT$15),1,"") ->  | BX26: =IF(AND($Z26>BW$14,$Z26<=BW$15),1,"") ->  | CA26: =IF(AND($Z26>BZ$14,$Z26<=BZ$15),1,"") ->  | CD26: =IF(AND($Z26>CC$14,$Z26<=CC$15),1,"") ->  | CG26: =IF(AND($Z26>CF$14,$Z26<=CF$15),1,"") ->  | CJ26: =IF(AND($Z26>CI$14,$Z26<=CI$15),1,"") ->  | CM26: =IF(AND($Z26>CL$14,$Z26<=CL$15),1,"") ->  | CP26: =IF(AND($Z26>CO$14,$Z26<=CO$15),1,"") ->  | CS26: =IF(AND($Z26>CR$14,$Z26<=CR$15),1,"") ->  | CV26: =IF(AND($Z26>CU$14,$Z26<=CU$15),1,"") ->  | CY26: =IF(AND($Z26>CX$14,$Z26<=CX$15),1,"") ->  | DB26: =IF(AND($Z26>DA$14,$Z26<=DA$15),1,"") ->  | DE26: =IF(AND($Z26>DD$14,$Z26<=DD$15),1,"") ->  | DH26: =IF(AND($Z26>DG$14,$Z26<=DG$15),1,"") ->  | DK26: =IF(AND($Z26>DJ$14,$Z26<=DJ$15),1,"") ->  | DN26: =IF(AND($Z26>DM$14,$Z26<=DM$15),1,"") ->  | DQ26: =IF(AND($Z26>DP$14,$Z26<=DP$15),1,"") ->  | DW26: =IF(AND($Z26>DV$14,$Z26<=DV$15),$K26,"") ->  | DZ26: =IF(AND($Z26>DY$14,$Z26<=DY$15),$K26,"") ->  | EC26: =IF(AND($Z26>EB$14,$Z26<=EB$15),$K26,"") ->  | EF26: =IF(AND($Z26>EE$14,$Z26<=EE$15),$K26,"") ->  | EI26: =IF(AND($Z26>EH$14,$Z26<=EH$15),$K26,"") ->  | EL26: =IF(AND($Z26>EK$14,$Z26<=EK$15),$K26,"") ->  | EO26: =IF(AND($Z26>EN$14,$Z26<=EN$15),$K26,"") ->  | ER26: =IF(AND($Z26>EQ$14,$Z26<=EQ$15),$K26,"") ->  | EU26: =IF(AND($Z26>ET$14,$Z26<=ET$15),$K26,"") ->  | EX26: =IF(AND($Z26>EW$14,$Z26<=EW$15),$K26,"") -> 72 | FA26: =IF(AND($Z26>EZ$14,$Z26<=EZ$15),$K26,"") ->  | FD26: =IF(AND($Z26>FC$14,$Z26<=FC$15),$K26,"") ->  | FG26: =IF(AND($Z26>FF$14,$Z26<=FF$15),$K26,"") ->  | FJ26: =IF(AND($Z26>FI$14,$Z26<=FI$15),$K26,"") ->  | FM26: =IF(AND($Z26>FL$14,$Z26<=FL$15),$K26,"") ->  | FP26: =IF(AND($Z26>FO$14,$Z26<=FO$15),$K26,"") ->  | FS26: =IF(AND($Z26>FR$14,$Z26<=FR$15),$K26,"") ->  | FV26: =IF(AND($Z26>FU$14,$Z26<=FU$15),$K26,"") ->  | FY26: =IF(AND($Z26>FX$14,$Z26<=FX$15),$K26,"") ->  | GB26: =IF(AND($Z26>GA$14,$Z26<=GA$15),$K26,"") ->  | GE26: =IF(AND($Z26>GD$14,$Z26<=GD$15),$K26,"") ->  | GH26: =IF(AND($Z26>GG$14,$Z26<=GG$15),$K26,"") ->  | GK26: =IF(AND($Z26>GJ$14,$Z26<=GJ$15),$K26,"") ->  | GN26: =IF(AND($Z26>GM$14,$Z26<=GM$15),$K26,"") ->  | GQ26: =IF(AND($Z26>GP$14,$Z26<=GP$15),$K26,"") ->  | GT26: =IF(AND($Z26>GS$14,$Z26<=GS$15),$K26,"") ->  | GW26: =IF(AND($Z26>GV$14,$Z26<=GV$15),$K26,"") ->  | GZ26: =IF(AND($Z26>GY$14,$Z26<=GY$15),$K26,"") ->  | HC26: =IF(AND($Z26>HB$14,$Z26<=HB$15),$K26,"") -> 
A27: 2014-01-01 09:00 | B27: 2014 | C27: 1 | D27: 1 | E27: 09:00:00 | G27: -17.5 | I27: -22.3 | K27: 66 | M27: 28 | O27: 15 | S27: 102.33 | W27: -26 | Y27: ND | Z27: 0.5 | AB27: =IF(Z27="","",IF(Météo!$F$6>Z27,(Météo!$F$6-Z27)/24,"")) -> 2.8125 | AC27: =IF(Z27="","",IF(Météo!$F$7<=Z27,(Z27-Météo!$F$7)/24,"")) ->  | AF27: =IF(Z27="","",IF(Météo!$F$6>Z27,(Météo!$F$6-Z27)/24,"")) -> 2.8125 | AG27: =IF(Z27="","",IF(Météo!$F$7<=Z27,(Z27-Météo!$F$7)/24,"")) ->  | AK27: =IF(AND($Z27>AJ$14,$Z27<=AJ$15),1,"") ->  | AT27: =IF(AND($Z27>AS$14,$Z27<=AS$15),1,"") ->  | BL27: 1 | DW27: =IF(AND($Z27>DV$14,$Z27<=DV$15),$K27,"") ->  | EF27: =IF(AND($Z27>EE$14,$Z27<=EE$15),$K27,"") ->  | EX27: 66
A28: 2014-01-01 10:00 | B28: 2014 | C28: 1 | D28: 1 | E28: 10:00:00 | G28: -16.7 | I28: -22.6 | K28: 60 | M28: 26 | O28: 17 | S28: 102.45 | W28: -26 | Y28: ND | Z28: 1.94 | AB28: =IF(Z28="","",IF(Météo!$F$6>Z28,(Météo!$F$6-Z28)/24,"")) -> 2.7525 | AC28: =IF(Z28="","",IF(Météo!$F$7<=Z28,(Z28-Météo!$F$7)/24,"")) ->  | AF28: =IF(Z28="","",IF(Météo!$F$6>Z28,(Météo!$F$6-Z28)/24,"")) -> 2.7525 | AG28: =IF(Z28="","",IF(Météo!$F$7<=Z28,(Z28-Météo!$F$7)/24,"")) ->  | BL28: 1 | EX28: 60
A29: 2014-01-01 11:00 | B29: 2014 | C29: 1 | D29: 1 | E29: 11:00:00 | G29: -17 | I29: -23.2 | K29: 58 | M29: 28 | O29: 20 | S29: 102.5 | W29: -27 | Y29: ND | Z29: 1.4 | AB29: =IF(Z29="","",IF(Météo!$F$6>Z29,(Météo!$F$6-Z29)/24,"")) -> 2.775 | AC29: =IF(Z29="","",IF(Météo!$F$7<=Z29,(Z29-Météo!$F$7)/24,"")) ->  | AF29: =IF(Z29="","",IF(Météo!$F$6>Z29,(Météo!$F$6-Z29)/24,"")) -> 2.775 | AG29: =IF(Z29="","",IF(Météo!$F$7<=Z29,(Z29-Météo!$F$7)/24,"")) ->  | BL29: 1 | EX29: 58
A30: 2014-01-01 12:00 | B30: 2014 | C30: 1 | D30: 1 | E30: 12:00:00 | G30: -17.2 | I30: -23.4 | K30: 58 | M30: 26 | O30: 21 | S30: 102.52 | W30: -27 | Y30: ND | Z30: 1.04 | AB30: =IF(Z30="","",IF(Météo!$F$6>Z30,(Météo!$F$6-Z30)/24,"")) -> 2.79 | AC30: =IF(Z30="","",IF(Météo!$F$7<=Z30,(Z30-Météo!$F$7)/24,"")) ->  | AF30: =IF(Z30="","",IF(Météo!$F$6>Z30,(Météo!$F$6-Z30)/24,"")) -> 2.79 | AG30: =IF(Z30="","",IF(Météo!$F$7<=Z30,(Z30-Météo!$F$7)/24,"")) ->  | BL30: 1 | EX30: 58
A31: 2014-01-01 13:00 | B31: 2014 | C31: 1 | D31: 1 | E31: 13:00:00 | G31: -17.6 | I31: -23.5 | K31: 60 | M31: 28 | O31: 24 | S31: 102.53 | W31: -28 | Y31: ND | Z31: 0.32 | AB31: =IF(Z31="","",IF(Météo!$F$6>Z31,(Météo!$F$6-Z31)/24,"")) -> 2.82 | AC31: =IF(Z31="","",IF(Météo!$F$7<=Z31,(Z31-Météo!$F$7)/24,"")) ->  | AF31: =IF(Z31="","",IF(Météo!$F$6>Z31,(Météo!$F$6-Z31)/24,"")) -> 2.82 | AG31: =IF(Z31="","",IF(Météo!$F$7<=Z31,(Z31-Météo!$F$7)/24,"")) ->  | BL31: 1 | EX31: 60
A32: 2014-01-01 14:00 | B32: 2014 | C32: 1 | D32: 1 | E32: 14:00:00 | G32: -17.5 | I32: -24.1 | K32: 56 | M32: 29 | O32: 23 | S32: 102.6 | W32: -28 | Y32: ND | Z32: 0.5 | AB32: =IF(Z32="","",IF(Météo!$F$6>Z32,(Météo!$F$6-Z32)/24,"")) -> 2.8125 | AC32: =IF(Z32="","",IF(Météo!$F$7<=Z32,(Z32-Météo!$F$7)/24,"")) ->  | AF32: =IF(Z32="","",IF(Météo!$F$6>Z32,(Météo!$F$6-Z32)/24,"")) -> 2.8125 | AG32: =IF(Z32="","",IF(Météo!$F$7<=Z32,(Z32-Météo!$F$7)/24,"")) ->  | BL32: 1 | EX32: 56
A33: 2014-01-01 15:00 | B33: 2014 | C33: 1 | D33: 1 | E33: 15:00:00 | G33: -17.7 | I33: -25.6 | K33: 50 | M33: 30 | O33: 22 | S33: 102.63 | W33: -28 | Y33: ND | Z33: 0.14 | AB33: =IF(Z33="","",IF(Météo!$F$6>Z33,(Météo!$F$6-Z33)/24,"")) -> 2.8275 | AC33: =IF(Z33="","",IF(Météo!$F$7<=Z33,(Z33-Météo!$F$7)/24,"")) ->  | AF33: =IF(Z33="","",IF(Météo!$F$6>Z33,(Météo!$F$6-Z33)/24,"")) -> 2.8275 | AG33: =IF(Z33="","",IF(Météo!$F$7<=Z33,(Z33-Météo!$F$7)/24,"")) ->  | BL33: 1 | DW33: =IF(AND($Z33>DV$14,$Z33<=DV$15),$K33,"") ->  | EF33: =IF(AND($Z33>EE$14,$Z33<=EE$15),$K33,"") ->  | EX33: 50
A34: 2014-01-01 16:00 | B34: 2014 | C34: 1 | D34: 1 | E34: 16:00:00 | G34: -18.4 | I34: -26.4 | K34: 50 | M34: 30 | O34: 19 | S34: 102.74 | W34: -28 | Y34: ND | Z34: -1.12 | AB34: =IF(Z34="","",IF(Météo!$F$6>Z34,(Météo!$F$6-Z34)/24,"")) -> 2.88 | AC34: =IF(Z34="","",IF(Météo!$F$7<=Z34,(Z34-Météo!$F$7)/24,"")) ->  | AH34: =IF(Z34="","",IF(Météo!$F$6>Z34,(Météo!$F$6-Z34)/24,"")) -> 2.88 | AI34: =IF(Z34="","",IF(Météo!$F$7<=Z34,(Z34-Météo!$F$7)/24,"")) ->  | AL34: =IF(AND($Z34>AJ$14,$Z34<=AJ$15),1,"") ->  | AO34: =IF(AND($Z34>AM$14,$Z34<=AM$15),1,"") ->  | AR34: =IF(AND($Z34>AP$14,$Z34<=AP$15),1,"") ->  | AU34: =IF(AND($Z34>AS$14,$Z34<=AS$15),1,"") ->  | AX34: =IF(AND($Z34>AV$14,$Z34<=AV$15),1,"") ->  | BA34: =IF(AND($Z34>AY$14,$Z34<=AY$15),1,"") ->  | BD34: =IF(AND($Z34>BB$14,$Z34<=BB$15),1,"") ->  | BG34: =IF(AND($Z34>BE$14,$Z34<=BE$15),1,"") ->  | BJ34: =IF(AND($Z34>BH$14,$Z34<=BH$15),1,"") -> 1 | BM34: =IF(AND($Z34>BK$14,$Z34<=BK$15),1,"") ->  | BP34: =IF(AND($Z34>BN$14,$Z34<=BN$15),1,"") ->  | BS34: =IF(AND($Z34>BQ$14,$Z34<=BQ$15),1,"") ->  | BV34: =IF(AND($Z34>BT$14,$Z34<=BT$15),1,"") ->  | BY34: =IF(AND($Z34>BW$14,$Z34<=BW$15),1,"") ->  | CB34: =IF(AND($Z34>BZ$14,$Z34<=BZ$15),1,"") ->  | CE34: =IF(AND($Z34>CC$14,$Z34<=CC$15),1,"") ->  | CH34: =IF(AND($Z34>CF$14,$Z34<=CF$15),1,"") ->  | CK34: =IF(AND($Z34>CI$14,$Z34<=CI$15),1,"") ->  | CN34: =IF(AND($Z34>CL$14,$Z34<=CL$15),1,"") ->  | CQ34: =IF(AND($Z34>CO$14,$Z34<=CO$15),1,"") ->  | CT34: =IF(AND($Z34>CR$14,$Z34<=CR$15),1,"") ->  | CW34: =IF(AND($Z34>CU$14,$Z34<=CU$15),1,"") ->  | CZ34: =IF(AND($Z34>CX$14,$Z34<=CX$15),1,"") ->  | DC34: =IF(AND($Z34>DA$14,$Z34<=DA$15),1,"") ->  | DF34: =IF(AND($Z34>DD$14,$Z34<=DD$15),1,"") ->  | DI34: =IF(AND($Z34>DG$14,$Z34<=DG$15),1,"") ->  | DL34: =IF(AND($Z34>DJ$14,$Z34<=DJ$15),1,"") ->  | DO34: =IF(AND($Z34>DM$14,$Z34<=DM$15),1,"") ->  | DR34: =IF(AND($Z34>DP$14,$Z34<=DP$15),1,"") ->  | DX34: =IF(AND($Z34>DV$14,$Z34<=DV$15),$K34,"") ->  | EA34: =IF(AND($Z34>DY$14,$Z34<=DY$15),$K34,"") ->  | ED34: =IF(AND($Z34>EB$14,$Z34<=EB$15),$K34,"") ->  | EG34: =IF(AND($Z34>EE$14,$Z34<=EE$15),$K34,"") ->  | EJ34: =IF(AND($Z34>EH$14,$Z34<=EH$15),$K34,"") ->  | EM34: =IF(AND($Z34>EK$14,$Z34<=EK$15),$K34,"") ->  | EP34: =IF(AND($Z34>EN$14,$Z34<=EN$15),$K34,"") ->  | ES34: =IF(AND($Z34>EQ$14,$Z34<=EQ$15),$K34,"") ->  | EV34: =IF(AND($Z34>ET$14,$Z34<=ET$15),$K34,"") -> 50 | EY34: =IF(AND($Z34>EW$14,$Z34<=EW$15),$K34,"") ->  | FB34: =IF(AND($Z34>EZ$14,$Z34<=EZ$15),$K34,"") ->  | FE34: =IF(AND($Z34>FC$14,$Z34<=FC$15),$K34,"") ->  | FH34: =IF(AND($Z34>FF$14,$Z34<=FF$15),$K34,"") ->  | FK34: =IF(AND($Z34>FI$14,$Z34<=FI$15),$K34,"") ->  | FN34: =IF(AND($Z34>FL$14,$Z34<=FL$15),$K34,"") ->  | FQ34: =IF(AND($Z34>FO$14,$Z34<=FO$15),$K34,"") ->  | FT34: =IF(AND($Z34>FR$14,$Z34<=FR$15),$K34,"") ->  | FW34: =IF(AND($Z34>FU$14,$Z34<=FU$15),$K34,"") ->  | FZ34: =IF(AND($Z34>FX$14,$Z34<=FX$15),$K34,"") ->  | GC34: =IF(AND($Z34>GA$14,$Z34<=GA$15),$K34,"") ->  | GF34: =IF(AND($Z34>GD$14,$Z34<=GD$15),$K34,"") ->  | GI34: =IF(AND($Z34>GG$14,$Z34<=GG$15),$K34,"") ->  | GL34: =IF(AND($Z34>GJ$14,$Z34<=GJ$15),$K34,"") ->  | GO34: =IF(AND($Z34>GM$14,$Z34<=GM$15),$K34,"") ->  | GR34: =IF(AND($Z34>GP$14,$Z34<=GP$15),$K34,"") ->  | GU34: =IF(AND($Z34>GS$14,$Z34<=GS$15),$K34,"") ->  | GX34: =IF(AND($Z34>GV$14,$Z34<=GV$15),$K34,"") ->  | HA34: =IF(AND($Z34>GY$14,$Z34<=GY$15),$K34,"") ->  | HD34: =IF(AND($Z34>HB$14,$Z34<=HB$15),$K34,"") -> 
A35: 2014-01-01 17:00 | B35: 2014 | C35: 1 | D35: 1 | E35: 17:00:00 | G35: -19.8 | I35: -26.6 | K35: 54 | M35: 29 | O35: 15 | S35: 102.78 | W35: -29 | Y35: ND | Z35: -3.64 | AB35: =IF(Z35="","",IF(Météo!$F$6>Z35,(Météo!$F$6-Z35)/24,"")) -> 2.985 | AC35: =IF(Z35="","",IF(Météo!$F$7<=Z35,(Z35-Météo!$F$7)/24,"")) ->  | AH35: =IF(Z35="","",IF(Météo!$F$6>Z35,(Météo!$F$6-Z35)/24,"")) -> 2.985 | AI35: =IF(Z35="","",IF(Météo!$F$7<=Z35,(Z35-Météo!$F$7)/24,"")) ->  | AL35: =IF(AND($Z35>AJ$14,$Z35<=AJ$15),1,"") ->  | AU35: =IF(AND($Z35>AS$14,$Z35<=AS$15),1,"") ->  | BJ35: 1 | DX35: =IF(AND($Z35>DV$14,$Z35<=DV$15),$K35,"") ->  | EG35: =IF(AND($Z35>EE$14,$Z35<=EE$15),$K35,"") ->  | EV35: 54
A36: 2014-01-01 18:00 | B36: 2014 | C36: 1 | D36: 1 | E36: 18:00:00 | G36: -20.9 | I36: -28 | K36: 53 | M36: 32 | O36: 14 | S36: 102.85 | W36: -30 | Y36: ND | Z36: -5.62 | AB36: =IF(Z36="","",IF(Météo!$F$6>Z36,(Météo!$F$6-Z36)/24,"")) -> 3.0675 | AC36: =IF(Z36="","",IF(Météo!$F$7<=Z36,(Z36-Météo!$F$7)/24,"")) ->  | AH36: =IF(Z36="","",IF(Météo!$F$6>Z36,(Météo!$F$6-Z36)/24,"")) -> 3.0675 | AI36: =IF(Z36="","",IF(Météo!$F$7<=Z36,(Z36-Météo!$F$7)/24,"")) ->  | BG36: 1 | ES36: 53
A37: 2014-01-01 19:00 | B37: 2014 | C37: 1 | D37: 1 | E37: 19:00:00 | G37: -22.1 | I37: -28.7 | K37: 55 | M37: 33 | O37: 13 | S37: 102.93 | W37: -31 | Y37: ND | Z37: -7.78 | AB37: =IF(Z37="","",IF(Météo!$F$6>Z37,(Météo!$F$6-Z37)/24,"")) -> 3.1575 | AC37: =IF(Z37="","",IF(Météo!$F$7<=Z37,(Z37-Météo!$F$7)/24,"")) ->  | AH37: =IF(Z37="","",IF(Météo!$F$6>Z37,(Météo!$F$6-Z37)/24,"")) -> 3.1575 | AI37: =IF(Z37="","",IF(Météo!$F$7<=Z37,(Z37-Météo!$F$7)/24,"")) ->  | BG37: 1 | ES37: 55
A38: 2014-01-01 20:00 | B38: 2014 | C38: 1 | D38: 1 | E38: 20:00:00 | G38: -22.6 | I38: -29.3 | K38: 54 | M38: 34 | O38: 12 | S38: 102.98 | W38: -31 | Y38: ND | Z38: -8.68 | AB38: =IF(Z38="","",IF(Météo!$F$6>Z38,(Météo!$F$6-Z38)/24,"")) -> 3.195 | AC38: =IF(Z38="","",IF(Météo!$F$7<=Z38,(Z38-Météo!$F$7)/24,"")) ->  | AH38: =IF(Z38="","",IF(Météo!$F$6>Z38,(Météo!$F$6-Z38)/24,"")) -> 3.195 | AI38: =IF(Z38="","",IF(Météo!$F$7<=Z38,(Z38-Météo!$F$7)/24,"")) ->  | BG38: 1 | ES38: 54
A39: 2014-01-01 21:00 | B39: 2014 | C39: 1 | D39: 1 | E39: 21:00:00 | G39: -24.1 | I39: -29.8 | K39: 59 | M39: 34 | O39: 10 | S39: 103.01 | W39: -32 | Y39: ND | Z39: -11.38 | AB39: =IF(Z39="","",IF(Météo!$F$6>Z39,(Météo!$F$6-Z39)/24,"")) -> 3.3075 | AC39: =IF(Z39="","",IF(Météo!$F$7<=Z39,(Z39-Météo!$F$7)/24,"")) ->  | AH39: =IF(Z39="","",IF(Météo!$F$6>Z39,(Météo!$F$6-Z39)/24,"")) -> 3.3075 | AI39: =IF(Z39="","",IF(Météo!$F$7<=Z39,(Z39-Météo!$F$7)/24,"")) ->  | BD39: 1 | EP39: 59
A40: 2014-01-01 22:00 | B40: 2014 | C40: 1 | D40: 1 | E40: 22:00:00 | G40: -23.3 | I40: -29.8 | K40: 55 | M40: 36 | O40: 10 | S40: 103.02 | W40: -31 | Y40: ND | Z40: -9.94 | AB40: =IF(Z40="","",IF(Météo!$F$6>Z40,(Météo!$F$6-Z40)/24,"")) -> 3.2475 | AC40: =IF(Z40="","",IF(Météo!$F$7<=Z40,(Z40-Météo!$F$7)/24,"")) ->  | AH40: =IF(Z40="","",IF(Météo!$F$6>Z40,(Météo!$F$6-Z40)/24,"")) -> 3.2475 | AI40: =IF(Z40="","",IF(Météo!$F$7<=Z40,(Z40-Météo!$F$7)/24,"")) ->  | BG40: 1 | ES40: 55
A41: 2014-01-01 23:00 | B41: 2014 | C41: 1 | D41: 1 | E41: 23:00:00 | G41: -23.4 | I41: -28.8 | K41: 61 | M41: 2 | O41: 12 | S41: 103.06 | W41: -32 | Y41: ND | Z41: -10.12 | AB41: =IF(Z41="","",IF(Météo!$F$6>Z41,(Météo!$F$6-Z41)/24,"")) -> 3.255 | AC41: =IF(Z41="","",IF(Météo!$F$7<=Z41,(Z41-Météo!$F$7)/24,"")) ->  | AH41: =IF(Z41="","",IF(Météo!$F$6>Z41,(Météo!$F$6-Z41)/24,"")) -> 3.255 | AI41: =IF(Z41="","",IF(Météo!$F$7<=Z41,(Z41-Météo!$F$7)/24,"")) ->  | BD41: 1 | EP41: 61
A42: 2014-01-02 00:00 | B42: 2014 | C42: 1 | D42: 2 | E42: 00:00:00 | G42: -23.5 | I42: -30.8 | K42: 51 | M42: 3 | O42: 14 | S42: 103.06 | W42: -33 | Y42: ND | Z42: -10.3 | AB42: =IF(Z42="","",IF(Météo!$F$6>Z42,(Météo!$F$6-Z42)/24,"")) -> 3.2625 | AC42: =IF(Z42="","",IF(Météo!$F$7<=Z42,(Z42-Météo!$F$7)/24,"")) ->  | AD42: =IF(Z42="","",IF(Météo!$F$6>Z42,(Météo!$F$6-Z42)/24,"")) -> 3.2625 | AE42: =IF(Z42="","",IF(Météo!$F$7<=Z42,(Z42-Météo!$F$7)/24,"")) ->  | AJ42: =IF(AND($Z42>AJ$14,$Z42<=AJ$15),1,"") ->  | AM42: =IF(AND($Z42>AM$14,$Z42<=AM$15),1,"") ->  | AP42: =IF(AND($Z42>AP$14,$Z42<=AP$15),1,"") ->  | AS42: =IF(AND($Z42>AS$14,$Z42<=AS$15),1,"") ->  | AV42: =IF(AND($Z42>AV$14,$Z42<=AV$15),1,"") ->  | AY42: =IF(AND($Z42>AY$14,$Z42<=AY$15),1,"") ->  | BB42: =IF(AND($Z42>BB$14,$Z42<=BB$15),1,"") -> 1 | BE42: =IF(AND($Z42>BE$14,$Z42<=BE$15),1,"") ->  | BH42: =IF(AND($Z42>BH$14,$Z42<=BH$15),1,"") ->  | BK42: =IF(AND($Z42>BK$14,$Z42<=BK$15),1,"") ->  | BN42: =IF(AND($Z42>BN$14,$Z42<=BN$15),1,"") ->  | BQ42: =IF(AND($Z42>BQ$14,$Z42<=BQ$15),1,"") ->  | BT42: =IF(AND($Z42>BT$14,$Z42<=BT$15),1,"") ->  | BW42: =IF(AND($Z42>BW$14,$Z42<=BW$15),1,"") ->  | BZ42: =IF(AND($Z42>BZ$14,$Z42<=BZ$15),1,"") ->  | CC42: =IF(AND($Z42>CC$14,$Z42<=CC$15),1,"") ->  | CF42: =IF(AND($Z42>CF$14,$Z42<=CF$15),1,"") ->  | CI42: =IF(AND($Z42>CI$14,$Z42<=CI$15),1,"") ->  | CL42: =IF(AND($Z42>CL$14,$Z42<=CL$15),1,"") ->  | CO42: =IF(AND($Z42>CO$14,$Z42<=CO$15),1,"") ->  | CR42: =IF(AND($Z42>CR$14,$Z42<=CR$15),1,"") ->  | CU42: =IF(AND($Z42>CU$14,$Z42<=CU$15),1,"") ->  | CX42: =IF(AND($Z42>CX$14,$Z42<=CX$15),1,"") ->  | DA42: =IF(AND($Z42>DA$14,$Z42<=DA$15),1,"") ->  | DD42: =IF(AND($Z42>DD$14,$Z42<=DD$15),1,"") ->  | DG42: =IF(AND($Z42>DG$14,$Z42<=DG$15),1,"") ->  | DJ42: =IF(AND($Z42>DJ$14,$Z42<=DJ$15),1,"") ->  | DM42: =IF(AND($Z42>DM$14,$Z42<=DM$15),1,"") ->  | DP42: =IF(AND($Z42>DP$14,$Z42<=DP$15),1,"") ->  | DV42: =IF(AND($Z42>DV$14,$Z42<=DV$15),$K42,"") ->  | DY42: =IF(AND($Z42>DY$14,$Z42<=DY$15),$K42,"") ->  | EB42: =IF(AND($Z42>EB$14,$Z42<=EB$15),$K42,"") ->  | EE42: =IF(AND($Z42>EE$14,$Z42<=EE$15),$K42,"") ->  | EH42: =IF(AND($Z42>EH$14,$Z42<=EH$15),$K42,"") ->  | EK42: =IF(AND($Z42>EK$14,$Z42<=EK$15),$K42,"") ->  | EN42: =IF(AND($Z42>EN$14,$Z42<=EN$15),$K42,"") -> 51 | EQ42: =IF(AND($Z42>EQ$14,$Z42<=EQ$15),$K42,"") ->  | ET42: =IF(AND($Z42>ET$14,$Z42<=ET$15),$K42,"") ->  | EW42: =IF(AND($Z42>EW$14,$Z42<=EW$15),$K42,"") ->  | EZ42: =IF(AND($Z42>EZ$14,$Z42<=EZ$15),$K42,"") ->  | FC42: =IF(AND($Z42>FC$14,$Z42<=FC$15),$K42,"") ->  | FF42: =IF(AND($Z42>FF$14,$Z42<=FF$15),$K42,"") ->  | FI42: =IF(AND($Z42>FI$14,$Z42<=FI$15),$K42,"") ->  | FL42: =IF(AND($Z42>FL$14,$Z42<=FL$15),$K42,"") ->  | FO42: =IF(AND($Z42>FO$14,$Z42<=FO$15),$K42,"") ->  | FR42: =IF(AND($Z42>FR$14,$Z42<=FR$15),$K42,"") ->  | FU42: =IF(AND($Z42>FU$14,$Z42<=FU$15),$K42,"") ->  | FX42: =IF(AND($Z42>FX$14,$Z42<=FX$15),$K42,"") ->  | GA42: =IF(AND($Z42>GA$14,$Z42<=GA$15),$K42,"") ->  | GD42: =IF(AND($Z42>GD$14,$Z42<=GD$15),$K42,"") ->  | GG42: =IF(AND($Z42>GG$14,$Z42<=GG$15),$K42,"") ->  | GJ42: =IF(AND($Z42>GJ$14,$Z42<=GJ$15),$K42,"") ->  | GM42: =IF(AND($Z42>GM$14,$Z42<=GM$15),$K42,"") ->  | GP42: =IF(AND($Z42>GP$14,$Z42<=GP$15),$K42,"") ->  | GS42: =IF(AND($Z42>GS$14,$Z42<=GS$15),$K42,"") ->  | GV42: =IF(AND($Z42>GV$14,$Z42<=GV$15),$K42,"") ->  | GY42: =IF(AND($Z42>GY$14,$Z42<=GY$15),$K42,"") ->  | HB42: =IF(AND($Z42>HB$14,$Z42<=HB$15),$K42,"") -> 
A43: 2014-01-02 01:00 | B43: 2014 | C43: 1 | D43: 2 | E43: 01:00:00 | G43: -23.7 | I43: -30.8 | K43: 52 | M43: 4 | O43: 16 | S43: 103.03 | W43: -34 | Y43: ND | Z43: -10.66 | AB43: =IF(Z43="","",IF(Météo!$F$6>Z43,(Météo!$F$6-Z43)/24,"")) -> 3.2775 | AC43: =IF(Z43="","",IF(Météo!$F$7<=Z43,(Z43-Météo!$F$7)/24,"")) ->  | AD43: =IF(Z43="","",IF(Météo!$F$6>Z43,(Météo!$F$6-Z43)/24,"")) -> 3.2775 | AE43: =IF(Z43="","",IF(Météo!$F$7<=Z43,(Z43-Météo!$F$7)/24,"")) ->  | BB43: 1 | EN43: 52
A44: 2014-01-02 02:00 | B44: 2014 | C44: 1 | D44: 2 | E44: 02:00:00 | G44: -24.2 | I44: -30.3 | K44: 57 | M44: 3 | O44: 16 | S44: 103.05 | W44: -35 | Y44: ND | Z44: -11.56 | AB44: =IF(Z44="","",IF(Météo!$F$6>Z44,(Météo!$F$6-Z44)/24,"")) -> 3.315 | AC44: =IF(Z44="","",IF(Météo!$F$7<=Z44,(Z44-Météo!$F$7)/24,"")) ->  | AD44: =IF(Z44="","",IF(Météo!$F$6>Z44,(Météo!$F$6-Z44)/24,"")) -> 3.315 | AE44: =IF(Z44="","",IF(Météo!$F$7<=Z44,(Z44-Météo!$F$7)/24,"")) ->  | BB44: 1 | EN44: 57
A45: 2014-01-02 03:00 | B45: 2014 | C45: 1 | D45: 2 | E45: 03:00:00 | G45: -24.6 | I45: -31.1 | K45: 55 | M45: 4 | O45: 17 | S45: 103.06 | W45: -35 | Y45: ND | Z45: -12.28 | AB45: =IF(Z45="","",IF(Météo!$F$6>Z45,(Météo!$F$6-Z45)/24,"")) -> 3.345 | AC45: =IF(Z45="","",IF(Météo!$F$7<=Z45,(Z45-Météo!$F$7)/24,"")) ->  | AD45: =IF(Z45="","",IF(Météo!$F$6>Z45,(Météo!$F$6-Z45)/24,"")) -> 3.345 | AE45: =IF(Z45="","",IF(Météo!$F$7<=Z45,(Z45-Météo!$F$7)/24,"")) ->  | BB45: 1 | EN45: 55
A46: 2014-01-02 04:00 | B46: 2014 | C46: 1 | D46: 2 | E46: 04:00:00 | G46: -24.9 | I46: -31.6 | K46: 54 | M46: 4 | O46: 18 | S46: 102.97 | W46: -36 | Y46: ND | Z46: -12.82 | AB46: =IF(Z46="","",IF(Météo!$F$6>Z46,(Météo!$F$6-Z46)/24,"")) -> 3.3675 | AC46: =IF(Z46="","",IF(Météo!$F$7<=Z46,(Z46-Météo!$F$7)/24,"")) ->  | AD46: =IF(Z46="","",IF(Météo!$F$6>Z46,(Météo!$F$6-Z46)/24,"")) -> 3.3675 | AE46: =IF(Z46="","",IF(Météo!$F$7<=Z46,(Z46-Météo!$F$7)/24,"")) ->  | BB46: 1 | EN46: 54
A47: 2014-01-02 05:00 | B47: 2014 | C47: 1 | D47: 2 | E47: 05:00:00 | G47: -25.4 | I47: -32.1 | K47: 53 | M47: 4 | O47: 17 | S47: 102.98 | W47: -36 | Y47: ND | Z47: -13.72 | AB47: =IF(Z47="","",IF(Météo!$F$6>Z47,(Météo!$F$6-Z47)/24,"")) -> 3.405 | AC47: =IF(Z47="","",IF(Météo!$F$7<=Z47,(Z47-Météo!$F$7)/24,"")) ->  | AD47: =IF(Z47="","",IF(Météo!$F$6>Z47,(Météo!$F$6-Z47)/24,"")) -> 3.405 | AE47: =IF(Z47="","",IF(Météo!$F$7<=Z47,(Z47-Météo!$F$7)/24,"")) ->  | BB47: 1 | EN47: 53
A48: 2014-01-02 06:00 | B48: 2014 | C48: 1 | D48: 2 | E48: 06:00:00 | G48: -25.6 | I48: -33.7 | K48: 46 | M48: 4 | O48: 23 | S48: 102.97 | W48: -38 | Y48: ND | Z48: -14.08 | AB48: =IF(Z48="","",IF(Météo!$F$6>Z48,(Météo!$F$6-Z48)/24,"")) -> 3.42 | AC48: =IF(Z48="","",IF(Météo!$F$7<=Z48,(Z48-Météo!$F$7)/24,"")) ->  | AD48: =IF(Z48="","",IF(Météo!$F$6>Z48,(Météo!$F$6-Z48)/24,"")) -> 3.42 | AE48: =IF(Z48="","",IF(Météo!$F$7<=Z48,(Z48-Météo!$F$7)/24,"")) ->  | BB48: 1 | EN48: 46
A49: 2014-01-02 07:00 | B49: 2014 | C49: 1 | D49: 2 | E49: 07:00:00 | G49: -26.3 | I49: -32.8 | K49: 54 | M49: 5 | O49: 15 | S49: 102.97 | W49: -37 | Y49: ND | Z49: -15.34 | AB49: =IF(Z49="","",IF(Météo!$F$6>Z49,(Météo!$F$6-Z49)/24,"")) -> 3.4725 | AC49: =IF(Z49="","",IF(Météo!$F$7<=Z49,(Z49-Météo!$F$7)/24,"")) ->  | AD49: =IF(Z49="","",IF(Météo!$F$6>Z49,(Météo!$F$6-Z49)/24,"")) -> 3.4725 | AE49: =IF(Z49="","",IF(Météo!$F$7<=Z49,(Z49-Météo!$F$7)/24,"")) ->  | AY49: 1 | EK49: 54
A50: 2014-01-02 08:00 | B50: 2014 | C50: 1 | D50: 2 | E50: 08:00:00 | G50: -26.4 | I50: -32.1 | K50: 59 | M50: 3 | O50: 13 | S50: 102.97 | W50: -36 | Y50: ND | Z50: -15.52 | AB50: =IF(Z50="","",IF(Météo!$F$6>Z50,(Météo!$F$6-Z50)/24,"")) -> 3.48 | AC50: =IF(Z50="","",IF(Météo!$F$7<=Z50,(Z50-Météo!$F$7)/24,"")) ->  | AF50: =IF(Z50="","",IF(Météo!$F$6>Z50,(Météo!$F$6-Z50)/24,"")) -> 3.48 | AG50: =IF(Z50="","",IF(Météo!$F$7<=Z50,(Z50-Météo!$F$7)/24,"")) ->  | AK50: =IF(AND($Z50>AJ$14,$Z50<=AJ$15),1,"") ->  | AN50: =IF(AND($Z50>AM$14,$Z50<=AM$15),1,"") ->  | AQ50: =IF(AND($Z50>AP$14,$Z50<=AP$15),1,"") ->  | AT50: =IF(AND($Z50>AS$14,$Z50<=AS$15),1,"") ->  | AW50: =IF(AND($Z50>AV$14,$Z50<=AV$15),1,"") ->  | AZ50: =IF(AND($Z50>AY$14,$Z50<=AY$15),1,"") -> 1 | BC50: =IF(AND($Z50>BB$14,$Z50<=BB$15),1,"") ->  | BF50: =IF(AND($Z50>BE$14,$Z50<=BE$15),1,"") ->  | BI50: =IF(AND($Z50>BH$14,$Z50<=BH$15),1,"") ->  | BL50: =IF(AND($Z50>BK$14,$Z50<=BK$15),1,"") ->  | BO50: =IF(AND($Z50>BN$14,$Z50<=BN$15),1,"") ->  | BR50: =IF(AND($Z50>BQ$14,$Z50<=BQ$15),1,"") ->  | BU50: =IF(AND($Z50>BT$14,$Z50<=BT$15),1,"") ->  | BX50: =IF(AND($Z50>BW$14,$Z50<=BW$15),1,"") ->  | CA50: =IF(AND($Z50>BZ$14,$Z50<=BZ$15),1,"") ->  | CD50: =IF(AND($Z50>CC$14,$Z50<=CC$15),1,"") ->  | CG50: =IF(AND($Z50>CF$14,$Z50<=CF$15),1,"") ->  | CJ50: =IF(AND($Z50>CI$14,$Z50<=CI$15),1,"") ->  | CM50: =IF(AND($Z50>CL$14,$Z50<=CL$15),1,"") ->  | CP50: =IF(AND($Z50>CO$14,$Z50<=CO$15),1,"") ->  | CS50: =IF(AND($Z50>CR$14,$Z50<=CR$15),1,"") ->  | CV50: =IF(AND($Z50>CU$14,$Z50<=CU$15),1,"") ->  | CY50: =IF(AND($Z50>CX$14,$Z50<=CX$15),1,"") ->  | DB50: =IF(AND($Z50>DA$14,$Z50<=DA$15),1,"") ->  | DE50: =IF(AND($Z50>DD$14,$Z50<=DD$15),1,"") ->  | DH50: =IF(AND($Z50>DG$14,$Z50<=DG$15),1,"") ->  | DK50: =IF(AND($Z50>DJ$14,$Z50<=DJ$15),1,"") ->  | DN50: =IF(AND($Z50>DM$14,$Z50<=DM$15),1,"") ->  | DQ50: =IF(AND($Z50>DP$14,$Z50<=DP$15),1,"") ->  | DW50: =IF(AND($Z50>DV$14,$Z50<=DV$15),$K50,"") ->  | DZ50: =IF(AND($Z50>DY$14,$Z50<=DY$15),$K50,"") ->  | EC50: =IF(AND($Z50>EB$14,$Z50<=EB$15),$K50,"") ->  | EF50: =IF(AND($Z50>EE$14,$Z50<=EE$15),$K50,"") ->  | EI50: =IF(AND($Z50>EH$14,$Z50<=EH$15),$K50,"") ->  | EL50: =IF(AND($Z50>EK$14,$Z50<=EK$15),$K50,"") -> 59 | EO50: =IF(AND($Z50>EN$14,$Z50<=EN$15),$K50,"") ->  | ER50: =IF(AND($Z50>EQ$14,$Z50<=EQ$15),$K50,"") ->  | EU50: =IF(AND($Z50>ET$14,$Z50<=ET$15),$K50,"") ->  | EX50: =IF(AND($Z50>EW$14,$Z50<=EW$15),$K50,"") ->  | FA50: =IF(AND($Z50>EZ$14,$Z50<=EZ$15),$K50,"") ->  | FD50: =IF(AND($Z50>FC$14,$Z50<=FC$15),$K50,"") ->  | FG50: =IF(AND($Z50>FF$14,$Z50<=FF$15),$K50,"") ->  | FJ50: =IF(AND($Z50>FI$14,$Z50<=FI$15),$K50,"") ->  | FM50: =IF(AND($Z50>FL$14,$Z50<=FL$15),$K50,"") ->  | FP50: =IF(AND($Z50>FO$14,$Z50<=FO$15),$K50,"") ->  | FS50: =IF(AND($Z50>FR$14,$Z50<=FR$15),$K50,"") ->  | FV50: =IF(AND($Z50>FU$14,$Z50<=FU$15),$K50,"") ->  | FY50: =IF(AND($Z50>FX$14,$Z50<=FX$15),$K50,"") ->  | GB50: =IF(AND($Z50>GA$14,$Z50<=GA$15),$K50,"") ->  | GE50: =IF(AND($Z50>GD$14,$Z50<=GD$15),$K50,"") ->  | GH50: =IF(AND($Z50>GG$14,$Z50<=GG$15),$K50,"") ->  | GK50: =IF(AND($Z50>GJ$14,$Z50<=GJ$15),$K50,"") ->  | GN50: =IF(AND($Z50>GM$14,$Z50<=GM$15),$K50,"") ->  | GQ50: =IF(AND($Z50>GP$14,$Z50<=GP$15),$K50,"") ->  | GT50: =IF(AND($Z50>GS$14,$Z50<=GS$15),$K50,"") ->  | GW50: =IF(AND($Z50>GV$14,$Z50<=GV$15),$K50,"") ->  | GZ50: =IF(AND($Z50>GY$14,$Z50<=GY$15),$K50,"") ->  | HC50: =IF(AND($Z50>HB$14,$Z50<=HB$15),$K50,"") -> 
A51: 2014-01-02 09:00 | B51: 2014 | C51: 1 | D51: 2 | E51: 09:00:00 | G51: -26.8 | I51: -32.4 | K51: 59 | M51: 3 | O51: 19 | S51: 102.93 | W51: -39 | Y51: ND | Z51: -16.24 | AB51: =IF(Z51="","",IF(Météo!$F$6>Z51,(Météo!$F$6-Z51)/24,"")) -> 3.51 | AC51: =IF(Z51="","",IF(Météo!$F$7<=Z51,(Z51-Météo!$F$7)/24,"")) ->  | AF51: =IF(Z51="","",IF(Météo!$F$6>Z51,(Météo!$F$6-Z51)/24,"")) -> 3.51 | AG51: =IF(Z51="","",IF(Météo!$F$7<=Z51,(Z51-Météo!$F$7)/24,"")) ->  | AZ51: 1 | EL51: 59
A52: 2014-01-02 10:00 | B52: 2014 | C52: 1 | D52: 2 | E52: 10:00:00 | G52: -26.7 | I52: -32.1 | K52: 60 | M52: 2 | O52: 22 | S52: 102.85 | W52: -39 | Y52: ND | Z52: -16.06 | AB52: =IF(Z52="","",IF(Météo!$F$6>Z52,(Météo!$F$6-Z52)/24,"")) -> 3.5025 | AC52: =IF(Z52="","",IF(Météo!$F$7<=Z52,(Z52-Météo!$F$7)/24,"")) ->  | AF52: =IF(Z52="","",IF(Météo!$F$6>Z52,(Météo!$F$6-Z52)/24,"")) -> 3.5025 | AG52: =IF(Z52="","",IF(Météo!$F$7<=Z52,(Z52-Météo!$F$7)/24,"")) ->  | AZ52: 1 | EL52: 60
A53: 2014-01-02 11:00 | B53: 2014 | C53: 1 | D53: 2 | E53: 11:00:00 | G53: -26 | I53: -31.4 | K53: 60 | M53: 3 | O53: 19 | S53: 102.75 | W53: -38 | Y53: ND | Z53: -14.8 | AB53: =IF(Z53="","",IF(Météo!$F$6>Z53,(Météo!$F$6-Z53)/24,"")) -> 3.45 | AC53: =IF(Z53="","",IF(Météo!$F$7<=Z53,(Z53-Météo!$F$7)/24,"")) ->  | AF53: =IF(Z53="","",IF(Météo!$F$6>Z53,(Météo!$F$6-Z53)/24,"")) -> 3.45 | AG53: =IF(Z53="","",IF(Météo!$F$7<=Z53,(Z53-Météo!$F$7)/24,"")) ->  | BC53: 1 | EO53: 60
A54: 2014-01-02 12:00 | B54: 2014 | C54: 1 | D54: 2 | E54: 12:00:00 | G54: -25.7 | I54: -31.6 | K54: 58 | M54: 3 | O54: 21 | S54: 102.6 | W54: -38 | Y54: ND | Z54: -14.26 | AB54: =IF(Z54="","",IF(Météo!$F$6>Z54,(Météo!$F$6-Z54)/24,"")) -> 3.4275 | AC54: =IF(Z54="","",IF(Météo!$F$7<=Z54,(Z54-Météo!$F$7)/24,"")) ->  | AF54: =IF(Z54="","",IF(Météo!$F$6>Z54,(Météo!$F$6-Z54)/24,"")) -> 3.4275 | AG54: =IF(Z54="","",IF(Météo!$F$7<=Z54,(Z54-Météo!$F$7)/24,"")) ->  | BC54: 1 | EO54: 58
A55: 2014-01-02 13:00 | B55: 2014 | C55: 1 | D55: 2 | E55: 13:00:00 | G55: -25.5 | I55: -31.3 | K55: 58 | M55: 3 | O55: 20 | S55: 102.52 | W55: -37 | Y55: ND | Z55: -13.9 | AB55: =IF(Z55="","",IF(Météo!$F$6>Z55,(Météo!$F$6-Z55)/24,"")) -> 3.4125 | AC55: =IF(Z55="","",IF(Météo!$F$7<=Z55,(Z55-Météo!$F$7)/24,"")) ->  | AF55: =IF(Z55="","",IF(Météo!$F$6>Z55,(Météo!$F$6-Z55)/24,"")) -> 3.4125 | AG55: =IF(Z55="","",IF(Météo!$F$7<=Z55,(Z55-Météo!$F$7)/24,"")) ->  | BC55: 1 | EO55: 58
A56: 2014-01-02 14:00 | B56: 2014 | C56: 1 | D56: 2 | E56: 14:00:00 | G56: -25.1 | I56: -31.8 | K56: 54 | M56: 2 | O56: 23 | S56: 102.39 | W56: -38 | Y56: ND | Z56: -13.18 | AB56: =IF(Z56="","",IF(Météo!$F$6>Z56,(Météo!$F$6-Z56)/24,"")) -> 3.3825 | AC56: =IF(Z56="","",IF(Météo!$F$7<=Z56,(Z56-Météo!$F$7)/24,"")) ->  | AF56: =IF(Z56="","",IF(Météo!$F$6>Z56,(Météo!$F$6-Z56)/24,"")) -> 3.3825 | AG56: =IF(Z56="","",IF(Météo!$F$7<=Z56,(Z56-Météo!$F$7)/24,"")) ->  | BC56: 1 | EO56: 54
A57: 2014-01-02 15:00 | B57: 2014 | C57: 1 | D57: 2 | E57: 15:00:00 | G57: -24.9 | I57: -30 | K57: 62 | M57: 3 | O57: 23 | S57: 102.29 | W57: -37 | Y57: ND | Z57: -12.82 | AB57: =IF(Z57="","",IF(Météo!$F$6>Z57,(Météo!$F$6-Z57)/24,"")) -> 3.3675 | AC57: =IF(Z57="","",IF(Météo!$F$7<=Z57,(Z57-Météo!$F$7)/24,"")) ->  | AF57: =IF(Z57="","",IF(Météo!$F$6>Z57,(Météo!$F$6-Z57)/24,"")) -> 3.3675 | AG57: =IF(Z57="","",IF(Météo!$F$7<=Z57,(Z57-Météo!$F$7)/24,"")) ->  | BC57: 1 | EO57: 62
A58: 2014-01-02 16:00 | B58: 2014 | C58: 1 | D58: 2 | E58: 16:00:00 | G58: -24.6 | I58: -29.4 | K58: 64 | M58: 3 | O58: 20 | S58: 102.21 | W58: -36 | Y58: ND | Z58: -12.28 | AB58: =IF(Z58="","",IF(Météo!$F$6>Z58,(Météo!$F$6-Z58)/24,"")) -> 3.345 | AC58: =IF(Z58="","",IF(Météo!$F$7<=Z58,(Z58-Météo!$F$7)/24,"")) ->  | AH58: =IF(Z58="","",IF(Météo!$F$6>Z58,(Météo!$F$6-Z58)/24,"")) -> 3.345 | AI58: =IF(Z58="","",IF(Météo!$F$7<=Z58,(Z58-Météo!$F$7)/24,"")) ->  | AL58: =IF(AND($Z58>AJ$14,$Z58<=AJ$15),1,"") ->  | AO58: =IF(AND($Z58>AM$14,$Z58<=AM$15),1,"") ->  | AR58: =IF(AND($Z58>AP$14,$Z58<=AP$15),1,"") ->  | AU58: =IF(AND($Z58>AS$14,$Z58<=AS$15),1,"") ->  | AX58: =IF(AND($Z58>AV$14,$Z58<=AV$15),1,"") ->  | BA58: =IF(AND($Z58>AY$14,$Z58<=AY$15),1,"") ->  | BD58: =IF(AND($Z58>BB$14,$Z58<=BB$15),1,"") -> 1 | BG58: =IF(AND($Z58>BE$14,$Z58<=BE$15),1,"") ->  | BJ58: =IF(AND($Z58>BH$14,$Z58<=BH$15),1,"") ->  | BM58: =IF(AND($Z58>BK$14,$Z58<=BK$15),1,"") ->  | BP58: =IF(AND($Z58>BN$14,$Z58<=BN$15),1,"") ->  | BS58: =IF(AND($Z58>BQ$14,$Z58<=BQ$15),1,"") ->  | BV58: =IF(AND($Z58>BT$14,$Z58<=BT$15),1,"") ->  | BY58: =IF(AND($Z58>BW$14,$Z58<=BW$15),1,"") ->  | CB58: =IF(AND($Z58>BZ$14,$Z58<=BZ$15),1,"") ->  | CE58: =IF(AND($Z58>CC$14,$Z58<=CC$15),1,"") ->  | CH58: =IF(AND($Z58>CF$14,$Z58<=CF$15),1,"") ->  | CK58: =IF(AND($Z58>CI$14,$Z58<=CI$15),1,"") ->  | CN58: =IF(AND($Z58>CL$14,$Z58<=CL$15),1,"") ->  | CQ58: =IF(AND($Z58>CO$14,$Z58<=CO$15),1,"") ->  | CT58: =IF(AND($Z58>CR$14,$Z58<=CR$15),1,"") ->  | CW58: =IF(AND($Z58>CU$14,$Z58<=CU$15),1,"") ->  | CZ58: =IF(AND($Z58>CX$14,$Z58<=CX$15),1,"") ->  | DC58: =IF(AND($Z58>DA$14,$Z58<=DA$15),1,"") ->  | DF58: =IF(AND($Z58>DD$14,$Z58<=DD$15),1,"") ->  | DI58: =IF(AND($Z58>DG$14,$Z58<=DG$15),1,"") ->  | DL58: =IF(AND($Z58>DJ$14,$Z58<=DJ$15),1,"") ->  | DO58: =IF(AND($Z58>DM$14,$Z58<=DM$15),1,"") ->  | DR58: =IF(AND($Z58>DP$14,$Z58<=DP$15),1,"") ->  | DX58: =IF(AND($Z58>DV$14,$Z58<=DV$15),$K58,"") ->  | EA58: =IF(AND($Z58>DY$14,$Z58<=DY$15),$K58,"") ->  | ED58: =IF(AND($Z58>EB$14,$Z58<=EB$15),$K58,"") ->  | EG58: =IF(AND($Z58>EE$14,$Z58<=EE$15),$K58,"") ->  | EJ58: =IF(AND($Z58>EH$14,$Z58<=EH$15),$K58,"") ->  | EM58: =IF(AND($Z58>EK$14,$Z58<=EK$15),$K58,"") ->  | EP58: =IF(AND($Z58>EN$14,$Z58<=EN$15),$K58,"") -> 64 | ES58: =IF(AND($Z58>EQ$14,$Z58<=EQ$15),$K58,"") ->  | EV58: =IF(AND($Z58>ET$14,$Z58<=ET$15),$K58,"") ->  | EY58: =IF(AND($Z58>EW$14,$Z58<=EW$15),$K58,"") ->  | FB58: =IF(AND($Z58>EZ$14,$Z58<=EZ$15),$K58,"") ->  | FE58: =IF(AND($Z58>FC$14,$Z58<=FC$15),$K58,"") ->  | FH58: =IF(AND($Z58>FF$14,$Z58<=FF$15),$K58,"") ->  | FK58: =IF(AND($Z58>FI$14,$Z58<=FI$15),$K58,"") ->  | FN58: =IF(AND($Z58>FL$14,$Z58<=FL$15),$K58,"") ->  | FQ58: =IF(AND($Z58>FO$14,$Z58<=FO$15),$K58,"") ->  | FT58: =IF(AND($Z58>FR$14,$Z58<=FR$15),$K58,"") ->  | FW58: =IF(AND($Z58>FU$14,$Z58<=FU$15),$K58,"") ->  | FZ58: =IF(AND($Z58>FX$14,$Z58<=FX$15),$K58,"") ->  | GC58: =IF(AND($Z58>GA$14,$Z58<=GA$15),$K58,"") ->  | GF58: =IF(AND($Z58>GD$14,$Z58<=GD$15),$K58,"") ->  | GI58: =IF(AND($Z58>GG$14,$Z58<=GG$15),$K58,"") ->  | GL58: =IF(AND($Z58>GJ$14,$Z58<=GJ$15),$K58,"") ->  | GO58: =IF(AND($Z58>GM$14,$Z58<=GM$15),$K58,"") ->  | GR58: =IF(AND($Z58>GP$14,$Z58<=GP$15),$K58,"") ->  | GU58: =IF(AND($Z58>GS$14,$Z58<=GS$15),$K58,"") ->  | GX58: =IF(AND($Z58>GV$14,$Z58<=GV$15),$K58,"") ->  | HA58: =IF(AND($Z58>GY$14,$Z58<=GY$15),$K58,"") ->  | HD58: =IF(AND($Z58>HB$14,$Z58<=HB$15),$K58,"") -> 
A59: 2014-01-02 17:00 | B59: 2014 | C59: 1 | D59: 2 | E59: 17:00:00 | G59: -23.9 | I59: -29.1 | K59: 62 | M59: 3 | O59: 20 | S59: 102.24 | W59: -35 | Y59: ND | Z59: -11.02 | AB59: =IF(Z59="","",IF(Météo!$F$6>Z59,(Météo!$F$6-Z59)/24,"")) -> 3.2925 | AC59: =IF(Z59="","",IF(Météo!$F$7<=Z59,(Z59-Météo!$F$7)/24,"")) ->  | AH59: =IF(Z59="","",IF(Météo!$F$6>Z59,(Météo!$F$6-Z59)/24,"")) -> 3.2925 | AI59: =IF(Z59="","",IF(Météo!$F$7<=Z59,(Z59-Météo!$F$7)/24,"")) ->  | BD59: 1 | EP59: 62
A60: 2014-01-02 18:00 | B60: 2014 | C60: 1 | D60: 2 | E60: 18:00:00 | G60: -23.7 | I60: -28 | K60: 68 | M60: 3 | O60: 22 | S60: 102.18 | W60: -36 | Y60: ND | Z60: -10.66 | AB60: =IF(Z60="","",IF(Météo!$F$6>Z60,(Météo!$F$6-Z60)/24,"")) -> 3.2775 | AC60: =IF(Z60="","",IF(Météo!$F$7<=Z60,(Z60-Météo!$F$7)/24,"")) ->  | AH60: =IF(Z60="","",IF(Météo!$F$6>Z60,(Météo!$F$6-Z60)/24,"")) -> 3.2775 | AI60: =IF(Z60="","",IF(Météo!$F$7<=Z60,(Z60-Météo!$F$7)/24,"")) ->  | BD60: 1 | EP60: 68
A61: 2014-01-02 19:00 | B61: 2014 | C61: 1 | D61: 2 | E61: 19:00:00 | G61: -23.4 | I61: -27.4 | K61: 69 | M61: 3 | O61: 21 | S61: 102.1 | W61: -35 | Y61: ND | Z61: -10.12 | AB61: =IF(Z61="","",IF(Météo!$F$6>Z61,(Météo!$F$6-Z61)/24,"")) -> 3.255 | AC61: =IF(Z61="","",IF(Météo!$F$7<=Z61,(Z61-Météo!$F$7)/24,"")) ->  | AH61: =IF(Z61="","",IF(Météo!$F$6>Z61,(Météo!$F$6-Z61)/24,"")) -> 3.255 | AI61: =IF(Z61="","",IF(Météo!$F$7<=Z61,(Z61-Météo!$F$7)/24,"")) ->  | BD61: 1 | EP61: 69
A62: 2014-01-02 20:00 | B62: 2014 | C62: 1 | D62: 2 | E62: 20:00:00 | G62: -22.7 | I62: -26.5 | K62: 71 | M62: 3 | O62: 21 | S62: 102.03 | W62: -34 | Y62: ND | Z62: -8.86 | AB62: =IF(Z62="","",IF(Météo!$F$6>Z62,(Météo!$F$6-Z62)/24,"")) -> 3.2025 | AC62: =IF(Z62="","",IF(Météo!$F$7<=Z62,(Z62-Météo!$F$7)/24,"")) ->  | AH62: =IF(Z62="","",IF(Météo!$F$6>Z62,(Météo!$F$6-Z62)/24,"")) -> 3.2025 | AI62: =IF(Z62="","",IF(Météo!$F$7<=Z62,(Z62-Météo!$F$7)/24,"")) ->  | BG62: 1 | ES62: 71
A63: 2014-01-02 21:00 | B63: 2014 | C63: 1 | D63: 2 | E63: 21:00:00 | G63: -22.4 | I63: -26.1 | K63: 72 | M63: 3 | O63: 21 | S63: 101.98 | W63: -34 | Y63: ND | Z63: -8.32 | AB63: =IF(Z63="","",IF(Météo!$F$6>Z63,(Météo!$F$6-Z63)/24,"")) -> 3.18 | AC63: =IF(Z63="","",IF(Météo!$F$7<=Z63,(Z63-Météo!$F$7)/24,"")) ->  | AH63: =IF(Z63="","",IF(Météo!$F$6>Z63,(Météo!$F$6-Z63)/24,"")) -> 3.18 | AI63: =IF(Z63="","",IF(Météo!$F$7<=Z63,(Z63-Météo!$F$7)/24,"")) ->  | BG63: 1 | ES63: 72
A64: 2014-01-02 22:00 | B64: 2014 | C64: 1 | D64: 2 | E64: 22:00:00 | G64: -22.7 | I64: -26.7 | K64: 70 | M64: 3 | O64: 27 | S64: 101.89 | W64: -36 | Y64: ND | Z64: -8.86 | AB64: =IF(Z64="","",IF(Météo!$F$6>Z64,(Météo!$F$6-Z64)/24,"")) -> 3.2025 | AC64: =IF(Z64="","",IF(Météo!$F$7<=Z64,(Z64-Météo!$F$7)/24,"")) ->  | AH64: =IF(Z64="","",IF(Météo!$F$6>Z64,(Météo!$F$6-Z64)/24,"")) -> 3.2025 | AI64: =IF(Z64="","",IF(Météo!$F$7<=Z64,(Z64-Météo!$F$7)/24,"")) ->  | BG64: 1 | ES64: 70
A65: 2014-01-02 23:00 | B65: 2014 | C65: 1 | D65: 2 | E65: 23:00:00 | G65: -22.8 | I65: -27 | K65: 68 | M65: 3 | O65: 24 | S65: 101.86 | W65: -35 | Y65: ND | Z65: -9.04 | AB65: =IF(Z65="","",IF(Météo!$F$6>Z65,(Météo!$F$6-Z65)/24,"")) -> 3.21 | AC65: =IF(Z65="","",IF(Météo!$F$7<=Z65,(Z65-Météo!$F$7)/24,"")) ->  | AH65: =IF(Z65="","",IF(Météo!$F$6>Z65,(Météo!$F$6-Z65)/24,"")) -> 3.21 | AI65: =IF(Z65="","",IF(Météo!$F$7<=Z65,(Z65-Météo!$F$7)/24,"")) ->  | BG65: 1 | ES65: 68
A66: 2014-01-03 00:00 | B66: 2014 | C66: 1 | D66: 3 | E66: 00:00:00 | G66: -22.7 | I66: -26.6 | K66: 71 | M66: 3 | O66: 27 | S66: 101.79 | W66: -36 | Y66: ND | Z66: -8.86 | AB66: =IF(Z66="","",IF(Météo!$F$6>Z66,(Météo!$F$6-Z66)/24,"")) -> 3.2025 | AC66: =IF(Z66="","",IF(Météo!$F$7<=Z66,(Z66-Météo!$F$7)/24,"")) ->  | AD66: =IF(Z66="","",IF(Météo!$F$6>Z66,(Météo!$F$6-Z66)/24,"")) -> 3.2025 | AE66: =IF(Z66="","",IF(Météo!$F$7<=Z66,(Z66-Météo!$F$7)/24,"")) ->  | AJ66: =IF(AND($Z66>AJ$14,$Z66<=AJ$15),1,"") ->  | AM66: =IF(AND($Z66>AM$14,$Z66<=AM$15),1,"") ->  | AP66: =IF(AND($Z66>AP$14,$Z66<=AP$15),1,"") ->  | AS66: =IF(AND($Z66>AS$14,$Z66<=AS$15),1,"") ->  | AV66: =IF(AND($Z66>AV$14,$Z66<=AV$15),1,"") ->  | AY66: =IF(AND($Z66>AY$14,$Z66<=AY$15),1,"") ->  | BB66: =IF(AND($Z66>BB$14,$Z66<=BB$15),1,"") ->  | BE66: =IF(AND($Z66>BE$14,$Z66<=BE$15),1,"") -> 1 | BH66: =IF(AND($Z66>BH$14,$Z66<=BH$15),1,"") ->  | BK66: =IF(AND($Z66>BK$14,$Z66<=BK$15),1,"") ->  | BN66: =IF(AND($Z66>BN$14,$Z66<=BN$15),1,"") ->  | BQ66: =IF(AND($Z66>BQ$14,$Z66<=BQ$15),1,"") ->  | BT66: =IF(AND($Z66>BT$14,$Z66<=BT$15),1,"") ->  | BW66: =IF(AND($Z66>BW$14,$Z66<=BW$15),1,"") ->  | BZ66: =IF(AND($Z66>BZ$14,$Z66<=BZ$15),1,"") ->  | CC66: =IF(AND($Z66>CC$14,$Z66<=CC$15),1,"") ->  | CF66: =IF(AND($Z66>CF$14,$Z66<=CF$15),1,"") ->  | CI66: =IF(AND($Z66>CI$14,$Z66<=CI$15),1,"") ->  | CL66: =IF(AND($Z66>CL$14,$Z66<=CL$15),1,"") ->  | CO66: =IF(AND($Z66>CO$14,$Z66<=CO$15),1,"") ->  | CR66: =IF(AND($Z66>CR$14,$Z66<=CR$15),1,"") ->  | CU66: =IF(AND($Z66>CU$14,$Z66<=CU$15),1,"") ->  | CX66: =IF(AND($Z66>CX$14,$Z66<=CX$15),1,"") ->  | DA66: =IF(AND($Z66>DA$14,$Z66<=DA$15),1,"") ->  | DD66: =IF(AND($Z66>DD$14,$Z66<=DD$15),1,"") ->  | DG66: =IF(AND($Z66>DG$14,$Z66<=DG$15),1,"") ->  | DJ66: =IF(AND($Z66>DJ$14,$Z66<=DJ$15),1,"") ->  | DM66: =IF(AND($Z66>DM$14,$Z66<=DM$15),1,"") ->  | DP66: =IF(AND($Z66>DP$14,$Z66<=DP$15),1,"") ->  | DV66: =IF(AND($Z66>DV$14,$Z66<=DV$15),$K66,"") ->  | DY66: =IF(AND($Z66>DY$14,$Z66<=DY$15),$K66,"") ->  | EB66: =IF(AND($Z66>EB$14,$Z66<=EB$15),$K66,"") ->  | EE66: =IF(AND($Z66>EE$14,$Z66<=EE$15),$K66,"") ->  | EH66: =IF(AND($Z66>EH$14,$Z66<=EH$15),$K66,"") ->  | EK66: =IF(AND($Z66>EK$14,$Z66<=EK$15),$K66,"") ->  | EN66: =IF(AND($Z66>EN$14,$Z66<=EN$15),$K66,"") ->  | EQ66: =IF(AND($Z66>EQ$14,$Z66<=EQ$15),$K66,"") -> 71 | ET66: =IF(AND($Z66>ET$14,$Z66<=ET$15),$K66,"") ->  | EW66: =IF(AND($Z66>EW$14,$Z66<=EW$15),$K66,"") ->  | EZ66: =IF(AND($Z66>EZ$14,$Z66<=EZ$15),$K66,"") ->  | FC66: =IF(AND($Z66>FC$14,$Z66<=FC$15),$K66,"") ->  | FF66: =IF(AND($Z66>FF$14,$Z66<=FF$15),$K66,"") ->  | FI66: =IF(AND($Z66>FI$14,$Z66<=FI$15),$K66,"") ->  | FL66: =IF(AND($Z66>FL$14,$Z66<=FL$15),$K66,"") ->  | FO66: =IF(AND($Z66>FO$14,$Z66<=FO$15),$K66,"") ->  | FR66: =IF(AND($Z66>FR$14,$Z66<=FR$15),$K66,"") ->  | FU66: =IF(AND($Z66>FU$14,$Z66<=FU$15),$K66,"") ->  | FX66: =IF(AND($Z66>FX$14,$Z66<=FX$15),$K66,"") ->  | GA66: =IF(AND($Z66>GA$14,$Z66<=GA$15),$K66,"") ->  | GD66: =IF(AND($Z66>GD$14,$Z66<=GD$15),$K66,"") ->  | GG66: =IF(AND($Z66>GG$14,$Z66<=GG$15),$K66,"") ->  | GJ66: =IF(AND($Z66>GJ$14,$Z66<=GJ$15),$K66,"") ->  | GM66: =IF(AND($Z66>GM$14,$Z66<=GM$15),$K66,"") ->  | GP66: =IF(AND($Z66>GP$14,$Z66<=GP$15),$K66,"") ->  | GS66: =IF(AND($Z66>GS$14,$Z66<=GS$15),$K66,"") ->  | GV66: =IF(AND($Z66>GV$14,$Z66<=GV$15),$K66,"") ->  | GY66: =IF(AND($Z66>GY$14,$Z66<=GY$15),$K66,"") ->  | HB66: =IF(AND($Z66>HB$14,$Z66<=HB$15),$K66,"") -> 
A67: 2014-01-03 01:00 | B67: 2014 | C67: 1 | D67: 3 | E67: 01:00:00 | G67: -22.6 | I67: -26.4 | K67: 71 | M67: 3 | O67: 28 | S67: 101.75 | W67: -36 | Y67: ND | Z67: -8.68 | AB67: =IF(Z67="","",IF(Météo!$F$6>Z67,(Météo!$F$6-Z67)/24,"")) -> 3.195 | AC67: =IF(Z67="","",IF(Météo!$F$7<=Z67,(Z67-Météo!$F$7)/24,"")) ->  | AD67: =IF(Z67="","",IF(Météo!$F$6>Z67,(Météo!$F$6-Z67)/24,"")) -> 3.195 | AE67: =IF(Z67="","",IF(Météo!$F$7<=Z67,(Z67-Météo!$F$7)/24,"")) ->  | BE67: 1 | EQ67: 71
A68: 2014-01-03 02:00 | B68: 2014 | C68: 1 | D68: 3 | E68: 02:00:00 | G68: -22.9 | I68: -27.1 | K68: 68 | M68: 2 | O68: 27 | S68: 101.74 | W68: -36 | Y68: ND | Z68: -9.22 | AB68: =IF(Z68="","",IF(Météo!$F$6>Z68,(Météo!$F$6-Z68)/24,"")) -> 3.2175 | AC68: =IF(Z68="","",IF(Météo!$F$7<=Z68,(Z68-Météo!$F$7)/24,"")) ->  | AD68: =IF(Z68="","",IF(Météo!$F$6>Z68,(Météo!$F$6-Z68)/24,"")) -> 3.2175 | AE68: =IF(Z68="","",IF(Météo!$F$7<=Z68,(Z68-Météo!$F$7)/24,"")) ->  | BE68: 1 | EQ68: 68
A69: 2014-01-03 03:00 | B69: 2014 | C69: 1 | D69: 3 | E69: 03:00:00 | G69: -23 | I69: -27.6 | K69: 66 | M69: 2 | O69: 26 | S69: 101.73 | W69: -36 | Y69: ND | Z69: -9.4 | AB69: =IF(Z69="","",IF(Météo!$F$6>Z69,(Météo!$F$6-Z69)/24,"")) -> 3.225 | AC69: =IF(Z69="","",IF(Météo!$F$7<=Z69,(Z69-Météo!$F$7)/24,"")) ->  | AD69: =IF(Z69="","",IF(Météo!$F$6>Z69,(Météo!$F$6-Z69)/24,"")) -> 3.225 | AE69: =IF(Z69="","",IF(Météo!$F$7<=Z69,(Z69-Météo!$F$7)/24,"")) ->  | BE69: 1 | EQ69: 66
A70: 2014-01-03 04:00 | B70: 2014 | C70: 1 | D70: 3 | E70: 04:00:00 | G70: -22.9 | I70: -27.7 | K70: 65 | M70: 3 | O70: 20 | S70: 101.68 | W70: -34 | Y70: ND | Z70: -9.22 | AB70: =IF(Z70="","",IF(Météo!$F$6>Z70,(Météo!$F$6-Z70)/24,"")) -> 3.2175 | AC70: =IF(Z70="","",IF(Météo!$F$7<=Z70,(Z70-Météo!$F$7)/24,"")) ->  | AD70: =IF(Z70="","",IF(Météo!$F$6>Z70,(Météo!$F$6-Z70)/24,"")) -> 3.2175 | AE70: =IF(Z70="","",IF(Météo!$F$7<=Z70,(Z70-Météo!$F$7)/24,"")) ->  | BE70: 1 | EQ70: 65
A71: 2014-01-03 05:00 | B71: 2014 | C71: 1 | D71: 3 | E71: 05:00:00 | G71: -22.9 | I71: -27.8 | K71: 64 | M71: 3 | O71: 24 | S71: 101.75 | W71: -35 | Y71: ND | Z71: -9.22 | AB71: =IF(Z71="","",IF(Météo!$F$6>Z71,(Météo!$F$6-Z71)/24,"")) -> 3.2175 | AC71: =IF(Z71="","",IF(Météo!$F$7<=Z71,(Z71-Météo!$F$7)/24,"")) ->  | AD71: =IF(Z71="","",IF(Météo!$F$6>Z71,(Météo!$F$6-Z71)/24,"")) -> 3.2175 | AE71: =IF(Z71="","",IF(Météo!$F$7<=Z71,(Z71-Météo!$F$7)/24,"")) ->  | BE71: 1 | EQ71: 64
A72: 2014-01-03 06:00 | B72: 2014 | C72: 1 | D72: 3 | E72: 06:00:00 | G72: -23 | I72: -28.3 | K72: 62 | M72: 2 | O72: 20 | S72: 101.84 | W72: -34 | Y72: ND | Z72: -9.4 | AB72: =IF(Z72="","",IF(Météo!$F$6>Z72,(Météo!$F$6-Z72)/24,"")) -> 3.225 | AC72: =IF(Z72="","",IF(Météo!$F$7<=Z72,(Z72-Météo!$F$7)/24,"")) ->  | AD72: =IF(Z72="","",IF(Météo!$F$6>Z72,(Météo!$F$6-Z72)/24,"")) -> 3.225 | AE72: =IF(Z72="","",IF(Météo!$F$7<=Z72,(Z72-Météo!$F$7)/24,"")) ->  | BE72: 1 | EQ72: 62
A73: 2014-01-03 07:00 | B73: 2014 | C73: 1 | D73: 3 | E73: 07:00:00 | G73: -22.8 | I73: -28.4 | K73: 60 | M73: 2 | O73: 21 | S73: 101.92 | W73: -34 | Y73: ND | Z73: -9.04 | AB73: =IF(Z73="","",IF(Météo!$F$6>Z73,(Météo!$F$6-Z73)/24,"")) -> 3.21 | AC73: =IF(Z73="","",IF(Météo!$F$7<=Z73,(Z73-Météo!$F$7)/24,"")) ->  | AD73: =IF(Z73="","",IF(Météo!$F$6>Z73,(Météo!$F$6-Z73)/24,"")) -> 3.21 | AE73: =IF(Z73="","",IF(Météo!$F$7<=Z73,(Z73-Météo!$F$7)/24,"")) ->  | BE73: 1 | EQ73: 60
A74: 2014-01-03 08:00 | B74: 2014 | C74: 1 | D74: 3 | E74: 08:00:00 | G74: -23.3 | I74: -29.3 | K74: 58 | M74: 1 | O74: 16 | S74: 102 | W74: -33 | Y74: ND | Z74: -9.94 | AB74: =IF(Z74="","",IF(Météo!$F$6>Z74,(Météo!$F$6-Z74)/24,"")) -> 3.2475 | AC74: =IF(Z74="","",IF(Météo!$F$7<=Z74,(Z74-Météo!$F$7)/24,"")) ->  | AF74: =IF(Z74="","",IF(Météo!$F$6>Z74,(Météo!$F$6-Z74)/24,"")) -> 3.2475 | AG74: =IF(Z74="","",IF(Météo!$F$7<=Z74,(Z74-Météo!$F$7)/24,"")) ->  | AK74: =IF(AND($Z74>AJ$14,$Z74<=AJ$15),1,"") ->  | AN74: =IF(AND($Z74>AM$14,$Z74<=AM$15),1,"") ->  | AQ74: =IF(AND($Z74>AP$14,$Z74<=AP$15),1,"") ->  | AT74: =IF(AND($Z74>AS$14,$Z74<=AS$15),1,"") ->  | AW74: =IF(AND($Z74>AV$14,$Z74<=AV$15),1,"") ->  | AZ74: =IF(AND($Z74>AY$14,$Z74<=AY$15),1,"") ->  | BC74: =IF(AND($Z74>BB$14,$Z74<=BB$15),1,"") ->  | BF74: =IF(AND($Z74>BE$14,$Z74<=BE$15),1,"") -> 1 | BI74: =IF(AND($Z74>BH$14,$Z74<=BH$15),1,"") ->  | BL74: =IF(AND($Z74>BK$14,$Z74<=BK$15),1,"") ->  | BO74: =IF(AND($Z74>BN$14,$Z74<=BN$15),1,"") ->  | BR74: =IF(AND($Z74>BQ$14,$Z74<=BQ$15),1,"") ->  | BU74: =IF(AND($Z74>BT$14,$Z74<=BT$15),1,"") ->  | BX74: =IF(AND($Z74>BW$14,$Z74<=BW$15),1,"") ->  | CA74: =IF(AND($Z74>BZ$14,$Z74<=BZ$15),1,"") ->  | CD74: =IF(AND($Z74>CC$14,$Z74<=CC$15),1,"") ->  | CG74: =IF(AND($Z74>CF$14,$Z74<=CF$15),1,"") ->  | CJ74: =IF(AND($Z74>CI$14,$Z74<=CI$15),1,"") ->  | CM74: =IF(AND($Z74>CL$14,$Z74<=CL$15),1,"") ->  | CP74: =IF(AND($Z74>CO$14,$Z74<=CO$15),1,"") ->  | CS74: =IF(AND($Z74>CR$14,$Z74<=CR$15),1,"") ->  | CV74: =IF(AND($Z74>CU$14,$Z74<=CU$15),1,"") ->  | CY74: =IF(AND($Z74>CX$14,$Z74<=CX$15),1,"") ->  | DB74: =IF(AND($Z74>DA$14,$Z74<=DA$15),1,"") ->  | DE74: =IF(AND($Z74>DD$14,$Z74<=DD$15),1,"") ->  | DH74: =IF(AND($Z74>DG$14,$Z74<=DG$15),1,"") ->  | DK74: =IF(AND($Z74>DJ$14,$Z74<=DJ$15),1,"") ->  | DN74: =IF(AND($Z74>DM$14,$Z74<=DM$15),1,"") ->  | DQ74: =IF(AND($Z74>DP$14,$Z74<=DP$15),1,"") ->  | DW74: =IF(AND($Z74>DV$14,$Z74<=DV$15),$K74,"") ->  | DZ74: =IF(AND($Z74>DY$14,$Z74<=DY$15),$K74,"") ->  | EC74: =IF(AND($Z74>EB$14,$Z74<=EB$15),$K74,"") ->  | EF74: =IF(AND($Z74>EE$14,$Z74<=EE$15),$K74,"") ->  | EI74: =IF(AND($Z74>EH$14,$Z74<=EH$15),$K74,"") ->  | EL74: =IF(AND($Z74>EK$14,$Z74<=EK$15),$K74,"") ->  | EO74: =IF(AND($Z74>EN$14,$Z74<=EN$15),$K74,"") ->  | ER74: =IF(AND($Z74>EQ$14,$Z74<=EQ$15),$K74,"") -> 58 | EU74: =IF(AND($Z74>ET$14,$Z74<=ET$15),$K74,"") ->  | EX74: =IF(AND($Z74>EW$14,$Z74<=EW$15),$K74,"") ->  | FA74: =IF(AND($Z74>EZ$14,$Z74<=EZ$15),$K74,"") ->  | FD74: =IF(AND($Z74>FC$14,$Z74<=FC$15),$K74,"") ->  | FG74: =IF(AND($Z74>FF$14,$Z74<=FF$15),$K74,"") ->  | FJ74: =IF(AND($Z74>FI$14,$Z74<=FI$15),$K74,"") ->  | FM74: =IF(AND($Z74>FL$14,$Z74<=FL$15),$K74,"") ->  | FP74: =IF(AND($Z74>FO$14,$Z74<=FO$15),$K74,"") ->  | FS74: =IF(AND($Z74>FR$14,$Z74<=FR$15),$K74,"") ->  | FV74: =IF(AND($Z74>FU$14,$Z74<=FU$15),$K74,"") ->  | FY74: =IF(AND($Z74>FX$14,$Z74<=FX$15),$K74,"") ->  | GB74: =IF(AND($Z74>GA$14,$Z74<=GA$15),$K74,"") ->  | GE74: =IF(AND($Z74>GD$14,$Z74<=GD$15),$K74,"") ->  | GH74: =IF(AND($Z74>GG$14,$Z74<=GG$15),$K74,"") ->  | GK74: =IF(AND($Z74>GJ$14,$Z74<=GJ$15),$K74,"") ->  | GN74: =IF(AND($Z74>GM$14,$Z74<=GM$15),$K74,"") ->  | GQ74: =IF(AND($Z74>GP$14,$Z74<=GP$15),$K74,"") ->  | GT74: =IF(AND($Z74>GS$14,$Z74<=GS$15),$K74,"") ->  | GW74: =IF(AND($Z74>GV$14,$Z74<=GV$15),$K74,"") ->  | GZ74: =IF(AND($Z74>GY$14,$Z74<=GY$15),$K74,"") ->  | HC74: =IF(AND($Z74>HB$14,$Z74<=HB$15),$K74,"") -> 
A75: 2014-01-03 09:00 | B75: 2014 | C75: 1 | D75: 3 | E75: 09:00:00 | G75: -22.8 | I75: -29.2 | K75: 56 | M75: 1 | O75: 10 | S75: 102.09 | W75: -31 | Y75: ND | Z75: -9.04 | AB75: =IF(Z75="","",IF(Météo!$F$6>Z75,(Météo!$F$6-Z75)/24,"")) -> 3.21 | AC75: =IF(Z75="","",IF(Météo!$F$7<=Z75,(Z75-Météo!$F$7)/24,"")) ->  | AF75: =IF(Z75="","",IF(Météo!$F$6>Z75,(Météo!$F$6-Z75)/24,"")) -> 3.21 | AG75: =IF(Z75="","",IF(Météo!$F$7<=Z75,(Z75-Météo!$F$7)/24,"")) ->  | BF75: 1 | ER75: 56
A76: 2014-01-03 10:00 | B76: 2014 | C76: 1 | D76: 3 | E76: 10:00:00 | G76: -22.5 | I76: -29.1 | K76: 55 | M76: 36 | O76: 8 | S76: 102.15 | W76: -29 | Y76: ND | Z76: -8.5 | AB76: =IF(Z76="","",IF(Météo!$F$6>Z76,(Météo!$F$6-Z76)/24,"")) -> 3.1875 | AC76: =IF(Z76="","",IF(Météo!$F$7<=Z76,(Z76-Météo!$F$7)/24,"")) ->  | AF76: =IF(Z76="","",IF(Météo!$F$6>Z76,(Météo!$F$6-Z76)/24,"")) -> 3.1875 | AG76: =IF(Z76="","",IF(Météo!$F$7<=Z76,(Z76-Météo!$F$7)/24,"")) ->  | BF76: 1 | ER76: 55
A77: 2014-01-03 11:00 | B77: 2014 | C77: 1 | D77: 3 | E77: 11:00:00 | G77: -21.9 | I77: -29.4 | K77: 51 | M77: 33 | O77: 4 | S77: 102.18 | W77: -26 | Y77: ND | Z77: -7.42 | AB77: =IF(Z77="","",IF(Météo!$F$6>Z77,(Météo!$F$6-Z77)/24,"")) -> 3.1425 | AC77: =IF(Z77="","",IF(Météo!$F$7<=Z77,(Z77-Météo!$F$7)/24,"")) ->  | AF77: =IF(Z77="","",IF(Météo!$F$6>Z77,(Météo!$F$6-Z77)/24,"")) -> 3.1425 | AG77: =IF(Z77="","",IF(Météo!$F$7<=Z77,(Z77-Météo!$F$7)/24,"")) ->  | BF77: 1 | ER77: 51
A78: 2014-01-03 12:00 | B78: 2014 | C78: 1 | D78: 3 | E78: 12:00:00 | G78: -19.5 | I78: -28.3 | K78: 46 | M78: 31 | O78: 1 | S78: 102.15 | W78: -20 | Y78: ND | Z78: -3.1 | AB78: =IF(Z78="","",IF(Météo!$F$6>Z78,(Météo!$F$6-Z78)/24,"")) -> 2.9625 | AC78: =IF(Z78="","",IF(Météo!$F$7<=Z78,(Z78-Météo!$F$7)/24,"")) ->  | AF78: =IF(Z78="","",IF(Météo!$F$6>Z78,(Météo!$F$6-Z78)/24,"")) -> 2.9625 | AG78: =IF(Z78="","",IF(Météo!$F$7<=Z78,(Z78-Météo!$F$7)/24,"")) ->  | BI78: 1 | EU78: 46
A79: 2014-01-03 13:00 | B79: 2014 | C79: 1 | D79: 3 | E79: 13:00:00 | G79: -19.9 | I79: -27.7 | K79: 50 | M79: 27 | O79: 12 | S79: 102.18 | W79: -28 | Y79: ND | Z79: -3.82 | AB79: =IF(Z79="","",IF(Météo!$F$6>Z79,(Météo!$F$6-Z79)/24,"")) -> 2.9925 | AC79: =IF(Z79="","",IF(Météo!$F$7<=Z79,(Z79-Météo!$F$7)/24,"")) ->  | AF79: =IF(Z79="","",IF(Météo!$F$6>Z79,(Météo!$F$6-Z79)/24,"")) -> 2.9925 | AG79: =IF(Z79="","",IF(Météo!$F$7<=Z79,(Z79-Météo!$F$7)/24,"")) ->  | BI79: 1 | EU79: 50
A80: 2014-01-03 14:00 | B80: 2014 | C80: 1 | D80: 3 | E80: 14:00:00 | G80: -19.2 | I80: -27.2 | K80: 49 | M80: 25 | O80: 14 | S80: 102.24 | W80: -28 | Y80: ND | Z80: -2.56 | AB80: =IF(Z80="","",IF(Météo!$F$6>Z80,(Météo!$F$6-Z80)/24,"")) -> 2.94 | AC80: =IF(Z80="","",IF(Météo!$F$7<=Z80,(Z80-Météo!$F$7)/24,"")) ->  | AF80: =IF(Z80="","",IF(Météo!$F$6>Z80,(Météo!$F$6-Z80)/24,"")) -> 2.94 | AG80: =IF(Z80="","",IF(Météo!$F$7<=Z80,(Z80-Météo!$F$7)/24,"")) ->  | BI80: 1 | EU80: 49
A81: 2014-01-03 15:00 | B81: 2014 | C81: 1 | D81: 3 | E81: 15:00:00 | G81: -19.8 | I81: -28.2 | K81: 47 | M81: 26 | O81: 18 | S81: 102.29 | W81: -30 | Y81: ND | Z81: -3.64 | AB81: =IF(Z81="","",IF(Météo!$F$6>Z81,(Météo!$F$6-Z81)/24,"")) -> 2.985 | AC81: =IF(Z81="","",IF(Météo!$F$7<=Z81,(Z81-Météo!$F$7)/24,"")) ->  | AF81: =IF(Z81="","",IF(Météo!$F$6>Z81,(Météo!$F$6-Z81)/24,"")) -> 2.985 | AG81: =IF(Z81="","",IF(Météo!$F$7<=Z81,(Z81-Météo!$F$7)/24,"")) ->  | BI81: 1 | EU81: 47
A82: 2014-01-03 16:00 | B82: 2014 | C82: 1 | D82: 3 | E82: 16:00:00 | G82: -20.4 | I82: -28.1 | K82: 50 | M82: 26 | O82: 19 | S82: 102.36 | W82: -31 | Y82: ND | Z82: -4.72 | AB82: =IF(Z82="","",IF(Météo!$F$6>Z82,(Météo!$F$6-Z82)/24,"")) -> 3.03 | AC82: =IF(Z82="","",IF(Météo!$F$7<=Z82,(Z82-Météo!$F$7)/24,"")) ->  | AH82: =IF(Z82="","",IF(Météo!$F$6>Z82,(Météo!$F$6-Z82)/24,"")) -> 3.03 | AI82: =IF(Z82="","",IF(Météo!$F$7<=Z82,(Z82-Météo!$F$7)/24,"")) ->  | AL82: =IF(AND($Z82>AJ$14,$Z82<=AJ$15),1,"") ->  | AO82: =IF(AND($Z82>AM$14,$Z82<=AM$15),1,"") ->  | AR82: =IF(AND($Z82>AP$14,$Z82<=AP$15),1,"") ->  | AU82: =IF(AND($Z82>AS$14,$Z82<=AS$15),1,"") ->  | AX82: =IF(AND($Z82>AV$14,$Z82<=AV$15),1,"") ->  | BA82: =IF(AND($Z82>AY$14,$Z82<=AY$15),1,"") ->  | BD82: =IF(AND($Z82>BB$14,$Z82<=BB$15),1,"") ->  | BG82: =IF(AND($Z82>BE$14,$Z82<=BE$15),1,"") ->  | BJ82: =IF(AND($Z82>BH$14,$Z82<=BH$15),1,"") -> 1 | BM82: =IF(AND($Z82>BK$14,$Z82<=BK$15),1,"") ->  | BP82: =IF(AND($Z82>BN$14,$Z82<=BN$15),1,"") ->  | BS82: =IF(AND($Z82>BQ$14,$Z82<=BQ$15),1,"") ->  | BV82: =IF(AND($Z82>BT$14,$Z82<=BT$15),1,"") ->  | BY82: =IF(AND($Z82>BW$14,$Z82<=BW$15),1,"") ->  | CB82: =IF(AND($Z82>BZ$14,$Z82<=BZ$15),1,"") ->  | CE82: =IF(AND($Z82>CC$14,$Z82<=CC$15),1,"") ->  | CH82: =IF(AND($Z82>CF$14,$Z82<=CF$15),1,"") ->  | CK82: =IF(AND($Z82>CI$14,$Z82<=CI$15),1,"") ->  | CN82: =IF(AND($Z82>CL$14,$Z82<=CL$15),1,"") ->  | CQ82: =IF(AND($Z82>CO$14,$Z82<=CO$15),1,"") ->  | CT82: =IF(AND($Z82>CR$14,$Z82<=CR$15),1,"") ->  | CW82: =IF(AND($Z82>CU$14,$Z82<=CU$15),1,"") ->  | CZ82: =IF(AND($Z82>CX$14,$Z82<=CX$15),1,"") ->  | DC82: =IF(AND($Z82>DA$14,$Z82<=DA$15),1,"") ->  | DF82: =IF(AND($Z82>DD$14,$Z82<=DD$15),1,"") ->  | DI82: =IF(AND($Z82>DG$14,$Z82<=DG$15),1,"") ->  | DL82: =IF(AND($Z82>DJ$14,$Z82<=DJ$15),1,"") ->  | DO82: =IF(AND($Z82>DM$14,$Z82<=DM$15),1,"") ->  | DR82: =IF(AND($Z82>DP$14,$Z82<=DP$15),1,"") ->  | DX82: =IF(AND($Z82>DV$14,$Z82<=DV$15),$K82,"") ->  | EA82: =IF(AND($Z82>DY$14,$Z82<=DY$15),$K82,"") ->  | ED82: =IF(AND($Z82>EB$14,$Z82<=EB$15),$K82,"") ->  | EG82: =IF(AND($Z82>EE$14,$Z82<=EE$15),$K82,"") ->  | EJ82: =IF(AND($Z82>EH$14,$Z82<=EH$15),$K82,"") ->  | EM82: =IF(AND($Z82>EK$14,$Z82<=EK$15),$K82,"") ->  | EP82: =IF(AND($Z82>EN$14,$Z82<=EN$15),$K82,"") ->  | ES82: =IF(AND($Z82>EQ$14,$Z82<=EQ$15),$K82,"") ->  | EV82: =IF(AND($Z82>ET$14,$Z82<=ET$15),$K82,"") -> 50 | EY82: =IF(AND($Z82>EW$14,$Z82<=EW$15),$K82,"") ->  | FB82: =IF(AND($Z82>EZ$14,$Z82<=EZ$15),$K82,"") ->  | FE82: =IF(AND($Z82>FC$14,$Z82<=FC$15),$K82,"") ->  | FH82: =IF(AND($Z82>FF$14,$Z82<=FF$15),$K82,"") ->  | FK82: =IF(AND($Z82>FI$14,$Z82<=FI$15),$K82,"") ->  | FN82: =IF(AND($Z82>FL$14,$Z82<=FL$15),$K82,"") ->  | FQ82: =IF(AND($Z82>FO$14,$Z82<=FO$15),$K82,"") ->  | FT82: =IF(AND($Z82>FR$14,$Z82<=FR$15),$K82,"") ->  | FW82: =IF(AND($Z82>FU$14,$Z82<=FU$15),$K82,"") ->  | FZ82: =IF(AND($Z82>FX$14,$Z82<=FX$15),$K82,"") ->  | GC82: =IF(AND($Z82>GA$14,$Z82<=GA$15),$K82,"") ->  | GF82: =IF(AND($Z82>GD$14,$Z82<=GD$15),$K82,"") ->  | GI82: =IF(AND($Z82>GG$14,$Z82<=GG$15),$K82,"") ->  | GL82: =IF(AND($Z82>GJ$14,$Z82<=GJ$15),$K82,"") ->  | GO82: =IF(AND($Z82>GM$14,$Z82<=GM$15),$K82,"") ->  | GR82: =IF(AND($Z82>GP$14,$Z82<=GP$15),$K82,"") ->  | GU82: =IF(AND($Z82>GS$14,$Z82<=GS$15),$K82,"") ->  | GX82: =IF(AND($Z82>GV$14,$Z82<=GV$15),$K82,"") ->  | HA82: =IF(AND($Z82>GY$14,$Z82<=GY$15),$K82,"") ->  | HD82: =IF(AND($Z82>HB$14,$Z82<=HB$15),$K82,"") -> 
A83: 2014-01-03 17:00 | B83: 2014 | C83: 1 | D83: 3 | E83: 17:00:00 | G83: -21.3 | I83: -28.5 | K83: 52 | M83: 25 | O83: 15 | S83: 102.47 | W83: -31 | Y83: ND | Z83: =IF(G83="","",(G83*9/5)+32) -> -6.34 | AB83: =IF(Z83="","",IF(Météo!$F$6>Z83,(Météo!$F$6-Z83)/24,"")) -> 3.0975 | AC83: =IF(Z83="","",IF(Météo!$F$7<=Z83,(Z83-Météo!$F$7)/24,"")) ->  | AH83: =IF(Z83="","",IF(Météo!$F$6>Z83,(Météo!$F$6-Z83)/24,"")) -> 3.0975 | AI83: =IF(Z83="","",IF(Météo!$F$7<=Z83,(Z83-Météo!$F$7)/24,"")) ->  | BG83: 1 | ES83: 52
A84: 2014-01-03 18:00 | B84: 2014 | C84: 1 | D84: 3 | E84: 18:00:00 | G84: -22 | I84: -28.9 | K84: 53 | M84: 24 | O84: 12 | S84: 102.57 | W84: -30 | Y84: ND | Z84: -7.6 | AB84: =IF(Z84="","",IF(Météo!$F$6>Z84,(Météo!$F$6-Z84)/24,"")) -> 3.15 | AC84: =IF(Z84="","",IF(Météo!$F$7<=Z84,(Z84-Météo!$F$7)/24,"")) ->  | AH84: =IF(Z84="","",IF(Météo!$F$6>Z84,(Météo!$F$6-Z84)/24,"")) -> 3.15 | AI84: =IF(Z84="","",IF(Météo!$F$7<=Z84,(Z84-Météo!$F$7)/24,"")) ->  | BG84: 1 | ES84: 53
A85: 2014-01-03 19:00 | B85: 2014 | C85: 1 | D85: 3 | E85: 19:00:00 | G85: -22.5 | I85: -29.6 | K85: 52 | M85: 25 | O85: 12 | S85: 102.58 | W85: -31 | Y85: ND | Z85: -8.5 | AB85: =IF(Z85="","",IF(Météo!$F$6>Z85,(Météo!$F$6-Z85)/24,"")) -> 3.1875 | AC85: =IF(Z85="","",IF(Météo!$F$7<=Z85,(Z85-Météo!$F$7)/24,"")) ->  | AH85: =IF(Z85="","",IF(Météo!$F$6>Z85,(Météo!$F$6-Z85)/24,"")) -> 3.1875 | AI85: =IF(Z85="","",IF(Météo!$F$7<=Z85,(Z85-Météo!$F$7)/24,"")) ->  | BG85: 1 | ES85: 52
A86: 2014-01-03 20:00 | B86: 2014 | C86: 1 | D86: 3 | E86: 20:00:00 | G86: -22.2 | I86: -29.4 | K86: 52 | M86: 26 | O86: 11 | S86: 102.62 | W86: -30 | Y86: ND | Z86: -7.96 | AB86: =IF(Z86="","",IF(Météo!$F$6>Z86,(Météo!$F$6-Z86)/24,"")) -> 3.165 | AC86: =IF(Z86="","",IF(Météo!$F$7<=Z86,(Z86-Météo!$F$7)/24,"")) ->  | AH86: =IF(Z86="","",IF(Météo!$F$6>Z86,(Météo!$F$6-Z86)/24,"")) -> 3.165 | AI86: =IF(Z86="","",IF(Météo!$F$7<=Z86,(Z86-Météo!$F$7)/24,"")) ->  | BG86: 1 | ES86: 52
A87: 2014-01-03 21:00 | B87: 2014 | C87: 1 | D87: 3 | E87: 21:00:00 | G87: -21.9 | I87: -29.4 | K87: 50 | M87: 25 | O87: 13 | S87: 102.63 | W87: -31 | Y87: ND | Z87: -7.42 | AB87: =IF(Z87="","",IF(Météo!$F$6>Z87,(Météo!$F$6-Z87)/24,"")) -> 3.1425 | AC87: =IF(Z87="","",IF(Météo!$F$7<=Z87,(Z87-Météo!$F$7)/24,"")) ->  | AH87: =IF(Z87="","",IF(Météo!$F$6>Z87,(Météo!$F$6-Z87)/24,"")) -> 3.1425 | AI87: =IF(Z87="","",IF(Météo!$F$7<=Z87,(Z87-Météo!$F$7)/24,"")) ->  | BG87: 1 | ES87: 50
A88: 2014-01-03 22:00 | B88: 2014 | C88: 1 | D88: 3 | E88: 22:00:00 | G88: -22.8 | I88: -29.1 | K88: 57 | M88: 26 | O88: 6 | S88: 102.55 | W88: -28 | Y88: ND | Z88: -9.04 | AB88: =IF(Z88="","",IF(Météo!$F$6>Z88,(Météo!$F$6-Z88)/24,"")) -> 3.21 | AC88: =IF(Z88="","",IF(Météo!$F$7<=Z88,(Z88-Météo!$F$7)/24,"")) ->  | AH88: =IF(Z88="","",IF(Météo!$F$6>Z88,(Météo!$F$6-Z88)/24,"")) -> 3.21 | AI88: =IF(Z88="","",IF(Météo!$F$7<=Z88,(Z88-Météo!$F$7)/24,"")) ->  | BG88: 1 | ES88: 57
A89: 2014-01-03 23:00 | B89: 2014 | C89: 1 | D89: 3 | E89: 23:00:00 | G89: -22.6 | I89: -28.1 | K89: 61 | M89: 24 | O89: 8 | S89: 102.57 | W89: -29 | Y89: ND | Z89: -8.68 | AB89: =IF(Z89="","",IF(Météo!$F$6>Z89,(Météo!$F$6-Z89)/24,"")) -> 3.195 | AC89: =IF(Z89="","",IF(Météo!$F$7<=Z89,(Z89-Météo!$F$7)/24,"")) ->  | AH89: =IF(Z89="","",IF(Météo!$F$6>Z89,(Météo!$F$6-Z89)/24,"")) -> 3.195 | AI89: =IF(Z89="","",IF(Météo!$F$7<=Z89,(Z89-Météo!$F$7)/24,"")) ->  | BG89: 1 | ES89: 61
A90: 2014-01-04 00:00 | B90: 2014 | C90: 1 | D90: 4 | E90: 00:00:00 | G90: -22.9 | I90: -27.6 | K90: 65 | M90: 18 | O90: 7 | S90: 102.53 | W90: -29 | Y90: ND | Z90: -9.22 | AB90: =IF(Z90="","",IF(Météo!$F$6>Z90,(Météo!$F$6-Z90)/24,"")) -> 3.2175 | AC90: =IF(Z90="","",IF(Météo!$F$7<=Z90,(Z90-Météo!$F$7)/24,"")) ->  | AD90: =IF(Z90="","",IF(Météo!$F$6>Z90,(Météo!$F$6-Z90)/24,"")) -> 3.2175 | AE90: =IF(Z90="","",IF(Météo!$F$7<=Z90,(Z90-Météo!$F$7)/24,"")) ->  | AJ90: =IF(AND($Z90>AJ$14,$Z90<=AJ$15),1,"") ->  | AM90: =IF(AND($Z90>AM$14,$Z90<=AM$15),1,"") ->  | AP90: =IF(AND($Z90>AP$14,$Z90<=AP$15),1,"") ->  | AS90: =IF(AND($Z90>AS$14,$Z90<=AS$15),1,"") ->  | AV90: =IF(AND($Z90>AV$14,$Z90<=AV$15),1,"") ->  | AY90: =IF(AND($Z90>AY$14,$Z90<=AY$15),1,"") ->  | BB90: =IF(AND($Z90>BB$14,$Z90<=BB$15),1,"") ->  | BE90: =IF(AND($Z90>BE$14,$Z90<=BE$15),1,"") -> 1 | BH90: =IF(AND($Z90>BH$14,$Z90<=BH$15),1,"") ->  | BK90: =IF(AND($Z90>BK$14,$Z90<=BK$15),1,"") ->  | BN90: =IF(AND($Z90>BN$14,$Z90<=BN$15),1,"") ->  | BQ90: =IF(AND($Z90>BQ$14,$Z90<=BQ$15),1,"") ->  | BT90: =IF(AND($Z90>BT$14,$Z90<=BT$15),1,"") ->  | BW90: =IF(AND($Z90>BW$14,$Z90<=BW$15),1,"") ->  | BZ90: =IF(AND($Z90>BZ$14,$Z90<=BZ$15),1,"") ->  | CC90: =IF(AND($Z90>CC$14,$Z90<=CC$15),1,"") ->  | CF90: =IF(AND($Z90>CF$14,$Z90<=CF$15),1,"") ->  | CI90: =IF(AND($Z90>CI$14,$Z90<=CI$15),1,"") ->  | CL90: =IF(AND($Z90>CL$14,$Z90<=CL$15),1,"") ->  | CO90: =IF(AND($Z90>CO$14,$Z90<=CO$15),1,"") ->  | CR90: =IF(AND($Z90>CR$14,$Z90<=CR$15),1,"") ->  | CU90: =IF(AND($Z90>CU$14,$Z90<=CU$15),1,"") ->  | CX90: =IF(AND($Z90>CX$14,$Z90<=CX$15),1,"") ->  | DA90: =IF(AND($Z90>DA$14,$Z90<=DA$15),1,"") ->  | DD90: =IF(AND($Z90>DD$14,$Z90<=DD$15),1,"") ->  | DG90: =IF(AND($Z90>DG$14,$Z90<=DG$15),1,"") ->  | DJ90: =IF(AND($Z90>DJ$14,$Z90<=DJ$15),1,"") ->  | DM90: =IF(AND($Z90>DM$14,$Z90<=DM$15),1,"") ->  | DP90: =IF(AND($Z90>DP$14,$Z90<=DP$15),1,"") ->  | DV90: =IF(AND($Z90>DV$14,$Z90<=DV$15),$K90,"") ->  | DY90: =IF(AND($Z90>DY$14,$Z90<=DY$15),$K90,"") ->  | EB90: =IF(AND($Z90>EB$14,$Z90<=EB$15),$K90,"") ->  | EE90: =IF(AND($Z90>EE$14,$Z90<=EE$15),$K90,"") ->  | EH90: =IF(AND($Z90>EH$14,$Z90<=EH$15),$K90,"") ->  | EK90: =IF(AND($Z90>EK$14,$Z90<=EK$15),$K90,"") ->  | EN90: =IF(AND($Z90>EN$14,$Z90<=EN$15),$K90,"") ->  | EQ90: =IF(AND($Z90>EQ$14,$Z90<=EQ$15),$K90,"") -> 65 | ET90: =IF(AND($Z90>ET$14,$Z90<=ET$15),$K90,"") ->  | EW90: =IF(AND($Z90>EW$14,$Z90<=EW$15),$K90,"") ->  | EZ90: =IF(AND($Z90>EZ$14,$Z90<=EZ$15),$K90,"") ->  | FC90: =IF(AND($Z90>FC$14,$Z90<=FC$15),$K90,"") ->  | FF90: =IF(AND($Z90>FF$14,$Z90<=FF$15),$K90,"") ->  | FI90: =IF(AND($Z90>FI$14,$Z90<=FI$15),$K90,"") ->  | FL90: =IF(AND($Z90>FL$14,$Z90<=FL$15),$K90,"") ->  | FO90: =IF(AND($Z90>FO$14,$Z90<=FO$15),$K90,"") ->  | FR90: =IF(AND($Z90>FR$14,$Z90<=FR$15),$K90,"") ->  | FU90: =IF(AND($Z90>FU$14,$Z90<=FU$15),$K90,"") ->  | FX90: =IF(AND($Z90>FX$14,$Z90<=FX$15),$K90,"") ->  | GA90: =IF(AND($Z90>GA$14,$Z90<=GA$15),$K90,"") ->  | GD90: =IF(AND($Z90>GD$14,$Z90<=GD$15),$K90,"") ->  | GG90: =IF(AND($Z90>GG$14,$Z90<=GG$15),$K90,"") ->  | GJ90: =IF(AND($Z90>GJ$14,$Z90<=GJ$15),$K90,"") ->  | GM90: =IF(AND($Z90>GM$14,$Z90<=GM$15),$K90,"") ->  | GP90: =IF(AND($Z90>GP$14,$Z90<=GP$15),$K90,"") ->  | GS90: =IF(AND($Z90>GS$14,$Z90<=GS$15),$K90,"") ->  | GV90: =IF(AND($Z90>GV$14,$Z90<=GV$15),$K90,"") ->  | GY90: =IF(AND($Z90>GY$14,$Z90<=GY$15),$K90,"") ->  | HB90: =IF(AND($Z90>HB$14,$Z90<=HB$15),$K90,"") -> 
A91: 2014-01-04 01:00 | B91: 2014 | C91: 1 | D91: 4 | E91: 01:00:00 | G91: -23.2 | I91: -27.2 | K91: 70 | M91: 17 | O91: 7 | S91: 102.51 | W91: -29 | Y91: ND | Z91: -9.76 | AB91: =IF(Z91="","",IF(Météo!$F$6>Z91,(Météo!$F$6-Z91)/24,"")) -> 3.24 | AC91: =IF(Z91="","",IF(Météo!$F$7<=Z91,(Z91-Météo!$F$7)/24,"")) ->  | AD91: =IF(Z91="","",IF(Météo!$F$6>Z91,(Météo!$F$6-Z91)/24,"")) -> 3.24 | AE91: =IF(Z91="","",IF(Météo!$F$7<=Z91,(Z91-Météo!$F$7)/24,"")) ->  | BE91: 1 | EQ91: 70
A92: 2014-01-04 02:00 | B92: 2014 | C92: 1 | D92: 4 | E92: 02:00:00 | G92: -22.4 | I92: -25.4 | K92: 76 | M92: 12 | O92: 9 | S92: 102.49 | W92: -30 | Y92: ND | Z92: -8.32 | AB92: =IF(Z92="","",IF(Météo!$F$6>Z92,(Météo!$F$6-Z92)/24,"")) -> 3.18 | AC92: =IF(Z92="","",IF(Météo!$F$7<=Z92,(Z92-Météo!$F$7)/24,"")) ->  | AD92: =IF(Z92="","",IF(Météo!$F$6>Z92,(Météo!$F$6-Z92)/24,"")) -> 3.18 | AE92: =IF(Z92="","",IF(Météo!$F$7<=Z92,(Z92-Météo!$F$7)/24,"")) ->  | BE92: 1 | EQ92: 76
A93: 2014-01-04 03:00 | B93: 2014 | C93: 1 | D93: 4 | E93: 03:00:00 | G93: -21.9 | I93: -24.9 | K93: 77 | M93: 11 | O93: 6 | S93: 102.43 | W93: -27 | Y93: ND | Z93: -7.42 | AB93: =IF(Z93="","",IF(Météo!$F$6>Z93,(Météo!$F$6-Z93)/24,"")) -> 3.1425 | AC93: =IF(Z93="","",IF(Météo!$F$7<=Z93,(Z93-Météo!$F$7)/24,"")) ->  | AD93: =IF(Z93="","",IF(Météo!$F$6>Z93,(Météo!$F$6-Z93)/24,"")) -> 3.1425 | AE93: =IF(Z93="","",IF(Météo!$F$7<=Z93,(Z93-Météo!$F$7)/24,"")) ->  | BE93: 1 | EQ93: 77
A94: 2014-01-04 04:00 | B94: 2014 | C94: 1 | D94: 4 | E94: 04:00:00 | G94: -21.1 | I94: -24 | K94: 77 | M94: 11 | O94: 8 | S94: 102.42 | W94: -28 | Y94: ND | Z94: -5.98 | AB94: =IF(Z94="","",IF(Météo!$F$6>Z94,(Météo!$F$6-Z94)/24,"")) -> 3.0825 | AC94: =IF(Z94="","",IF(Météo!$F$7<=Z94,(Z94-Météo!$F$7)/24,"")) ->  | AD94: =IF(Z94="","",IF(Météo!$F$6>Z94,(Météo!$F$6-Z94)/24,"")) -> 3.0825 | AE94: =IF(Z94="","",IF(Météo!$F$7<=Z94,(Z94-Météo!$F$7)/24,"")) ->  | BE94: 1 | EQ94: 77
A95: 2014-01-04 05:00 | B95: 2014 | C95: 1 | D95: 4 | E95: 05:00:00 | G95: -21.2 | I95: -24.3 | K95: 76 | M95: 11 | O95: 8 | S95: 102.34 | W95: -28 | Y95: ND | Z95: -6.16 | AB95: =IF(Z95="","",IF(Météo!$F$6>Z95,(Météo!$F$6-Z95)/24,"")) -> 3.09 | AC95: =IF(Z95="","",IF(Météo!$F$7<=Z95,(Z95-Météo!$F$7)/24,"")) ->  | AD95: =IF(Z95="","",IF(Météo!$F$6>Z95,(Météo!$F$6-Z95)/24,"")) -> 3.09 | AE95: =IF(Z95="","",IF(Météo!$F$7<=Z95,(Z95-Météo!$F$7)/24,"")) ->  | BE95: 1 | EQ95: 76
A96: 2014-01-04 06:00 | B96: 2014 | C96: 1 | D96: 4 | E96: 06:00:00 | G96: -19.9 | I96: -23.3 | K96: 74 | M96: 11 | O96: 6 | S96: 102.29 | W96: -25 | Y96: ND | Z96: -3.82 | AB96: =IF(Z96="","",IF(Météo!$F$6>Z96,(Météo!$F$6-Z96)/24,"")) -> 2.9925 | AC96: =IF(Z96="","",IF(Météo!$F$7<=Z96,(Z96-Météo!$F$7)/24,"")) ->  | AD96: =IF(Z96="","",IF(Météo!$F$6>Z96,(Météo!$F$6-Z96)/24,"")) -> 2.9925 | AE96: =IF(Z96="","",IF(Météo!$F$7<=Z96,(Z96-Météo!$F$7)/24,"")) ->  | BH96: 1 | ET96: 74
A97: 2014-01-04 07:00 | B97: 2014 | C97: 1 | D97: 4 | E97: 07:00:00 | G97: -17.8 | I97: -21.2 | K97: 75 | M97: 13 | O97: 10 | S97: 102.25 | W97: -25 | Y97: ND | Z97: -0.04 | AB97: =IF(Z97="","",IF(Météo!$F$6>Z97,(Météo!$F$6-Z97)/24,"")) -> 2.835 | AC97: =IF(Z97="","",IF(Météo!$F$7<=Z97,(Z97-Météo!$F$7)/24,"")) ->  | AD97: =IF(Z97="","",IF(Météo!$F$6>Z97,(Météo!$F$6-Z97)/24,"")) -> 2.835 | AE97: =IF(Z97="","",IF(Météo!$F$7<=Z97,(Z97-Météo!$F$7)/24,"")) ->  | BH97: 1 | ET97: 75
A98: 2014-01-04 08:00 | B98: 2014 | C98: 1 | D98: 4 | E98: 08:00:00 | G98: -16.3 | I98: -19.8 | K98: 74 | M98: 13 | O98: 14 | S98: 102.15 | W98: -24 | Y98: ND | Z98: 2.66 | AB98: =IF(Z98="","",IF(Météo!$F$6>Z98,(Météo!$F$6-Z98)/24,"")) -> 2.7225 | AC98: =IF(Z98="","",IF(Météo!$F$7<=Z98,(Z98-Météo!$F$7)/24,"")) ->  | AF98: =IF(Z98="","",IF(Météo!$F$6>Z98,(Météo!$F$6-Z98)/24,"")) -> 2.7225 | AG98: =IF(Z98="","",IF(Météo!$F$7<=Z98,(Z98-Météo!$F$7)/24,"")) ->  | AK98: =IF(AND($Z98>AJ$14,$Z98<=AJ$15),1,"") ->  | AN98: =IF(AND($Z98>AM$14,$Z98<=AM$15),1,"") ->  | AQ98: =IF(AND($Z98>AP$14,$Z98<=AP$15),1,"") ->  | AT98: =IF(AND($Z98>AS$14,$Z98<=AS$15),1,"") ->  | AW98: =IF(AND($Z98>AV$14,$Z98<=AV$15),1,"") ->  | AZ98: =IF(AND($Z98>AY$14,$Z98<=AY$15),1,"") ->  | BC98: =IF(AND($Z98>BB$14,$Z98<=BB$15),1,"") ->  | BF98: =IF(AND($Z98>BE$14,$Z98<=BE$15),1,"") ->  | BI98: =IF(AND($Z98>BH$14,$Z98<=BH$15),1,"") ->  | BL98: =IF(AND($Z98>BK$14,$Z98<=BK$15),1,"") -> 1 | BO98: =IF(AND($Z98>BN$14,$Z98<=BN$15),1,"") ->  | BR98: =IF(AND($Z98>BQ$14,$Z98<=BQ$15),1,"") ->  | BU98: =IF(AND($Z98>BT$14,$Z98<=BT$15),1,"") ->  | BX98: =IF(AND($Z98>BW$14,$Z98<=BW$15),1,"") ->  | CA98: =IF(AND($Z98>BZ$14,$Z98<=BZ$15),1,"") ->  | CD98: =IF(AND($Z98>CC$14,$Z98<=CC$15),1,"") ->  | CG98: =IF(AND($Z98>CF$14,$Z98<=CF$15),1,"") ->  | CJ98: =IF(AND($Z98>CI$14,$Z98<=CI$15),1,"") ->  | CM98: =IF(AND($Z98>CL$14,$Z98<=CL$15),1,"") ->  | CP98: =IF(AND($Z98>CO$14,$Z98<=CO$15),1,"") ->  | CS98: =IF(AND($Z98>CR$14,$Z98<=CR$15),1,"") ->  | CV98: =IF(AND($Z98>CU$14,$Z98<=CU$15),1,"") ->  | CY98: =IF(AND($Z98>CX$14,$Z98<=CX$15),1,"") ->  | DB98: =IF(AND($Z98>DA$14,$Z98<=DA$15),1,"") ->  | DE98: =IF(AND($Z98>DD$14,$Z98<=DD$15),1,"") ->  | DH98: =IF(AND($Z98>DG$14,$Z98<=DG$15),1,"") ->  | DK98: =IF(AND($Z98>DJ$14,$Z98<=DJ$15),1,"") ->  | DN98: =IF(AND($Z98>DM$14,$Z98<=DM$15),1,"") ->  | DQ98: =IF(AND($Z98>DP$14,$Z98<=DP$15),1,"") ->  | DW98: =IF(AND($Z98>DV$14,$Z98<=DV$15),$K98,"") ->  | DZ98: =IF(AND($Z98>DY$14,$Z98<=DY$15),$K98,"") ->  | EC98: =IF(AND($Z98>EB$14,$Z98<=EB$15),$K98,"") ->  | EF98: =IF(AND($Z98>EE$14,$Z98<=EE$15),$K98,"") ->  | EI98: =IF(AND($Z98>EH$14,$Z98<=EH$15),$K98,"") ->  | EL98: =IF(AND($Z98>EK$14,$Z98<=EK$15),$K98,"") ->  | EO98: =IF(AND($Z98>EN$14,$Z98<=EN$15),$K98,"") ->  | ER98: =IF(AND($Z98>EQ$14,$Z98<=EQ$15),$K98,"") ->  | EU98: =IF(AND($Z98>ET$14,$Z98<=ET$15),$K98,"") ->  | EX98: =IF(AND($Z98>EW$14,$Z98<=EW$15),$K98,"") -> 74 | FA98: =IF(AND($Z98>EZ$14,$Z98<=EZ$15),$K98,"") ->  | FD98: =IF(AND($Z98>FC$14,$Z98<=FC$15),$K98,"") ->  | FG98: =IF(AND($Z98>FF$14,$Z98<=FF$15),$K98,"") ->  | FJ98: =IF(AND($Z98>FI$14,$Z98<=FI$15),$K98,"") ->  | FM98: =IF(AND($Z98>FL$14,$Z98<=FL$15),$K98,"") ->  | FP98: =IF(AND($Z98>FO$14,$Z98<=FO$15),$K98,"") ->  | FS98: =IF(AND($Z98>FR$14,$Z98<=FR$15),$K98,"") ->  | FV98: =IF(AND($Z98>FU$14,$Z98<=FU$15),$K98,"") ->  | FY98: =IF(AND($Z98>FX$14,$Z98<=FX$15),$K98,"") ->  | GB98: =IF(AND($Z98>GA$14,$Z98<=GA$15),$K98,"") ->  | GE98: =IF(AND($Z98>GD$14,$Z98<=GD$15),$K98,"") ->  | GH98: =IF(AND($Z98>GG$14,$Z98<=GG$15),$K98,"") ->  | GK98: =IF(AND($Z98>GJ$14,$Z98<=GJ$15),$K98,"") ->  | GN98: =IF(AND($Z98>GM$14,$Z98<=GM$15),$K98,"") ->  | GQ98: =IF(AND($Z98>GP$14,$Z98<=GP$15),$K98,"") ->  | GT98: =IF(AND($Z98>GS$14,$Z98<=GS$15),$K98,"") ->  | GW98: =IF(AND($Z98>GV$14,$Z98<=GV$15),$K98,"") ->  | GZ98: =IF(AND($Z98>GY$14,$Z98<=GY$15),$K98,"") ->  | HC98: =IF(AND($Z98>HB$14,$Z98<=HB$15),$K98,"") -> 
A99: 2014-01-04 09:00 | B99: 2014 | C99: 1 | D99: 4 | E99: 09:00:00 | G99: -15.2 | I99: -19.1 | K99: 72 | M99: 13 | O99: 21 | S99: 102.05 | W99: -25 | Y99: ND | Z99: 4.64 | AB99: =IF(Z99="","",IF(Météo!$F$6>Z99,(Météo!$F$6-Z99)/24,"")) -> 2.64 | AC99: =IF(Z99="","",IF(Météo!$F$7<=Z99,(Z99-Météo!$F$7)/24,"")) ->  | AF99: =IF(Z99="","",IF(Météo!$F$6>Z99,(Météo!$F$6-Z99)/24,"")) -> 2.64 | AG99: =IF(Z99="","",IF(Météo!$F$7<=Z99,(Z99-Météo!$F$7)/24,"")) ->  | BL99: 1 | EX99: 72
A100: 2014-01-04 10:00 | B100: 2014 | C100: 1 | D100: 4 | E100: 10:00:00 | G100: -14.2 | I100: -19 | K100: 66 | M100: 14 | O100: 19 | S100: 101.95 | W100: -23 | Y100: ND | Z100: 6.44 | AB100: =IF(Z100="","",IF(Météo!$F$6>Z100,(Météo!$F$6-Z100)/24,"")) -> 2.565 | AC100: =IF(Z100="","",IF(Météo!$F$7<=Z100,(Z100-Météo!$F$7)/24,"")) ->  | AF100: =IF(Z100="","",IF(Météo!$F$6>Z100,(Météo!$F$6-Z100)/24,"")) -> 2.565 | AG100: =IF(Z100="","",IF(Météo!$F$7<=Z100,(Z100-Météo!$F$7)/24,"")) ->  | BO100: 1 | FA100: 66
A101: 2014-01-04 11:00 | B101: 2014 | C101: 1 | D101: 4 | E101: 11:00:00 | G101: -12.9 | I101: -18.3 | K101: 64 | M101: 13 | O101: 16 | S101: 101.73 | W101: -21 | Y101: ND | Z101: 8.78 | AB101: =IF(Z101="","",IF(Météo!$F$6>Z101,(Météo!$F$6-Z101)/24,"")) -> 2.4675 | AC101: =IF(Z101="","",IF(Météo!$F$7<=Z101,(Z101-Météo!$F$7)/24,"")) ->  | AF101: =IF(Z101="","",IF(Météo!$F$6>Z101,(Météo!$F$6-Z101)/24,"")) -> 2.4675 | AG101: =IF(Z101="","",IF(Météo!$F$7<=Z101,(Z101-Météo!$F$7)/24,"")) ->  | BO101: 1 | FA101: 64
A102: 2014-01-04 12:00 | B102: 2014 | C102: 1 | D102: 4 | E102: 12:00:00 | G102: -11.5 | I102: -17.2 | K102: 63 | M102: 13 | O102: 18 | S102: 101.55 | W102: -19 | Y102: ND | Z102: 11.3 | AB102: =IF(Z102="","",IF(Météo!$F$6>Z102,(Météo!$F$6-Z102)/24,"")) -> 2.3625 | AC102: =IF(Z102="","",IF(Météo!$F$7<=Z102,(Z102-Météo!$F$7)/24,"")) ->  | AF102: =IF(Z102="","",IF(Météo!$F$6>Z102,(Météo!$F$6-Z102)/24,"")) -> 2.3625 | AG102: =IF(Z102="","",IF(Météo!$F$7<=Z102,(Z102-Météo!$F$7)/24,"")) ->  | BR102: 1 | FD102: 63
A103: 2014-01-04 13:00 | B103: 2014 | C103: 1 | D103: 4 | E103: 13:00:00 | G103: -10.8 | I103: -16.3 | K103: 64 | M103: 12 | O103: 16 | S103: 101.41 | W103: -18 | Y103: ND | Z103: 12.56 | AB103: =IF(Z103="","",IF(Météo!$F$6>Z103,(Météo!$F$6-Z103)/24,"")) -> 2.31 | AC103: =IF(Z103="","",IF(Météo!$F$7<=Z103,(Z103-Météo!$F$7)/24,"")) ->  | AF103: =IF(Z103="","",IF(Météo!$F$6>Z103,(Météo!$F$6-Z103)/24,"")) -> 2.31 | AG103: =IF(Z103="","",IF(Météo!$F$7<=Z103,(Z103-Météo!$F$7)/24,"")) ->  | BR103: 1 | FD103: 64
A104: 2014-01-04 14:00 | B104: 2014 | C104: 1 | D104: 4 | E104: 14:00:00 | G104: -9.7 | I104: -14.8 | K104: 66 | M104: 12 | O104: 13 | S104: 101.37 | W104: -16 | Y104: ND | Z104: 14.54 | AB104: =IF(Z104="","",IF(Météo!$F$6>Z104,(Météo!$F$6-Z104)/24,"")) -> 2.2275 | AC104: =IF(Z104="","",IF(Météo!$F$7<=Z104,(Z104-Météo!$F$7)/24,"")) ->  | AF104: =IF(Z104="","",IF(Météo!$F$6>Z104,(Météo!$F$6-Z104)/24,"")) -> 2.2275 | AG104: =IF(Z104="","",IF(Météo!$F$7<=Z104,(Z104-Météo!$F$7)/24,"")) ->  | BR104: 1 | FD104: 66
A105: 2014-01-04 15:00 | B105: 2014 | C105: 1 | D105: 4 | E105: 15:00:00 | G105: -9 | I105: -14 | K105: 67 | M105: 12 | O105: 14 | S105: 101.3 | W105: -15 | Y105: ND | Z105: 15.8 | AB105: =IF(Z105="","",IF(Météo!$F$6>Z105,(Météo!$F$6-Z105)/24,"")) -> 2.175 | AC105: =IF(Z105="","",IF(Météo!$F$7<=Z105,(Z105-Météo!$F$7)/24,"")) ->  | AF105: =IF(Z105="","",IF(Météo!$F$6>Z105,(Météo!$F$6-Z105)/24,"")) -> 2.175 | AG105: =IF(Z105="","",IF(Météo!$F$7<=Z105,(Z105-Météo!$F$7)/24,"")) ->  | BU105: 1 | FG105: 67
A106: 2014-01-04 16:00 | B106: 2014 | C106: 1 | D106: 4 | E106: 16:00:00 | G106: -11.8 | I106: -16 | K106: 71 | M106: 1 | O106: 12 | S106: 101.4 | W106: -18 | Y106: ND | Z106: 10.76 | AB106: =IF(Z106="","",IF(Météo!$F$6>Z106,(Météo!$F$6-Z106)/24,"")) -> 2.385 | AC106: =IF(Z106="","",IF(Météo!$F$7<=Z106,(Z106-Météo!$F$7)/24,"")) ->  | AH106: =IF(Z106="","",IF(Météo!$F$6>Z106,(Météo!$F$6-Z106)/24,"")) -> 2.385 | AI106: =IF(Z106="","",IF(Météo!$F$7<=Z106,(Z106-Météo!$F$7)/24,"")) ->  | AL106: =IF(AND($Z106>AJ$14,$Z106<=AJ$15),1,"") ->  | AO106: =IF(AND($Z106>AM$14,$Z106<=AM$15),1,"") ->  | AR106: =IF(AND($Z106>AP$14,$Z106<=AP$15),1,"") ->  | AU106: =IF(AND($Z106>AS$14,$Z106<=AS$15),1,"") ->  | AX106: =IF(AND($Z106>AV$14,$Z106<=AV$15),1,"") ->  | BA106: =IF(AND($Z106>AY$14,$Z106<=AY$15),1,"") ->  | BD106: =IF(AND($Z106>BB$14,$Z106<=BB$15),1,"") ->  | BG106: =IF(AND($Z106>BE$14,$Z106<=BE$15),1,"") ->  | BJ106: =IF(AND($Z106>BH$14,$Z106<=BH$15),1,"") ->  | BM106: =IF(AND($Z106>BK$14,$Z106<=BK$15),1,"") ->  | BP106: =IF(AND($Z106>BN$14,$Z106<=BN$15),1,"") ->  | BS106: =IF(AND($Z106>BQ$14,$Z106<=BQ$15),1,"") -> 1 | BV106: =IF(AND($Z106>BT$14,$Z106<=BT$15),1,"") ->  | BY106: =IF(AND($Z106>BW$14,$Z106<=BW$15),1,"") ->  | CB106: =IF(AND($Z106>BZ$14,$Z106<=BZ$15),1,"") ->  | CE106: =IF(AND($Z106>CC$14,$Z106<=CC$15),1,"") ->  | CH106: =IF(AND($Z106>CF$14,$Z106<=CF$15),1,"") ->  | CK106: =IF(AND($Z106>CI$14,$Z106<=CI$15),1,"") ->  | CN106: =IF(AND($Z106>CL$14,$Z106<=CL$15),1,"") ->  | CQ106: =IF(AND($Z106>CO$14,$Z106<=CO$15),1,"") ->  | CT106: =IF(AND($Z106>CR$14,$Z106<=CR$15),1,"") ->  | CW106: =IF(AND($Z106>CU$14,$Z106<=CU$15),1,"") ->  | CZ106: =IF(AND($Z106>CX$14,$Z106<=CX$15),1,"") ->  | DC106: =IF(AND($Z106>DA$14,$Z106<=DA$15),1,"") ->  | DF106: =IF(AND($Z106>DD$14,$Z106<=DD$15),1,"") ->  | DI106: =IF(AND($Z106>DG$14,$Z106<=DG$15),1,"") ->  | DL106: =IF(AND($Z106>DJ$14,$Z106<=DJ$15),1,"") ->  | DO106: =IF(AND($Z106>DM$14,$Z106<=DM$15),1,"") ->  | DR106: =IF(AND($Z106>DP$14,$Z106<=DP$15),1,"") ->  | DX106: =IF(AND($Z106>DV$14,$Z106<=DV$15),$K106,"") ->  | EA106: =IF(AND($Z106>DY$14,$Z106<=DY$15),$K106,"") ->  | ED106: =IF(AND($Z106>EB$14,$Z106<=EB$15),$K106,"") ->  | EG106: =IF(AND($Z106>EE$14,$Z106<=EE$15),$K106,"") ->  | EJ106: =IF(AND($Z106>EH$14,$Z106<=EH$15),$K106,"") ->  | EM106: =IF(AND($Z106>EK$14,$Z106<=EK$15),$K106,"") ->  | EP106: =IF(AND($Z106>EN$14,$Z106<=EN$15),$K106,"") ->  | ES106: =IF(AND($Z106>EQ$14,$Z106<=EQ$15),$K106,"") ->  | EV106: =IF(AND($Z106>ET$14,$Z106<=ET$15),$K106,"") ->  | EY106: =IF(AND($Z106>EW$14,$Z106<=EW$15),$K106,"") ->  | FB106: =IF(AND($Z106>EZ$14,$Z106<=EZ$15),$K106,"") ->  | FE106: =IF(AND($Z106>FC$14,$Z106<=FC$15),$K106,"") -> 71 | FH106: =IF(AND($Z106>FF$14,$Z106<=FF$15),$K106,"") ->  | FK106: =IF(AND($Z106>FI$14,$Z106<=FI$15),$K106,"") ->  | FN106: =IF(AND($Z106>FL$14,$Z106<=FL$15),$K106,"") ->  | FQ106: =IF(AND($Z106>FO$14,$Z106<=FO$15),$K106,"") ->  | FT106: =IF(AND($Z106>FR$14,$Z106<=FR$15),$K106,"") ->  | FW106: =IF(AND($Z106>FU$14,$Z106<=FU$15),$K106,"") ->  | FZ106: =IF(AND($Z106>FX$14,$Z106<=FX$15),$K106,"") ->  | GC106: =IF(AND($Z106>GA$14,$Z106<=GA$15),$K106,"") ->  | GF106: =IF(AND($Z106>GD$14,$Z106<=GD$15),$K106,"") ->  | GI106: =IF(AND($Z106>GG$14,$Z106<=GG$15),$K106,"") ->  | GL106: =IF(AND($Z106>GJ$14,$Z106<=GJ$15),$K106,"") ->  | GO106: =IF(AND($Z106>GM$14,$Z106<=GM$15),$K106,"") ->  | GR106: =IF(AND($Z106>GP$14,$Z106<=GP$15),$K106,"") ->  | GU106: =IF(AND($Z106>GS$14,$Z106<=GS$15),$K106,"") ->  | GX106: =IF(AND($Z106>GV$14,$Z106<=GV$15),$K106,"") ->  | HA106: =IF(AND($Z106>GY$14,$Z106<=GY$15),$K106,"") ->  | HD106: =IF(AND($Z106>HB$14,$Z106<=HB$15),$K106,"") -> 
A107: 2014-01-04 17:00 | B107: 2014 | C107: 1 | D107: 4 | E107: 17:00:00 | G107: -12.5 | I107: -16.1 | K107: 75 | M107: 1 | O107: 16 | S107: 101.36 | W107: -20 | Y107: ND | Z107: 9.5 | AB107: =IF(Z107="","",IF(Météo!$F$6>Z107,(Météo!$F$6-Z107)/24,"")) -> 2.4375 | AC107: =IF(Z107="","",IF(Météo!$F$7<=Z107,(Z107-Météo!$F$7)/24,"")) ->  | AH107: =IF(Z107="","",IF(Météo!$F$6>Z107,(Météo!$F$6-Z107)/24,"")) -> 2.4375 | AI107: =IF(Z107="","",IF(Météo!$F$7<=Z107,(Z107-Météo!$F$7)/24,"")) ->  | BP107: 1 | FB107: 75
A108: 2014-01-04 18:00 | B108: 2014 | C108: 1 | D108: 4 | E108: 18:00:00 | G108: -12.7 | I108: -15.9 | K108: 77 | M108: 1 | O108: 11 | S108: 101.36 | W108: -19 | Y108: ND | Z108: 9.14 | AB108: =IF(Z108="","",IF(Météo!$F$6>Z108,(Météo!$F$6-Z108)/24,"")) -> 2.4525 | AC108: =IF(Z108="","",IF(Météo!$F$7<=Z108,(Z108-Météo!$F$7)/24,"")) ->  | AH108: =IF(Z108="","",IF(Météo!$F$6>Z108,(Météo!$F$6-Z108)/24,"")) -> 2.4525 | AI108: =IF(Z108="","",IF(Météo!$F$7<=Z108,(Z108-Météo!$F$7)/24,"")) ->  | BP108: 1 | FB108: 77
A109: 2014-01-04 19:00 | B109: 2014 | C109: 1 | D109: 4 | E109: 19:00:00 | G109: -13.6 | I109: -17 | K109: 76 | M109: 1 | O109: 19 | S109: 101.42 | W109: -22 | Y109: ND | Z109: 7.52 | AB109: =IF(Z109="","",IF(Météo!$F$6>Z109,(Météo!$F$6-Z109)/24,"")) -> 2.52 | AC109: =IF(Z109="","",IF(Météo!$F$7<=Z109,(Z109-Météo!$F$7)/24,"")) ->  | AH109: =IF(Z109="","",IF(Météo!$F$6>Z109,(Météo!$F$6-Z109)/24,"")) -> 2.52 | AI109: =IF(Z109="","",IF(Météo!$F$7<=Z109,(Z109-Météo!$F$7)/24,"")) ->  | BP109: 1 | FB109: 76
A110: 2014-01-04 20:00 | B110: 2014 | C110: 1 | D110: 4 | E110: 20:00:00 | G110: -13.8 | I110: -17.1 | K110: 76 | M110: 2 | O110: 21 | S110: 101.44 | W110: -23 | Y110: ND | Z110: 7.16 | AB110: =IF(Z110="","",IF(Météo!$F$6>Z110,(Météo!$F$6-Z110)/24,"")) -> 2.535 | AC110: =IF(Z110="","",IF(Météo!$F$7<=Z110,(Z110-Météo!$F$7)/24,"")) ->  | AH110: =IF(Z110="","",IF(Météo!$F$6>Z110,(Météo!$F$6-Z110)/24,"")) -> 2.535 | AI110: =IF(Z110="","",IF(Météo!$F$7<=Z110,(Z110-Météo!$F$7)/24,"")) ->  | BP110: 1 | FB110: 76
A111: 2014-01-04 21:00 | B111: 2014 | C111: 1 | D111: 4 | E111: 21:00:00 | G111: -14.1 | I111: -17.6 | K111: 75 | M111: 1 | O111: 18 | S111: 101.44 | W111: -23 | Y111: ND | Z111: 6.62 | AB111: =IF(Z111="","",IF(Météo!$F$6>Z111,(Météo!$F$6-Z111)/24,"")) -> 2.5575 | AC111: =IF(Z111="","",IF(Météo!$F$7<=Z111,(Z111-Météo!$F$7)/24,"")) ->  | AH111: =IF(Z111="","",IF(Météo!$F$6>Z111,(Météo!$F$6-Z111)/24,"")) -> 2.5575 | AI111: =IF(Z111="","",IF(Météo!$F$7<=Z111,(Z111-Météo!$F$7)/24,"")) ->  | BP111: 1 | FB111: 75
A112: 2014-01-04 22:00 | B112: 2014 | C112: 1 | D112: 4 | E112: 22:00:00 | G112: -13.8 | I112: -17 | K112: 76 | M112: 2 | O112: 15 | S112: 101.47 | W112: -21 | Y112: ND | Z112: 7.16 | AB112: =IF(Z112="","",IF(Météo!$F$6>Z112,(Météo!$F$6-Z112)/24,"")) -> 2.535 | AC112: =IF(Z112="","",IF(Météo!$F$7<=Z112,(Z112-Météo!$F$7)/24,"")) ->  | AH112: =IF(Z112="","",IF(Météo!$F$6>Z112,(Météo!$F$6-Z112)/24,"")) -> 2.535 | AI112: =IF(Z112="","",IF(Météo!$F$7<=Z112,(Z112-Météo!$F$7)/24,"")) ->  | BP112: 1 | FB112: 76
A113: 2014-01-04 23:00 | B113: 2014 | C113: 1 | D113: 4 | E113: 23:00:00 | G113: -13.6 | I113: -17.1 | K113: 75 | M113: 2 | O113: 14 | S113: 101.51 | W113: -21 | Y113: ND | Z113: 7.52 | AB113: =IF(Z113="","",IF(Météo!$F$6>Z113,(Météo!$F$6-Z113)/24,"")) -> 2.52 | AC113: =IF(Z113="","",IF(Météo!$F$7<=Z113,(Z113-Météo!$F$7)/24,"")) ->  | AH113: =IF(Z113="","",IF(Météo!$F$6>Z113,(Météo!$F$6-Z113)/24,"")) -> 2.52 | AI113: =IF(Z113="","",IF(Météo!$F$7<=Z113,(Z113-Météo!$F$7)/24,"")) ->  | BP113: 1 | FB113: 75
A114: 2014-01-05 00:00 | B114: 2014 | C114: 1 | D114: 5 | E114: 00:00:00 | G114: -13.1 | I114: -16.4 | K114: 76 | M114: 2 | O114: 11 | S114: 101.51 | W114: -19 | Y114: ND | Z114: 8.42 | AB114: =IF(Z114="","",IF(Météo!$F$6>Z114,(Météo!$F$6-Z114)/24,"")) -> 2.4825 | AC114: =IF(Z114="","",IF(Météo!$F$7<=Z114,(Z114-Météo!$F$7)/24,"")) ->  | AD114: =IF(Z114="","",IF(Météo!$F$6>Z114,(Météo!$F$6-Z114)/24,"")) -> 2.4825 | AE114: =IF(Z114="","",IF(Météo!$F$7<=Z114,(Z114-Météo!$F$7)/24,"")) ->  | AJ114: =IF(AND($Z114>AJ$14,$Z114<=AJ$15),1,"") ->  | AM114: =IF(AND($Z114>AM$14,$Z114<=AM$15),1,"") ->  | AP114: =IF(AND($Z114>AP$14,$Z114<=AP$15),1,"") ->  | AS114: =IF(AND($Z114>AS$14,$Z114<=AS$15),1,"") ->  | AV114: =IF(AND($Z114>AV$14,$Z114<=AV$15),1,"") ->  | AY114: =IF(AND($Z114>AY$14,$Z114<=AY$15),1,"") ->  | BB114: =IF(AND($Z114>BB$14,$Z114<=BB$15),1,"") ->  | BE114: =IF(AND($Z114>BE$14,$Z114<=BE$15),1,"") ->  | BH114: =IF(AND($Z114>BH$14,$Z114<=BH$15),1,"") ->  | BK114: =IF(AND($Z114>BK$14,$Z114<=BK$15),1,"") ->  | BN114: =IF(AND($Z114>BN$14,$Z114<=BN$15),1,"") -> 1 | BQ114: =IF(AND($Z114>BQ$14,$Z114<=BQ$15),1,"") ->  | BT114: =IF(AND($Z114>BT$14,$Z114<=BT$15),1,"") ->  | BW114: =IF(AND($Z114>BW$14,$Z114<=BW$15),1,"") ->  | BZ114: =IF(AND($Z114>BZ$14,$Z114<=BZ$15),1,"") ->  | CC114: =IF(AND($Z114>CC$14,$Z114<=CC$15),1,"") ->  | CF114: =IF(AND($Z114>CF$14,$Z114<=CF$15),1,"") ->  | CI114: =IF(AND($Z114>CI$14,$Z114<=CI$15),1,"") ->  | CL114: =IF(AND($Z114>CL$14,$Z114<=CL$15),1,"") ->  | CO114: =IF(AND($Z114>CO$14,$Z114<=CO$15),1,"") ->  | CR114: =IF(AND($Z114>CR$14,$Z114<=CR$15),1,"") ->  | CU114: =IF(AND($Z114>CU$14,$Z114<=CU$15),1,"") ->  | CX114: =IF(AND($Z114>CX$14,$Z114<=CX$15),1,"") ->  | DA114: =IF(AND($Z114>DA$14,$Z114<=DA$15),1,"") ->  | DD114: =IF(AND($Z114>DD$14,$Z114<=DD$15),1,"") ->  | DG114: =IF(AND($Z114>DG$14,$Z114<=DG$15),1,"") ->  | DJ114: =IF(AND($Z114>DJ$14,$Z114<=DJ$15),1,"") ->  | DM114: =IF(AND($Z114>DM$14,$Z114<=DM$15),1,"") ->  | DP114: =IF(AND($Z114>DP$14,$Z114<=DP$15),1,"") ->  | DV114: =IF(AND($Z114>DV$14,$Z114<=DV$15),$K114,"") ->  | DY114: =IF(AND($Z114>DY$14,$Z114<=DY$15),$K114,"") ->  | EB114: =IF(AND($Z114>EB$14,$Z114<=EB$15),$K114,"") ->  | EE114: =IF(AND($Z114>EE$14,$Z114<=EE$15),$K114,"") ->  | EH114: =IF(AND($Z114>EH$14,$Z114<=EH$15),$K114,"") ->  | EK114: =IF(AND($Z114>EK$14,$Z114<=EK$15),$K114,"") ->  | EN114: =IF(AND($Z114>EN$14,$Z114<=EN$15),$K114,"") ->  | EQ114: =IF(AND($Z114>EQ$14,$Z114<=EQ$15),$K114,"") ->  | ET114: =IF(AND($Z114>ET$14,$Z114<=ET$15),$K114,"") ->  | EW114: =IF(AND($Z114>EW$14,$Z114<=EW$15),$K114,"") ->  | EZ114: =IF(AND($Z114>EZ$14,$Z114<=EZ$15),$K114,"") -> 76 | FC114: =IF(AND($Z114>FC$14,$Z114<=FC$15),$K114,"") ->  | FF114: =IF(AND($Z114>FF$14,$Z114<=FF$15),$K114,"") ->  | FI114: =IF(AND($Z114>FI$14,$Z114<=FI$15),$K114,"") ->  | FL114: =IF(AND($Z114>FL$14,$Z114<=FL$15),$K114,"") ->  | FO114: =IF(AND($Z114>FO$14,$Z114<=FO$15),$K114,"") ->  | FR114: =IF(AND($Z114>FR$14,$Z114<=FR$15),$K114,"") ->  | FU114: =IF(AND($Z114>FU$14,$Z114<=FU$15),$K114,"") ->  | FX114: =IF(AND($Z114>FX$14,$Z114<=FX$15),$K114,"") ->  | GA114: =IF(AND($Z114>GA$14,$Z114<=GA$15),$K114,"") ->  | GD114: =IF(AND($Z114>GD$14,$Z114<=GD$15),$K114,"") ->  | GG114: =IF(AND($Z114>GG$14,$Z114<=GG$15),$K114,"") ->  | GJ114: =IF(AND($Z114>GJ$14,$Z114<=GJ$15),$K114,"") ->  | GM114: =IF(AND($Z114>GM$14,$Z114<=GM$15),$K114,"") ->  | GP114: =IF(AND($Z114>GP$14,$Z114<=GP$15),$K114,"") ->  | GS114: =IF(AND($Z114>GS$14,$Z114<=GS$15),$K114,"") ->  | GV114: =IF(AND($Z114>GV$14,$Z114<=GV$15),$K114,"") ->  | GY114: =IF(AND($Z114>GY$14,$Z114<=GY$15),$K114,"") ->  | HB114: =IF(AND($Z114>HB$14,$Z114<=HB$15),$K114,"") -> 
A115: 2014-01-05 01:00 | B115: 2014 | C115: 1 | D115: 5 | E115: 01:00:00 | G115: -12.5 | I115: -15.8 | K115: 76 | M115: 2 | O115: 10 | S115: 101.56 | W115: -18 | Y115: ND | Z115: 9.5 | AB115: =IF(Z115="","",IF(Météo!$F$6>Z115,(Météo!$F$6-Z115)/24,"")) -> 2.4375 | AC115: =IF(Z115="","",IF(Météo!$F$7<=Z115,(Z115-Météo!$F$7)/24,"")) ->  | AD115: =IF(Z115="","",IF(Météo!$F$6>Z115,(Météo!$F$6-Z115)/24,"")) -> 2.4375 | AE115: =IF(Z115="","",IF(Météo!$F$7<=Z115,(Z115-Météo!$F$7)/24,"")) ->  | BN115: 1 | EZ115: 76
A116: 2014-01-05 02:00 | B116: 2014 | C116: 1 | D116: 5 | E116: 02:00:00 | G116: -11.9 | I116: -15.1 | K116: 77 | M116: 1 | O116: 10 | S116: 101.65 | W116: -18 | Y116: ND | Z116: 10.58 | AB116: =IF(Z116="","",IF(Météo!$F$6>Z116,(Météo!$F$6-Z116)/24,"")) -> 2.3925 | AC116: =IF(Z116="","",IF(Météo!$F$7<=Z116,(Z116-Météo!$F$7)/24,"")) ->  | AD116: =IF(Z116="","",IF(Météo!$F$6>Z116,(Météo!$F$6-Z116)/24,"")) -> 2.3925 | AE116: =IF(Z116="","",IF(Météo!$F$7<=Z116,(Z116-Météo!$F$7)/24,"")) ->  | BQ116: 1 | FC116: 77
A117: 2014-01-05 03:00 | B117: 2014 | C117: 1 | D117: 5 | E117: 03:00:00 | G117: -11.7 | I117: -14.7 | K117: 79 | M117: 1 | O117: 9 | S117: 101.71 | W117: -17 | Y117: ND | Z117: 10.94 | AB117: =IF(Z117="","",IF(Météo!$F$6>Z117,(Météo!$F$6-Z117)/24,"")) -> 2.3775 | AC117: =IF(Z117="","",IF(Météo!$F$7<=Z117,(Z117-Météo!$F$7)/24,"")) ->  | AD117: =IF(Z117="","",IF(Météo!$F$6>Z117,(Météo!$F$6-Z117)/24,"")) -> 2.3775 | AE117: =IF(Z117="","",IF(Météo!$F$7<=Z117,(Z117-Météo!$F$7)/24,"")) ->  | BQ117: 1 | FC117: 79
A118: 2014-01-05 04:00 | B118: 2014 | C118: 1 | D118: 5 | E118: 04:00:00 | G118: -11.7 | I118: -14.5 | K118: 79 | M118: 1 | O118: 9 | S118: 101.7 | W118: -17 | Y118: ND | Z118: 10.94 | AB118: =IF(Z118="","",IF(Météo!$F$6>Z118,(Météo!$F$6-Z118)/24,"")) -> 2.3775 | AC118: =IF(Z118="","",IF(Météo!$F$7<=Z118,(Z118-Météo!$F$7)/24,"")) ->  | AD118: =IF(Z118="","",IF(Météo!$F$6>Z118,(Météo!$F$6-Z118)/24,"")) -> 2.3775 | AE118: =IF(Z118="","",IF(Météo!$F$7<=Z118,(Z118-Météo!$F$7)/24,"")) ->  | BQ118: 1 | FC118: 79
A119: 2014-01-05 05:00 | B119: 2014 | C119: 1 | D119: 5 | E119: 05:00:00 | G119: -11.4 | I119: -13.7 | K119: 83 | M119: 1 | O119: 5 | S119: 101.76 | W119: -15 | Y119: ND | Z119: 11.48 | AB119: =IF(Z119="","",IF(Météo!$F$6>Z119,(Météo!$F$6-Z119)/24,"")) -> 2.355 | AC119: =IF(Z119="","",IF(Météo!$F$7<=Z119,(Z119-Météo!$F$7)/24,"")) ->  | AD119: =IF(Z119="","",IF(Météo!$F$6>Z119,(Météo!$F$6-Z119)/24,"")) -> 2.355 | AE119: =IF(Z119="","",IF(Météo!$F$7<=Z119,(Z119-Météo!$F$7)/24,"")) ->  | BQ119: 1 | FC119: 83
A120: 2014-01-05 06:00 | B120: 2014 | C120: 1 | D120: 5 | E120: 06:00:00 | G120: -10.7 | I120: -12.3 | K120: 88 | M120: 1 | O120: 5 | S120: 101.75 | W120: -14 | Y120: ND | Z120: 12.74 | AB120: =IF(Z120="","",IF(Météo!$F$6>Z120,(Météo!$F$6-Z120)/24,"")) -> 2.3025 | AC120: =IF(Z120="","",IF(Météo!$F$7<=Z120,(Z120-Météo!$F$7)/24,"")) ->  | AD120: =IF(Z120="","",IF(Météo!$F$6>Z120,(Météo!$F$6-Z120)/24,"")) -> 2.3025 | AE120: =IF(Z120="","",IF(Météo!$F$7<=Z120,(Z120-Météo!$F$7)/24,"")) ->  | BQ120: 1 | FC120: 88
A121: 2014-01-05 07:00 | B121: 2014 | C121: 1 | D121: 5 | E121: 07:00:00 | G121: -10 | I121: -11.5 | K121: 89 | M121: 1 | O121: 4 | S121: 101.79 | W121: -12 | Y121: ND | Z121: 14 | AB121: =IF(Z121="","",IF(Météo!$F$6>Z121,(Météo!$F$6-Z121)/24,"")) -> 2.25 | AC121: =IF(Z121="","",IF(Météo!$F$7<=Z121,(Z121-Météo!$F$7)/24,"")) ->  | AD121: =IF(Z121="","",IF(Météo!$F$6>Z121,(Météo!$F$6-Z121)/24,"")) -> 2.25 | AE121: =IF(Z121="","",IF(Météo!$F$7<=Z121,(Z121-Météo!$F$7)/24,"")) ->  | BQ121: 1 | FC121: 89
A122: 2014-01-05 08:00 | B122: 2014 | C122: 1 | D122: 5 | E122: 08:00:00 | G122: -9.3 | I122: -10.7 | K122: 89 | M122: 36 | O122: 3 | S122: 101.81 | W122: -11 | Y122: ND | Z122: 15.26 | AB122: =IF(Z122="","",IF(Météo!$F$6>Z122,(Météo!$F$6-Z122)/24,"")) -> 2.1975 | AC122: =IF(Z122="","",IF(Météo!$F$7<=Z122,(Z122-Météo!$F$7)/24,"")) ->  | AF122: =IF(Z122="","",IF(Météo!$F$6>Z122,(Météo!$F$6-Z122)/24,"")) -> 2.1975 | AG122: =IF(Z122="","",IF(Météo!$F$7<=Z122,(Z122-Météo!$F$7)/24,"")) ->  | AK122: =IF(AND($Z122>AJ$14,$Z122<=AJ$15),1,"") ->  | AN122: =IF(AND($Z122>AM$14,$Z122<=AM$15),1,"") ->  | AQ122: =IF(AND($Z122>AP$14,$Z122<=AP$15),1,"") ->  | AT122: =IF(AND($Z122>AS$14,$Z122<=AS$15),1,"") ->  | AW122: =IF(AND($Z122>AV$14,$Z122<=AV$15),1,"") ->  | AZ122: =IF(AND($Z122>AY$14,$Z122<=AY$15),1,"") ->  | BC122: =IF(AND($Z122>BB$14,$Z122<=BB$15),1,"") ->  | BF122: =IF(AND($Z122>BE$14,$Z122<=BE$15),1,"") ->  | BI122: =IF(AND($Z122>BH$14,$Z122<=BH$15),1,"") ->  | BL122: =IF(AND($Z122>BK$14,$Z122<=BK$15),1,"") ->  | BO122: =IF(AND($Z122>BN$14,$Z122<=BN$15),1,"") ->  | BR122: =IF(AND($Z122>BQ$14,$Z122<=BQ$15),1,"") ->  | BU122: =IF(AND($Z122>BT$14,$Z122<=BT$15),1,"") -> 1 | BX122: =IF(AND($Z122>BW$14,$Z122<=BW$15),1,"") ->  | CA122: =IF(AND($Z122>BZ$14,$Z122<=BZ$15),1,"") ->  | CD122: =IF(AND($Z122>CC$14,$Z122<=CC$15),1,"") ->  | CG122: =IF(AND($Z122>CF$14,$Z122<=CF$15),1,"") ->  | CJ122: =IF(AND($Z122>CI$14,$Z122<=CI$15),1,"") ->  | CM122: =IF(AND($Z122>CL$14,$Z122<=CL$15),1,"") ->  | CP122: =IF(AND($Z122>CO$14,$Z122<=CO$15),1,"") ->  | CS122: =IF(AND($Z122>CR$14,$Z122<=CR$15),1,"") ->  | CV122: =IF(AND($Z122>CU$14,$Z122<=CU$15),1,"") ->  | CY122: =IF(AND($Z122>CX$14,$Z122<=CX$15),1,"") ->  | DB122: =IF(AND($Z122>DA$14,$Z122<=DA$15),1,"") ->  | DE122: =IF(AND($Z122>DD$14,$Z122<=DD$15),1,"") ->  | DH122: =IF(AND($Z122>DG$14,$Z122<=DG$15),1,"") ->  | DK122: =IF(AND($Z122>DJ$14,$Z122<=DJ$15),1,"") ->  | DN122: =IF(AND($Z122>DM$14,$Z122<=DM$15),1,"") ->  | DQ122: =IF(AND($Z122>DP$14,$Z122<=DP$15),1,"") ->  | DW122: =IF(AND($Z122>DV$14,$Z122<=DV$15),$K122,"") ->  | DZ122: =IF(AND($Z122>DY$14,$Z122<=DY$15),$K122,"") ->  | EC122: =IF(AND($Z122>EB$14,$Z122<=EB$15),$K122,"") ->  | EF122: =IF(AND($Z122>EE$14,$Z122<=EE$15),$K122,"") ->  | EI122: =IF(AND($Z122>EH$14,$Z122<=EH$15),$K122,"") ->  | EL122: =IF(AND($Z122>EK$14,$Z122<=EK$15),$K122,"") ->  | EO122: =IF(AND($Z122>EN$14,$Z122<=EN$15),$K122,"") ->  | ER122: =IF(AND($Z122>EQ$14,$Z122<=EQ$15),$K122,"") ->  | EU122: =IF(AND($Z122>ET$14,$Z122<=ET$15),$K122,"") ->  | EX122: =IF(AND($Z122>EW$14,$Z122<=EW$15),$K122,"") ->  | FA122: =IF(AND($Z122>EZ$14,$Z122<=EZ$15),$K122,"") ->  | FD122: =IF(AND($Z122>FC$14,$Z122<=FC$15),$K122,"") ->  | FG122: =IF(AND($Z122>FF$14,$Z122<=FF$15),$K122,"") -> 89 | FJ122: =IF(AND($Z122>FI$14,$Z122<=FI$15),$K122,"") ->  | FM122: =IF(AND($Z122>FL$14,$Z122<=FL$15),$K122,"") ->  | FP122: =IF(AND($Z122>FO$14,$Z122<=FO$15),$K122,"") ->  | FS122: =IF(AND($Z122>FR$14,$Z122<=FR$15),$K122,"") ->  | FV122: =IF(AND($Z122>FU$14,$Z122<=FU$15),$K122,"") ->  | FY122: =IF(AND($Z122>FX$14,$Z122<=FX$15),$K122,"") ->  | GB122: =IF(AND($Z122>GA$14,$Z122<=GA$15),$K122,"") ->  | GE122: =IF(AND($Z122>GD$14,$Z122<=GD$15),$K122,"") ->  | GH122: =IF(AND($Z122>GG$14,$Z122<=GG$15),$K122,"") ->  | GK122: =IF(AND($Z122>GJ$14,$Z122<=GJ$15),$K122,"") ->  | GN122: =IF(AND($Z122>GM$14,$Z122<=GM$15),$K122,"") ->  | GQ122: =IF(AND($Z122>GP$14,$Z122<=GP$15),$K122,"") ->  | GT122: =IF(AND($Z122>GS$14,$Z122<=GS$15),$K122,"") ->  | GW122: =IF(AND($Z122>GV$14,$Z122<=GV$15),$K122,"") ->  | GZ122: =IF(AND($Z122>GY$14,$Z122<=GY$15),$K122,"") ->  | HC122: =IF(AND($Z122>HB$14,$Z122<=HB$15),$K122,"") -> 
A123: 2014-01-05 09:00 | B123: 2014 | C123: 1 | D123: 5 | E123: 09:00:00 | G123: -8.5 | I123: -9.9 | K123: 90 | M123: 1 | O123: 5 | S123: 101.9 | W123: -11 | Y123: ND | Z123: 16.7 | AB123: =IF(Z123="","",IF(Météo!$F$6>Z123,(Météo!$F$6-Z123)/24,"")) -> 2.1375 | AC123: =IF(Z123="","",IF(Météo!$F$7<=Z123,(Z123-Météo!$F$7)/24,"")) ->  | AF123: =IF(Z123="","",IF(Météo!$F$6>Z123,(Météo!$F$6-Z123)/24,"")) -> 2.1375 | AG123: =IF(Z123="","",IF(Météo!$F$7<=Z123,(Z123-Météo!$F$7)/24,"")) ->  | BU123: 1 | FG123: 90
A124: 2014-01-05 10:00 | B124: 2014 | C124: 1 | D124: 5 | E124: 10:00:00 | G124: -7.6 | I124: -9.2 | K124: 88 | M124: 1 | O124: 7 | S124: 101.91 | W124: -11 | Y124: ND | Z124: 18.32 | AB124: =IF(Z124="","",IF(Météo!$F$6>Z124,(Météo!$F$6-Z124)/24,"")) -> 2.07 | AC124: =IF(Z124="","",IF(Météo!$F$7<=Z124,(Z124-Météo!$F$7)/24,"")) ->  | AF124: =IF(Z124="","",IF(Météo!$F$6>Z124,(Météo!$F$6-Z124)/24,"")) -> 2.07 | AG124: =IF(Z124="","",IF(Météo!$F$7<=Z124,(Z124-Météo!$F$7)/24,"")) ->  | BU124: 1 | FG124: 88
A125: 2014-01-05 11:00 | B125: 2014 | C125: 1 | D125: 5 | E125: 11:00:00 | G125: -7.2 | I125: -9.1 | K125: 86 | M125: 1 | O125: 9 | S125: 101.89 | W125: -12 | Y125: ND | Z125: 19.04 | AB125: =IF(Z125="","",IF(Météo!$F$6>Z125,(Météo!$F$6-Z125)/24,"")) -> 2.04 | AC125: =IF(Z125="","",IF(Météo!$F$7<=Z125,(Z125-Météo!$F$7)/24,"")) ->  | AF125: =IF(Z125="","",IF(Météo!$F$6>Z125,(Météo!$F$6-Z125)/24,"")) -> 2.04 | AG125: =IF(Z125="","",IF(Météo!$F$7<=Z125,(Z125-Météo!$F$7)/24,"")) ->  | BU125: 1 | FG125: 86
A126: 2014-01-05 12:00 | B126: 2014 | C126: 1 | D126: 5 | E126: 12:00:00 | G126: -6.5 | I126: -8.6 | K126: 85 | M126: 1 | O126: 9 | S126: 101.81 | W126: -11 | Y126: ND | Z126: 20.3 | AB126: =IF(Z126="","",IF(Météo!$F$6>Z126,(Météo!$F$6-Z126)/24,"")) -> 1.9875 | AC126: =IF(Z126="","",IF(Météo!$F$7<=Z126,(Z126-Météo!$F$7)/24,"")) ->  | AF126: =IF(Z126="","",IF(Météo!$F$6>Z126,(Météo!$F$6-Z126)/24,"")) -> 1.9875 | AG126: =IF(Z126="","",IF(Météo!$F$7<=Z126,(Z126-Météo!$F$7)/24,"")) ->  | BX126: 1 | FJ126: 85
A127: 2014-01-05 13:00 | B127: 2014 | C127: 1 | D127: 5 | E127: 13:00:00 | G127: -6.2 | I127: -8.2 | K127: 86 | M127: 2 | O127: 10 | S127: 101.77 | W127: -11 | Y127: ND | Z127: 20.84 | AB127: =IF(Z127="","",IF(Météo!$F$6>Z127,(Météo!$F$6-Z127)/24,"")) -> 1.965 | AC127: =IF(Z127="","",IF(Météo!$F$7<=Z127,(Z127-Météo!$F$7)/24,"")) ->  | AF127: =IF(Z127="","",IF(Météo!$F$6>Z127,(Météo!$F$6-Z127)/24,"")) -> 1.965 | AG127: =IF(Z127="","",IF(Météo!$F$7<=Z127,(Z127-Météo!$F$7)/24,"")) ->  | BX127: 1 | FJ127: 86
A128: 2014-01-05 14:00 | B128: 2014 | C128: 1 | D128: 5 | E128: 14:00:00 | G128: -6.1 | I128: -8 | K128: 86 | M128: 2 | O128: 12 | S128: 101.78 | W128: -11 | Y128: ND | Z128: 21.02 | AB128: =IF(Z128="","",IF(Météo!$F$6>Z128,(Météo!$F$6-Z128)/24,"")) -> 1.9575 | AC128: =IF(Z128="","",IF(Météo!$F$7<=Z128,(Z128-Météo!$F$7)/24,"")) ->  | AF128: =IF(Z128="","",IF(Météo!$F$6>Z128,(Météo!$F$6-Z128)/24,"")) -> 1.9575 | AG128: =IF(Z128="","",IF(Météo!$F$7<=Z128,(Z128-Météo!$F$7)/24,"")) ->  | BX128: 1 | FJ128: 86
A129: 2014-01-05 15:00 | B129: 2014 | C129: 1 | D129: 5 | E129: 15:00:00 | G129: -4.9 | I129: -7.1 | K129: 84 | M129: 3 | O129: 9 | S129: 101.73 | W129: -9 | Y129: ND | Z129: 23.18 | AB129: =IF(Z129="","",IF(Météo!$F$6>Z129,(Météo!$F$6-Z129)/24,"")) -> 1.8675 | AC129: =IF(Z129="","",IF(Météo!$F$7<=Z129,(Z129-Météo!$F$7)/24,"")) ->  | AF129: =IF(Z129="","",IF(Météo!$F$6>Z129,(Météo!$F$6-Z129)/24,"")) -> 1.8675 | AG129: =IF(Z129="","",IF(Météo!$F$7<=Z129,(Z129-Météo!$F$7)/24,"")) ->  | BX129: 1 | FJ129: 84
A130: 2014-01-05 16:00 | B130: 2014 | C130: 1 | D130: 5 | E130: 16:00:00 | G130: -5.2 | I130: -7.3 | K130: 85 | M130: 3 | O130: 11 | S130: 101.72 | W130: -10 | Y130: ND | Z130: 22.64 | AB130: =IF(Z130="","",IF(Météo!$F$6>Z130,(Météo!$F$6-Z130)/24,"")) -> 1.89 | AC130: =IF(Z130="","",IF(Météo!$F$7<=Z130,(Z130-Météo!$F$7)/24,"")) ->  | AH130: =IF(Z130="","",IF(Météo!$F$6>Z130,(Météo!$F$6-Z130)/24,"")) -> 1.89 | AI130: =IF(Z130="","",IF(Météo!$F$7<=Z130,(Z130-Météo!$F$7)/24,"")) ->  | AL130: =IF(AND($Z130>AJ$14,$Z130<=AJ$15),1,"") ->  | AO130: =IF(AND($Z130>AM$14,$Z130<=AM$15),1,"") ->  | AR130: =IF(AND($Z130>AP$14,$Z130<=AP$15),1,"") ->  | AU130: =IF(AND($Z130>AS$14,$Z130<=AS$15),1,"") ->  | AX130: =IF(AND($Z130>AV$14,$Z130<=AV$15),1,"") ->  | BA130: =IF(AND($Z130>AY$14,$Z130<=AY$15),1,"") ->  | BD130: =IF(AND($Z130>BB$14,$Z130<=BB$15),1,"") ->  | BG130: =IF(AND($Z130>BE$14,$Z130<=BE$15),1,"") ->  | BJ130: =IF(AND($Z130>BH$14,$Z130<=BH$15),1,"") ->  | BM130: =IF(AND($Z130>BK$14,$Z130<=BK$15),1,"") ->  | BP130: =IF(AND($Z130>BN$14,$Z130<=BN$15),1,"") ->  | BS130: =IF(AND($Z130>BQ$14,$Z130<=BQ$15),1,"") ->  | BV130: =IF(AND($Z130>BT$14,$Z130<=BT$15),1,"") ->  | BY130: =IF(AND($Z130>BW$14,$Z130<=BW$15),1,"") -> 1 | CB130: =IF(AND($Z130>BZ$14,$Z130<=BZ$15),1,"") ->  | CE130: =IF(AND($Z130>CC$14,$Z130<=CC$15),1,"") ->  | CH130: =IF(AND($Z130>CF$14,$Z130<=CF$15),1,"") ->  | CK130: =IF(AND($Z130>CI$14,$Z130<=CI$15),1,"") ->  | CN130: =IF(AND($Z130>CL$14,$Z130<=CL$15),1,"") ->  | CQ130: =IF(AND($Z130>CO$14,$Z130<=CO$15),1,"") ->  | CT130: =IF(AND($Z130>CR$14,$Z130<=CR$15),1,"") ->  | CW130: =IF(AND($Z130>CU$14,$Z130<=CU$15),1,"") ->  | CZ130: =IF(AND($Z130>CX$14,$Z130<=CX$15),1,"") ->  | DC130: =IF(AND($Z130>DA$14,$Z130<=DA$15),1,"") ->  | DF130: =IF(AND($Z130>DD$14,$Z130<=DD$15),1,"") ->  | DI130: =IF(AND($Z130>DG$14,$Z130<=DG$15),1,"") ->  | DL130: =IF(AND($Z130>DJ$14,$Z130<=DJ$15),1,"") ->  | DO130: =IF(AND($Z130>DM$14,$Z130<=DM$15),1,"") ->  | DR130: =IF(AND($Z130>DP$14,$Z130<=DP$15),1,"") ->  | DX130: =IF(AND($Z130>DV$14,$Z130<=DV$15),$K130,"") ->  | EA130: =IF(AND($Z130>DY$14,$Z130<=DY$15),$K130,"") ->  | ED130: =IF(AND($Z130>EB$14,$Z130<=EB$15),$K130,"") ->  | EG130: =IF(AND($Z130>EE$14,$Z130<=EE$15),$K130,"") ->  | EJ130: =IF(AND($Z130>EH$14,$Z130<=EH$15),$K130,"") ->  | EM130: =IF(AND($Z130>EK$14,$Z130<=EK$15),$K130,"") ->  | EP130: =IF(AND($Z130>EN$14,$Z130<=EN$15),$K130,"") ->  | ES130: =IF(AND($Z130>EQ$14,$Z130<=EQ$15),$K130,"") ->  | EV130: =IF(AND($Z130>ET$14,$Z130<=ET$15),$K130,"") ->  | EY130: =IF(AND($Z130>EW$14,$Z130<=EW$15),$K130,"") ->  | FB130: =IF(AND($Z130>EZ$14,$Z130<=EZ$15),$K130,"") ->  | FE130: =IF(AND($Z130>FC$14,$Z130<=FC$15),$K130,"") ->  | FH130: =IF(AND($Z130>FF$14,$Z130<=FF$15),$K130,"") ->  | FK130: =IF(AND($Z130>FI$14,$Z130<=FI$15),$K130,"") -> 85 | FN130: =IF(AND($Z130>FL$14,$Z130<=FL$15),$K130,"") ->  | FQ130: =IF(AND($Z130>FO$14,$Z130<=FO$15),$K130,"") ->  | FT130: =IF(AND($Z130>FR$14,$Z130<=FR$15),$K130,"") ->  | FW130: =IF(AND($Z130>FU$14,$Z130<=FU$15),$K130,"") ->  | FZ130: =IF(AND($Z130>FX$14,$Z130<=FX$15),$K130,"") ->  | GC130: =IF(AND($Z130>GA$14,$Z130<=GA$15),$K130,"") ->  | GF130: =IF(AND($Z130>GD$14,$Z130<=GD$15),$K130,"") ->  | GI130: =IF(AND($Z130>GG$14,$Z130<=GG$15),$K130,"") ->  | GL130: =IF(AND($Z130>GJ$14,$Z130<=GJ$15),$K130,"") ->  | GO130: =IF(AND($Z130>GM$14,$Z130<=GM$15),$K130,"") ->  | GR130: =IF(AND($Z130>GP$14,$Z130<=GP$15),$K130,"") ->  | GU130: =IF(AND($Z130>GS$14,$Z130<=GS$15),$K130,"") ->  | GX130: =IF(AND($Z130>GV$14,$Z130<=GV$15),$K130,"") ->  | HA130: =IF(AND($Z130>GY$14,$Z130<=GY$15),$K130,"") ->  | HD130: =IF(AND($Z130>HB$14,$Z130<=HB$15),$K130,"") -> 
A131: 2014-01-05 17:00 | B131: 2014 | C131: 1 | D131: 5 | E131: 17:00:00 | G131: -4.2 | I131: -7 | K131: 80 | M131: 4 | O131: 12 | S131: 101.62 | W131: -9 | Y131: ND | Z131: 24.44 | AB131: =IF(Z131="","",IF(Météo!$F$6>Z131,(Météo!$F$6-Z131)/24,"")) -> 1.815 | AC131: =IF(Z131="","",IF(Météo!$F$7<=Z131,(Z131-Météo!$F$7)/24,"")) ->  | AH131: =IF(Z131="","",IF(Météo!$F$6>Z131,(Météo!$F$6-Z131)/24,"")) -> 1.815 | AI131: =IF(Z131="","",IF(Météo!$F$7<=Z131,(Z131-Météo!$F$7)/24,"")) ->  | BY131: 1 | FK131: 80
A132: 2014-01-05 18:00 | B132: 2014 | C132: 1 | D132: 5 | E132: 18:00:00 | G132: -4.2 | I132: -7.6 | K132: 77 | M132: 4 | O132: 16 | S132: 101.51 | W132: -10 | Y132: ND | Z132: 24.44 | AB132: =IF(Z132="","",IF(Météo!$F$6>Z132,(Météo!$F$6-Z132)/24,"")) -> 1.815 | AC132: =IF(Z132="","",IF(Météo!$F$7<=Z132,(Z132-Météo!$F$7)/24,"")) ->  | AH132: =IF(Z132="","",IF(Météo!$F$6>Z132,(Météo!$F$6-Z132)/24,"")) -> 1.815 | AI132: =IF(Z132="","",IF(Météo!$F$7<=Z132,(Z132-Météo!$F$7)/24,"")) ->  | BY132: 1 | FK132: 77
A133: 2014-01-05 19:00 | B133: 2014 | C133: 1 | D133: 5 | E133: 19:00:00 | G133: -4.2 | I133: -7.6 | K133: 77 | M133: 3 | O133: 16 | S133: 101.45 | W133: -10 | Y133: ND | Z133: 24.44 | AB133: =IF(Z133="","",IF(Météo!$F$6>Z133,(Météo!$F$6-Z133)/24,"")) -> 1.815 | AC133: =IF(Z133="","",IF(Météo!$F$7<=Z133,(Z133-Météo!$F$7)/24,"")) ->  | AH133: =IF(Z133="","",IF(Météo!$F$6>Z133,(Météo!$F$6-Z133)/24,"")) -> 1.815 | AI133: =IF(Z133="","",IF(Météo!$F$7<=Z133,(Z133-Météo!$F$7)/24,"")) ->  | BY133: 1 | FK133: 77
A134: 2014-01-05 20:00 | B134: 2014 | C134: 1 | D134: 5 | E134: 20:00:00 | G134: -4.4 | I134: -7.1 | K134: 82 | M134: 4 | O134: 17 | S134: 101.25 | W134: -10 | Y134: ND | Z134: 24.08 | AB134: =IF(Z134="","",IF(Météo!$F$6>Z134,(Météo!$F$6-Z134)/24,"")) -> 1.83 | AC134: =IF(Z134="","",IF(Météo!$F$7<=Z134,(Z134-Météo!$F$7)/24,"")) ->  | AH134: =IF(Z134="","",IF(Météo!$F$6>Z134,(Météo!$F$6-Z134)/24,"")) -> 1.83 | AI134: =IF(Z134="","",IF(Météo!$F$7<=Z134,(Z134-Météo!$F$7)/24,"")) ->  | BY134: 1 | FK134: 82
A135: 2014-01-05 21:00 | B135: 2014 | C135: 1 | D135: 5 | E135: 21:00:00 | G135: -4.4 | I135: -5.8 | K135: 90 | M135: 3 | O135: 21 | S135: 101.02 | W135: -11 | Y135: ND | Z135: 24.08 | AB135: =IF(Z135="","",IF(Météo!$F$6>Z135,(Météo!$F$6-Z135)/24,"")) -> 1.83 | AC135: =IF(Z135="","",IF(Météo!$F$7<=Z135,(Z135-Météo!$F$7)/24,"")) ->  | AH135: =IF(Z135="","",IF(Météo!$F$6>Z135,(Météo!$F$6-Z135)/24,"")) -> 1.83 | AI135: =IF(Z135="","",IF(Météo!$F$7<=Z135,(Z135-Météo!$F$7)/24,"")) ->  | BY135: 1 | FK135: 90
A136: 2014-01-05 22:00 | B136: 2014 | C136: 1 | D136: 5 | E136: 22:00:00 | G136: -2.9 | I136: -4.1 | K136: 91 | M136: 4 | O136: 17 | S136: 100.75 | W136: -8 | Y136: ND | Z136: 26.78 | AB136: =IF(Z136="","",IF(Météo!$F$6>Z136,(Météo!$F$6-Z136)/24,"")) -> 1.7175 | AC136: =IF(Z136="","",IF(Météo!$F$7<=Z136,(Z136-Météo!$F$7)/24,"")) ->  | AH136: =IF(Z136="","",IF(Météo!$F$6>Z136,(Météo!$F$6-Z136)/24,"")) -> 1.7175 | AI136: =IF(Z136="","",IF(Météo!$F$7<=Z136,(Z136-Météo!$F$7)/24,"")) ->  | CB136: 1 | FN136: 91
A137: 2014-01-05 23:00 | B137: 2014 | C137: 1 | D137: 5 | E137: 23:00:00 | G137: -0.3 | I137: -1.6 | K137: 91 | M137: 7 | O137: 6 | S137: 100.4 | W137: -2 | Y137: ND | Z137: 31.46 | AB137: =IF(Z137="","",IF(Météo!$F$6>Z137,(Météo!$F$6-Z137)/24,"")) -> 1.5225 | AC137: =IF(Z137="","",IF(Météo!$F$7<=Z137,(Z137-Météo!$F$7)/24,"")) ->  | AH137: =IF(Z137="","",IF(Météo!$F$6>Z137,(Météo!$F$6-Z137)/24,"")) -> 1.5225 | AI137: =IF(Z137="","",IF(Météo!$F$7<=Z137,(Z137-Météo!$F$7)/24,"")) ->  | CE137: 1 | FQ137: 91
A138: 2014-01-06 00:00 | B138: 2014 | C138: 1 | D138: 6 | E138: 00:00:00 | G138: 0.4 | I138: -0.9 | K138: 91 | M138: 6 | O138: 5 | S138: 100.13 | Y138: ND | Z138: 32.72 | AB138: =IF(Z138="","",IF(Météo!$F$6>Z138,(Météo!$F$6-Z138)/24,"")) -> 1.47 | AC138: =IF(Z138="","",IF(Météo!$F$7<=Z138,(Z138-Météo!$F$7)/24,"")) ->  | AD138: =IF(Z138="","",IF(Météo!$F$6>Z138,(Météo!$F$6-Z138)/24,"")) -> 1.47 | AE138: =IF(Z138="","",IF(Météo!$F$7<=Z138,(Z138-Météo!$F$7)/24,"")) ->  | AJ138: =IF(AND($Z138>AJ$14,$Z138<=AJ$15),1,"") ->  | AM138: =IF(AND($Z138>AM$14,$Z138<=AM$15),1,"") ->  | AP138: =IF(AND($Z138>AP$14,$Z138<=AP$15),1,"") ->  | AS138: =IF(AND($Z138>AS$14,$Z138<=AS$15),1,"") ->  | AV138: =IF(AND($Z138>AV$14,$Z138<=AV$15),1,"") ->  | AY138: =IF(AND($Z138>AY$14,$Z138<=AY$15),1,"") ->  | BB138: =IF(AND($Z138>BB$14,$Z138<=BB$15),1,"") ->  | BE138: =IF(AND($Z138>BE$14,$Z138<=BE$15),1,"") ->  | BH138: =IF(AND($Z138>BH$14,$Z138<=BH$15),1,"") ->  | BK138: =IF(AND($Z138>BK$14,$Z138<=BK$15),1,"") ->  | BN138: =IF(AND($Z138>BN$14,$Z138<=BN$15),1,"") ->  | BQ138: =IF(AND($Z138>BQ$14,$Z138<=BQ$15),1,"") ->  | BT138: =IF(AND($Z138>BT$14,$Z138<=BT$15),1,"") ->  | BW138: =IF(AND($Z138>BW$14,$Z138<=BW$15),1,"") ->  | BZ138: =IF(AND($Z138>BZ$14,$Z138<=BZ$15),1,"") ->  | CC138: =IF(AND($Z138>CC$14,$Z138<=CC$15),1,"") -> 1 | CF138: =IF(AND($Z138>CF$14,$Z138<=CF$15),1,"") ->  | CI138: =IF(AND($Z138>CI$14,$Z138<=CI$15),1,"") ->  | CL138: =IF(AND($Z138>CL$14,$Z138<=CL$15),1,"") ->  | CO138: =IF(AND($Z138>CO$14,$Z138<=CO$15),1,"") ->  | CR138: =IF(AND($Z138>CR$14,$Z138<=CR$15),1,"") ->  | CU138: =IF(AND($Z138>CU$14,$Z138<=CU$15),1,"") ->  | CX138: =IF(AND($Z138>CX$14,$Z138<=CX$15),1,"") ->  | DA138: =IF(AND($Z138>DA$14,$Z138<=DA$15),1,"") ->  | DD138: =IF(AND($Z138>DD$14,$Z138<=DD$15),1,"") ->  | DG138: =IF(AND($Z138>DG$14,$Z138<=DG$15),1,"") ->  | DJ138: =IF(AND($Z138>DJ$14,$Z138<=DJ$15),1,"") ->  | DM138: =IF(AND($Z138>DM$14,$Z138<=DM$15),1,"") ->  | DP138: =IF(AND($Z138>DP$14,$Z138<=DP$15),1,"") ->  | DV138: =IF(AND($Z138>DV$14,$Z138<=DV$15),$K138,"") ->  | DY138: =IF(AND($Z138>DY$14,$Z138<=DY$15),$K138,"") ->  | EB138: =IF(AND($Z138>EB$14,$Z138<=EB$15),$K138,"") ->  | EE138: =IF(AND($Z138>EE$14,$Z138<=EE$15),$K138,"") ->  | EH138: =IF(AND($Z138>EH$14,$Z138<=EH$15),$K138,"") ->  | EK138: =IF(AND($Z138>EK$14,$Z138<=EK$15),$K138,"") ->  | EN138: =IF(AND($Z138>EN$14,$Z138<=EN$15),$K138,"") ->  | EQ138: =IF(AND($Z138>EQ$14,$Z138<=EQ$15),$K138,"") ->  | ET138: =IF(AND($Z138>ET$14,$Z138<=ET$15),$K138,"") ->  | EW138: =IF(AND($Z138>EW$14,$Z138<=EW$15),$K138,"") ->  | EZ138: =IF(AND($Z138>EZ$14,$Z138<=EZ$15),$K138,"") ->  | FC138: =IF(AND($Z138>FC$14,$Z138<=FC$15),$K138,"") ->  | FF138: =IF(AND($Z138>FF$14,$Z138<=FF$15),$K138,"") ->  | FI138: =IF(AND($Z138>FI$14,$Z138<=FI$15),$K138,"") ->  | FL138: =IF(AND($Z138>FL$14,$Z138<=FL$15),$K138,"") ->  | FO138: =IF(AND($Z138>FO$14,$Z138<=FO$15),$K138,"") -> 91 | FR138: =IF(AND($Z138>FR$14,$Z138<=FR$15),$K138,"") ->  | FU138: =IF(AND($Z138>FU$14,$Z138<=FU$15),$K138,"") ->  | FX138: =IF(AND($Z138>FX$14,$Z138<=FX$15),$K138,"") ->  | GA138: =IF(AND($Z138>GA$14,$Z138<=GA$15),$K138,"") ->  | GD138: =IF(AND($Z138>GD$14,$Z138<=GD$15),$K138,"") ->  | GG138: =IF(AND($Z138>GG$14,$Z138<=GG$15),$K138,"") ->  | GJ138: =IF(AND($Z138>GJ$14,$Z138<=GJ$15),$K138,"") ->  | GM138: =IF(AND($Z138>GM$14,$Z138<=GM$15),$K138,"") ->  | GP138: =IF(AND($Z138>GP$14,$Z138<=GP$15),$K138,"") ->  | GS138: =IF(AND($Z138>GS$14,$Z138<=GS$15),$K138,"") ->  | GV138: =IF(AND($Z138>GV$14,$Z138<=GV$15),$K138,"") ->  | GY138: =IF(AND($Z138>GY$14,$Z138<=GY$15),$K138,"") ->  | HB138: =IF(AND($Z138>HB$14,$Z138<=HB$15),$K138,"") -> 
A139: 2014-01-06 01:00 | B139: 2014 | C139: 1 | D139: 6 | E139: 01:00:00 | G139: 0.4 | I139: -0.6 | K139: 93 | M139: 5 | O139: 6 | S139: 99.84 | Y139: ND | Z139: 32.72 | AB139: =IF(Z139="","",IF(Météo!$F$6>Z139,(Météo!$F$6-Z139)/24,"")) -> 1.47 | AC139: =IF(Z139="","",IF(Météo!$F$7<=Z139,(Z139-Météo!$F$7)/24,"")) ->  | AD139: =IF(Z139="","",IF(Météo!$F$6>Z139,(Météo!$F$6-Z139)/24,"")) -> 1.47 | AE139: =IF(Z139="","",IF(Météo!$F$7<=Z139,(Z139-Météo!$F$7)/24,"")) ->  | CC139: 1 | FO139: 93
A140: 2014-01-06 02:00 | B140: 2014 | C140: 1 | D140: 6 | E140: 02:00:00 | G140: 0.8 | I140: -0.3 | K140: 92 | M140: 5 | O140: 7 | S140: 99.65 | Y140: ND | Z140: 33.44 | AB140: =IF(Z140="","",IF(Météo!$F$6>Z140,(Météo!$F$6-Z140)/24,"")) -> 1.44 | AC140: =IF(Z140="","",IF(Météo!$F$7<=Z140,(Z140-Météo!$F$7)/24,"")) ->  | AD140: =IF(Z140="","",IF(Météo!$F$6>Z140,(Météo!$F$6-Z140)/24,"")) -> 1.44 | AE140: =IF(Z140="","",IF(Météo!$F$7<=Z140,(Z140-Météo!$F$7)/24,"")) ->  | CC140: 1 | FO140: 92
A141: 2014-01-06 03:00 | B141: 2014 | C141: 1 | D141: 6 | E141: 03:00:00 | G141: 2.4 | I141: 1.4 | K141: 93 | M141: 8 | O141: 17 | S141: 99.43 | Y141: ND | Z141: 36.32 | AB141: =IF(Z141="","",IF(Météo!$F$6>Z141,(Météo!$F$6-Z141)/24,"")) -> 1.32 | AC141: =IF(Z141="","",IF(Météo!$F$7<=Z141,(Z141-Météo!$F$7)/24,"")) ->  | AD141: =IF(Z141="","",IF(Météo!$F$6>Z141,(Météo!$F$6-Z141)/24,"")) -> 1.32 | AE141: =IF(Z141="","",IF(Météo!$F$7<=Z141,(Z141-Météo!$F$7)/24,"")) ->  | CF141: 1 | FR141: 93
A142: 2014-01-06 04:00 | B142: 2014 | C142: 1 | D142: 6 | E142: 04:00:00 | G142: 3.3 | I142: 2.2 | K142: 92 | M142: 11 | O142: 20 | S142: 99.14 | Y142: ND | Z142: 37.94 | AB142: =IF(Z142="","",IF(Météo!$F$6>Z142,(Météo!$F$6-Z142)/24,"")) -> 1.2525 | AC142: =IF(Z142="","",IF(Météo!$F$7<=Z142,(Z142-Météo!$F$7)/24,"")) ->  | AD142: =IF(Z142="","",IF(Météo!$F$6>Z142,(Météo!$F$6-Z142)/24,"")) -> 1.2525 | AE142: =IF(Z142="","",IF(Météo!$F$7<=Z142,(Z142-Météo!$F$7)/24,"")) ->  | CF142: 1 | FR142: 92
A143: 2014-01-06 05:00 | B143: 2014 | C143: 1 | D143: 6 | E143: 05:00:00 | G143: 4.5 | I143: 3.2 | K143: 92 | M143: 13 | O143: 34 | S143: 98.82 | Y143: ND | Z143: 40.1 | AB143: =IF(Z143="","",IF(Météo!$F$6>Z143,(Météo!$F$6-Z143)/24,"")) -> 1.1625 | AC143: =IF(Z143="","",IF(Météo!$F$7<=Z143,(Z143-Météo!$F$7)/24,"")) ->  | AD143: =IF(Z143="","",IF(Météo!$F$6>Z143,(Météo!$F$6-Z143)/24,"")) -> 1.1625 | AE143: =IF(Z143="","",IF(Météo!$F$7<=Z143,(Z143-Météo!$F$7)/24,"")) ->  | CI143: 1 | FU143: 92
A144: 2014-01-06 06:00 | B144: 2014 | C144: 1 | D144: 6 | E144: 06:00:00 | G144: 5.2 | I144: 3.8 | K144: 91 | M144: 14 | O144: 38 | S144: 98.66 | Y144: ND | Z144: 41.36 | AB144: =IF(Z144="","",IF(Météo!$F$6>Z144,(Météo!$F$6-Z144)/24,"")) -> 1.11 | AC144: =IF(Z144="","",IF(Météo!$F$7<=Z144,(Z144-Météo!$F$7)/24,"")) ->  | AD144: =IF(Z144="","",IF(Météo!$F$6>Z144,(Météo!$F$6-Z144)/24,"")) -> 1.11 | AE144: =IF(Z144="","",IF(Météo!$F$7<=Z144,(Z144-Météo!$F$7)/24,"")) ->  | CI144: 1 | FU144: 91
A145: 2014-01-06 07:00 | B145: 2014 | C145: 1 | D145: 6 | E145: 07:00:00 | G145: 5.3 | I145: 4.1 | K145: 92 | M145: 14 | O145: 32 | S145: 98.51 | Y145: ND | Z145: 41.54 | AB145: =IF(Z145="","",IF(Météo!$F$6>Z145,(Météo!$F$6-Z145)/24,"")) -> 1.1025 | AC145: =IF(Z145="","",IF(Météo!$F$7<=Z145,(Z145-Météo!$F$7)/24,"")) ->  | AD145: =IF(Z145="","",IF(Météo!$F$6>Z145,(Météo!$F$6-Z145)/24,"")) -> 1.1025 | AE145: =IF(Z145="","",IF(Météo!$F$7<=Z145,(Z145-Météo!$F$7)/24,"")) ->  | CI145: 1 | FU145: 92
A146: 2014-01-06 08:00 | B146: 2014 | C146: 1 | D146: 6 | E146: 08:00:00 | G146: 6 | I146: 5 | K146: 93 | M146: 16 | O146: 28 | S146: 98.49 | Y146: ND | Z146: 42.8 | AB146: =IF(Z146="","",IF(Météo!$F$6>Z146,(Météo!$F$6-Z146)/24,"")) -> 1.05 | AC146: =IF(Z146="","",IF(Météo!$F$7<=Z146,(Z146-Météo!$F$7)/24,"")) ->  | AF146: =IF(Z146="","",IF(Météo!$F$6>Z146,(Météo!$F$6-Z146)/24,"")) -> 1.05 | AG146: =IF(Z146="","",IF(Météo!$F$7<=Z146,(Z146-Météo!$F$7)/24,"")) ->  | AK146: =IF(AND($Z146>AJ$14,$Z146<=AJ$15),1,"") ->  | AN146: =IF(AND($Z146>AM$14,$Z146<=AM$15),1,"") ->  | AQ146: =IF(AND($Z146>AP$14,$Z146<=AP$15),1,"") ->  | AT146: =IF(AND($Z146>AS$14,$Z146<=AS$15),1,"") ->  | AW146: =IF(AND($Z146>AV$14,$Z146<=AV$15),1,"") ->  | AZ146: =IF(AND($Z146>AY$14,$Z146<=AY$15),1,"") ->  | BC146: =IF(AND($Z146>BB$14,$Z146<=BB$15),1,"") ->  | BF146: =IF(AND($Z146>BE$14,$Z146<=BE$15),1,"") ->  | BI146: =IF(AND($Z146>BH$14,$Z146<=BH$15),1,"") ->  | BL146: =IF(AND($Z146>BK$14,$Z146<=BK$15),1,"") ->  | BO146: =IF(AND($Z146>BN$14,$Z146<=BN$15),1,"") ->  | BR146: =IF(AND($Z146>BQ$14,$Z146<=BQ$15),1,"") ->  | BU146: =IF(AND($Z146>BT$14,$Z146<=BT$15),1,"") ->  | BX146: =IF(AND($Z146>BW$14,$Z146<=BW$15),1,"") ->  | CA146: =IF(AND($Z146>BZ$14,$Z146<=BZ$15),1,"") ->  | CD146: =IF(AND($Z146>CC$14,$Z146<=CC$15),1,"") ->  | CG146: =IF(AND($Z146>CF$14,$Z146<=CF$15),1,"") ->  | CJ146: =IF(AND($Z146>CI$14,$Z146<=CI$15),1,"") -> 1 | CM146: =IF(AND($Z146>CL$14,$Z146<=CL$15),1,"") ->  | CP146: =IF(AND($Z146>CO$14,$Z146<=CO$15),1,"") ->  | CS146: =IF(AND($Z146>CR$14,$Z146<=CR$15),1,"") ->  | CV146: =IF(AND($Z146>CU$14,$Z146<=CU$15),1,"") ->  | CY146: =IF(AND($Z146>CX$14,$Z146<=CX$15),1,"") ->  | DB146: =IF(AND($Z146>DA$14,$Z146<=DA$15),1,"") ->  | DE146: =IF(AND($Z146>DD$14,$Z146<=DD$15),1,"") ->  | DH146: =IF(AND($Z146>DG$14,$Z146<=DG$15),1,"") ->  | DK146: =IF(AND($Z146>DJ$14,$Z146<=DJ$15),1,"") ->  | DN146: =IF(AND($Z146>DM$14,$Z146<=DM$15),1,"") ->  | DQ146: =IF(AND($Z146>DP$14,$Z146<=DP$15),1,"") ->  | DW146: =IF(AND($Z146>DV$14,$Z146<=DV$15),$K146,"") ->  | DZ146: =IF(AND($Z146>DY$14,$Z146<=DY$15),$K146,"") ->  | EC146: =IF(AND($Z146>EB$14,$Z146<=EB$15),$K146,"") ->  | EF146: =IF(AND($Z146>EE$14,$Z146<=EE$15),$K146,"") ->  | EI146: =IF(AND($Z146>EH$14,$Z146<=EH$15),$K146,"") ->  | EL146: =IF(AND($Z146>EK$14,$Z146<=EK$15),$K146,"") ->  | EO146: =IF(AND($Z146>EN$14,$Z146<=EN$15),$K146,"") ->  | ER146: =IF(AND($Z146>EQ$14,$Z146<=EQ$15),$K146,"") ->  | EU146: =IF(AND($Z146>ET$14,$Z146<=ET$15),$K146,"") ->  | EX146: =IF(AND($Z146>EW$14,$Z146<=EW$15),$K146,"") ->  | FA146: =IF(AND($Z146>EZ$14,$Z146<=EZ$15),$K146,"") ->  | FD146: =IF(AND($Z146>FC$14,$Z146<=FC$15),$K146,"") ->  | FG146: =IF(AND($Z146>FF$14,$Z146<=FF$15),$K146,"") ->  | FJ146: =IF(AND($Z146>FI$14,$Z146<=FI$15),$K146,"") ->  | FM146: =IF(AND($Z146>FL$14,$Z146<=FL$15),$K146,"") ->  | FP146: =IF(AND($Z146>FO$14,$Z146<=FO$15),$K146,"") ->  | FS146: =IF(AND($Z146>FR$14,$Z146<=FR$15),$K146,"") ->  | FV146: =IF(AND($Z146>FU$14,$Z146<=FU$15),$K146,"") -> 93 | FY146: =IF(AND($Z146>FX$14,$Z146<=FX$15),$K146,"") ->  | GB146: =IF(AND($Z146>GA$14,$Z146<=GA$15),$K146,"") ->  | GE146: =IF(AND($Z146>GD$14,$Z146<=GD$15),$K146,"") ->  | GH146: =IF(AND($Z146>GG$14,$Z146<=GG$15),$K146,"") ->  | GK146: =IF(AND($Z146>GJ$14,$Z146<=GJ$15),$K146,"") ->  | GN146: =IF(AND($Z146>GM$14,$Z146<=GM$15),$K146,"") ->  | GQ146: =IF(AND($Z146>GP$14,$Z146<=GP$15),$K146,"") ->  | GT146: =IF(AND($Z146>GS$14,$Z146<=GS$15),$K146,"") ->  | GW146: =IF(AND($Z146>GV$14,$Z146<=GV$15),$K146,"") ->  | GZ146: =IF(AND($Z146>GY$14,$Z146<=GY$15),$K146,"") ->  | HC146: =IF(AND($Z146>HB$14,$Z146<=HB$15),$K146,"") -> 
A147: 2014-01-06 09:00 | B147: 2014 | C147: 1 | D147: 6 | E147: 09:00:00 | G147: 5.8 | I147: 4.8 | K147: 93 | M147: 24 | O147: 21 | S147: 98.49 | Y147: ND | Z147: =IF(G147="","",(G147*9/5)+32) -> 42.44 | AB147: =IF(Z147="","",IF(Météo!$F$6>Z147,(Météo!$F$6-Z147)/24,"")) -> 1.065 | AC147: =IF(Z147="","",IF(Météo!$F$7<=Z147,(Z147-Météo!$F$7)/24,"")) ->  | AF147: =IF(Z147="","",IF(Météo!$F$6>Z147,(Météo!$F$6-Z147)/24,"")) -> 1.065 | AG147: =IF(Z147="","",IF(Météo!$F$7<=Z147,(Z147-Météo!$F$7)/24,"")) ->  | CJ147: 1 | FV147: 93
A148: 2014-01-06 10:00 | B148: 2014 | C148: 1 | D148: 6 | E148: 10:00:00 | G148: 5.4 | I148: 3.7 | K148: 89 | M148: 23 | O148: 17 | S148: 98.5 | Y148: ND | Z148: 41.72 | AB148: =IF(Z148="","",IF(Météo!$F$6>Z148,(Météo!$F$6-Z148)/24,"")) -> 1.095 | AC148: =IF(Z148="","",IF(Météo!$F$7<=Z148,(Z148-Météo!$F$7)/24,"")) ->  | AF148: =IF(Z148="","",IF(Météo!$F$6>Z148,(Météo!$F$6-Z148)/24,"")) -> 1.095 | AG148: =IF(Z148="","",IF(Météo!$F$7<=Z148,(Z148-Météo!$F$7)/24,"")) ->  | CJ148: 1 | FV148: 89
A149: 2014-01-06 11:00 | B149: 2014 | C149: 1 | D149: 6 | E149: 11:00:00 | G149: 3.3 | I149: -0.6 | K149: 75 | M149: 24 | O149: 39 | S149: 98.62 | Y149: ND | Z149: 37.94 | AB149: =IF(Z149="","",IF(Météo!$F$6>Z149,(Météo!$F$6-Z149)/24,"")) -> 1.2525 | AC149: =IF(Z149="","",IF(Météo!$F$7<=Z149,(Z149-Météo!$F$7)/24,"")) ->  | AF149: =IF(Z149="","",IF(Météo!$F$6>Z149,(Météo!$F$6-Z149)/24,"")) -> 1.2525 | AG149: =IF(Z149="","",IF(Météo!$F$7<=Z149,(Z149-Météo!$F$7)/24,"")) ->  | CG149: 1 | FS149: 75
A150: 2014-01-06 12:00 | B150: 2014 | C150: 1 | D150: 6 | E150: 12:00:00 | G150: 2 | I150: -2.8 | K150: 70 | M150: 22 | O150: 39 | S150: 98.76 | Y150: ND | Z150: 35.6 | AB150: =IF(Z150="","",IF(Météo!$F$6>Z150,(Météo!$F$6-Z150)/24,"")) -> 1.35 | AC150: =IF(Z150="","",IF(Météo!$F$7<=Z150,(Z150-Météo!$F$7)/24,"")) ->  | AF150: =IF(Z150="","",IF(Météo!$F$6>Z150,(Météo!$F$6-Z150)/24,"")) -> 1.35 | AG150: =IF(Z150="","",IF(Météo!$F$7<=Z150,(Z150-Météo!$F$7)/24,"")) ->  | CG150: 1 | FS150: 70
A151: 2014-01-06 13:00 | B151: 2014 | C151: 1 | D151: 6 | E151: 13:00:00 | G151: 0.8 | I151: -4.2 | K151: 69 | M151: 23 | O151: 41 | S151: 98.87 | Y151: ND | Z151: 33.44 | AB151: =IF(Z151="","",IF(Météo!$F$6>Z151,(Météo!$F$6-Z151)/24,"")) -> 1.44 | AC151: =IF(Z151="","",IF(Météo!$F$7<=Z151,(Z151-Météo!$F$7)/24,"")) ->  | AF151: =IF(Z151="","",IF(Météo!$F$6>Z151,(Météo!$F$6-Z151)/24,"")) -> 1.44 | AG151: =IF(Z151="","",IF(Météo!$F$7<=Z151,(Z151-Météo!$F$7)/24,"")) ->  | CD151: 1 | FP151: 69
A152: 2014-01-06 14:00 | B152: 2014 | C152: 1 | D152: 6 | E152: 14:00:00 | G152: -0.4 | I152: -5.9 | K152: 66 | M152: 25 | O152: 44 | S152: 98.95 | W152: -8 | Y152: ND | Z152: 31.28 | AB152: =IF(Z152="","",IF(Météo!$F$6>Z152,(Météo!$F$6-Z152)/24,"")) -> 1.53 | AC152: =IF(Z152="","",IF(Météo!$F$7<=Z152,(Z152-Météo!$F$7)/24,"")) ->  | AF152: =IF(Z152="","",IF(Météo!$F$6>Z152,(Météo!$F$6-Z152)/24,"")) -> 1.53 | AG152: =IF(Z152="","",IF(Météo!$F$7<=Z152,(Z152-Météo!$F$7)/24,"")) ->  | CD152: 1 | FP152: 66
A153: 2014-01-06 15:00 | B153: 2014 | C153: 1 | D153: 6 | E153: 15:00:00 | G153: -1.7 | I153: -6.9 | K153: 68 | M153: 25 | O153: 37 | S153: 99.06 | W153: -9 | Y153: ND | Z153: 28.94 | AB153: =IF(Z153="","",IF(Météo!$F$6>Z153,(Météo!$F$6-Z153)/24,"")) -> 1.6275 | AC153: =IF(Z153="","",IF(Météo!$F$7<=Z153,(Z153-Météo!$F$7)/24,"")) ->  | AF153: =IF(Z153="","",IF(Météo!$F$6>Z153,(Météo!$F$6-Z153)/24,"")) -> 1.6275 | AG153: =IF(Z153="","",IF(Météo!$F$7<=Z153,(Z153-Météo!$F$7)/24,"")) ->  | CA153: 1 | FM153: 68
A154: 2014-01-06 16:00 | B154: 2014 | C154: 1 | D154: 6 | E154: 16:00:00 | G154: -3.9 | I154: -6.3 | K154: 84 | M154: 28 | O154: 25 | S154: 99.2 | W154: -11 | Y154: ND | Z154: 24.98 | AB154: =IF(Z154="","",IF(Météo!$F$6>Z154,(Météo!$F$6-Z154)/24,"")) -> 1.7925 | AC154: =IF(Z154="","",IF(Météo!$F$7<=Z154,(Z154-Météo!$F$7)/24,"")) ->  | AH154: =IF(Z154="","",IF(Météo!$F$6>Z154,(Météo!$F$6-Z154)/24,"")) -> 1.7925 | AI154: =IF(Z154="","",IF(Météo!$F$7<=Z154,(Z154-Météo!$F$7)/24,"")) ->  | AL154: =IF(AND($Z154>AJ$14,$Z154<=AJ$15),1,"") ->  | AO154: =IF(AND($Z154>AM$14,$Z154<=AM$15),1,"") ->  | AR154: =IF(AND($Z154>AP$14,$Z154<=AP$15),1,"") ->  | AU154: =IF(AND($Z154>AS$14,$Z154<=AS$15),1,"") ->  | AX154: =IF(AND($Z154>AV$14,$Z154<=AV$15),1,"") ->  | BA154: =IF(AND($Z154>AY$14,$Z154<=AY$15),1,"") ->  | BD154: =IF(AND($Z154>BB$14,$Z154<=BB$15),1,"") ->  | BG154: =IF(AND($Z154>BE$14,$Z154<=BE$15),1,"") ->  | BJ154: =IF(AND($Z154>BH$14,$Z154<=BH$15),1,"") ->  | BM154: =IF(AND($Z154>BK$14,$Z154<=BK$15),1,"") ->  | BP154: =IF(AND($Z154>BN$14,$Z154<=BN$15),1,"") ->  | BS154: =IF(AND($Z154>BQ$14,$Z154<=BQ$15),1,"") ->  | BV154: =IF(AND($Z154>BT$14,$Z154<=BT$15),1,"") ->  | BY154: =IF(AND($Z154>BW$14,$Z154<=BW$15),1,"") -> 1 | CB154: =IF(AND($Z154>BZ$14,$Z154<=BZ$15),1,"") ->  | CE154: =IF(AND($Z154>CC$14,$Z154<=CC$15),1,"") ->  | CH154: =IF(AND($Z154>CF$14,$Z154<=CF$15),1,"") ->  | CK154: =IF(AND($Z154>CI$14,$Z154<=CI$15),1,"") ->  | CN154: =IF(AND($Z154>CL$14,$Z154<=CL$15),1,"") ->  | CQ154: =IF(AND($Z154>CO$14,$Z154<=CO$15),1,"") ->  | CT154: =IF(AND($Z154>CR$14,$Z154<=CR$15),1,"") ->  | CW154: =IF(AND($Z154>CU$14,$Z154<=CU$15),1,"") ->  | CZ154: =IF(AND($Z154>CX$14,$Z154<=CX$15),1,"") ->  | DC154: =IF(AND($Z154>DA$14,$Z154<=DA$15),1,"") ->  | DF154: =IF(AND($Z154>DD$14,$Z154<=DD$15),1,"") ->  | DI154: =IF(AND($Z154>DG$14,$Z154<=DG$15),1,"") ->  | DL154: =IF(AND($Z154>DJ$14,$Z154<=DJ$15),1,"") ->  | DO154: =IF(AND($Z154>DM$14,$Z154<=DM$15),1,"") ->  | DR154: =IF(AND($Z154>DP$14,$Z154<=DP$15),1,"") ->  | DX154: =IF(AND($Z154>DV$14,$Z154<=DV$15),$K154,"") ->  | EA154: =IF(AND($Z154>DY$14,$Z154<=DY$15),$K154,"") ->  | ED154: =IF(AND($Z154>EB$14,$Z154<=EB$15),$K154,"") ->  | EG154: =IF(AND($Z154>EE$14,$Z154<=EE$15),$K154,"") ->  | EJ154: =IF(AND($Z154>EH$14,$Z154<=EH$15),$K154,"") ->  | EM154: =IF(AND($Z154>EK$14,$Z154<=EK$15),$K154,"") ->  | EP154: =IF(AND($Z154>EN$14,$Z154<=EN$15),$K154,"") ->  | ES154: =IF(AND($Z154>EQ$14,$Z154<=EQ$15),$K154,"") ->  | EV154: =IF(AND($Z154>ET$14,$Z154<=ET$15),$K154,"") ->  | EY154: =IF(AND($Z154>EW$14,$Z154<=EW$15),$K154,"") ->  | FB154: =IF(AND($Z154>EZ$14,$Z154<=EZ$15),$K154,"") ->  | FE154: =IF(AND($Z154>FC$14,$Z154<=FC$15),$K154,"") ->  | FH154: =IF(AND($Z154>FF$14,$Z154<=FF$15),$K154,"") ->  | FK154: =IF(AND($Z154>FI$14,$Z154<=FI$15),$K154,"") -> 84 | FN154: =IF(AND($Z154>FL$14,$Z154<=FL$15),$K154,"") ->  | FQ154: =IF(AND($Z154>FO$14,$Z154<=FO$15),$K154,"") ->  | FT154: =IF(AND($Z154>FR$14,$Z154<=FR$15),$K154,"") ->  | FW154: =IF(AND($Z154>FU$14,$Z154<=FU$15),$K154,"") ->  | FZ154: =IF(AND($Z154>FX$14,$Z154<=FX$15),$K154,"") ->  | GC154: =IF(AND($Z154>GA$14,$Z154<=GA$15),$K154,"") ->  | GF154: =IF(AND($Z154>GD$14,$Z154<=GD$15),$K154,"") ->  | GI154: =IF(AND($Z154>GG$14,$Z154<=GG$15),$K154,"") ->  | GL154: =IF(AND($Z154>GJ$14,$Z154<=GJ$15),$K154,"") ->  | GO154: =IF(AND($Z154>GM$14,$Z154<=GM$15),$K154,"") ->  | GR154: =IF(AND($Z154>GP$14,$Z154<=GP$15),$K154,"") ->  | GU154: =IF(AND($Z154>GS$14,$Z154<=GS$15),$K154,"") ->  | GX154: =IF(AND($Z154>GV$14,$Z154<=GV$15),$K154,"") ->  | HA154: =IF(AND($Z154>GY$14,$Z154<=GY$15),$K154,"") ->  | HD154: =IF(AND($Z154>HB$14,$Z154<=HB$15),$K154,"") -> 
A155: 2014-01-06 17:00 | B155: 2014 | C155: 1 | D155: 6 | E155: 17:00:00 | G155: -4.9 | I155: -8.2 | K155: 78 | M155: 27 | O155: 29 | S155: 99.32 | W155: -13 | Y155: ND | Z155: 23.18 | AB155: =IF(Z155="","",IF(Météo!$F$6>Z155,(Météo!$F$6-Z155)/24,"")) -> 1.8675 | AC155: =IF(Z155="","",IF(Météo!$F$7<=Z155,(Z155-Météo!$F$7)/24,"")) ->  | AH155: =IF(Z155="","",IF(Météo!$F$6>Z155,(Météo!$F$6-Z155)/24,"")) -> 1.8675 | AI155: =IF(Z155="","",IF(Météo!$F$7<=Z155,(Z155-Météo!$F$7)/24,"")) ->  | BY155: 1 | FK155: 78
A156: 2014-01-06 18:00 | B156: 2014 | C156: 1 | D156: 6 | E156: 18:00:00 | G156: -5.7 | I156: -9.8 | K156: 73 | M156: 27 | O156: 30 | S156: 99.34 | W156: -14 | Y156: ND | Z156: 21.74 | AB156: =IF(Z156="","",IF(Météo!$F$6>Z156,(Météo!$F$6-Z156)/24,"")) -> 1.9275 | AC156: =IF(Z156="","",IF(Météo!$F$7<=Z156,(Z156-Météo!$F$7)/24,"")) ->  | AH156: =IF(Z156="","",IF(Météo!$F$6>Z156,(Météo!$F$6-Z156)/24,"")) -> 1.9275 | AI156: =IF(Z156="","",IF(Météo!$F$7<=Z156,(Z156-Météo!$F$7)/24,"")) ->  | BY156: 1 | FK156: 73
A157: 2014-01-06 19:00 | B157: 2014 | C157: 1 | D157: 6 | E157: 19:00:00 | G157: -7.6 | I157: -12.3 | K157: 69 | M157: 28 | O157: 38 | S157: 99.38 | W157: -17 | Y157: ND | Z157: 18.32 | AB157: =IF(Z157="","",IF(Météo!$F$6>Z157,(Météo!$F$6-Z157)/24,"")) -> 2.07 | AC157: =IF(Z157="","",IF(Météo!$F$7<=Z157,(Z157-Météo!$F$7)/24,"")) ->  | AH157: =IF(Z157="","",IF(Météo!$F$6>Z157,(Météo!$F$6-Z157)/24,"")) -> 2.07 | AI157: =IF(Z157="","",IF(Météo!$F$7<=Z157,(Z157-Météo!$F$7)/24,"")) ->  | BV157: 1 | FH157: 69
A158: 2014-01-06 20:00 | B158: 2014 | C158: 1 | D158: 6 | E158: 20:00:00 | G158: -8.7 | I158: -13.6 | K158: 68 | M158: 27 | O158: 35 | S158: 99.42 | W158: -18 | Y158: ND | Z158: 16.34 | AB158: =IF(Z158="","",IF(Météo!$F$6>Z158,(Météo!$F$6-Z158)/24,"")) -> 2.1525 | AC158: =IF(Z158="","",IF(Météo!$F$7<=Z158,(Z158-Météo!$F$7)/24,"")) ->  | AH158: =IF(Z158="","",IF(Météo!$F$6>Z158,(Météo!$F$6-Z158)/24,"")) -> 2.1525 | AI158: =IF(Z158="","",IF(Météo!$F$7<=Z158,(Z158-Météo!$F$7)/24,"")) ->  | BV158: 1 | FH158: 68
A159: 2014-01-06 21:00 | B159: 2014 | C159: 1 | D159: 6 | E159: 21:00:00 | G159: -9.5 | I159: -13.7 | K159: 71 | M159: 28 | O159: 31 | S159: 99.41 | W159: -19 | Y159: ND | Z159: 14.9 | AB159: =IF(Z159="","",IF(Météo!$F$6>Z159,(Météo!$F$6-Z159)/24,"")) -> 2.2125 | AC159: =IF(Z159="","",IF(Météo!$F$7<=Z159,(Z159-Météo!$F$7)/24,"")) ->  | AH159: =IF(Z159="","",IF(Météo!$F$6>Z159,(Météo!$F$6-Z159)/24,"")) -> 2.2125 | AI159: =IF(Z159="","",IF(Météo!$F$7<=Z159,(Z159-Météo!$F$7)/24,"")) ->  | BS159: 1 | FE159: 71
A160: 2014-01-06 22:00 | B160: 2014 | C160: 1 | D160: 6 | E160: 22:00:00 | G160: -9.8 | I160: -14.3 | K160: 70 | M160: 26 | O160: 24 | S160: 99.46 | W160: -18 | Y160: ND | Z160: 14.36 | AB160: =IF(Z160="","",IF(Météo!$F$6>Z160,(Météo!$F$6-Z160)/24,"")) -> 2.235 | AC160: =IF(Z160="","",IF(Météo!$F$7<=Z160,(Z160-Météo!$F$7)/24,"")) ->  | AH160: =IF(Z160="","",IF(Météo!$F$6>Z160,(Météo!$F$6-Z160)/24,"")) -> 2.235 | AI160: =IF(Z160="","",IF(Météo!$F$7<=Z160,(Z160-Météo!$F$7)/24,"")) ->  | BS160: 1 | FE160: 70
A161: 2014-01-06 23:00 | B161: 2014 | C161: 1 | D161: 6 | E161: 23:00:00 | G161: -10 | I161: -14.6 | K161: 69 | M161: 27 | O161: 21 | S161: 99.47 | W161: -18 | Y161: ND | Z161: 14 | AB161: =IF(Z161="","",IF(Météo!$F$6>Z161,(Météo!$F$6-Z161)/24,"")) -> 2.25 | AC161: =IF(Z161="","",IF(Météo!$F$7<=Z161,(Z161-Météo!$F$7)/24,"")) ->  | AH161: =IF(Z161="","",IF(Météo!$F$6>Z161,(Météo!$F$6-Z161)/24,"")) -> 2.25 | AI161: =IF(Z161="","",IF(Météo!$F$7<=Z161,(Z161-Météo!$F$7)/24,"")) ->  | BS161: 1 | FE161: 69
A162: 2014-01-07 00:00 | B162: 2014 | C162: 1 | D162: 7 | E162: 00:00:00 | G162: -10.5 | I162: -12.3 | K162: 87 | M162: 27 | O162: 19 | S162: 99.5 | W162: -18 | Y162: ND | Z162: 13.1 | AB162: =IF(Z162="","",IF(Météo!$F$6>Z162,(Météo!$F$6-Z162)/24,"")) -> 2.2875 | AC162: =IF(Z162="","",IF(Météo!$F$7<=Z162,(Z162-Météo!$F$7)/24,"")) ->  | AD162: =IF(Z162="","",IF(Météo!$F$6>Z162,(Météo!$F$6-Z162)/24,"")) -> 2.2875 | AE162: =IF(Z162="","",IF(Météo!$F$7<=Z162,(Z162-Météo!$F$7)/24,"")) ->  | AJ162: =IF(AND($Z162>AJ$14,$Z162<=AJ$15),1,"") ->  | AM162: =IF(AND($Z162>AM$14,$Z162<=AM$15),1,"") ->  | AP162: =IF(AND($Z162>AP$14,$Z162<=AP$15),1,"") ->  | AS162: =IF(AND($Z162>AS$14,$Z162<=AS$15),1,"") ->  | AV162: =IF(AND($Z162>AV$14,$Z162<=AV$15),1,"") ->  | AY162: =IF(AND($Z162>AY$14,$Z162<=AY$15),1,"") ->  | BB162: =IF(AND($Z162>BB$14,$Z162<=BB$15),1,"") ->  | BE162: =IF(AND($Z162>BE$14,$Z162<=BE$15),1,"") ->  | BH162: =IF(AND($Z162>BH$14,$Z162<=BH$15),1,"") ->  | BK162: =IF(AND($Z162>BK$14,$Z162<=BK$15),1,"") ->  | BN162: =IF(AND($Z162>BN$14,$Z162<=BN$15),1,"") ->  | BQ162: =IF(AND($Z162>BQ$14,$Z162<=BQ$15),1,"") -> 1 | BT162: =IF(AND($Z162>BT$14,$Z162<=BT$15),1,"") ->  | BW162: =IF(AND($Z162>BW$14,$Z162<=BW$15),1,"") ->  | BZ162: =IF(AND($Z162>BZ$14,$Z162<=BZ$15),1,"") ->  | CC162: =IF(AND($Z162>CC$14,$Z162<=CC$15),1,"") ->  | CF162: =IF(AND($Z162>CF$14,$Z162<=CF$15),1,"") ->  | CI162: =IF(AND($Z162>CI$14,$Z162<=CI$15),1,"") ->  | CL162: =IF(AND($Z162>CL$14,$Z162<=CL$15),1,"") ->  | CO162: =IF(AND($Z162>CO$14,$Z162<=CO$15),1,"") ->  | CR162: =IF(AND($Z162>CR$14,$Z162<=CR$15),1,"") ->  | CU162: =IF(AND($Z162>CU$14,$Z162<=CU$15),1,"") ->  | CX162: =IF(AND($Z162>CX$14,$Z162<=CX$15),1,"") ->  | DA162: =IF(AND($Z162>DA$14,$Z162<=DA$15),1,"") ->  | DD162: =IF(AND($Z162>DD$14,$Z162<=DD$15),1,"") ->  | DG162: =IF(AND($Z162>DG$14,$Z162<=DG$15),1,"") ->  | DJ162: =IF(AND($Z162>DJ$14,$Z162<=DJ$15),1,"") ->  | DM162: =IF(AND($Z162>DM$14,$Z162<=DM$15),1,"") ->  | DP162: =IF(AND($Z162>DP$14,$Z162<=DP$15),1,"") ->  | DV162: =IF(AND($Z162>DV$14,$Z162<=DV$15),$K162,"") ->  | DY162: =IF(AND($Z162>DY$14,$Z162<=DY$15),$K162,"") ->  | EB162: =IF(AND($Z162>EB$14,$Z162<=EB$15),$K162,"") ->  | EE162: =IF(AND($Z162>EE$14,$Z162<=EE$15),$K162,"") ->  | EH162: =IF(AND($Z162>EH$14,$Z162<=EH$15),$K162,"") ->  | EK162: =IF(AND($Z162>EK$14,$Z162<=EK$15),$K162,"") ->  | EN162: =IF(AND($Z162>EN$14,$Z162<=EN$15),$K162,"") ->  | EQ162: =IF(AND($Z162>EQ$14,$Z162<=EQ$15),$K162,"") ->  | ET162: =IF(AND($Z162>ET$14,$Z162<=ET$15),$K162,"") ->  | EW162: =IF(AND($Z162>EW$14,$Z162<=EW$15),$K162,"") ->  | EZ162: =IF(AND($Z162>EZ$14,$Z162<=EZ$15),$K162,"") ->  | FC162: =IF(AND($Z162>FC$14,$Z162<=FC$15),$K162,"") -> 87 | FF162: =IF(AND($Z162>FF$14,$Z162<=FF$15),$K162,"") ->  | FI162: =IF(AND($Z162>FI$14,$Z162<=FI$15),$K162,"") ->  | FL162: =IF(AND($Z162>FL$14,$Z162<=FL$15),$K162,"") ->  | FO162: =IF(AND($Z162>FO$14,$Z162<=FO$15),$K162,"") ->  | FR162: =IF(AND($Z162>FR$14,$Z162<=FR$15),$K162,"") ->  | FU162: =IF(AND($Z162>FU$14,$Z162<=FU$15),$K162,"") ->  | FX162: =IF(AND($Z162>FX$14,$Z162<=FX$15),$K162,"") ->  | GA162: =IF(AND($Z162>GA$14,$Z162<=GA$15),$K162,"") ->  | GD162: =IF(AND($Z162>GD$14,$Z162<=GD$15),$K162,"") ->  | GG162: =IF(AND($Z162>GG$14,$Z162<=GG$15),$K162,"") ->  | GJ162: =IF(AND($Z162>GJ$14,$Z162<=GJ$15),$K162,"") ->  | GM162: =IF(AND($Z162>GM$14,$Z162<=GM$15),$K162,"") ->  | GP162: =IF(AND($Z162>GP$14,$Z162<=GP$15),$K162,"") ->  | GS162: =IF(AND($Z162>GS$14,$Z162<=GS$15),$K162,"") ->  | GV162: =IF(AND($Z162>GV$14,$Z162<=GV$15),$K162,"") ->  | GY162: =IF(AND($Z162>GY$14,$Z162<=GY$15),$K162,"") ->  | HB162: =IF(AND($Z162>HB$14,$Z162<=HB$15),$K162,"") -> 
A163: 2014-01-07 01:00 | B163: 2014 | C163: 1 | D163: 7 | E163: 01:00:00 | G163: -11.1 | I163: -12.5 | K163: 89 | M163: 27 | O163: 26 | S163: 99.53 | W163: -20 | Y163: ND | Z163: 12.02 | AB163: =IF(Z163="","",IF(Météo!$F$6>Z163,(Météo!$F$6-Z163)/24,"")) -> 2.3325 | AC163: =IF(Z163="","",IF(Météo!$F$7<=Z163,(Z163-Météo!$F$7)/24,"")) ->  | AD163: =IF(Z163="","",IF(Météo!$F$6>Z163,(Météo!$F$6-Z163)/24,"")) -> 2.3325 | AE163: =IF(Z163="","",IF(Météo!$F$7<=Z163,(Z163-Météo!$F$7)/24,"")) ->  | BQ163: 1 | FC163: 89
A164: 2014-01-07 02:00 | B164: 2014 | C164: 1 | D164: 7 | E164: 02:00:00 | G164: -11.4 | I164: -13.3 | K164: 86 | M164: 27 | O164: 27 | S164: 99.64 | W164: -21 | Y164: ND | Z164: 11.48 | AB164: =IF(Z164="","",IF(Météo!$F$6>Z164,(Météo!$F$6-Z164)/24,"")) -> 2.355 | AC164: =IF(Z164="","",IF(Météo!$F$7<=Z164,(Z164-Météo!$F$7)/24,"")) ->  | AD164: =IF(Z164="","",IF(Météo!$F$6>Z164,(Météo!$F$6-Z164)/24,"")) -> 2.355 | AE164: =IF(Z164="","",IF(Météo!$F$7<=Z164,(Z164-Météo!$F$7)/24,"")) ->  | BQ164: 1 | FC164: 86
A165: 2014-01-07 03:00 | B165: 2014 | C165: 1 | D165: 7 | E165: 03:00:00 | G165: -12.6 | I165: -15.1 | K165: 81 | M165: 28 | O165: 29 | S165: 99.74 | W165: -23 | Y165: ND | Z165: 9.32 | AB165: =IF(Z165="","",IF(Météo!$F$6>Z165,(Météo!$F$6-Z165)/24,"")) -> 2.445 | AC165: =IF(Z165="","",IF(Météo!$F$7<=Z165,(Z165-Météo!$F$7)/24,"")) ->  | AD165: =IF(Z165="","",IF(Météo!$F$6>Z165,(Météo!$F$6-Z165)/24,"")) -> 2.445 | AE165: =IF(Z165="","",IF(Météo!$F$7<=Z165,(Z165-Météo!$F$7)/24,"")) ->  | BN165: 1 | EZ165: 81
A166: 2014-01-07 04:00 | B166: 2014 | C166: 1 | D166: 7 | E166: 04:00:00 | G166: -13.6 | I166: -17.8 | K166: 71 | M166: 27 | O166: 24 | S166: 99.85 | W166: -23 | Y166: ND | Z166: 7.52 | AB166: =IF(Z166="","",IF(Météo!$F$6>Z166,(Météo!$F$6-Z166)/24,"")) -> 2.52 | AC166: =IF(Z166="","",IF(Météo!$F$7<=Z166,(Z166-Météo!$F$7)/24,"")) ->  | AD166: =IF(Z166="","",IF(Météo!$F$6>Z166,(Météo!$F$6-Z166)/24,"")) -> 2.52 | AE166: =IF(Z166="","",IF(Météo!$F$7<=Z166,(Z166-Météo!$F$7)/24,"")) ->  | BN166: 1 | EZ166: 71
A167: 2014-01-07 05:00 | B167: 2014 | C167: 1 | D167: 7 | E167: 05:00:00 | G167: -14.3 | I167: -18.7 | K167: 70 | M167: 27 | O167: 21 | S167: 99.92 | W167: -24 | Y167: ND | Z167: 6.26 | AB167: =IF(Z167="","",IF(Météo!$F$6>Z167,(Météo!$F$6-Z167)/24,"")) -> 2.5725 | AC167: =IF(Z167="","",IF(Météo!$F$7<=Z167,(Z167-Météo!$F$7)/24,"")) ->  | AD167: =IF(Z167="","",IF(Météo!$F$6>Z167,(Météo!$F$6-Z167)/24,"")) -> 2.5725 | AE167: =IF(Z167="","",IF(Météo!$F$7<=Z167,(Z167-Météo!$F$7)/24,"")) ->  | BN167: 1 | EZ167: 70
A168: 2014-01-07 06:00 | B168: 2014 | C168: 1 | D168: 7 | E168: 06:00:00 | G168: -15 | I168: -20.3 | K168: 64 | M168: 26 | O168: 33 | S168: 99.97 | W168: -27 | Y168: ND | Z168: 5 | AB168: =IF(Z168="","",IF(Météo!$F$6>Z168,(Météo!$F$6-Z168)/24,"")) -> 2.625 | AC168: =IF(Z168="","",IF(Météo!$F$7<=Z168,(Z168-Météo!$F$7)/24,"")) ->  | AD168: =IF(Z168="","",IF(Météo!$F$6>Z168,(Météo!$F$6-Z168)/24,"")) -> 2.625 | AE168: =IF(Z168="","",IF(Météo!$F$7<=Z168,(Z168-Météo!$F$7)/24,"")) ->  | BK168: 1 | EW168: 64
A169: 2014-01-07 07:00 | B169: 2014 | C169: 1 | D169: 7 | E169: 07:00:00 | G169: -16.2 | I169: -22 | K169: 61 | M169: 27 | O169: 32 | S169: 100.12 | W169: -28 | Y169: ND | Z169: 2.84 | AB169: =IF(Z169="","",IF(Météo!$F$6>Z169,(Météo!$F$6-Z169)/24,"")) -> 2.715 | AC169: =IF(Z169="","",IF(Météo!$F$7<=Z169,(Z169-Météo!$F$7)/24,"")) ->  | AD169: =IF(Z169="","",IF(Météo!$F$6>Z169,(Météo!$F$6-Z169)/24,"")) -> 2.715 | AE169: =IF(Z169="","",IF(Météo!$F$7<=Z169,(Z169-Météo!$F$7)/24,"")) ->  | BK169: 1 | EW169: 61
A170: 2014-01-07 08:00 | B170: 2014 | C170: 1 | D170: 7 | E170: 08:00:00 | G170: -16.4 | I170: -22.7 | K170: 58 | M170: 27 | O170: 35 | S170: 100.29 | W170: -29 | Y170: ND | Z170: 2.48 | AB170: =IF(Z170="","",IF(Météo!$F$6>Z170,(Météo!$F$6-Z170)/24,"")) -> 2.73 | AC170: =IF(Z170="","",IF(Météo!$F$7<=Z170,(Z170-Météo!$F$7)/24,"")) ->  | AF170: =IF(Z170="","",IF(Météo!$F$6>Z170,(Météo!$F$6-Z170)/24,"")) -> 2.73 | AG170: =IF(Z170="","",IF(Météo!$F$7<=Z170,(Z170-Météo!$F$7)/24,"")) ->  | AK170: =IF(AND($Z170>AJ$14,$Z170<=AJ$15),1,"") ->  | AN170: =IF(AND($Z170>AM$14,$Z170<=AM$15),1,"") ->  | AQ170: =IF(AND($Z170>AP$14,$Z170<=AP$15),1,"") ->  | AT170: =IF(AND($Z170>AS$14,$Z170<=AS$15),1,"") ->  | AW170: =IF(AND($Z170>AV$14,$Z170<=AV$15),1,"") ->  | AZ170: =IF(AND($Z170>AY$14,$Z170<=AY$15),1,"") ->  | BC170: =IF(AND($Z170>BB$14,$Z170<=BB$15),1,"") ->  | BF170: =IF(AND($Z170>BE$14,$Z170<=BE$15),1,"") ->  | BI170: =IF(AND($Z170>BH$14,$Z170<=BH$15),1,"") ->  | BL170: =IF(AND($Z170>BK$14,$Z170<=BK$15),1,"") -> 1 | BO170: =IF(AND($Z170>BN$14,$Z170<=BN$15),1,"") ->  | BR170: =IF(AND($Z170>BQ$14,$Z170<=BQ$15),1,"") ->  | BU170: =IF(AND($Z170>BT$14,$Z170<=BT$15),1,"") ->  | BX170: =IF(AND($Z170>BW$14,$Z170<=BW$15),1,"") ->  | CA170: =IF(AND($Z170>BZ$14,$Z170<=BZ$15),1,"") ->  | CD170: =IF(AND($Z170>CC$14,$Z170<=CC$15),1,"") ->  | CG170: =IF(AND($Z170>CF$14,$Z170<=CF$15),1,"") ->  | CJ170: =IF(AND($Z170>CI$14,$Z170<=CI$15),1,"") ->  | CM170: =IF(AND($Z170>CL$14,$Z170<=CL$15),1,"") ->  | CP170: =IF(AND($Z170>CO$14,$Z170<=CO$15),1,"") ->  | CS170: =IF(AND($Z170>CR$14,$Z170<=CR$15),1,"") ->  | CV170: =IF(AND($Z170>CU$14,$Z170<=CU$15),1,"") ->  | CY170: =IF(AND($Z170>CX$14,$Z170<=CX$15),1,"") ->  | DB170: =IF(AND($Z170>DA$14,$Z170<=DA$15),1,"") ->  | DE170: =IF(AND($Z170>DD$14,$Z170<=DD$15),1,"") ->  | DH170: =IF(AND($Z170>DG$14,$Z170<=DG$15),1,"") ->  | DK170: =IF(AND($Z170>DJ$14,$Z170<=DJ$15),1,"") ->  | DN170: =IF(AND($Z170>DM$14,$Z170<=DM$15),1,"") ->  | DQ170: =IF(AND($Z170>DP$14,$Z170<=DP$15),1,"") ->  | DW170: =IF(AND($Z170>DV$14,$Z170<=DV$15),$K170,"") ->  | DZ170: =IF(AND($Z170>DY$14,$Z170<=DY$15),$K170,"") ->  | EC170: =IF(AND($Z170>EB$14,$Z170<=EB$15),$K170,"") ->  | EF170: =IF(AND($Z170>EE$14,$Z170<=EE$15),$K170,"") ->  | EI170: =IF(AND($Z170>EH$14,$Z170<=EH$15),$K170,"") ->  | EL170: =IF(AND($Z170>EK$14,$Z170<=EK$15),$K170,"") ->  | EO170: =IF(AND($Z170>EN$14,$Z170<=EN$15),$K170,"") ->  | ER170: =IF(AND($Z170>EQ$14,$Z170<=EQ$15),$K170,"") ->  | EU170: =IF(AND($Z170>ET$14,$Z170<=ET$15),$K170,"") ->  | EX170: =IF(AND($Z170>EW$14,$Z170<=EW$15),$K170,"") -> 58 | FA170: =IF(AND($Z170>EZ$14,$Z170<=EZ$15),$K170,"") ->  | FD170: =IF(AND($Z170>FC$14,$Z170<=FC$15),$K170,"") ->  | FG170: =IF(AND($Z170>FF$14,$Z170<=FF$15),$K170,"") ->  | FJ170: =IF(AND($Z170>FI$14,$Z170<=FI$15),$K170,"") ->  | FM170: =IF(AND($Z170>FL$14,$Z170<=FL$15),$K170,"") ->  | FP170: =IF(AND($Z170>FO$14,$Z170<=FO$15),$K170,"") ->  | FS170: =IF(AND($Z170>FR$14,$Z170<=FR$15),$K170,"") ->  | FV170: =IF(AND($Z170>FU$14,$Z170<=FU$15),$K170,"") ->  | FY170: =IF(AND($Z170>FX$14,$Z170<=FX$15),$K170,"") ->  | GB170: =IF(AND($Z170>GA$14,$Z170<=GA$15),$K170,"") ->  | GE170: =IF(AND($Z170>GD$14,$Z170<=GD$15),$K170,"") ->  | GH170: =IF(AND($Z170>GG$14,$Z170<=GG$15),$K170,"") ->  | GK170: =IF(AND($Z170>GJ$14,$Z170<=GJ$15),$K170,"") ->  | GN170: =IF(AND($Z170>GM$14,$Z170<=GM$15),$K170,"") ->  | GQ170: =IF(AND($Z170>GP$14,$Z170<=GP$15),$K170,"") ->  | GT170: =IF(AND($Z170>GS$14,$Z170<=GS$15),$K170,"") ->  | GW170: =IF(AND($Z170>GV$14,$Z170<=GV$15),$K170,"") ->  | GZ170: =IF(AND($Z170>GY$14,$Z170<=GY$15),$K170,"") ->  | HC170: =IF(AND($Z170>HB$14,$Z170<=HB$15),$K170,"") -> 
A171: 2014-01-07 09:00 | B171: 2014 | C171: 1 | D171: 7 | E171: 09:00:00 | G171: -15.8 | I171: -20.5 | K171: 67 | M171: 27 | O171: 29 | S171: 100.38 | W171: -27 | Y171: ND | Z171: 3.56 | AB171: =IF(Z171="","",IF(Météo!$F$6>Z171,(Météo!$F$6-Z171)/24,"")) -> 2.685 | AC171: =IF(Z171="","",IF(Météo!$F$7<=Z171,(Z171-Météo!$F$7)/24,"")) ->  | AF171: =IF(Z171="","",IF(Météo!$F$6>Z171,(Météo!$F$6-Z171)/24,"")) -> 2.685 | AG171: =IF(Z171="","",IF(Météo!$F$7<=Z171,(Z171-Météo!$F$7)/24,"")) ->  | BL171: 1 | EX171: 67
A172: 2014-01-07 10:00 | B172: 2014 | C172: 1 | D172: 7 | E172: 10:00:00 | G172: -14.4 | I172: -18.8 | K172: 70 | M172: 26 | O172: 31 | S172: 100.43 | W172: -25 | Y172: ND | Z172: 6.08 | AB172: =IF(Z172="","",IF(Météo!$F$6>Z172,(Météo!$F$6-Z172)/24,"")) -> 2.58 | AC172: =IF(Z172="","",IF(Météo!$F$7<=Z172,(Z172-Météo!$F$7)/24,"")) ->  | AF172: =IF(Z172="","",IF(Météo!$F$6>Z172,(Météo!$F$6-Z172)/24,"")) -> 2.58 | AG172: =IF(Z172="","",IF(Météo!$F$7<=Z172,(Z172-Météo!$F$7)/24,"")) ->  | BO172: 1 | FA172: 70
A173: 2014-01-07 11:00 | B173: 2014 | C173: 1 | D173: 7 | E173: 11:00:00 | G173: -13.9 | I173: -19.2 | K173: 64 | M173: 25 | O173: 30 | S173: 100.42 | W173: -25 | Y173: ND | Z173: 6.98 | AB173: =IF(Z173="","",IF(Météo!$F$6>Z173,(Météo!$F$6-Z173)/24,"")) -> 2.5425 | AC173: =IF(Z173="","",IF(Météo!$F$7<=Z173,(Z173-Météo!$F$7)/24,"")) ->  | AF173: =IF(Z173="","",IF(Météo!$F$6>Z173,(Météo!$F$6-Z173)/24,"")) -> 2.5425 | AG173: =IF(Z173="","",IF(Météo!$F$7<=Z173,(Z173-Météo!$F$7)/24,"")) ->  | BO173: 1 | FA173: 64
A174: 2014-01-07 12:00 | B174: 2014 | C174: 1 | D174: 7 | E174: 12:00:00 | G174: -13.3 | I174: -20.8 | K174: 53 | M174: 25 | O174: 35 | S174: 100.39 | W174: -25 | Y174: ND | Z174: 8.06 | AB174: =IF(Z174="","",IF(Météo!$F$6>Z174,(Météo!$F$6-Z174)/24,"")) -> 2.4975 | AC174: =IF(Z174="","",IF(Météo!$F$7<=Z174,(Z174-Météo!$F$7)/24,"")) ->  | AF174: =IF(Z174="","",IF(Météo!$F$6>Z174,(Météo!$F$6-Z174)/24,"")) -> 2.4975 | AG174: =IF(Z174="","",IF(Météo!$F$7<=Z174,(Z174-Météo!$F$7)/24,"")) ->  | BO174: 1 | FA174: 53
A175: 2014-01-07 13:00 | B175: 2014 | C175: 1 | D175: 7 | E175: 13:00:00 | G175: -13.5 | I175: -21.3 | K175: 52 | M175: 25 | O175: 33 | S175: 100.42 | W175: -25 | Y175: ND | Z175: 7.7 | AB175: =IF(Z175="","",IF(Météo!$F$6>Z175,(Météo!$F$6-Z175)/24,"")) -> 2.5125 | AC175: =IF(Z175="","",IF(Météo!$F$7<=Z175,(Z175-Météo!$F$7)/24,"")) ->  | AF175: =IF(Z175="","",IF(Météo!$F$6>Z175,(Météo!$F$6-Z175)/24,"")) -> 2.5125 | AG175: =IF(Z175="","",IF(Météo!$F$7<=Z175,(Z175-Météo!$F$7)/24,"")) ->  | BO175: 1 | FA175: 52
A176: 2014-01-07 14:00 | B176: 2014 | C176: 1 | D176: 7 | E176: 14:00:00 | G176: -13.9 | I176: -22.3 | K176: 49 | M176: 25 | O176: 43 | S176: 100.46 | W176: -26 | Y176: ND | Z176: 6.98 | AB176: =IF(Z176="","",IF(Météo!$F$6>Z176,(Météo!$F$6-Z176)/24,"")) -> 2.5425 | AC176: =IF(Z176="","",IF(Météo!$F$7<=Z176,(Z176-Météo!$F$7)/24,"")) ->  | AF176: =IF(Z176="","",IF(Météo!$F$6>Z176,(Météo!$F$6-Z176)/24,"")) -> 2.5425 | AG176: =IF(Z176="","",IF(Météo!$F$7<=Z176,(Z176-Météo!$F$7)/24,"")) ->  | BO176: 1 | FA176: 49
A177: 2014-01-07 15:00 | B177: 2014 | C177: 1 | D177: 7 | E177: 15:00:00 | G177: -13.9 | I177: -22.7 | K177: 47 | M177: 25 | O177: 37 | S177: 100.56 | W177: -26 | Y177: ND | Z177: 6.98 | AB177: =IF(Z177="","",IF(Météo!$F$6>Z177,(Météo!$F$6-Z177)/24,"")) -> 2.5425 | AC177: =IF(Z177="","",IF(Météo!$F$7<=Z177,(Z177-Météo!$F$7)/24,"")) ->  | AF177: =IF(Z177="","",IF(Météo!$F$6>Z177,(Météo!$F$6-Z177)/24,"")) -> 2.5425 | AG177: =IF(Z177="","",IF(Météo!$F$7<=Z177,(Z177-Météo!$F$7)/24,"")) ->  | BO177: 1 | FA177: 47
A178: 2014-01-07 16:00 | B178: 2014 | C178: 1 | D178: 7 | E178: 16:00:00 | G178: -13.7 | I178: -22.2 | K178: 48 | M178: 25 | O178: 32 | S178: 100.59 | W178: -25 | Y178: ND | Z178: 7.34 | AB178: =IF(Z178="","",IF(Météo!$F$6>Z178,(Météo!$F$6-Z178)/24,"")) -> 2.5275 | AC178: =IF(Z178="","",IF(Météo!$F$7<=Z178,(Z178-Météo!$F$7)/24,"")) ->  | AH178: =IF(Z178="","",IF(Météo!$F$6>Z178,(Météo!$F$6-Z178)/24,"")) -> 2.5275 | AI178: =IF(Z178="","",IF(Météo!$F$7<=Z178,(Z178-Météo!$F$7)/24,"")) ->  | AL178: =IF(AND($Z178>AJ$14,$Z178<=AJ$15),1,"") ->  | AO178: =IF(AND($Z178>AM$14,$Z178<=AM$15),1,"") ->  | AR178: =IF(AND($Z178>AP$14,$Z178<=AP$15),1,"") ->  | AU178: =IF(AND($Z178>AS$14,$Z178<=AS$15),1,"") ->  | AX178: =IF(AND($Z178>AV$14,$Z178<=AV$15),1,"") ->  | BA178: =IF(AND($Z178>AY$14,$Z178<=AY$15),1,"") ->  | BD178: =IF(AND($Z178>BB$14,$Z178<=BB$15),1,"") ->  | BG178: =IF(AND($Z178>BE$14,$Z178<=BE$15),1,"") ->  | BJ178: =IF(AND($Z178>BH$14,$Z178<=BH$15),1,"") ->  | BM178: =IF(AND($Z178>BK$14,$Z178<=BK$15),1,"") ->  | BP178: =IF(AND($Z178>BN$14,$Z178<=BN$15),1,"") -> 1 | BS178: =IF(AND($Z178>BQ$14,$Z178<=BQ$15),1,"") ->  | BV178: =IF(AND($Z178>BT$14,$Z178<=BT$15),1,"") ->  | BY178: =IF(AND($Z178>BW$14,$Z178<=BW$15),1,"") ->  | CB178: =IF(AND($Z178>BZ$14,$Z178<=BZ$15),1,"") ->  | CE178: =IF(AND($Z178>CC$14,$Z178<=CC$15),1,"") ->  | CH178: =IF(AND($Z178>CF$14,$Z178<=CF$15),1,"") ->  | CK178: =IF(AND($Z178>CI$14,$Z178<=CI$15),1,"") ->  | CN178: =IF(AND($Z178>CL$14,$Z178<=CL$15),1,"") ->  | CQ178: =IF(AND($Z178>CO$14,$Z178<=CO$15),1,"") ->  | CT178: =IF(AND($Z178>CR$14,$Z178<=CR$15),1,"") ->  | CW178: =IF(AND($Z178>CU$14,$Z178<=CU$15),1,"") ->  | CZ178: =IF(AND($Z178>CX$14,$Z178<=CX$15),1,"") ->  | DC178: =IF(AND($Z178>DA$14,$Z178<=DA$15),1,"") ->  | DF178: =IF(AND($Z178>DD$14,$Z178<=DD$15),1,"") ->  | DI178: =IF(AND($Z178>DG$14,$Z178<=DG$15),1,"") ->  | DL178: =IF(AND($Z178>DJ$14,$Z178<=DJ$15),1,"") ->  | DO178: =IF(AND($Z178>DM$14,$Z178<=DM$15),1,"") ->  | DR178: =IF(AND($Z178>DP$14,$Z178<=DP$15),1,"") ->  | DX178: =IF(AND($Z178>DV$14,$Z178<=DV$15),$K178,"") ->  | EA178: =IF(AND($Z178>DY$14,$Z178<=DY$15),$K178,"") ->  | ED178: =IF(AND($Z178>EB$14,$Z178<=EB$15),$K178,"") ->  | EG178: =IF(AND($Z178>EE$14,$Z178<=EE$15),$K178,"") ->  | EJ178: =IF(AND($Z178>EH$14,$Z178<=EH$15),$K178,"") ->  | EM178: =IF(AND($Z178>EK$14,$Z178<=EK$15),$K178,"") ->  | EP178: =IF(AND($Z178>EN$14,$Z178<=EN$15),$K178,"") ->  | ES178: =IF(AND($Z178>EQ$14,$Z178<=EQ$15),$K178,"") ->  | EV178: =IF(AND($Z178>ET$14,$Z178<=ET$15),$K178,"") ->  | EY178: =IF(AND($Z178>EW$14,$Z178<=EW$15),$K178,"") ->  | FB178: =IF(AND($Z178>EZ$14,$Z178<=EZ$15),$K178,"") -> 48 | FE178: =IF(AND($Z178>FC$14,$Z178<=FC$15),$K178,"") ->  | FH178: =IF(AND($Z178>FF$14,$Z178<=FF$15),$K178,"") ->  | FK178: =IF(AND($Z178>FI$14,$Z178<=FI$15),$K178,"") ->  | FN178: =IF(AND($Z178>FL$14,$Z178<=FL$15),$K178,"") ->  | FQ178: =IF(AND($Z178>FO$14,$Z178<=FO$15),$K178,"") ->  | FT178: =IF(AND($Z178>FR$14,$Z178<=FR$15),$K178,"") ->  | FW178: =IF(AND($Z178>FU$14,$Z178<=FU$15),$K178,"") ->  | FZ178: =IF(AND($Z178>FX$14,$Z178<=FX$15),$K178,"") ->  | GC178: =IF(AND($Z178>GA$14,$Z178<=GA$15),$K178,"") ->  | GF178: =IF(AND($Z178>GD$14,$Z178<=GD$15),$K178,"") ->  | GI178: =IF(AND($Z178>GG$14,$Z178<=GG$15),$K178,"") ->  | GL178: =IF(AND($Z178>GJ$14,$Z178<=GJ$15),$K178,"") ->  | GO178: =IF(AND($Z178>GM$14,$Z178<=GM$15),$K178,"") ->  | GR178: =IF(AND($Z178>GP$14,$Z178<=GP$15),$K178,"") ->  | GU178: =IF(AND($Z178>GS$14,$Z178<=GS$15),$K178,"") ->  | GX178: =IF(AND($Z178>GV$14,$Z178<=GV$15),$K178,"") ->  | HA178: =IF(AND($Z178>GY$14,$Z178<=GY$15),$K178,"") ->  | HD178: =IF(AND($Z178>HB$14,$Z178<=HB$15),$K178,"") -> 
A179: 2014-01-07 17:00 | B179: 2014 | C179: 1 | D179: 7 | E179: 17:00:00 | G179: -13.9 | I179: -22.6 | K179: 48 | M179: 25 | O179: 35 | S179: 100.66 | W179: -25 | Y179: ND | Z179: 6.98 | AB179: =IF(Z179="","",IF(Météo!$F$6>Z179,(Météo!$F$6-Z179)/24,"")) -> 2.5425 | AC179: =IF(Z179="","",IF(Météo!$F$7<=Z179,(Z179-Météo!$F$7)/24,"")) ->  | AH179: =IF(Z179="","",IF(Météo!$F$6>Z179,(Météo!$F$6-Z179)/24,"")) -> 2.5425 | AI179: =IF(Z179="","",IF(Météo!$F$7<=Z179,(Z179-Météo!$F$7)/24,"")) ->  | BP179: 1 | FB179: 48
A180: 2014-01-07 18:00 | B180: 2014 | C180: 1 | D180: 7 | E180: 18:00:00 | G180: -13.9 | I180: -22.6 | K180: 48 | M180: 24 | O180: 31 | S180: 100.74 | W180: -25 | Y180: ND | Z180: 6.98 | AB180: =IF(Z180="","",IF(Météo!$F$6>Z180,(Météo!$F$6-Z180)/24,"")) -> 2.5425 | AC180: =IF(Z180="","",IF(Météo!$F$7<=Z180,(Z180-Météo!$F$7)/24,"")) ->  | AH180: =IF(Z180="","",IF(Météo!$F$6>Z180,(Météo!$F$6-Z180)/24,"")) -> 2.5425 | AI180: =IF(Z180="","",IF(Météo!$F$7<=Z180,(Z180-Météo!$F$7)/24,"")) ->  | BP180: 1 | FB180: 48
A181: 2014-01-07 19:00 | B181: 2014 | C181: 1 | D181: 7 | E181: 19:00:00 | G181: -13.9 | I181: -22.2 | K181: 49 | M181: 24 | O181: 33 | S181: 100.8 | W181: -25 | Y181: ND | Z181: 6.98 | AB181: =IF(Z181="","",IF(Météo!$F$6>Z181,(Météo!$F$6-Z181)/24,"")) -> 2.5425 | AC181: =IF(Z181="","",IF(Météo!$F$7<=Z181,(Z181-Météo!$F$7)/24,"")) ->  | AH181: =IF(Z181="","",IF(Météo!$F$6>Z181,(Météo!$F$6-Z181)/24,"")) -> 2.5425 | AI181: =IF(Z181="","",IF(Météo!$F$7<=Z181,(Z181-Météo!$F$7)/24,"")) ->  | BP181: 1 | FB181: 49
A182: 2014-01-07 20:00 | B182: 2014 | C182: 1 | D182: 7 | E182: 20:00:00 | G182: -14.3 | I182: -22.1 | K182: 52 | M182: 25 | O182: 32 | S182: 100.91 | W182: -25 | Y182: ND | Z182: 6.26 | AB182: =IF(Z182="","",IF(Météo!$F$6>Z182,(Météo!$F$6-Z182)/24,"")) -> 2.5725 | AC182: =IF(Z182="","",IF(Météo!$F$7<=Z182,(Z182-Météo!$F$7)/24,"")) ->  | AH182: =IF(Z182="","",IF(Météo!$F$6>Z182,(Météo!$F$6-Z182)/24,"")) -> 2.5725 | AI182: =IF(Z182="","",IF(Météo!$F$7<=Z182,(Z182-Météo!$F$7)/24,"")) ->  | BP182: 1 | FB182: 52
A183: 2014-01-07 21:00 | B183: 2014 | C183: 1 | D183: 7 | E183: 21:00:00 | G183: -14.5 | I183: -21.4 | K183: 56 | M183: 26 | O183: 29 | S183: 100.98 | W183: -25 | Y183: ND | Z183: 5.9 | AB183: =IF(Z183="","",IF(Météo!$F$6>Z183,(Météo!$F$6-Z183)/24,"")) -> 2.5875 | AC183: =IF(Z183="","",IF(Météo!$F$7<=Z183,(Z183-Météo!$F$7)/24,"")) ->  | AH183: =IF(Z183="","",IF(Météo!$F$6>Z183,(Météo!$F$6-Z183)/24,"")) -> 2.5875 | AI183: =IF(Z183="","",IF(Météo!$F$7<=Z183,(Z183-Météo!$F$7)/24,"")) ->  | BP183: 1 | FB183: 56
A184: 2014-01-07 22:00 | B184: 2014 | C184: 1 | D184: 7 | E184: 22:00:00 | G184: -14.5 | I184: -21.5 | K184: 55 | M184: 26 | O184: 27 | S184: 101.1 | W184: -25 | Y184: ND | Z184: 5.9 | AB184: =IF(Z184="","",IF(Météo!$F$6>Z184,(Météo!$F$6-Z184)/24,"")) -> 2.5875 | AC184: =IF(Z184="","",IF(Météo!$F$7<=Z184,(Z184-Météo!$F$7)/24,"")) ->  | AH184: =IF(Z184="","",IF(Météo!$F$6>Z184,(Météo!$F$6-Z184)/24,"")) -> 2.5875 | AI184: =IF(Z184="","",IF(Météo!$F$7<=Z184,(Z184-Météo!$F$7)/24,"")) ->  | BP184: 1 | FB184: 55
A185: 2014-01-07 23:00 | B185: 2014 | C185: 1 | D185: 7 | E185: 23:00:00 | G185: -14.4 | I185: -20.9 | K185: 57 | M185: 25 | O185: 23 | S185: 101.17 | W185: -24 | Y185: ND | Z185: 6.08 | AB185: =IF(Z185="","",IF(Météo!$F$6>Z185,(Météo!$F$6-Z185)/24,"")) -> 2.58 | AC185: =IF(Z185="","",IF(Météo!$F$7<=Z185,(Z185-Météo!$F$7)/24,"")) ->  | AH185: =IF(Z185="","",IF(Météo!$F$6>Z185,(Météo!$F$6-Z185)/24,"")) -> 2.58 | AI185: =IF(Z185="","",IF(Météo!$F$7<=Z185,(Z185-Météo!$F$7)/24,"")) ->  | BP185: 1 | FB185: 57
A186: 2014-01-08 00:00 | B186: 2014 | C186: 1 | D186: 8 | E186: 00:00:00 | G186: -14.2 | I186: -20.7 | K186: 58 | M186: 25 | O186: 28 | S186: 101.23 | W186: -25 | Y186: ND | Z186: 6.44 | AB186: =IF(Z186="","",IF(Météo!$F$6>Z186,(Météo!$F$6-Z186)/24,"")) -> 2.565 | AC186: =IF(Z186="","",IF(Météo!$F$7<=Z186,(Z186-Météo!$F$7)/24,"")) ->  | AD186: =IF(Z186="","",IF(Météo!$F$6>Z186,(Météo!$F$6-Z186)/24,"")) -> 2.565 | AE186: =IF(Z186="","",IF(Météo!$F$7<=Z186,(Z186-Météo!$F$7)/24,"")) ->  | AJ186: =IF(AND($Z186>AJ$14,$Z186<=AJ$15),1,"") ->  | AM186: =IF(AND($Z186>AM$14,$Z186<=AM$15),1,"") ->  | AP186: =IF(AND($Z186>AP$14,$Z186<=AP$15),1,"") ->  | AS186: =IF(AND($Z186>AS$14,$Z186<=AS$15),1,"") ->  | AV186: =IF(AND($Z186>AV$14,$Z186<=AV$15),1,"") ->  | AY186: =IF(AND($Z186>AY$14,$Z186<=AY$15),1,"") ->  | BB186: =IF(AND($Z186>BB$14,$Z186<=BB$15),1,"") ->  | BE186: =IF(AND($Z186>BE$14,$Z186<=BE$15),1,"") ->  | BH186: =IF(AND($Z186>BH$14,$Z186<=BH$15),1,"") ->  | BK186: =IF(AND($Z186>BK$14,$Z186<=BK$15),1,"") ->  | BN186: =IF(AND($Z186>BN$14,$Z186<=BN$15),1,"") -> 1 | BQ186: =IF(AND($Z186>BQ$14,$Z186<=BQ$15),1,"") ->  | BT186: =IF(AND($Z186>BT$14,$Z186<=BT$15),1,"") ->  | BW186: =IF(AND($Z186>BW$14,$Z186<=BW$15),1,"") ->  | BZ186: =IF(AND($Z186>BZ$14,$Z186<=BZ$15),1,"") ->  | CC186: =IF(AND($Z186>CC$14,$Z186<=CC$15),1,"") ->  | CF186: =IF(AND($Z186>CF$14,$Z186<=CF$15),1,"") ->  | CI186: =IF(AND($Z186>CI$14,$Z186<=CI$15),1,"") ->  | CL186: =IF(AND($Z186>CL$14,$Z186<=CL$15),1,"") ->  | CO186: =IF(AND($Z186>CO$14,$Z186<=CO$15),1,"") ->  | CR186: =IF(AND($Z186>CR$14,$Z186<=CR$15),1,"") ->  | CU186: =IF(AND($Z186>CU$14,$Z186<=CU$15),1,"") ->  | CX186: =IF(AND($Z186>CX$14,$Z186<=CX$15),1,"") ->  | DA186: =IF(AND($Z186>DA$14,$Z186<=DA$15),1,"") ->  | DD186: =IF(AND($Z186>DD$14,$Z186<=DD$15),1,"") ->  | DG186: =IF(AND($Z186>DG$14,$Z186<=DG$15),1,"") ->  | DJ186: =IF(AND($Z186>DJ$14,$Z186<=DJ$15),1,"") ->  | DM186: =IF(AND($Z186>DM$14,$Z186<=DM$15),1,"") ->  | DP186: =IF(AND($Z186>DP$14,$Z186<=DP$15),1,"") ->  | DV186: =IF(AND($Z186>DV$14,$Z186<=DV$15),$K186,"") ->  | DY186: =IF(AND($Z186>DY$14,$Z186<=DY$15),$K186,"") ->  | EB186: =IF(AND($Z186>EB$14,$Z186<=EB$15),$K186,"") ->  | EE186: =IF(AND($Z186>EE$14,$Z186<=EE$15),$K186,"") ->  | EH186: =IF(AND($Z186>EH$14,$Z186<=EH$15),$K186,"") ->  | EK186: =IF(AND($Z186>EK$14,$Z186<=EK$15),$K186,"") ->  | EN186: =IF(AND($Z186>EN$14,$Z186<=EN$15),$K186,"") ->  | EQ186: =IF(AND($Z186>EQ$14,$Z186<=EQ$15),$K186,"") ->  | ET186: =IF(AND($Z186>ET$14,$Z186<=ET$15),$K186,"") ->  | EW186: =IF(AND($Z186>EW$14,$Z186<=EW$15),$K186,"") ->  | EZ186: =IF(AND($Z186>EZ$14,$Z186<=EZ$15),$K186,"") -> 58 | FC186: =IF(AND($Z186>FC$14,$Z186<=FC$15),$K186,"") ->  | FF186: =IF(AND($Z186>FF$14,$Z186<=FF$15),$K186,"") ->  | FI186: =IF(AND($Z186>FI$14,$Z186<=FI$15),$K186,"") ->  | FL186: =IF(AND($Z186>FL$14,$Z186<=FL$15),$K186,"") ->  | FO186: =IF(AND($Z186>FO$14,$Z186<=FO$15),$K186,"") ->  | FR186: =IF(AND($Z186>FR$14,$Z186<=FR$15),$K186,"") ->  | FU186: =IF(AND($Z186>FU$14,$Z186<=FU$15),$K186,"") ->  | FX186: =IF(AND($Z186>FX$14,$Z186<=FX$15),$K186,"") ->  | GA186: =IF(AND($Z186>GA$14,$Z186<=GA$15),$K186,"") ->  | GD186: =IF(AND($Z186>GD$14,$Z186<=GD$15),$K186,"") ->  | GG186: =IF(AND($Z186>GG$14,$Z186<=GG$15),$K186,"") ->  | GJ186: =IF(AND($Z186>GJ$14,$Z186<=GJ$15),$K186,"") ->  | GM186: =IF(AND($Z186>GM$14,$Z186<=GM$15),$K186,"") ->  | GP186: =IF(AND($Z186>GP$14,$Z186<=GP$15),$K186,"") ->  | GS186: =IF(AND($Z186>GS$14,$Z186<=GS$15),$K186,"") ->  | GV186: =IF(AND($Z186>GV$14,$Z186<=GV$15),$K186,"") ->  | GY186: =IF(AND($Z186>GY$14,$Z186<=GY$15),$K186,"") ->  | HB186: =IF(AND($Z186>HB$14,$Z186<=HB$15),$K186,"") -> 
A187: 2014-01-08 01:00 | B187: 2014 | C187: 1 | D187: 8 | E187: 01:00:00 | G187: -14.2 | I187: -20.6 | K187: 58 | M187: 25 | O187: 28 | S187: 101.3 | W187: -25 | Y187: ND | Z187: 6.44 | AB187: =IF(Z187="","",IF(Météo!$F$6>Z187,(Météo!$F$6-Z187)/24,"")) -> 2.565 | AC187: =IF(Z187="","",IF(Météo!$F$7<=Z187,(Z187-Météo!$F$7)/24,"")) ->  | AD187: =IF(Z187="","",IF(Météo!$F$6>Z187,(Météo!$F$6-Z187)/24,"")) -> 2.565 | AE187: =IF(Z187="","",IF(Météo!$F$7<=Z187,(Z187-Météo!$F$7)/24,"")) ->  | BN187: 1 | EZ187: 58
A188: 2014-01-08 02:00 | B188: 2014 | C188: 1 | D188: 8 | E188: 02:00:00 | G188: -14.1 | I188: -20.3 | K188: 60 | M188: 24 | O188: 23 | S188: 101.46 | W188: -24 | Y188: ND | Z188: 6.62 | AB188: =IF(Z188="","",IF(Météo!$F$6>Z188,(Météo!$F$6-Z188)/24,"")) -> 2.5575 | AC188: =IF(Z188="","",IF(Météo!$F$7<=Z188,(Z188-Météo!$F$7)/24,"")) ->  | AD188: =IF(Z188="","",IF(Météo!$F$6>Z188,(Météo!$F$6-Z188)/24,"")) -> 2.5575 | AE188: =IF(Z188="","",IF(Météo!$F$7<=Z188,(Z188-Météo!$F$7)/24,"")) ->  | BN188: 1 | EZ188: 60
A189: 2014-01-08 03:00 | B189: 2014 | C189: 1 | D189: 8 | E189: 03:00:00 | G189: -13.8 | I189: -20 | K189: 59 | M189: 26 | O189: 27 | S189: 101.58 | W189: -24 | Y189: ND | Z189: 7.16 | AB189: =IF(Z189="","",IF(Météo!$F$6>Z189,(Météo!$F$6-Z189)/24,"")) -> 2.535 | AC189: =IF(Z189="","",IF(Météo!$F$7<=Z189,(Z189-Météo!$F$7)/24,"")) ->  | AD189: =IF(Z189="","",IF(Météo!$F$6>Z189,(Météo!$F$6-Z189)/24,"")) -> 2.535 | AE189: =IF(Z189="","",IF(Météo!$F$7<=Z189,(Z189-Météo!$F$7)/24,"")) ->  | BN189: 1 | EZ189: 59
A190: 2014-01-08 04:00 | B190: 2014 | C190: 1 | D190: 8 | E190: 04:00:00 | G190: -13.9 | I190: -19.9 | K190: 60 | M190: 25 | O190: 19 | S190: 101.67 | W190: -23 | Y190: ND | Z190: 6.98 | AB190: =IF(Z190="","",IF(Météo!$F$6>Z190,(Météo!$F$6-Z190)/24,"")) -> 2.5425 | AC190: =IF(Z190="","",IF(Météo!$F$7<=Z190,(Z190-Météo!$F$7)/24,"")) ->  | AD190: =IF(Z190="","",IF(Météo!$F$6>Z190,(Météo!$F$6-Z190)/24,"")) -> 2.5425 | AE190: =IF(Z190="","",IF(Météo!$F$7<=Z190,(Z190-Météo!$F$7)/24,"")) ->  | BN190: 1 | EZ190: 60
A191: 2014-01-08 05:00 | B191: 2014 | C191: 1 | D191: 8 | E191: 05:00:00 | G191: -14.1 | I191: -19.7 | K191: 63 | M191: 25 | O191: 23 | S191: 101.72 | W191: -24 | Y191: ND | Z191: 6.62 | AB191: =IF(Z191="","",IF(Météo!$F$6>Z191,(Météo!$F$6-Z191)/24,"")) -> 2.5575 | AC191: =IF(Z191="","",IF(Météo!$F$7<=Z191,(Z191-Météo!$F$7)/24,"")) ->  | AD191: =IF(Z191="","",IF(Météo!$F$6>Z191,(Météo!$F$6-Z191)/24,"")) -> 2.5575 | AE191: =IF(Z191="","",IF(Météo!$F$7<=Z191,(Z191-Météo!$F$7)/24,"")) ->  | BN191: 1 | EZ191: 63
A192: 2014-01-08 06:00 | B192: 2014 | C192: 1 | D192: 8 | E192: 06:00:00 | G192: -14.1 | I192: -19.5 | K192: 64 | M192: 25 | O192: 23 | S192: 101.83 | W192: -24 | Y192: ND | Z192: 6.62 | AB192: =IF(Z192="","",IF(Météo!$F$6>Z192,(Météo!$F$6-Z192)/24,"")) -> 2.5575 | AC192: =IF(Z192="","",IF(Météo!$F$7<=Z192,(Z192-Météo!$F$7)/24,"")) ->  | AD192: =IF(Z192="","",IF(Météo!$F$6>Z192,(Météo!$F$6-Z192)/24,"")) -> 2.5575 | AE192: =IF(Z192="","",IF(Météo!$F$7<=Z192,(Z192-Météo!$F$7)/24,"")) ->  | BN192: 1 | EZ192: 64
A193: 2014-01-08 07:00 | B193: 2014 | C193: 1 | D193: 8 | E193: 07:00:00 | G193: -14.2 | I193: -19.3 | K193: 65 | M193: 24 | O193: 14 | S193: 101.92 | W193: -22 | Y193: ND | Z193: 6.44 | AB193: =IF(Z193="","",IF(Météo!$F$6>Z193,(Météo!$F$6-Z193)/24,"")) -> 2.565 | AC193: =IF(Z193="","",IF(Météo!$F$7<=Z193,(Z193-Météo!$F$7)/24,"")) ->  | AD193: =IF(Z193="","",IF(Météo!$F$6>Z193,(Météo!$F$6-Z193)/24,"")) -> 2.565 | AE193: =IF(Z193="","",IF(Météo!$F$7<=Z193,(Z193-Météo!$F$7)/24,"")) ->  | BN193: 1 | EZ193: 65
A194: 2014-01-08 08:00 | B194: 2014 | C194: 1 | D194: 8 | E194: 08:00:00 | G194: -14.1 | I194: -18.8 | K194: 67 | M194: 25 | O194: 16 | S194: 102.01 | W194: -22 | Y194: ND | Z194: 6.62 | AB194: =IF(Z194="","",IF(Météo!$F$6>Z194,(Météo!$F$6-Z194)/24,"")) -> 2.5575 | AC194: =IF(Z194="","",IF(Météo!$F$7<=Z194,(Z194-Météo!$F$7)/24,"")) ->  | AF194: =IF(Z194="","",IF(Météo!$F$6>Z194,(Météo!$F$6-Z194)/24,"")) -> 2.5575 | AG194: =IF(Z194="","",IF(Météo!$F$7<=Z194,(Z194-Météo!$F$7)/24,"")) ->  | AK194: =IF(AND($Z194>AJ$14,$Z194<=AJ$15),1,"") ->  | AN194: =IF(AND($Z194>AM$14,$Z194<=AM$15),1,"") ->  | AQ194: =IF(AND($Z194>AP$14,$Z194<=AP$15),1,"") ->  | AT194: =IF(AND($Z194>AS$14,$Z194<=AS$15),1,"") ->  | AW194: =IF(AND($Z194>AV$14,$Z194<=AV$15),1,"") ->  | AZ194: =IF(AND($Z194>AY$14,$Z194<=AY$15),1,"") ->  | BC194: =IF(AND($Z194>BB$14,$Z194<=BB$15),1,"") ->  | BF194: =IF(AND($Z194>BE$14,$Z194<=BE$15),1,"") ->  | BI194: =IF(AND($Z194>BH$14,$Z194<=BH$15),1,"") ->  | BL194: =IF(AND($Z194>BK$14,$Z194<=BK$15),1,"") ->  | BO194: =IF(AND($Z194>BN$14,$Z194<=BN$15),1,"") -> 1 | BR194: =IF(AND($Z194>BQ$14,$Z194<=BQ$15),1,"") ->  | BU194: =IF(AND($Z194>BT$14,$Z194<=BT$15),1,"") ->  | BX194: =IF(AND($Z194>BW$14,$Z194<=BW$15),1,"") ->  | CA194: =IF(AND($Z194>BZ$14,$Z194<=BZ$15),1,"") ->  | CD194: =IF(AND($Z194>CC$14,$Z194<=CC$15),1,"") ->  | CG194: =IF(AND($Z194>CF$14,$Z194<=CF$15),1,"") ->  | CJ194: =IF(AND($Z194>CI$14,$Z194<=CI$15),1,"") ->  | CM194: =IF(AND($Z194>CL$14,$Z194<=CL$15),1,"") ->  | CP194: =IF(AND($Z194>CO$14,$Z194<=CO$15),1,"") ->  | CS194: =IF(AND($Z194>CR$14,$Z194<=CR$15),1,"") ->  | CV194: =IF(AND($Z194>CU$14,$Z194<=CU$15),1,"") ->  | CY194: =IF(AND($Z194>CX$14,$Z194<=CX$15),1,"") ->  | DB194: =IF(AND($Z194>DA$14,$Z194<=DA$15),1,"") ->  | DE194: =IF(AND($Z194>DD$14,$Z194<=DD$15),1,"") ->  | DH194: =IF(AND($Z194>DG$14,$Z194<=DG$15),1,"") ->  | DK194: =IF(AND($Z194>DJ$14,$Z194<=DJ$15),1,"") ->  | DN194: =IF(AND($Z194>DM$14,$Z194<=DM$15),1,"") ->  | DQ194: =IF(AND($Z194>DP$14,$Z194<=DP$15),1,"") ->  | DW194: =IF(AND($Z194>DV$14,$Z194<=DV$15),$K194,"") ->  | DZ194: =IF(AND($Z194>DY$14,$Z194<=DY$15),$K194,"") ->  | EC194: =IF(AND($Z194>EB$14,$Z194<=EB$15),$K194,"") ->  | EF194: =IF(AND($Z194>EE$14,$Z194<=EE$15),$K194,"") ->  | EI194: =IF(AND($Z194>EH$14,$Z194<=EH$15),$K194,"") ->  | EL194: =IF(AND($Z194>EK$14,$Z194<=EK$15),$K194,"") ->  | EO194: =IF(AND($Z194>EN$14,$Z194<=EN$15),$K194,"") ->  | ER194: =IF(AND($Z194>EQ$14,$Z194<=EQ$15),$K194,"") ->  | EU194: =IF(AND($Z194>ET$14,$Z194<=ET$15),$K194,"") ->  | EX194: =IF(AND($Z194>EW$14,$Z194<=EW$15),$K194,"") ->  | FA194: =IF(AND($Z194>EZ$14,$Z194<=EZ$15),$K194,"") -> 67 | FD194: =IF(AND($Z194>FC$14,$Z194<=FC$15),$K194,"") ->  | FG194: =IF(AND($Z194>FF$14,$Z194<=FF$15),$K194,"") ->  | FJ194: =IF(AND($Z194>FI$14,$Z194<=FI$15),$K194,"") ->  | FM194: =IF(AND($Z194>FL$14,$Z194<=FL$15),$K194,"") ->  | FP194: =IF(AND($Z194>FO$14,$Z194<=FO$15),$K194,"") ->  | FS194: =IF(AND($Z194>FR$14,$Z194<=FR$15),$K194,"") ->  | FV194: =IF(AND($Z194>FU$14,$Z194<=FU$15),$K194,"") ->  | FY194: =IF(AND($Z194>FX$14,$Z194<=FX$15),$K194,"") ->  | GB194: =IF(AND($Z194>GA$14,$Z194<=GA$15),$K194,"") ->  | GE194: =IF(AND($Z194>GD$14,$Z194<=GD$15),$K194,"") ->  | GH194: =IF(AND($Z194>GG$14,$Z194<=GG$15),$K194,"") ->  | GK194: =IF(AND($Z194>GJ$14,$Z194<=GJ$15),$K194,"") ->  | GN194: =IF(AND($Z194>GM$14,$Z194<=GM$15),$K194,"") ->  | GQ194: =IF(AND($Z194>GP$14,$Z194<=GP$15),$K194,"") ->  | GT194: =IF(AND($Z194>GS$14,$Z194<=GS$15),$K194,"") ->  | GW194: =IF(AND($Z194>GV$14,$Z194<=GV$15),$K194,"") ->  | GZ194: =IF(AND($Z194>GY$14,$Z194<=GY$15),$K194,"") ->  | HC194: =IF(AND($Z194>HB$14,$Z194<=HB$15),$K194,"") -> 
A195: 2014-01-08 09:00 | B195: 2014 | C195: 1 | D195: 8 | E195: 09:00:00 | G195: -12.9 | I195: -18.2 | K195: 65 | M195: 24 | O195: 16 | S195: 102.13 | W195: -21 | Y195: ND | Z195: 8.78 | AB195: =IF(Z195="","",IF(Météo!$F$6>Z195,(Météo!$F$6-Z195)/24,"")) -> 2.4675 | AC195: =IF(Z195="","",IF(Météo!$F$7<=Z195,(Z195-Météo!$F$7)/24,"")) ->  | AF195: =IF(Z195="","",IF(Météo!$F$6>Z195,(Météo!$F$6-Z195)/24,"")) -> 2.4675 | AG195: =IF(Z195="","",IF(Météo!$F$7<=Z195,(Z195-Météo!$F$7)/24,"")) ->  | BO195: 1 | FA195: 65
A196: 2014-01-08 10:00 | B196: 2014 | C196: 1 | D196: 8 | E196: 10:00:00 | G196: -11.7 | I196: -17.3 | K196: 63 | M196: 24 | O196: 16 | S196: 102.21 | W196: -19 | Y196: ND | Z196: 10.94 | AB196: =IF(Z196="","",IF(Météo!$F$6>Z196,(Météo!$F$6-Z196)/24,"")) -> 2.3775 | AC196: =IF(Z196="","",IF(Météo!$F$7<=Z196,(Z196-Météo!$F$7)/24,"")) ->  | AF196: =IF(Z196="","",IF(Météo!$F$6>Z196,(Météo!$F$6-Z196)/24,"")) -> 2.3775 | AG196: =IF(Z196="","",IF(Météo!$F$7<=Z196,(Z196-Météo!$F$7)/24,"")) ->  | BR196: 1 | FD196: 63
A197: 2014-01-08 11:00 | B197: 2014 | C197: 1 | D197: 8 | E197: 11:00:00 | G197: -10.7 | I197: -16.5 | K197: 62 | M197: 24 | O197: 18 | S197: 102.17 | W197: -18 | Y197: ND | Z197: 12.74 | AB197: =IF(Z197="","",IF(Météo!$F$6>Z197,(Météo!$F$6-Z197)/24,"")) -> 2.3025 | AC197: =IF(Z197="","",IF(Météo!$F$7<=Z197,(Z197-Météo!$F$7)/24,"")) ->  | AF197: =IF(Z197="","",IF(Météo!$F$6>Z197,(Météo!$F$6-Z197)/24,"")) -> 2.3025 | AG197: =IF(Z197="","",IF(Météo!$F$7<=Z197,(Z197-Météo!$F$7)/24,"")) ->  | BR197: 1 | FD197: 62
A198: 2014-01-08 12:00 | B198: 2014 | C198: 1 | D198: 8 | E198: 12:00:00 | G198: -10.1 | I198: -15.7 | K198: 64 | M198: 24 | O198: 23 | S198: 102.13 | W198: -19 | Y198: ND | Z198: 13.82 | AB198: =IF(Z198="","",IF(Météo!$F$6>Z198,(Météo!$F$6-Z198)/24,"")) -> 2.2575 | AC198: =IF(Z198="","",IF(Météo!$F$7<=Z198,(Z198-Météo!$F$7)/24,"")) ->  | AF198: =IF(Z198="","",IF(Météo!$F$6>Z198,(Météo!$F$6-Z198)/24,"")) -> 2.2575 | AG198: =IF(Z198="","",IF(Météo!$F$7<=Z198,(Z198-Météo!$F$7)/24,"")) ->  | BR198: 1 | FD198: 64
A199: 2014-01-08 13:00 | B199: 2014 | C199: 1 | D199: 8 | E199: 13:00:00 | G199: -9.7 | I199: -15.6 | K199: 62 | M199: 24 | O199: 24 | S199: 102.13 | W199: -18 | Y199: ND | Z199: 14.54 | AB199: =IF(Z199="","",IF(Météo!$F$6>Z199,(Météo!$F$6-Z199)/24,"")) -> 2.2275 | AC199: =IF(Z199="","",IF(Météo!$F$7<=Z199,(Z199-Météo!$F$7)/24,"")) ->  | AF199: =IF(Z199="","",IF(Météo!$F$6>Z199,(Météo!$F$6-Z199)/24,"")) -> 2.2275 | AG199: =IF(Z199="","",IF(Météo!$F$7<=Z199,(Z199-Météo!$F$7)/24,"")) ->  | BR199: 1 | FD199: 62
A200: 2014-01-08 14:00 | B200: 2014 | C200: 1 | D200: 8 | E200: 14:00:00 | G200: -9.2 | I200: -15.5 | K200: 60 | M200: 25 | O200: 21 | S200: 102.17 | W200: -17 | Y200: ND | Z200: 15.44 | AB200: =IF(Z200="","",IF(Météo!$F$6>Z200,(Météo!$F$6-Z200)/24,"")) -> 2.19 | AC200: =IF(Z200="","",IF(Météo!$F$7<=Z200,(Z200-Météo!$F$7)/24,"")) ->  | AF200: =IF(Z200="","",IF(Météo!$F$6>Z200,(Météo!$F$6-Z200)/24,"")) -> 2.19 | AG200: =IF(Z200="","",IF(Météo!$F$7<=Z200,(Z200-Météo!$F$7)/24,"")) ->  | BU200: 1 | FG200: 60
... 250 more rows

Sheet Février
A1: Nom de la Station | B1: MONTREAL/PIERRE ELLIOTT TRUDEAU INTL | Z1: 1 | DS1: Idéal : | DT1: =28*24 -> 672
A2: Province | B2: QUEBEC | DS2: (Bissextile) | DT2: =29*24 -> 696
A3: Latitude | B3: 45.47 | AA3: Fichier en cour : | AB3: =SUM(AB18:AB799) -> 1419.0075 | AC3: =SUM(AC18:AC799) -> 0 | AD3: 497.49 | AE3: 0 | AF3: 462.9675 | AG3: 0 | AH3: 458.55 | AI3: 0 | AJ3: =SUM(AJ18:AJ799) -> 0 | AK3: =SUM(AK18:AK799) -> 0 | AL3: 0 | AM3: 0 | AN3: 0 | AO3: 0 | AP3: 0 | AQ3: 0 | AR3: 0 | AS3: =SUM(AS18:AS799) -> 0 | AT3: =SUM(AT18:AT799) -> 0 | AU3: 0 | AV3: 0 | AW3: 0 | AX3: 0 | AY3: 0 | AZ3: 0 | BA3: 0 | BB3: 0 | BC3: 0 | BD3: 0 | BE3: 3 | BF3: 0 | BG3: 0 | BH3: 7 | BI3: 3 | BJ3: 0 | BK3: 33 | BL3: 14 | BM3: 5 | BN3: 40 | BO3: 22 | BP3: 30 | BQ3: 38 | BR3: 55 | BS3: 49 | BT3: 30 | BU3: 56 | BV3: 63 | BW3: 33 | BX3: 16 | BY3: 23 | BZ3: 20 | CA3: 24 | CB3: 18 | CC3: 16 | CD3: 15 | CE3: 20 | CF3: 4 | CG3: 15 | CH3: 16 | CI3: 0 | CJ3: 4 | CK3: 0 | CL3: 0 | CM3: 0 | CN3: 0 | CO3: 0 | CP3: 0 | CQ3: 0 | CR3: 0 | CS3: 0 | CT3: 0 | CU3: 0 | CV3: 0 | CW3: 0 | CX3: 0 | CY3: 0 | CZ3: 0 | DA3: 0 | DB3: 0 | DC3: 0 | DD3: 0 | DE3: 0 | DF3: =SUM(DF18:DF799) -> 0 | DG3: 0 | DH3: 0 | DI3: 0 | DJ3: 0 | DK3: 0 | DL3: 0 | DM3: 0 | DN3: 0 | DO3: 0 | DP3: 0 | DQ3: 0 | DR3: 0 | DS3: =B18 -> 2014 | DT3: =COUNT(G18:G799) -> 672 | DV3: =IF(SUM(DV18:DV799)=0,"",(AVERAGE(DV18:DV799))) ->  | DW3: =IF(SUM(DW18:DW799)=0,"",(AVERAGE(DW18:DW799))) ->  | EE3: =IF(SUM(EE18:EE799)=0,"",(AVERAGE(EE18:EE799))) ->  | EF3: =IF(SUM(EF18:EF799)=0,"",(AVERAGE(EF18:EF799))) ->  | EQ3: 74.66666667 | ET3: 73.85714286 | EU3: 79.33333333 | EW3: 69.54545455 | EX3: 66.42857143 | EY3: 59.4 | EZ3: 70.725 | FA3: 62.22727273 | FB3: 59.73333333 | FC3: 74.97368421 | FD3: 65.6 | FE3: 63.73469388 | FF3: 76.03333333 | FG3: 64.92857143 | FH3: 66.57142857 | FI3: 80.81818182 | FJ3: 68.125 | FK3: 78.13043478 | FL3: 77.5 | FM3: 77.16666667 | FN3: 81.16666667 | FO3: 69.5 | FP3: 60.73333333 | FQ3: 66 | FR3: 73.75 | FS3: 73.6 | FT3: 67.375 | FV3: 43.75 | GR3: =IF(SUM(GR18:GR799)=0,"",(AVERAGE(GR18:GR799))) -> 
A4: Longitude | B4: -73.74
A5: Altitude | B5: 32.1
A6: Identification Climat | B6: 702S006
A7: Identification OMM | B7: 71183 | AB7: 0-24 | AD7: 0-8h | AF7: 8-16 | AH7: 16-24
A8: Identification TC | B8: WTQ | AA8: Moyenne : | AB8: DJC | AC8: DJR | AD8: DJC | AE8: DJR | AF8: DJC | AG8: DJR | AH8: DJC | AI8: DJR
A9: Toutes les heures sont exprimées en heure normale locale (HNL). Pour convertir l'heure locale en heure avancée de l'Est (HAE), ajoutez 1 heure s'il y a lieu. | AB9: =AVERAGE(AB800:AB809) -> 1419.0075 | AC9: =AVERAGE(AC800:AC809) -> 0 | AD9: 497.49 | AE9: 0 | AF9: 462.9675 | AG9: 0 | AH9: 458.55 | AI9: 0
AJ10: =AVERAGE(AJ800:AJ809) -> 0 | AK10: =AVERAGE(AK800:AK809) -> 0 | AL10: 0 | AM10: 0 | AN10: 0 | AO10: 0 | AP10: 0 | AQ10: 0 | AR10: 0 | AS10: =AVERAGE(AS800:AS809) -> 0 | AT10: =AVERAGE(AT800:AT809) -> 0 | AU10: 0 | AV10: 0 | AW10: 0 | AX10: 0 | AY10: 0 | AZ10: 0 | BA10: 0 | BB10: 0 | BC10: 0 | BD10: 0 | BE10: 3 | BF10: 0 | BG10: 0 | BH10: 7 | BI10: 3 | BJ10: 0 | BK10: 33 | BL10: 14 | BM10: 5 | BN10: 40 | BO10: 22 | BP10: 30 | BQ10: 38 | BR10: 55 | BS10: 49 | BT10: 30 | BU10: 56 | BV10: 63 | BW10: 33 | BX10: 16 | BY10: 23 | BZ10: 20 | CA10: 24 | CB10: 18 | CC10: 16 | CD10: 15 | CE10: 20 | CF10: 4 | CG10: 15 | CH10: 16 | CI10: 0 | CJ10: 4 | CK10: 0 | CL10: 0 | CM10: 0 | CN10: 0 | CO10: 0 | CP10: 0 | CQ10: 0 | CR10: 0 | CS10: 0 | CT10: 0 | CU10: 0 | CV10: 0 | CW10: 0 | CX10: 0 | CY10: 0 | CZ10: 0 | DA10: 0 | DB10: 0 | DC10: 0 | DD10: 0 | DE10: 0 | DF10: =AVERAGE(DF800:DF809) -> 0 | DG10: 0 | DH10: 0 | DI10: 0 | DJ10: 0 | DK10: 0 | DL10: 0 | DM10: 0 | DN10: 0 | DO10: 0 | DP10: 0 | DQ10: 0 | DR10: 0 | DV10: =IF(SUM(DV800:DV810)=0,0,(AVERAGE(DV800:DV810))) -> 0 | DW10: =IF(SUM(DW800:DW810)=0,0,(AVERAGE(DW800:DW810))) -> 0 | DX10: 0 | DY10: 0 | DZ10: 0 | EA10: 0 | EB10: 0 | EC10: 0 | ED10: 0 | EE10: =IF(SUM(EE800:EE810)=0,0,(AVERAGE(EE800:EE810))) -> 0 | EF10: =IF(SUM(EF800:EF810)=0,0,(AVERAGE(EF800:EF810))) -> 0 | EG10: 0 | EH10: 0 | EI10: 0 | EJ10: 0 | EK10: 0 | EL10: 0 | EM10: 0 | EN10: 0 | EO10: 0 | EP10: 0 | EQ10: 74.66666667 | ER10: 0 | ES10: 0 | ET10: 73.85714286 | EU10: 79.33333333 | EV10: 0 | EW10: 69.54545455 | EX10: 66.42857143 | EY10: 59.4 | EZ10: 70.725 | FA10: 62.22727273 | FB10: 59.73333333 | FC10: 74.97368421 | FD10: 65.6 | FE10: 63.73469388 | FF10: 76.03333333 | FG10: 64.92857143 | FH10: 66.57142857 | FI10: 80.81818182 | FJ10: 68.125 | FK10: 78.13043478 | FL10: 77.5 | FM10: 77.16666667 | FN10: 81.16666667 | FO10: 69.5 | FP10: 60.73333333 | FQ10: 66 | FR10: 73.75 | FS10: 73.6 | FT10: 67.375 | FU10: 0 | FV10: 43.75 | FW10: 0 | FX10: 0 | FY10: 0 | FZ10: 0 | GA10: 0 | GB10: 0 | GC10: 0 | GD10: 0 | GE10: 0 | GF10: 0 | GG10: 0 | GH10: 0 | GI10: 0 | GJ10: 0 | GK10: 0 | GL10: 0 | GM10: 0 | GN10: 0 | GO10: 0 | GP10: 0 | GQ10: 0 | GR10: =IF(SUM(GR800:GR810)=0,0,(AVERAGE(GR800:GR810))) -> 0 | GS10: 0 | GT10: 0 | GU10: 0 | GV10: 0 | GW10: 0 | GX10: 0 | GY10: 0 | GZ10: 0 | HA10: 0 | HB10: 0 | HC10: 0 | HD10: 0
A11: Légende
A12: M | B12: Données Manquantes
A13: E | B13: Valeur Estimée | AJ13: T -30 à -25 | AM13: T -25 à -20 | AP13: T -20 à -15 | AS13: T -30 à -25 | AV13: T -25 à -20 | AY13: T -20 à -15 | BB13: T -15 à -10 | BE13: T -10 à -5 | BH13: T -5 à 0 | BK13: T 0 à 5 | BN13: T 5 à 10 | BQ13: T 10 à 15 | BT13: T 15 à 20 | BW13: T 20 à 25 | BZ13: T 25 à 30 | CC13: T 30 à 35 | CF13: T 35 à 40 | CI13: T 40 à 45 | CL13: T 45 à 50 | CO13: T 50 à 55 | CR13: T 55 à 60 | CU13: T 60 à 65 | CX13: T 65 à 70 | DA13: T 70 à 75 | DD13: T 75 à 80 | DG13: T 80 à 85 | DJ13: T 85 à 90 | DM13: T 90 à 95 | DP13: T 95 à 100 | DV13: T -30 à -25 | DY13: T -25 à -20 | EB13: T -20 à -15 | EE13: T -30 à -25 | EH13: T -25 à -20 | EK13: T -20 à -15 | EN13: T -15 à -10 | EQ13: T -10 à -5 | ET13: T -5 à 0 | EW13: T 0 à 5 | EZ13: T 5 à 10 | FC13: T 10 à 15 | FF13: T 15 à 20 | FI13: T 20 à 25 | FL13: T 25 à 30 | FO13: T 30 à 35 | FR13: T 35 à 40 | FU13: T 40 à 45 | FX13: T 45 à 50 | GA13: T 50 à 55 | GD13: T 55 à 60 | GG13: T 60 à 65 | GJ13: T 65 à 70 | GM13: T 70 à 75 | GP13: T 75 à 80 | GS13: T 80 à 85 | GV13: T 85 à 90 | GY13: T 90 à 95 | HB13: T 95 à 100
A14: ND | B14: Non Disponible | AJ14: -45 | AM14: =AJ15 -> -40 | AP14: =AM15 -> -35 | AS14: -30 | AV14: =AS15 -> -25 | AY14: =AV15 -> -20 | BB14: =AY15 -> -15 | BE14: =BB15 -> -10 | BH14: =BE15 -> -5 | BK14: =BH15 -> 0 | BN14: =BK15 -> 5 | BQ14: =BN15 -> 10 | BT14: =BQ15 -> 15 | BW14: =BT15 -> 20 | BZ14: =BW15 -> 25 | CC14: =BZ15 -> 30 | CF14: =CC15 -> 35 | CI14: =CF15 -> 40 | CL14: =CI15 -> 45 | CO14: =CL15 -> 50 | CR14: =CO15 -> 55 | CU14: =CR15 -> 60 | CX14: =CU15 -> 65 | DA14: =CX15 -> 70 | DD14: =DA15 -> 75 | DG14: =DD15 -> 80 | DJ14: =DG15 -> 85 | DM14: =DJ15 -> 90 | DP14: =DM15 -> 95 | DV14: -45 | DY14: =DV15 -> -40 | EB14: =DY15 -> -35 | EE14: -30 | EH14: =EE15 -> -25 | EK14: =EH15 -> -20 | EN14: =EK15 -> -15 | EQ14: =EN15 -> -10 | ET14: =EQ15 -> -5 | EW14: =ET15 -> 0 | EZ14: =EW15 -> 5 | FC14: =EZ15 -> 10 | FF14: =FC15 -> 15 | FI14: =FF15 -> 20 | FL14: =FI15 -> 25 | FO14: =FL15 -> 30 | FR14: =FO15 -> 35 | FU14: =FR15 -> 40 | FX14: =FU15 -> 45 | GA14: =FX15 -> 50 | GD14: =GA15 -> 55 | GG14: =GD15 -> 60 | GJ14: =GG15 -> 65 | GM14: =GJ15 -> 70 | GP14: =GM15 -> 75 | GS14: =GP15 -> 80 | GV14: =GS15 -> 85 | GY14: =GV15 -> 90 | HB14: =GY15 -> 95
A15: ** | B15: Données fournies par un partenaire, non assujetties à un révision par les Archives climatiques nationales du Canada | AJ15: =AJ14+5 -> -40 | AM15: =AM14+5 -> -35 | AP15: =AP14+5 -> -30 | AS15: =AS14+5 -> -25 | AV15: =AV14+5 -> -20 | AY15: =AY14+5 -> -15 | BB15: =BB14+5 -> -10 | BE15: =BE14+5 -> -5 | BH15: =BH14+5 -> 0 | BK15: =BK14+5 -> 5 | BN15: =BN14+5 -> 10 | BQ15: =BQ14+5 -> 15 | BT15: =BT14+5 -> 20 | BW15: =BW14+5 -> 25 | BZ15: =BZ14+5 -> 30 | CC15: =CC14+5 -> 35 | CF15: =CF14+5 -> 40 | CI15: =CI14+5 -> 45 | CL15: =CL14+5 -> 50 | CO15: =CO14+5 -> 55 | CR15: =CR14+5 -> 60 | CU15: =CU14+5 -> 65 | CX15: =CX14+5 -> 70 | DA15: =DA14+5 -> 75 | DD15: =DD14+5 -> 80 | DG15: =DG14+5 -> 85 | DJ15: =DJ14+5 -> 90 | DM15: =DM14+5 -> 95 | DP15: =DP14+5 -> 100 | DV15: =DV14+5 -> -40 | DY15: =DY14+5 -> -35 | EB15: =EB14+5 -> -30 | EE15: =EE14+5 -> -25 | EH15: =EH14+5 -> -20 | EK15: =EK14+5 -> -15 | EN15: =EN14+5 -> -10 | EQ15: =EQ14+5 -> -5 | ET15: =ET14+5 -> 0 | EW15: =EW14+5 -> 5 | EZ15: =EZ14+5 -> 10 | FC15: =FC14+5 -> 15 | FF15: =FF14+5 -> 20 | FI15: =FI14+5 -> 25 | FL15: =FL14+5 -> 30 | FO15: =FO14+5 -> 35 | FR15: =FR14+5 -> 40 | FU15: =FU14+5 -> 45 | FX15: =FX14+5 -> 50 | GA15: =GA14+5 -> 55 | GD15: =GD14+5 -> 60 | GG15: =GG14+5 -> 65 | GJ15: =GJ14+5 -> 70 | GM15: =GM14+5 -> 75 | GP15: =GP14+5 -> 80 | GS15: =GS14+5 -> 85 | GV15: =GV14+5 -> 90 | GY15: =GY14+5 -> 95 | HB15: =HB14+5 -> 100
AB16: 0-24 | AD16: 0-8h | AF16: 8-16 | AH16: 16-24
A17: Date/Heure | B17: Année | C17: Mois | D17: Jour | E17: Heure | F17: Qualité des Données | G17: Temp (°C) | H17: Temp Indicateur | I17: Point de rosée (°C) | J17: Point de rosée Indicateur | K17: Hum. rel (%) | L17: Hum. rel. Indicateur | M17: Dir. du vent (10s deg) | N17: Dir. du vent Indicateur | O17: Vit. du vent (km/h) | P17: Vit. du vent Indicateur | Q17: Visibilité (km) | R17: Visibilité Indicateur | S17: Pression à la station (kPa) | T17: Pression à la station Indicateur | U17: Hmdx | V17: Hmdx Indicateur | W17: Refroid. éolien | X17: Refroid. éolien Indicateur | Y17: Temps | Z17: Temp (°F) | AB17: DJC | AC17: DJR | AD17: DJC | AE17: DJR | AF17: DJC | AG17: DJR | AH17: DJC | AI17: DJR | AJ17: 0-8h | AK17: 8-16h | AL17: 16-24h | AM17: 0-8h | AN17: 8-16h | AO17: 16-24h | AP17: 0-8h | AQ17: 8-16h | AR17: 16-24h | AS17: 0-8h | AT17: 8-16h | AU17: 16-24h | AV17: 0-8h | AW17: 8-16h | AX17: 16-24h | AY17: 0-8h | AZ17: 8-16h | BA17: 16-24h | BB17: 0-8h | BC17: 8-16h | BD17: 16-24h | BE17: 0-8h | BF17: 8-16h | BG17: 16-24h | BH17: 0-8h | BI17: 8-16h | BJ17: 16-24h | BK17: 0-8h | BL17: 8-16h | BM17: 16-24h | BN17: 0-8h | BO17: 8-16h | BP17: 16-24h | BQ17: 0-8h | BR17: 8-16h | BS17: 16-24h | BT17: 0-8h | BU17: 8-16h | BV17: 16-24h | BW17: 0-8h | BX17: 8-16h | BY17: 16-24h | BZ17: 0-8h | CA17: 8-16h | CB17: 16-24h | CC17: 0-8h | CD17: 8-16h | CE17: 16-24h | CF17: 0-8h | CG17: 8-16h | CH17: 16-24h | CI17: 0-8h | CJ17: 8-16h | CK17: 16-24h | CL17: 0-8h | CM17: 8-16h | CN17: 16-24h | CO17: 0-8h | CP17: 8-16h | CQ17: 16-24h | CR17: 0-8h | CS17: 8-16h | CT17: 16-24h | CU17: 0-8h | CV17: 8-16h | CW17: 16-24h | CX17: 0-8h | CY17: 8-16h | CZ17: 16-24h | DA17: 0-8h | DB17: 8-16h | DC17: 16-24h | DD17: 0-8h | DE17: 8-16h | DF17: 16-24h | DG17: 0-8h | DH17: 8-16h | DI17: 16-24h | DJ17: 0-8h | DK17: 8-16h | DL17: 16-24h | DM17: 0-8h | DN17: 8-16h | DO17: 16-24h | DP17: 0-8h | DQ17: 8-16h | DR17: 16-24h | DV17: 0-8h | DW17: 8-16h | DX17: 16-24h | DY17: 0-8h | DZ17: 8-16h | EA17: 16-24h | EB17: 0-8h | EC17: 8-16h | ED17: 16-24h | EE17: 0-8h | EF17: 8-16h | EG17: 16-24h | EH17: 0-8h | EI17: 8-16h | EJ17: 16-24h | EK17: 0-8h | EL17: 8-16h | EM17: 16-24h | EN17: 0-8h | EO17: 8-16h | EP17: 16-24h | EQ17: 0-8h | ER17: 8-16h | ES17: 16-24h | ET17: 0-8h | EU17: 8-16h | EV17: 16-24h | EW17: 0-8h | EX17: 8-16h | EY17: 16-24h | EZ17: 0-8h | FA17: 8-16h | FB17: 16-24h | FC17: 0-8h | FD17: 8-16h | FE17: 16-24h | FF17: 0-8h | FG17: 8-16h | FH17: 16-24h | FI17: 0-8h | FJ17: 8-16h | FK17: 16-24h | FL17: 0-8h | FM17: 8-16h | FN17: 16-24h | FO17: 0-8h | FP17: 8-16h | FQ17: 16-24h | FR17: 0-8h | FS17: 8-16h | FT17: 16-24h | FU17: 0-8h | FV17: 8-16h | FW17: 16-24h | FX17: 0-8h | FY17: 8-16h | FZ17: 16-24h | GA17: 0-8h | GB17: 8-16h | GC17: 16-24h | GD17: 0-8h | GE17: 8-16h | GF17: 16-24h | GG17: 0-8h | GH17: 8-16h | GI17: 16-24h | GJ17: 0-8h | GK17: 8-16h | GL17: 16-24h | GM17: 0-8h | GN17: 8-16h | GO17: 16-24h | GP17: 0-8h | GQ17: 8-16h | GR17: 16-24h | GS17: 0-8h | GT17: 8-16h | GU17: 16-24h | GV17: 0-8h | GW17: 8-16h | GX17: 16-24h | GY17: 0-8h | GZ17: 8-16h | HA17: 16-24h | HB17: 0-8h | HC17: 8-16h | HD17: 16-24h
A18: 2014-02-01 00:00 | B18: 2014 | C18: 2 | D18: 1 | E18: 00:00:00 | G18: -4.8 | I18: -10.4 | K18: 65 | M18: 24 | O18: 6 | S18: 101.7 | W18: -8 | Y18: ND | Z18: =IF(G18="","",(G18*9/5)+32) -> 23.36 | AB18: =IF(Z18="","",IF(Météo!$F$6>Z18,(Météo!$F$6-Z18)/24,"")) -> 1.86 | AC18: =IF(Z18="","",IF(Météo!$F$7<=Z18,(Z18-Météo!$F$7)/24,"")) ->  | AD18: =IF(Z18="","",IF(Météo!$F$6>Z18,(Météo!$F$6-Z18)/24,"")) -> 1.86 | AE18: =IF(Z18="","",IF(Météo!$F$7<=Z18,(Z18-Météo!$F$7)/24,"")) ->  | AJ18: =IF(AND($Z18>AJ$14,$Z18<=AJ$15),1,"") ->  | AM18: =IF(AND($Z18>AM$14,$Z18<=AM$15),1,"") ->  | AP18: =IF(AND($Z18>AP$14,$Z18<=AP$15),1,"") ->  | AS18: =IF(AND($Z18>AS$14,$Z18<=AS$15),1,"") ->  | AV18: =IF(AND($Z18>AV$14,$Z18<=AV$15),1,"") ->  | AY18: =IF(AND($Z18>AY$14,$Z18<=AY$15),1,"") ->  | BB18: =IF(AND($Z18>BB$14,$Z18<=BB$15),1,"") ->  | BE18: =IF(AND($Z18>BE$14,$Z18<=BE$15),1,"") ->  | BH18: =IF(AND($Z18>BH$14,$Z18<=BH$15),1,"") ->  | BK18: =IF(AND($Z18>BK$14,$Z18<=BK$15),1,"") ->  | BN18: =IF(AND($Z18>BN$14,$Z18<=BN$15),1,"") ->  | BQ18: =IF(AND($Z18>BQ$14,$Z18<=BQ$15),1,"") ->  | BT18: =IF(AND($Z18>BT$14,$Z18<=BT$15),1,"") ->  | BW18: =IF(AND($Z18>BW$14,$Z18<=BW$15),1,"") -> 1 | BZ18: =IF(AND($Z18>BZ$14,$Z18<=BZ$15),1,"") ->  | CC18: =IF(AND($Z18>CC$14,$Z18<=CC$15),1,"") ->  | CF18: =IF(AND($Z18>CF$14,$Z18<=CF$15),1,"") ->  | CI18: =IF(AND($Z18>CI$14,$Z18<=CI$15),1,"") ->  | CL18: =IF(AND($Z18>CL$14,$Z18<=CL$15),1,"") ->  | CO18: =IF(AND($Z18>CO$14,$Z18<=CO$15),1,"") ->  | CR18: =IF(AND($Z18>CR$14,$Z18<=CR$15),1,"") ->  | CU18: =IF(AND($Z18>CU$14,$Z18<=CU$15),1,"") ->  | CX18: =IF(AND($Z18>CX$14,$Z18<=CX$15),1,"") ->  | DA18: =IF(AND($Z18>DA$14,$Z18<=DA$15),1,"") ->  | DD18: =IF(AND($Z18>DD$14,$Z18<=DD$15),1,"") ->  | DG18: =IF(AND($Z18>DG$14,$Z18<=DG$15),1,"") ->  | DJ18: =IF(AND($Z18>DJ$14,$Z18<=DJ$15),1,"") ->  | DM18: =IF(AND($Z18>DM$14,$Z18<=DM$15),1,"") ->  | DP18: =IF(AND($Z18>DP$14,$Z18<=DP$15),1,"") ->  | DV18: =IF(AND($Z18>DV$14,$Z18<=DV$15),$K18,"") ->  | DY18: =IF(AND($Z18>DY$14,$Z18<=DY$15),$K18,"") ->  | EB18: =IF(AND($Z18>EB$14,$Z18<=EB$15),$K18,"") ->  | EE18: =IF(AND($Z18>EE$14,$Z18<=EE$15),$K18,"") ->  | EH18: =IF(AND($Z18>EH$14,$Z18<=EH$15),$K18,"") ->  | EK18: =IF(AND($Z18>EK$14,$Z18<=EK$15),$K18,"") ->  | EN18: =IF(AND($Z18>EN$14,$Z18<=EN$15),$K18,"") ->  | EQ18: =IF(AND($Z18>EQ$14,$Z18<=EQ$15),$K18,"") ->  | ET18: =IF(AND($Z18>ET$14,$Z18<=ET$15),$K18,"") ->  | EW18: =IF(AND($Z18>EW$14,$Z18<=EW$15),$K18,"") ->  | EZ18: =IF(AND($Z18>EZ$14,$Z18<=EZ$15),$K18,"") ->  | FC18: =IF(AND($Z18>FC$14,$Z18<=FC$15),$K18,"") ->  | FF18: =IF(AND($Z18>FF$14,$Z18<=FF$15),$K18,"") ->  | FI18: =IF(AND($Z18>FI$14,$Z18<=FI$15),$K18,"") -> 65 | FL18: =IF(AND($Z18>FL$14,$Z18<=FL$15),$K18,"") ->  | FO18: =IF(AND($Z18>FO$14,$Z18<=FO$15),$K18,"") ->  | FR18: =IF(AND($Z18>FR$14,$Z18<=FR$15),$K18,"") ->  | FU18: =IF(AND($Z18>FU$14,$Z18<=FU$15),$K18,"") ->  | FX18: =IF(AND($Z18>FX$14,$Z18<=FX$15),$K18,"") ->  | GA18: =IF(AND($Z18>GA$14,$Z18<=GA$15),$K18,"") ->  | GD18: =IF(AND($Z18>GD$14,$Z18<=GD$15),$K18,"") ->  | GG18: =IF(AND($Z18>GG$14,$Z18<=GG$15),$K18,"") ->  | GJ18: =IF(AND($Z18>GJ$14,$Z18<=GJ$15),$K18,"") ->  | GM18: =IF(AND($Z18>GM$14,$Z18<=GM$15),$K18,"") ->  | GP18: =IF(AND($Z18>GP$14,$Z18<=GP$15),$K18,"") ->  | GS18: =IF(AND($Z18>GS$14,$Z18<=GS$15),$K18,"") ->  | GV18: =IF(AND($Z18>GV$14,$Z18<=GV$15),$K18,"") ->  | GY18: =IF(AND($Z18>GY$14,$Z18<=GY$15),$K18,"") ->  | HB18: =IF(AND($Z18>HB$14,$Z18<=HB$15),$K18,"") -> 
A19: 2014-02-01 01:00 | B19: 2014 | C19: 2 | D19: 1 | E19: 01:00:00 | G19: -5.4 | I19: -11 | K19: 65 | M19: 24 | O19: 9 | S19: 101.81 | W19: -9 | Y19: ND | Z19: =IF(G19="","",(G19*9/5)+32) -> 22.28 | AB19: =IF(Z19="","",IF(Météo!$F$6>Z19,(Météo!$F$6-Z19)/24,"")) -> 1.905 | AC19: =IF(Z19="","",IF(Météo!$F$7<=Z19,(Z19-Météo!$F$7)/24,"")) ->  | AD19: =IF(Z19="","",IF(Météo!$F$6>Z19,(Météo!$F$6-Z19)/24,"")) -> 1.905 | AE19: =IF(Z19="","",IF(Météo!$F$7<=Z19,(Z19-Météo!$F$7)/24,"")) ->  | AJ19: =IF(AND($Z19>AJ$14,$Z19<=AJ$15),1,"") ->  | AS19: =IF(AND($Z19>AS$14,$Z19<=AS$15),1,"") ->  | BW19: 1 | DV19: =IF(AND($Z19>DV$14,$Z19<=DV$15),$K19,"") ->  | EE19: =IF(AND($Z19>EE$14,$Z19<=EE$15),$K19,"") ->  | FI19: 65
A20: 2014-02-01 02:00 | B20: 2014 | C20: 2 | D20: 1 | E20: 02:00:00 | G20: -5.7 | I20: -11.3 | K20: 65 | M20: 25 | O20: 7 | S20: 101.82 | W20: -9 | Y20: ND | Z20: 21.74 | AB20: =IF(Z20="","",IF(Météo!$F$6>Z20,(Météo!$F$6-Z20)/24,"")) -> 1.9275 | AC20: =IF(Z20="","",IF(Météo!$F$7<=Z20,(Z20-Météo!$F$7)/24,"")) ->  | AD20: =IF(Z20="","",IF(Météo!$F$6>Z20,(Météo!$F$6-Z20)/24,"")) -> 1.9275 | AE20: =IF(Z20="","",IF(Météo!$F$7<=Z20,(Z20-Météo!$F$7)/24,"")) ->  | BW20: 1 | FI20: 65
A21: 2014-02-01 03:00 | B21: 2014 | C21: 2 | D21: 1 | E21: 03:00:00 | G21: -6.2 | I21: -10.9 | K21: 69 | M21: 25 | O21: 7 | S21: 101.92 | W21: -10 | Y21: ND | Z21: 20.84 | AB21: =IF(Z21="","",IF(Météo!$F$6>Z21,(Météo!$F$6-Z21)/24,"")) -> 1.965 | AC21: =IF(Z21="","",IF(Météo!$F$7<=Z21,(Z21-Météo!$F$7)/24,"")) ->  | AD21: =IF(Z21="","",IF(Météo!$F$6>Z21,(Météo!$F$6-Z21)/24,"")) -> 1.965 | AE21: =IF(Z21="","",IF(Météo!$F$7<=Z21,(Z21-Météo!$F$7)/24,"")) ->  | BW21: 1 | FI21: 69
A22: 2014-02-01 04:00 | B22: 2014 | C22: 2 | D22: 1 | E22: 04:00:00 | G22: -7.3 | I22: -11 | K22: 75 | M22: 24 | O22: 5 | S22: 101.96 | W22: -10 | Y22: ND | Z22: 18.86 | AB22: =IF(Z22="","",IF(Météo!$F$6>Z22,(Météo!$F$6-Z22)/24,"")) -> 2.0475 | AC22: =IF(Z22="","",IF(Météo!$F$7<=Z22,(Z22-Météo!$F$7)/24,"")) ->  | AD22: =IF(Z22="","",IF(Météo!$F$6>Z22,(Météo!$F$6-Z22)/24,"")) -> 2.0475 | AE22: =IF(Z22="","",IF(Météo!$F$7<=Z22,(Z22-Météo!$F$7)/24,"")) ->  | BT22: 1 | FF22: 75
A23: 2014-02-01 05:00 | B23: 2014 | C23: 2 | D23: 1 | E23: 05:00:00 | G23: -7.9 | I23: -11.3 | K23: 76 | M23: 26 | O23: 5 | S23: 102.04 | W23: -11 | Y23: ND | Z23: 17.78 | AB23: =IF(Z23="","",IF(Météo!$F$6>Z23,(Météo!$F$6-Z23)/24,"")) -> 2.0925 | AC23: =IF(Z23="","",IF(Météo!$F$7<=Z23,(Z23-Météo!$F$7)/24,"")) ->  | AD23: =IF(Z23="","",IF(Météo!$F$6>Z23,(Météo!$F$6-Z23)/24,"")) -> 2.0925 | AE23: =IF(Z23="","",IF(Météo!$F$7<=Z23,(Z23-Météo!$F$7)/24,"")) ->  | BT23: 1 | FF23: 76
A24: 2014-02-01 06:00 | B24: 2014 | C24: 2 | D24: 1 | E24: 06:00:00 | G24: -8.2 | I24: -11.5 | K24: 77 | M24: 23 | O24: 5 | S24: 102.06 | W24: -11 | Y24: ND | Z24: 17.24 | AB24: =IF(Z24="","",IF(Météo!$F$6>Z24,(Météo!$F$6-Z24)/24,"")) -> 2.115 | AC24: =IF(Z24="","",IF(Météo!$F$7<=Z24,(Z24-Météo!$F$7)/24,"")) ->  | AD24: =IF(Z24="","",IF(Météo!$F$6>Z24,(Météo!$F$6-Z24)/24,"")) -> 2.115 | AE24: =IF(Z24="","",IF(Météo!$F$7<=Z24,(Z24-Météo!$F$7)/24,"")) ->  | BT24: 1 | FF24: 77
A25: 2014-02-01 07:00 | B25: 2014 | C25: 2 | D25: 1 | E25: 07:00:00 | G25: -7.4 | I25: -10.7 | K25: 77 | M25: 22 | O25: 7 | S25: 102.1 | W25: -11 | Y25: ND | Z25: 18.68 | AB25: =IF(Z25="","",IF(Météo!$F$6>Z25,(Météo!$F$6-Z25)/24,"")) -> 2.055 | AC25: =IF(Z25="","",IF(Météo!$F$7<=Z25,(Z25-Météo!$F$7)/24,"")) ->  | AD25: =IF(Z25="","",IF(Météo!$F$6>Z25,(Météo!$F$6-Z25)/24,"")) -> 2.055 | AE25: =IF(Z25="","",IF(Météo!$F$7<=Z25,(Z25-Météo!$F$7)/24,"")) ->  | BT25: 1 | FF25: 77
A26: 2014-02-01 08:00 | B26: 2014 | C26: 2 | D26: 1 | E26: 08:00:00 | G26: -7.5 | I26: -11 | K26: 76 | M26: 24 | O26: 5 | S26: 102.14 | W26: -10 | Y26: ND | Z26: 18.5 | AB26: =IF(Z26="","",IF(Météo!$F$6>Z26,(Météo!$F$6-Z26)/24,"")) -> 2.0625 | AC26: =IF(Z26="","",IF(Météo!$F$7<=Z26,(Z26-Météo!$F$7)/24,"")) ->  | AF26: =IF(Z26="","",IF(Météo!$F$6>Z26,(Météo!$F$6-Z26)/24,"")) -> 2.0625 | AG26: =IF(Z26="","",IF(Météo!$F$7<=Z26,(Z26-Météo!$F$7)/24,"")) ->  | AK26: =IF(AND($Z26>AJ$14,$Z26<=AJ$15),1,"") ->  | AN26: =IF(AND($Z26>AM$14,$Z26<=AM$15),1,"") ->  | AQ26: =IF(AND($Z26>AP$14,$Z26<=AP$15),1,"") ->  | AT26: =IF(AND($Z26>AS$14,$Z26<=AS$15),1,"") ->  | AW26: =IF(AND($Z26>AV$14,$Z26<=AV$15),1,"") ->  | AZ26: =IF(AND($Z26>AY$14,$Z26<=AY$15),1,"") ->  | BC26: =IF(AND($Z26>BB$14,$Z26<=BB$15),1,"") ->  | BF26: =IF(AND($Z26>BE$14,$Z26<=BE$15),1,"") ->  | BI26: =IF(AND($Z26>BH$14,$Z26<=BH$15),1,"") ->  | BL26: =IF(AND($Z26>BK$14,$Z26<=BK$15),1,"") ->  | BO26: =IF(AND($Z26>BN$14,$Z26<=BN$15),1,"") ->  | BR26: =IF(AND($Z26>BQ$14,$Z26<=BQ$15),1,"") ->  | BU26: =IF(AND($Z26>BT$14,$Z26<=BT$15),1,"") -> 1 | BX26: =IF(AND($Z26>BW$14,$Z26<=BW$15),1,"") ->  | CA26: =IF(AND($Z26>BZ$14,$Z26<=BZ$15),1,"") ->  | CD26: =IF(AND($Z26>CC$14,$Z26<=CC$15),1,"") ->  | CG26: =IF(AND($Z26>CF$14,$Z26<=CF$15),1,"") ->  | CJ26: =IF(AND($Z26>CI$14,$Z26<=CI$15),1,"") ->  | CM26: =IF(AND($Z26>CL$14,$Z26<=CL$15),1,"") ->  | CP26: =IF(AND($Z26>CO$14,$Z26<=CO$15),1,"") ->  | CS26: =IF(AND($Z26>CR$14,$Z26<=CR$15),1,"") ->  | CV26: =IF(AND($Z26>CU$14,$Z26<=CU$15),1,"") ->  | CY26: =IF(AND($Z26>CX$14,$Z26<=CX$15),1,"") ->  | DB26: =IF(AND($Z26>DA$14,$Z26<=DA$15),1,"") ->  | DE26: =IF(AND($Z26>DD$14,$Z26<=DD$15),1,"") ->  | DH26: =IF(AND($Z26>DG$14,$Z26<=DG$15),1,"") ->  | DK26: =IF(AND($Z26>DJ$14,$Z26<=DJ$15),1,"") ->  | DN26: =IF(AND($Z26>DM$14,$Z26<=DM$15),1,"") ->  | DQ26: =IF(AND($Z26>DP$14,$Z26<=DP$15),1,"") ->  | DW26: =IF(AND($Z26>DV$14,$Z26<=DV$15),$K26,"") ->  | DZ26: =IF(AND($Z26>DY$14,$Z26<=DY$15),$K26,"") ->  | EC26: =IF(AND($Z26>EB$14,$Z26<=EB$15),$K26,"") ->  | EF26: =IF(AND($Z26>EE$14,$Z26<=EE$15),$K26,"") ->  | EI26: =IF(AND($Z26>EH$14,$Z26<=EH$15),$K26,"") ->  | EL26: =IF(AND($Z26>EK$14,$Z26<=EK$15),$K26,"") ->  | EO26: =IF(AND($Z26>EN$14,$Z26<=EN$15),$K26,"") ->  | ER26: =IF(AND($Z26>EQ$14,$Z26<=EQ$15),$K26,"") ->  | EU26: =IF(AND($Z26>ET$14,$Z26<=ET$15),$K26,"") ->  | EX26: =IF(AND($Z26>EW$14,$Z26<=EW$15),$K26,"") ->  | FA26: =IF(AND($Z26>EZ$14,$Z26<=EZ$15),$K26,"") ->  | FD26: =IF(AND($Z26>FC$14,$Z26<=FC$15),$K26,"") ->  | FG26: =IF(AND($Z26>FF$14,$Z26<=FF$15),$K26,"") -> 76 | FJ26: =IF(AND($Z26>FI$14,$Z26<=FI$15),$K26,"") ->  | FM26: =IF(AND($Z26>FL$14,$Z26<=FL$15),$K26,"") ->  | FP26: =IF(AND($Z26>FO$14,$Z26<=FO$15),$K26,"") ->  | FS26: =IF(AND($Z26>FR$14,$Z26<=FR$15),$K26,"") ->  | FV26: =IF(AND($Z26>FU$14,$Z26<=FU$15),$K26,"") ->  | FY26: =IF(AND($Z26>FX$14,$Z26<=FX$15),$K26,"") ->  | GB26: =IF(AND($Z26>GA$14,$Z26<=GA$15),$K26,"") ->  | GE26: =IF(AND($Z26>GD$14,$Z26<=GD$15),$K26,"") ->  | GH26: =IF(AND($Z26>GG$14,$Z26<=GG$15),$K26,"") ->  | GK26: =IF(AND($Z26>GJ$14,$Z26<=GJ$15),$K26,"") ->  | GN26: =IF(AND($Z26>GM$14,$Z26<=GM$15),$K26,"") ->  | GQ26: =IF(AND($Z26>GP$14,$Z26<=GP$15),$K26,"") ->  | GT26: =IF(AND($Z26>GS$14,$Z26<=GS$15),$K26,"") ->  | GW26: =IF(AND($Z26>GV$14,$Z26<=GV$15),$K26,"") ->  | GZ26: =IF(AND($Z26>GY$14,$Z26<=GY$15),$K26,"") ->  | HC26: =IF(AND($Z26>HB$14,$Z26<=HB$15),$K26,"") -> 
A27: 2014-02-01 09:00 | B27: 2014 | C27: 2 | D27: 1 | E27: 09:00:00 | G27: -6.2 | I27: -10.5 | K27: 71 | M27: 16 | O27: 3 | S27: 102.1 | W27: -8 | Y27: ND | Z27: 20.84 | AB27: =IF(Z27="","",IF(Météo!$F$6>Z27,(Météo!$F$6-Z27)/24,"")) -> 1.965 | AC27: =IF(Z27="","",IF(Météo!$F$7<=Z27,(Z27-Météo!$F$7)/24,"")) ->  | AF27: =IF(Z27="","",IF(Météo!$F$6>Z27,(Météo!$F$6-Z27)/24,"")) -> 1.965 | AG27: =IF(Z27="","",IF(Météo!$F$7<=Z27,(Z27-Météo!$F$7)/24,"")) ->  | AK27: =IF(AND($Z27>AJ$14,$Z27<=AJ$15),1,"") ->  | AT27: =IF(AND($Z27>AS$14,$Z27<=AS$15),1,"") ->  | BX27: 1 | DW27: =IF(AND($Z27>DV$14,$Z27<=DV$15),$K27,"") ->  | EF27: =IF(AND($Z27>EE$14,$Z27<=EE$15),$K27,"") ->  | FJ27: 71
A28: 2014-02-01 10:00 | B28: 2014 | C28: 2 | D28: 1 | E28: 10:00:00 | G28: -5.1 | I28: -10.3 | K28: 67 | M28: 2 | O28: 3 | S28: 102.14 | W28: -6 | Y28: ND | Z28: 22.82 | AB28: =IF(Z28="","",IF(Météo!$F$6>Z28,(Météo!$F$6-Z28)/24,"")) -> 1.8825 | AC28: =IF(Z28="","",IF(Météo!$F$7<=Z28,(Z28-Météo!$F$7)/24,"")) ->  | AF28: =IF(Z28="","",IF(Météo!$F$6>Z28,(Météo!$F$6-Z28)/24,"")) -> 1.8825 | AG28: =IF(Z28="","",IF(Météo!$F$7<=Z28,(Z28-Météo!$F$7)/24,"")) ->  | BX28: 1 | FJ28: 67
A29: 2014-02-01 11:00 | B29: 2014 | C29: 2 | D29: 1 | E29: 11:00:00 | G29: -3.6 | I29: -9.9 | K29: 61 | M29: 1 | O29: 3 | S29: 102.07 | W29: -5 | Y29: ND | Z29: 25.52 | AB29: =IF(Z29="","",IF(Météo!$F$6>Z29,(Météo!$F$6-Z29)/24,"")) -> 1.77 | AC29: =IF(Z29="","",IF(Météo!$F$7<=Z29,(Z29-Météo!$F$7)/24,"")) ->  | AF29: =IF(Z29="","",IF(Météo!$F$6>Z29,(Météo!$F$6-Z29)/24,"")) -> 1.77 | AG29: =IF(Z29="","",IF(Météo!$F$7<=Z29,(Z29-Météo!$F$7)/24,"")) ->  | CA29: 1 | FM29: 61
A30: 2014-02-01 12:00 | B30: 2014 | C30: 2 | D30: 1 | E30: 12:00:00 | G30: -2.7 | I30: -9.8 | K30: 58 | M30: 8 | O30: 6 | S30: 101.97 | W30: -5 | Y30: ND | Z30: 27.14 | AB30: =IF(Z30="","",IF(Météo!$F$6>Z30,(Météo!$F$6-Z30)/24,"")) -> 1.7025 | AC30: =IF(Z30="","",IF(Météo!$F$7<=Z30,(Z30-Météo!$F$7)/24,"")) ->  | AF30: =IF(Z30="","",IF(Météo!$F$6>Z30,(Météo!$F$6-Z30)/24,"")) -> 1.7025 | AG30: =IF(Z30="","",IF(Météo!$F$7<=Z30,(Z30-Météo!$F$7)/24,"")) ->  | CA30: 1 | FM30: 58
A31: 2014-02-01 13:00 | B31: 2014 | C31: 2 | D31: 1 | E31: 13:00:00 | G31: -2.4 | I31: -8.8 | K31: 61 | M31: 8 | O31: 8 | S31: 101.88 | W31: -6 | Y31: ND | Z31: 27.68 | AB31: =IF(Z31="","",IF(Météo!$F$6>Z31,(Météo!$F$6-Z31)/24,"")) -> 1.68 | AC31: =IF(Z31="","",IF(Météo!$F$7<=Z31,(Z31-Météo!$F$7)/24,"")) ->  | AF31: =IF(Z31="","",IF(Météo!$F$6>Z31,(Météo!$F$6-Z31)/24,"")) -> 1.68 | AG31: =IF(Z31="","",IF(Météo!$F$7<=Z31,(Z31-Météo!$F$7)/24,"")) ->  | CA31: 1 | FM31: 61
A32: 2014-02-01 14:00 | B32: 2014 | C32: 2 | D32: 1 | E32: 14:00:00 | G32: -1.6 | I32: -8.2 | K32: 61 | M32: 7 | O32: 5 | S32: 101.74 | W32: -3 | Y32: ND | Z32: 29.12 | AB32: =IF(Z32="","",IF(Météo!$F$6>Z32,(Météo!$F$6-Z32)/24,"")) -> 1.62 | AC32: =IF(Z32="","",IF(Météo!$F$7<=Z32,(Z32-Météo!$F$7)/24,"")) ->  | AF32: =IF(Z32="","",IF(Météo!$F$6>Z32,(Météo!$F$6-Z32)/24,"")) -> 1.62 | AG32: =IF(Z32="","",IF(Météo!$F$7<=Z32,(Z32-Météo!$F$7)/24,"")) ->  | CA32: 1 | FM32: 61
A33: 2014-02-01 15:00 | B33: 2014 | C33: 2 | D33: 1 | E33: 15:00:00 | G33: -1.1 | I33: -7 | K33: 64 | M33: 5 | O33: 7 | S33: 101.68 | W33: -4 | Y33: ND | Z33: 30.02 | AB33: =IF(Z33="","",IF(Météo!$F$6>Z33,(Météo!$F$6-Z33)/24,"")) -> 1.5825 | AC33: =IF(Z33="","",IF(Météo!$F$7<=Z33,(Z33-Météo!$F$7)/24,"")) ->  | AF33: =IF(Z33="","",IF(Météo!$F$6>Z33,(Météo!$F$6-Z33)/24,"")) -> 1.5825 | AG33: =IF(Z33="","",IF(Météo!$F$7<=Z33,(Z33-Météo!$F$7)/24,"")) ->  | CD33: 1 | DW33: =IF(AND($Z33>DV$14,$Z33<=DV$15),$K33,"") ->  | EF33: =IF(AND($Z33>EE$14,$Z33<=EE$15),$K33,"") ->  | FP33: 64
A34: 2014-02-01 16:00 | B34: 2014 | C34: 2 | D34: 1 | E34: 16:00:00 | G34: -3.1 | I34: -5 | K34: 86 | M34: 2 | O34: 14 | S34: 101.59 | W34: -8 | Y34: ND | Z34: 26.42 | AB34: =IF(Z34="","",IF(Météo!$F$6>Z34,(Météo!$F$6-Z34)/24,"")) -> 1.7325 | AC34: =IF(Z34="","",IF(Météo!$F$7<=Z34,(Z34-Météo!$F$7)/24,"")) ->  | AH34: =IF(Z34="","",IF(Météo!$F$6>Z34,(Météo!$F$6-Z34)/24,"")) -> 1.7325 | AI34: =IF(Z34="","",IF(Météo!$F$7<=Z34,(Z34-Météo!$F$7)/24,"")) ->  | AL34: =IF(AND($Z34>AJ$14,$Z34<=AJ$15),1,"") ->  | AO34: =IF(AND($Z34>AM$14,$Z34<=AM$15),1,"") ->  | AR34: =IF(AND($Z34>AP$14,$Z34<=AP$15),1,"") ->  | AU34: =IF(AND($Z34>AS$14,$Z34<=AS$15),1,"") ->  | AX34: =IF(AND($Z34>AV$14,$Z34<=AV$15),1,"") ->  | BA34: =IF(AND($Z34>AY$14,$Z34<=AY$15),1,"") ->  | BD34: =IF(AND($Z34>BB$14,$Z34<=BB$15),1,"") ->  | BG34: =IF(AND($Z34>BE$14,$Z34<=BE$15),1,"") ->  | BJ34: =IF(AND($Z34>BH$14,$Z34<=BH$15),1,"") ->  | BM34: =IF(AND($Z34>BK$14,$Z34<=BK$15),1,"") ->  | BP34: =IF(AND($Z34>BN$14,$Z34<=BN$15),1,"") ->  | BS34: =IF(AND($Z34>BQ$14,$Z34<=BQ$15),1,"") ->  | BV34: =IF(AND($Z34>BT$14,$Z34<=BT$15),1,"") ->  | BY34: =IF(AND($Z34>BW$14,$Z34<=BW$15),1,"") ->  | CB34: =IF(AND($Z34>BZ$14,$Z34<=BZ$15),1,"") -> 1 | CE34: =IF(AND($Z34>CC$14,$Z34<=CC$15),1,"") ->  | CH34: =IF(AND($Z34>CF$14,$Z34<=CF$15),1,"") ->  | CK34: =IF(AND($Z34>CI$14,$Z34<=CI$15),1,"") ->  | CN34: =IF(AND($Z34>CL$14,$Z34<=CL$15),1,"") ->  | CQ34: =IF(AND($Z34>CO$14,$Z34<=CO$15),1,"") ->  | CT34: =IF(AND($Z34>CR$14,$Z34<=CR$15),1,"") ->  | CW34: =IF(AND($Z34>CU$14,$Z34<=CU$15),1,"") ->  | CZ34: =IF(AND($Z34>CX$14,$Z34<=CX$15),1,"") ->  | DC34: =IF(AND($Z34>DA$14,$Z34<=DA$15),1,"") ->  | DF34: =IF(AND($Z34>DD$14,$Z34<=DD$15),1,"") ->  | DI34: =IF(AND($Z34>DG$14,$Z34<=DG$15),1,"") ->  | DL34: =IF(AND($Z34>DJ$14,$Z34<=DJ$15),1,"") ->  | DO34: =IF(AND($Z34>DM$14,$Z34<=DM$15),1,"") ->  | DR34: =IF(AND($Z34>DP$14,$Z34<=DP$15),1,"") ->  | DX34: =IF(AND($Z34>DV$14,$Z34<=DV$15),$K34,"") ->  | EA34: =IF(AND($Z34>DY$14,$Z34<=DY$15),$K34,"") ->  | ED34: =IF(AND($Z34>EB$14,$Z34<=EB$15),$K34,"") ->  | EG34: =IF(AND($Z34>EE$14,$Z34<=EE$15),$K34,"") ->  | EJ34: =IF(AND($Z34>EH$14,$Z34<=EH$15),$K34,"") ->  | EM34: =IF(AND($Z34>EK$14,$Z34<=EK$15),$K34,"") ->  | EP34: =IF(AND($Z34>EN$14,$Z34<=EN$15),$K34,"") ->  | ES34: =IF(AND($Z34>EQ$14,$Z34<=EQ$15),$K34,"") ->  | EV34: =IF(AND($Z34>ET$14,$Z34<=ET$15),$K34,"") ->  | EY34: =IF(AND($Z34>EW$14,$Z34<=EW$15),$K34,"") ->  | FB34: =IF(AND($Z34>EZ$14,$Z34<=EZ$15),$K34,"") ->  | FE34: =IF(AND($Z34>FC$14,$Z34<=FC$15),$K34,"") ->  | FH34: =IF(AND($Z34>FF$14,$Z34<=FF$15),$K34,"") ->  | FK34: =IF(AND($Z34>FI$14,$Z34<=FI$15),$K34,"") ->  | FN34: =IF(AND($Z34>FL$14,$Z34<=FL$15),$K34,"") -> 86 | FQ34: =IF(AND($Z34>FO$14,$Z34<=FO$15),$K34,"") ->  | FT34: =IF(AND($Z34>FR$14,$Z34<=FR$15),$K34,"") ->  | FW34: =IF(AND($Z34>FU$14,$Z34<=FU$15),$K34,"") ->  | FZ34: =IF(AND($Z34>FX$14,$Z34<=FX$15),$K34,"") ->  | GC34: =IF(AND($Z34>GA$14,$Z34<=GA$15),$K34,"") ->  | GF34: =IF(AND($Z34>GD$14,$Z34<=GD$15),$K34,"") ->  | GI34: =IF(AND($Z34>GG$14,$Z34<=GG$15),$K34,"") ->  | GL34: =IF(AND($Z34>GJ$14,$Z34<=GJ$15),$K34,"") ->  | GO34: =IF(AND($Z34>GM$14,$Z34<=GM$15),$K34,"") ->  | GR34: =IF(AND($Z34>GP$14,$Z34<=GP$15),$K34,"") ->  | GU34: =IF(AND($Z34>GS$14,$Z34<=GS$15),$K34,"") ->  | GX34: =IF(AND($Z34>GV$14,$Z34<=GV$15),$K34,"") ->  | HA34: =IF(AND($Z34>GY$14,$Z34<=GY$15),$K34,"") ->  | HD34: =IF(AND($Z34>HB$14,$Z34<=HB$15),$K34,"") -> 
A35: 2014-02-01 17:00 | B35: 2014 | C35: 2 | D35: 1 | E35: 17:00:00 | G35: -3.1 | I35: -4.1 | K35: 92 | M35: 7 | O35: 9 | S35: 101.39 | W35: -7 | Y35: ND | Z35: 26.42 | AB35: =IF(Z35="","",IF(Météo!$F$6>Z35,(Météo!$F$6-Z35)/24,"")) -> 1.7325 | AC35: =IF(Z35="","",IF(Météo!$F$7<=Z35,(Z35-Météo!$F$7)/24,"")) ->  | AH35: =IF(Z35="","",IF(Météo!$F$6>Z35,(Météo!$F$6-Z35)/24,"")) -> 1.7325 | AI35: =IF(Z35="","",IF(Météo!$F$7<=Z35,(Z35-Météo!$F$7)/24,"")) ->  | AL35: =IF(AND($Z35>AJ$14,$Z35<=AJ$15),1,"") ->  | AU35: =IF(AND($Z35>AS$14,$Z35<=AS$15),1,"") ->  | CB35: 1 | DX35: =IF(AND($Z35>DV$14,$Z35<=DV$15),$K35,"") ->  | EG35: =IF(AND($Z35>EE$14,$Z35<=EE$15),$K35,"") ->  | FN35: 92
A36: 2014-02-01 18:00 | B36: 2014 | C36: 2 | D36: 1 | E36: 18:00:00 | G36: -2.5 | I36: -3.7 | K36: 91 | M36: 7 | O36: 9 | S36: 101.26 | W36: -6 | Y36: ND | Z36: 27.5 | AB36: =IF(Z36="","",IF(Météo!$F$6>Z36,(Météo!$F$6-Z36)/24,"")) -> 1.6875 | AC36: =IF(Z36="","",IF(Météo!$F$7<=Z36,(Z36-Météo!$F$7)/24,"")) ->  | AH36: =IF(Z36="","",IF(Météo!$F$6>Z36,(Météo!$F$6-Z36)/24,"")) -> 1.6875 | AI36: =IF(Z36="","",IF(Météo!$F$7<=Z36,(Z36-Météo!$F$7)/24,"")) ->  | CB36: 1 | FN36: 91
A37: 2014-02-01 19:00 | B37: 2014 | C37: 2 | D37: 1 | E37: 19:00:00 | G37: -1.4 | I37: -2.4 | K37: 92 | M37: 7 | O37: 5 | S37: 101.17 | W37: -3 | Y37: ND | Z37: 29.48 | AB37: =IF(Z37="","",IF(Météo!$F$6>Z37,(Météo!$F$6-Z37)/24,"")) -> 1.605 | AC37: =IF(Z37="","",IF(Météo!$F$7<=Z37,(Z37-Météo!$F$7)/24,"")) ->  | AH37: =IF(Z37="","",IF(Météo!$F$6>Z37,(Météo!$F$6-Z37)/24,"")) -> 1.605 | AI37: =IF(Z37="","",IF(Météo!$F$7<=Z37,(Z37-Météo!$F$7)/24,"")) ->  | CB37: 1 | FN37: 92
A38: 2014-02-01 20:00 | B38: 2014 | C38: 2 | D38: 1 | E38: 20:00:00 | G38: -2.8 | I38: -3.6 | K38: 94 | M38: 3 | O38: 11 | S38: 101.01 | W38: -7 | Y38: ND | Z38: 26.96 | AB38: =IF(Z38="","",IF(Météo!$F$6>Z38,(Météo!$F$6-Z38)/24,"")) -> 1.71 | AC38: =IF(Z38="","",IF(Météo!$F$7<=Z38,(Z38-Météo!$F$7)/24,"")) ->  | AH38: =IF(Z38="","",IF(Météo!$F$6>Z38,(Météo!$F$6-Z38)/24,"")) -> 1.71 | AI38: =IF(Z38="","",IF(Météo!$F$7<=Z38,(Z38-Météo!$F$7)/24,"")) ->  | CB38: 1 | FN38: 94
A39: 2014-02-01 21:00 | B39: 2014 | C39: 2 | D39: 1 | E39: 21:00:00 | G39: -3.5 | I39: -4.2 | K39: 94 | M39: 3 | O39: 13 | S39: 100.92 | W39: -8 | Y39: ND | Z39: 25.7 | AB39: =IF(Z39="","",IF(Météo!$F$6>Z39,(Météo!$F$6-Z39)/24,"")) -> 1.7625 | AC39: =IF(Z39="","",IF(Météo!$F$7<=Z39,(Z39-Météo!$F$7)/24,"")) ->  | AH39: =IF(Z39="","",IF(Météo!$F$6>Z39,(Météo!$F$6-Z39)/24,"")) -> 1.7625 | AI39: =IF(Z39="","",IF(Météo!$F$7<=Z39,(Z39-Météo!$F$7)/24,"")) ->  | CB39: 1 | FN39: 94
A40: 2014-02-01 22:00 | B40: 2014 | C40: 2 | D40: 1 | E40: 22:00:00 | G40: -3.6 | I40: -4.3 | K40: 95 | M40: 2 | O40: 9 | S40: 100.77 | W40: -7 | Y40: ND | Z40: 25.52 | AB40: =IF(Z40="","",IF(Météo!$F$6>Z40,(Météo!$F$6-Z40)/24,"")) -> 1.77 | AC40: =IF(Z40="","",IF(Météo!$F$7<=Z40,(Z40-Météo!$F$7)/24,"")) ->  | AH40: =IF(Z40="","",IF(Météo!$F$6>Z40,(Météo!$F$6-Z40)/24,"")) -> 1.77 | AI40: =IF(Z40="","",IF(Météo!$F$7<=Z40,(Z40-Météo!$F$7)/24,"")) ->  | CB40: 1 | FN40: 95
A41: 2014-02-01 23:00 | B41: 2014 | C41: 2 | D41: 1 | E41: 23:00:00 | G41: -3.8 | I41: -4.5 | K41: 94 | M41: 1 | O41: 7 | S41: 100.68 | W41: -7 | Y41: ND | Z41: 25.16 | AB41: =IF(Z41="","",IF(Météo!$F$6>Z41,(Météo!$F$6-Z41)/24,"")) -> 1.785 | AC41: =IF(Z41="","",IF(Météo!$F$7<=Z41,(Z41-Météo!$F$7)/24,"")) ->  | AH41: =IF(Z41="","",IF(Météo!$F$6>Z41,(Météo!$F$6-Z41)/24,"")) -> 1.785 | AI41: =IF(Z41="","",IF(Météo!$F$7<=Z41,(Z41-Météo!$F$7)/24,"")) ->  | CB41: 1 | FN41: 94
A42: 2014-02-02 00:00 | B42: 2014 | C42: 2 | D42: 2 | E42: 00:00:00 | G42: -4.1 | I42: -4.9 | K42: 94 | M42: 35 | O42: 7 | S42: 100.61 | W42: -7 | Y42: ND | Z42: 24.62 | AB42: =IF(Z42="","",IF(Météo!$F$6>Z42,(Météo!$F$6-Z42)/24,"")) -> 1.8075 | AC42: =IF(Z42="","",IF(Météo!$F$7<=Z42,(Z42-Météo!$F$7)/24,"")) ->  | AD42: =IF(Z42="","",IF(Météo!$F$6>Z42,(Météo!$F$6-Z42)/24,"")) -> 1.8075 | AE42: =IF(Z42="","",IF(Météo!$F$7<=Z42,(Z42-Météo!$F$7)/24,"")) ->  | AJ42: =IF(AND($Z42>AJ$14,$Z42<=AJ$15),1,"") ->  | AM42: =IF(AND($Z42>AM$14,$Z42<=AM$15),1,"") ->  | AP42: =IF(AND($Z42>AP$14,$Z42<=AP$15),1,"") ->  | AS42: =IF(AND($Z42>AS$14,$Z42<=AS$15),1,"") ->  | AV42: =IF(AND($Z42>AV$14,$Z42<=AV$15),1,"") ->  | AY42: =IF(AND($Z42>AY$14,$Z42<=AY$15),1,"") ->  | BB42: =IF(AND($Z42>BB$14,$Z42<=BB$15),1,"") ->  | BE42: =IF(AND($Z42>BE$14,$Z42<=BE$15),1,"") ->  | BH42: =IF(AND($Z42>BH$14,$Z42<=BH$15),1,"") ->  | BK42: =IF(AND($Z42>BK$14,$Z42<=BK$15),1,"") ->  | BN42: =IF(AND($Z42>BN$14,$Z42<=BN$15),1,"") ->  | BQ42: =IF(AND($Z42>BQ$14,$Z42<=BQ$15),1,"") ->  | BT42: =IF(AND($Z42>BT$14,$Z42<=BT$15),1,"") ->  | BW42: =IF(AND($Z42>BW$14,$Z42<=BW$15),1,"") -> 1 | BZ42: =IF(AND($Z42>BZ$14,$Z42<=BZ$15),1,"") ->  | CC42: =IF(AND($Z42>CC$14,$Z42<=CC$15),1,"") ->  | CF42: =IF(AND($Z42>CF$14,$Z42<=CF$15),1,"") ->  | CI42: =IF(AND($Z42>CI$14,$Z42<=CI$15),1,"") ->  | CL42: =IF(AND($Z42>CL$14,$Z42<=CL$15),1,"") ->  | CO42: =IF(AND($Z42>CO$14,$Z42<=CO$15),1,"") ->  | CR42: =IF(AND($Z42>CR$14,$Z42<=CR$15),1,"") ->  | CU42: =IF(AND($Z42>CU$14,$Z42<=CU$15),1,"") ->  | CX42: =IF(AND($Z42>CX$14,$Z42<=CX$15),1,"") ->  | DA42: =IF(AND($Z42>DA$14,$Z42<=DA$15),1,"") ->  | DD42: =IF(AND($Z42>DD$14,$Z42<=DD$15),1,"") ->  | DG42: =IF(AND($Z42>DG$14,$Z42<=DG$15),1,"") ->  | DJ42: =IF(AND($Z42>DJ$14,$Z42<=DJ$15),1,"") ->  | DM42: =IF(AND($Z42>DM$14,$Z42<=DM$15),1,"") ->  | DP42: =IF(AND($Z42>DP$14,$Z42<=DP$15),1,"") ->  | DV42: =IF(AND($Z42>DV$14,$Z42<=DV$15),$K42,"") ->  | DY42: =IF(AND($Z42>DY$14,$Z42<=DY$15),$K42,"") ->  | EB42: =IF(AND($Z42>EB$14,$Z42<=EB$15),$K42,"") ->  | EE42: =IF(AND($Z42>EE$14,$Z42<=EE$15),$K42,"") ->  | EH42: =IF(AND($Z42>EH$14,$Z42<=EH$15),$K42,"") ->  | EK42: =IF(AND($Z42>EK$14,$Z42<=EK$15),$K42,"") ->  | EN42: =IF(AND($Z42>EN$14,$Z42<=EN$15),$K42,"") ->  | EQ42: =IF(AND($Z42>EQ$14,$Z42<=EQ$15),$K42,"") ->  | ET42: =IF(AND($Z42>ET$14,$Z42<=ET$15),$K42,"") ->  | EW42: =IF(AND($Z42>EW$14,$Z42<=EW$15),$K42,"") ->  | EZ42: =IF(AND($Z42>EZ$14,$Z42<=EZ$15),$K42,"") ->  | FC42: =IF(AND($Z42>FC$14,$Z42<=FC$15),$K42,"") ->  | FF42: =IF(AND($Z42>FF$14,$Z42<=FF$15),$K42,"") ->  | FI42: =IF(AND($Z42>FI$14,$Z42<=FI$15),$K42,"") -> 94 | FL42: =IF(AND($Z42>FL$14,$Z42<=FL$15),$K42,"") ->  | FO42: =IF(AND($Z42>FO$14,$Z42<=FO$15),$K42,"") ->  | FR42: =IF(AND($Z42>FR$14,$Z42<=FR$15),$K42,"") ->  | FU42: =IF(AND($Z42>FU$14,$Z42<=FU$15),$K42,"") ->  | FX42: =IF(AND($Z42>FX$14,$Z42<=FX$15),$K42,"") ->  | GA42: =IF(AND($Z42>GA$14,$Z42<=GA$15),$K42,"") ->  | GD42: =IF(AND($Z42>GD$14,$Z42<=GD$15),$K42,"") ->  | GG42: =IF(AND($Z42>GG$14,$Z42<=GG$15),$K42,"") ->  | GJ42: =IF(AND($Z42>GJ$14,$Z42<=GJ$15),$K42,"") ->  | GM42: =IF(AND($Z42>GM$14,$Z42<=GM$15),$K42,"") ->  | GP42: =IF(AND($Z42>GP$14,$Z42<=GP$15),$K42,"") ->  | GS42: =IF(AND($Z42>GS$14,$Z42<=GS$15),$K42,"") ->  | GV42: =IF(AND($Z42>GV$14,$Z42<=GV$15),$K42,"") ->  | GY42: =IF(AND($Z42>GY$14,$Z42<=GY$15),$K42,"") ->  | HB42: =IF(AND($Z42>HB$14,$Z42<=HB$15),$K42,"") -> 
A43: 2014-02-02 01:00 | B43: 2014 | C43: 2 | D43: 2 | E43: 01:00:00 | G43: -4.2 | I43: -5 | K43: 94 | M43: 35 | O43: 9 | S43: 100.62 | W43: -8 | Y43: ND | Z43: 24.44 | AB43: =IF(Z43="","",IF(Météo!$F$6>Z43,(Météo!$F$6-Z43)/24,"")) -> 1.815 | AC43: =IF(Z43="","",IF(Météo!$F$7<=Z43,(Z43-Météo!$F$7)/24,"")) ->  | AD43: =IF(Z43="","",IF(Météo!$F$6>Z43,(Météo!$F$6-Z43)/24,"")) -> 1.815 | AE43: =IF(Z43="","",IF(Météo!$F$7<=Z43,(Z43-Météo!$F$7)/24,"")) ->  | BW43: 1 | FI43: 94
A44: 2014-02-02 02:00 | B44: 2014 | C44: 2 | D44: 2 | E44: 02:00:00 | G44: -4.2 | I44: -5 | K44: 94 | M44: 36 | O44: 7 | S44: 100.55 | W44: -7 | Y44: ND | Z44: 24.44 | AB44: =IF(Z44="","",IF(Météo!$F$6>Z44,(Météo!$F$6-Z44)/24,"")) -> 1.815 | AC44: =IF(Z44="","",IF(Météo!$F$7<=Z44,(Z44-Météo!$F$7)/24,"")) ->  | AD44: =IF(Z44="","",IF(Météo!$F$6>Z44,(Météo!$F$6-Z44)/24,"")) -> 1.815 | AE44: =IF(Z44="","",IF(Météo!$F$7<=Z44,(Z44-Météo!$F$7)/24,"")) ->  | BW44: 1 | FI44: 94
A45: 2014-02-02 03:00 | B45: 2014 | C45: 2 | D45: 2 | E45: 03:00:00 | G45: -3.9 | I45: -4.6 | K45: 94 | M45: 36 | O45: 5 | S45: 100.54 | W45: -6 | Y45: ND | Z45: 24.98 | AB45: =IF(Z45="","",IF(Météo!$F$6>Z45,(Météo!$F$6-Z45)/24,"")) -> 1.7925 | AC45: =IF(Z45="","",IF(Météo!$F$7<=Z45,(Z45-Météo!$F$7)/24,"")) ->  | AD45: =IF(Z45="","",IF(Météo!$F$6>Z45,(Météo!$F$6-Z45)/24,"")) -> 1.7925 | AE45: =IF(Z45="","",IF(Météo!$F$7<=Z45,(Z45-Météo!$F$7)/24,"")) ->  | BW45: 1 | FI45: 94
A46: 2014-02-02 04:00 | B46: 2014 | C46: 2 | D46: 2 | E46: 04:00:00 | G46: -3.7 | I46: -4.4 | K46: 94 | M46: 32 | O46: 3 | S46: 100.58 | W46: -5 | Y46: ND | Z46: 25.34 | AB46: =IF(Z46="","",IF(Météo!$F$6>Z46,(Météo!$F$6-Z46)/24,"")) -> 1.7775 | AC46: =IF(Z46="","",IF(Météo!$F$7<=Z46,(Z46-Météo!$F$7)/24,"")) ->  | AD46: =IF(Z46="","",IF(Météo!$F$6>Z46,(Météo!$F$6-Z46)/24,"")) -> 1.7775 | AE46: =IF(Z46="","",IF(Météo!$F$7<=Z46,(Z46-Météo!$F$7)/24,"")) ->  | BZ46: 1 | FL46: 94
A47: 2014-02-02 05:00 | B47: 2014 | C47: 2 | D47: 2 | E47: 05:00:00 | G47: -3.4 | I47: -4.1 | K47: 95 | M47: 29 | O47: 2 | S47: 100.6 | W47: -4 | Y47: ND | Z47: 25.88 | AB47: =IF(Z47="","",IF(Météo!$F$6>Z47,(Météo!$F$6-Z47)/24,"")) -> 1.755 | AC47: =IF(Z47="","",IF(Météo!$F$7<=Z47,(Z47-Météo!$F$7)/24,"")) ->  | AD47: =IF(Z47="","",IF(Météo!$F$6>Z47,(Météo!$F$6-Z47)/24,"")) -> 1.755 | AE47: =IF(Z47="","",IF(Météo!$F$7<=Z47,(Z47-Météo!$F$7)/24,"")) ->  | BZ47: 1 | FL47: 95
A48: 2014-02-02 06:00 | B48: 2014 | C48: 2 | D48: 2 | E48: 06:00:00 | G48: -2.7 | I48: -3.5 | K48: 95 | M48: 23 | O48: 2 | S48: 100.6 | W48: -3 | Y48: ND | Z48: 27.14 | AB48: =IF(Z48="","",IF(Météo!$F$6>Z48,(Météo!$F$6-Z48)/24,"")) -> 1.7025 | AC48: =IF(Z48="","",IF(Météo!$F$7<=Z48,(Z48-Météo!$F$7)/24,"")) ->  | AD48: =IF(Z48="","",IF(Météo!$F$6>Z48,(Météo!$F$6-Z48)/24,"")) -> 1.7025 | AE48: =IF(Z48="","",IF(Météo!$F$7<=Z48,(Z48-Météo!$F$7)/24,"")) ->  | BZ48: 1 | FL48: 95
A49: 2014-02-02 07:00 | B49: 2014 | C49: 2 | D49: 2 | E49: 07:00:00 | G49: -1.8 | I49: -2.6 | K49: 94 | M49: 26 | O49: 9 | S49: 100.7 | W49: -5 | Y49: ND | Z49: 28.76 | AB49: =IF(Z49="","",IF(Météo!$F$6>Z49,(Météo!$F$6-Z49)/24,"")) -> 1.635 | AC49: =IF(Z49="","",IF(Météo!$F$7<=Z49,(Z49-Météo!$F$7)/24,"")) ->  | AD49: =IF(Z49="","",IF(Météo!$F$6>Z49,(Météo!$F$6-Z49)/24,"")) -> 1.635 | AE49: =IF(Z49="","",IF(Météo!$F$7<=Z49,(Z49-Météo!$F$7)/24,"")) ->  | BZ49: 1 | FL49: 94
A50: 2014-02-02 08:00 | B50: 2014 | C50: 2 | D50: 2 | E50: 08:00:00 | G50: -1.7 | I50: -2.6 | K50: 94 | M50: 28 | O50: 12 | S50: 100.8 | W50: -6 | Y50: ND | Z50: 28.94 | AB50: =IF(Z50="","",IF(Météo!$F$6>Z50,(Météo!$F$6-Z50)/24,"")) -> 1.6275 | AC50: =IF(Z50="","",IF(Météo!$F$7<=Z50,(Z50-Météo!$F$7)/24,"")) ->  | AF50: =IF(Z50="","",IF(Météo!$F$6>Z50,(Météo!$F$6-Z50)/24,"")) -> 1.6275 | AG50: =IF(Z50="","",IF(Météo!$F$7<=Z50,(Z50-Météo!$F$7)/24,"")) ->  | AK50: =IF(AND($Z50>AJ$14,$Z50<=AJ$15),1,"") ->  | AN50: =IF(AND($Z50>AM$14,$Z50<=AM$15),1,"") ->  | AQ50: =IF(AND($Z50>AP$14,$Z50<=AP$15),1,"") ->  | AT50: =IF(AND($Z50>AS$14,$Z50<=AS$15),1,"") ->  | AW50: =IF(AND($Z50>AV$14,$Z50<=AV$15),1,"") ->  | AZ50: =IF(AND($Z50>AY$14,$Z50<=AY$15),1,"") ->  | BC50: =IF(AND($Z50>BB$14,$Z50<=BB$15),1,"") ->  | BF50: =IF(AND($Z50>BE$14,$Z50<=BE$15),1,"") ->  | BI50: =IF(AND($Z50>BH$14,$Z50<=BH$15),1,"") ->  | BL50: =IF(AND($Z50>BK$14,$Z50<=BK$15),1,"") ->  | BO50: =IF(AND($Z50>BN$14,$Z50<=BN$15),1,"") ->  | BR50: =IF(AND($Z50>BQ$14,$Z50<=BQ$15),1,"") ->  | BU50: =IF(AND($Z50>BT$14,$Z50<=BT$15),1,"") ->  | BX50: =IF(AND($Z50>BW$14,$Z50<=BW$15),1,"") ->  | CA50: =IF(AND($Z50>BZ$14,$Z50<=BZ$15),1,"") -> 1 | CD50: =IF(AND($Z50>CC$14,$Z50<=CC$15),1,"") ->  | CG50: =IF(AND($Z50>CF$14,$Z50<=CF$15),1,"") ->  | CJ50: =IF(AND($Z50>CI$14,$Z50<=CI$15),1,"") ->  | CM50: =IF(AND($Z50>CL$14,$Z50<=CL$15),1,"") ->  | CP50: =IF(AND($Z50>CO$14,$Z50<=CO$15),1,"") ->  | CS50: =IF(AND($Z50>CR$14,$Z50<=CR$15),1,"") ->  | CV50: =IF(AND($Z50>CU$14,$Z50<=CU$15),1,"") ->  | CY50: =IF(AND($Z50>CX$14,$Z50<=CX$15),1,"") ->  | DB50: =IF(AND($Z50>DA$14,$Z50<=DA$15),1,"") ->  | DE50: =IF(AND($Z50>DD$14,$Z50<=DD$15),1,"") ->  | DH50: =IF(AND($Z50>DG$14,$Z50<=DG$15),1,"") ->  | DK50: =IF(AND($Z50>DJ$14,$Z50<=DJ$15),1,"") ->  | DN50: =IF(AND($Z50>DM$14,$Z50<=DM$15),1,"") ->  | DQ50: =IF(AND($Z50>DP$14,$Z50<=DP$15),1,"") ->  | DW50: =IF(AND($Z50>DV$14,$Z50<=DV$15),$K50,"") ->  | DZ50: =IF(AND($Z50>DY$14,$Z50<=DY$15),$K50,"") ->  | EC50: =IF(AND($Z50>EB$14,$Z50<=EB$15),$K50,"") ->  | EF50: =IF(AND($Z50>EE$14,$Z50<=EE$15),$K50,"") ->  | EI50: =IF(AND($Z50>EH$14,$Z50<=EH$15),$K50,"") ->  | EL50: =IF(AND($Z50>EK$14,$Z50<=EK$15),$K50,"") ->  | EO50: =IF(AND($Z50>EN$14,$Z50<=EN$15),$K50,"") ->  | ER50: =IF(AND($Z50>EQ$14,$Z50<=EQ$15),$K50,"") ->  | EU50: =IF(AND($Z50>ET$14,$Z50<=ET$15),$K50,"") ->  | EX50: =IF(AND($Z50>EW$14,$Z50<=EW$15),$K50,"") ->  | FA50: =IF(AND($Z50>EZ$14,$Z50<=EZ$15),$K50,"") ->  | FD50: =IF(AND($Z50>FC$14,$Z50<=FC$15),$K50,"") ->  | FG50: =IF(AND($Z50>FF$14,$Z50<=FF$15),$K50,"") ->  | FJ50: =IF(AND($Z50>FI$14,$Z50<=FI$15),$K50,"") ->  | FM50: =IF(AND($Z50>FL$14,$Z50<=FL$15),$K50,"") -> 94 | FP50: =IF(AND($Z50>FO$14,$Z50<=FO$15),$K50,"") ->  | FS50: =IF(AND($Z50>FR$14,$Z50<=FR$15),$K50,"") ->  | FV50: =IF(AND($Z50>FU$14,$Z50<=FU$15),$K50,"") ->  | FY50: =IF(AND($Z50>FX$14,$Z50<=FX$15),$K50,"") ->  | GB50: =IF(AND($Z50>GA$14,$Z50<=GA$15),$K50,"") ->  | GE50: =IF(AND($Z50>GD$14,$Z50<=GD$15),$K50,"") ->  | GH50: =IF(AND($Z50>GG$14,$Z50<=GG$15),$K50,"") ->  | GK50: =IF(AND($Z50>GJ$14,$Z50<=GJ$15),$K50,"") ->  | GN50: =IF(AND($Z50>GM$14,$Z50<=GM$15),$K50,"") ->  | GQ50: =IF(AND($Z50>GP$14,$Z50<=GP$15),$K50,"") ->  | GT50: =IF(AND($Z50>GS$14,$Z50<=GS$15),$K50,"") ->  | GW50: =IF(AND($Z50>GV$14,$Z50<=GV$15),$K50,"") ->  | GZ50: =IF(AND($Z50>GY$14,$Z50<=GY$15),$K50,"") ->  | HC50: =IF(AND($Z50>HB$14,$Z50<=HB$15),$K50,"") -> 
A51: 2014-02-02 09:00 | B51: 2014 | C51: 2 | D51: 2 | E51: 09:00:00 | G51: -1.7 | I51: -2.8 | K51: 92 | M51: 26 | O51: 10 | S51: 100.86 | W51: -5 | Y51: ND | Z51: 28.94 | AB51: =IF(Z51="","",IF(Météo!$F$6>Z51,(Météo!$F$6-Z51)/24,"")) -> 1.6275 | AC51: =IF(Z51="","",IF(Météo!$F$7<=Z51,(Z51-Météo!$F$7)/24,"")) ->  | AF51: =IF(Z51="","",IF(Météo!$F$6>Z51,(Météo!$F$6-Z51)/24,"")) -> 1.6275 | AG51: =IF(Z51="","",IF(Météo!$F$7<=Z51,(Z51-Météo!$F$7)/24,"")) ->  | CA51: 1 | FM51: 92
A52: 2014-02-02 10:00 | B52: 2014 | C52: 2 | D52: 2 | E52: 10:00:00 | G52: -1.5 | I52: -3.3 | K52: 88 | M52: 26 | O52: 9 | S52: 100.87 | W52: -5 | Y52: ND | Z52: 29.3 | AB52: =IF(Z52="","",IF(Météo!$F$6>Z52,(Météo!$F$6-Z52)/24,"")) -> 1.6125 | AC52: =IF(Z52="","",IF(Météo!$F$7<=Z52,(Z52-Météo!$F$7)/24,"")) ->  | AF52: =IF(Z52="","",IF(Météo!$F$6>Z52,(Météo!$F$6-Z52)/24,"")) -> 1.6125 | AG52: =IF(Z52="","",IF(Météo!$F$7<=Z52,(Z52-Météo!$F$7)/24,"")) ->  | CA52: 1 | FM52: 88
A53: 2014-02-02 11:00 | B53: 2014 | C53: 2 | D53: 2 | E53: 11:00:00 | G53: -1.2 | I53: -3.5 | K53: 85 | M53: 26 | O53: 11 | S53: 100.9 | W53: -5 | Y53: ND | Z53: 29.84 | AB53: =IF(Z53="","",IF(Météo!$F$6>Z53,(Météo!$F$6-Z53)/24,"")) -> 1.59 | AC53: =IF(Z53="","",IF(Météo!$F$7<=Z53,(Z53-Météo!$F$7)/24,"")) ->  | AF53: =IF(Z53="","",IF(Météo!$F$6>Z53,(Météo!$F$6-Z53)/24,"")) -> 1.59 | AG53: =IF(Z53="","",IF(Météo!$F$7<=Z53,(Z53-Météo!$F$7)/24,"")) ->  | CA53: 1 | FM53: 85
A54: 2014-02-02 12:00 | B54: 2014 | C54: 2 | D54: 2 | E54: 12:00:00 | G54: -1.1 | I54: -3.6 | K54: 83 | M54: 25 | O54: 10 | S54: 100.93 | W54: -5 | Y54: ND | Z54: 30.02 | AB54: =IF(Z54="","",IF(Météo!$F$6>Z54,(Météo!$F$6-Z54)/24,"")) -> 1.5825 | AC54: =IF(Z54="","",IF(Météo!$F$7<=Z54,(Z54-Météo!$F$7)/24,"")) ->  | AF54: =IF(Z54="","",IF(Météo!$F$6>Z54,(Météo!$F$6-Z54)/24,"")) -> 1.5825 | AG54: =IF(Z54="","",IF(Météo!$F$7<=Z54,(Z54-Météo!$F$7)/24,"")) ->  | CD54: 1 | FP54: 83
A55: 2014-02-02 13:00 | B55: 2014 | C55: 2 | D55: 2 | E55: 13:00:00 | G55: -1.4 | I55: -4.5 | K55: 80 | M55: 27 | O55: 18 | S55: 100.89 | W55: -7 | Y55: ND | Z55: 29.48 | AB55: =IF(Z55="","",IF(Météo!$F$6>Z55,(Météo!$F$6-Z55)/24,"")) -> 1.605 | AC55: =IF(Z55="","",IF(Météo!$F$7<=Z55,(Z55-Météo!$F$7)/24,"")) ->  | AF55: =IF(Z55="","",IF(Météo!$F$6>Z55,(Météo!$F$6-Z55)/24,"")) -> 1.605 | AG55: =IF(Z55="","",IF(Météo!$F$7<=Z55,(Z55-Météo!$F$7)/24,"")) ->  | CA55: 1 | FM55: 80
A56: 2014-02-02 14:00 | B56: 2014 | C56: 2 | D56: 2 | E56: 14:00:00 | G56: -1.7 | I56: -4.8 | K56: 79 | M56: 27 | O56: 21 | S56: 100.96 | W56: -8 | Y56: ND | Z56: 28.94 | AB56: =IF(Z56="","",IF(Météo!$F$6>Z56,(Météo!$F$6-Z56)/24,"")) -> 1.6275 | AC56: =IF(Z56="","",IF(Météo!$F$7<=Z56,(Z56-Météo!$F$7)/24,"")) ->  | AF56: =IF(Z56="","",IF(Météo!$F$6>Z56,(Météo!$F$6-Z56)/24,"")) -> 1.6275 | AG56: =IF(Z56="","",IF(Météo!$F$7<=Z56,(Z56-Météo!$F$7)/24,"")) ->  | CA56: 1 | FM56: 79
A57: 2014-02-02 15:00 | B57: 2014 | C57: 2 | D57: 2 | E57: 15:00:00 | G57: -1.5 | I57: -4.9 | K57: 77 | M57: 27 | O57: 19 | S57: 101.07 | W57: -7 | Y57: ND | Z57: 29.3 | AB57: =IF(Z57="","",IF(Météo!$F$6>Z57,(Météo!$F$6-Z57)/24,"")) -> 1.6125 | AC57: =IF(Z57="","",IF(Météo!$F$7<=Z57,(Z57-Météo!$F$7)/24,"")) ->  | AF57: =IF(Z57="","",IF(Météo!$F$6>Z57,(Météo!$F$6-Z57)/24,"")) -> 1.6125 | AG57: =IF(Z57="","",IF(Météo!$F$7<=Z57,(Z57-Météo!$F$7)/24,"")) ->  | CA57: 1 | FM57: 77
A58: 2014-02-02 16:00 | B58: 2014 | C58: 2 | D58: 2 | E58: 16:00:00 | G58: -1.5 | I58: -5.1 | K58: 77 | M58: 26 | O58: 18 | S58: 101.16 | W58: -7 | Y58: ND | Z58: 29.3 | AB58: =IF(Z58="","",IF(Météo!$F$6>Z58,(Météo!$F$6-Z58)/24,"")) -> 1.6125 | AC58: =IF(Z58="","",IF(Météo!$F$7<=Z58,(Z58-Météo!$F$7)/24,"")) ->  | AH58: =IF(Z58="","",IF(Météo!$F$6>Z58,(Météo!$F$6-Z58)/24,"")) -> 1.6125 | AI58: =IF(Z58="","",IF(Météo!$F$7<=Z58,(Z58-Météo!$F$7)/24,"")) ->  | AL58: =IF(AND($Z58>AJ$14,$Z58<=AJ$15),1,"") ->  | AO58: =IF(AND($Z58>AM$14,$Z58<=AM$15),1,"") ->  | AR58: =IF(AND($Z58>AP$14,$Z58<=AP$15),1,"") ->  | AU58: =IF(AND($Z58>AS$14,$Z58<=AS$15),1,"") ->  | AX58: =IF(AND($Z58>AV$14,$Z58<=AV$15),1,"") ->  | BA58: =IF(AND($Z58>AY$14,$Z58<=AY$15),1,"") ->  | BD58: =IF(AND($Z58>BB$14,$Z58<=BB$15),1,"") ->  | BG58: =IF(AND($Z58>BE$14,$Z58<=BE$15),1,"") ->  | BJ58: =IF(AND($Z58>BH$14,$Z58<=BH$15),1,"") ->  | BM58: =IF(AND($Z58>BK$14,$Z58<=BK$15),1,"") ->  | BP58: =IF(AND($Z58>BN$14,$Z58<=BN$15),1,"") ->  | BS58: =IF(AND($Z58>BQ$14,$Z58<=BQ$15),1,"") ->  | BV58: =IF(AND($Z58>BT$14,$Z58<=BT$15),1,"") ->  | BY58: =IF(AND($Z58>BW$14,$Z58<=BW$15),1,"") ->  | CB58: =IF(AND($Z58>BZ$14,$Z58<=BZ$15),1,"") -> 1 | CE58: =IF(AND($Z58>CC$14,$Z58<=CC$15),1,"") ->  | CH58: =IF(AND($Z58>CF$14,$Z58<=CF$15),1,"") ->  | CK58: =IF(AND($Z58>CI$14,$Z58<=CI$15),1,"") ->  | CN58: =IF(AND($Z58>CL$14,$Z58<=CL$15),1,"") ->  | CQ58: =IF(AND($Z58>CO$14,$Z58<=CO$15),1,"") ->  | CT58: =IF(AND($Z58>CR$14,$Z58<=CR$15),1,"") ->  | CW58: =IF(AND($Z58>CU$14,$Z58<=CU$15),1,"") ->  | CZ58: =IF(AND($Z58>CX$14,$Z58<=CX$15),1,"") ->  | DC58: =IF(AND($Z58>DA$14,$Z58<=DA$15),1,"") ->  | DF58: =IF(AND($Z58>DD$14,$Z58<=DD$15),1,"") ->  | DI58: =IF(AND($Z58>DG$14,$Z58<=DG$15),1,"") ->  | DL58: =IF(AND($Z58>DJ$14,$Z58<=DJ$15),1,"") ->  | DO58: =IF(AND($Z58>DM$14,$Z58<=DM$15),1,"") ->  | DR58: =IF(AND($Z58>DP$14,$Z58<=DP$15),1,"") ->  | DX58: =IF(AND($Z58>DV$14,$Z58<=DV$15),$K58,"") ->  | EA58: =IF(AND($Z58>DY$14,$Z58<=DY$15),$K58,"") ->  | ED58: =IF(AND($Z58>EB$14,$Z58<=EB$15),$K58,"") ->  | EG58: =IF(AND($Z58>EE$14,$Z58<=EE$15),$K58,"") ->  | EJ58: =IF(AND($Z58>EH$14,$Z58<=EH$15),$K58,"") ->  | EM58: =IF(AND($Z58>EK$14,$Z58<=EK$15),$K58,"") ->  | EP58: =IF(AND($Z58>EN$14,$Z58<=EN$15),$K58,"") ->  | ES58: =IF(AND($Z58>EQ$14,$Z58<=EQ$15),$K58,"") ->  | EV58: =IF(AND($Z58>ET$14,$Z58<=ET$15),$K58,"") ->  | EY58: =IF(AND($Z58>EW$14,$Z58<=EW$15),$K58,"") ->  | FB58: =IF(AND($Z58>EZ$14,$Z58<=EZ$15),$K58,"") ->  | FE58: =IF(AND($Z58>FC$14,$Z58<=FC$15),$K58,"") ->  | FH58: =IF(AND($Z58>FF$14,$Z58<=FF$15),$K58,"") ->  | FK58: =IF(AND($Z58>FI$14,$Z58<=FI$15),$K58,"") ->  | FN58: =IF(AND($Z58>FL$14,$Z58<=FL$15),$K58,"") -> 77 | FQ58: =IF(AND($Z58>FO$14,$Z58<=FO$15),$K58,"") ->  | FT58: =IF(AND($Z58>FR$14,$Z58<=FR$15),$K58,"") ->  | FW58: =IF(AND($Z58>FU$14,$Z58<=FU$15),$K58,"") ->  | FZ58: =IF(AND($Z58>FX$14,$Z58<=FX$15),$K58,"") ->  | GC58: =IF(AND($Z58>GA$14,$Z58<=GA$15),$K58,"") ->  | GF58: =IF(AND($Z58>GD$14,$Z58<=GD$15),$K58,"") ->  | GI58: =IF(AND($Z58>GG$14,$Z58<=GG$15),$K58,"") ->  | GL58: =IF(AND($Z58>GJ$14,$Z58<=GJ$15),$K58,"") ->  | GO58: =IF(AND($Z58>GM$14,$Z58<=GM$15),$K58,"") ->  | GR58: =IF(AND($Z58>GP$14,$Z58<=GP$15),$K58,"") ->  | GU58: =IF(AND($Z58>GS$14,$Z58<=GS$15),$K58,"") ->  | GX58: =IF(AND($Z58>GV$14,$Z58<=GV$15),$K58,"") ->  | HA58: =IF(AND($Z58>GY$14,$Z58<=GY$15),$K58,"") ->  | HD58: =IF(AND($Z58>HB$14,$Z58<=HB$15),$K58,"") -> 
A59: 2014-02-02 17:00 | B59: 2014 | C59: 2 | D59: 2 | E59: 17:00:00 | G59: -1.9 | I59: -5.3 | K59: 78 | M59: 25 | O59: 14 | S59: 101.21 | W59: -7 | Y59: ND | Z59: 28.58 | AB59: =IF(Z59="","",IF(Météo!$F$6>Z59,(Météo!$F$6-Z59)/24,"")) -> 1.6425 | AC59: =IF(Z59="","",IF(Météo!$F$7<=Z59,(Z59-Météo!$F$7)/24,"")) ->  | AH59: =IF(Z59="","",IF(Météo!$F$6>Z59,(Météo!$F$6-Z59)/24,"")) -> 1.6425 | AI59: =IF(Z59="","",IF(Météo!$F$7<=Z59,(Z59-Météo!$F$7)/24,"")) ->  | CB59: 1 | FN59: 78
A60: 2014-02-02 18:00 | B60: 2014 | C60: 2 | D60: 2 | E60: 18:00:00 | G60: -2.4 | I60: -5.6 | K60: 79 | M60: 25 | O60: 19 | S60: 101.29 | W60: -8 | Y60: ND | Z60: 27.68 | AB60: =IF(Z60="","",IF(Météo!$F$6>Z60,(Météo!$F$6-Z60)/24,"")) -> 1.68 | AC60: =IF(Z60="","",IF(Météo!$F$7<=Z60,(Z60-Météo!$F$7)/24,"")) ->  | AH60: =IF(Z60="","",IF(Météo!$F$6>Z60,(Météo!$F$6-Z60)/24,"")) -> 1.68 | AI60: =IF(Z60="","",IF(Météo!$F$7<=Z60,(Z60-Météo!$F$7)/24,"")) ->  | CB60: 1 | FN60: 79
A61: 2014-02-02 19:00 | B61: 2014 | C61: 2 | D61: 2 | E61: 19:00:00 | G61: -2.4 | I61: -5.7 | K61: 78 | M61: 26 | O61: 18 | S61: 101.41 | W61: -8 | Y61: ND | Z61: 27.68 | AB61: =IF(Z61="","",IF(Météo!$F$6>Z61,(Météo!$F$6-Z61)/24,"")) -> 1.68 | AC61: =IF(Z61="","",IF(Météo!$F$7<=Z61,(Z61-Météo!$F$7)/24,"")) ->  | AH61: =IF(Z61="","",IF(Météo!$F$6>Z61,(Météo!$F$6-Z61)/24,"")) -> 1.68 | AI61: =IF(Z61="","",IF(Météo!$F$7<=Z61,(Z61-Météo!$F$7)/24,"")) ->  | CB61: 1 | FN61: 78
A62: 2014-02-02 20:00 | B62: 2014 | C62: 2 | D62: 2 | E62: 20:00:00 | G62: -3.1 | I62: -6.8 | K62: 76 | M62: 26 | O62: 15 | S62: 101.49 | W62: -8 | Y62: ND | Z62: 26.42 | AB62: =IF(Z62="","",IF(Météo!$F$6>Z62,(Météo!$F$6-Z62)/24,"")) -> 1.7325 | AC62: =IF(Z62="","",IF(Météo!$F$7<=Z62,(Z62-Météo!$F$7)/24,"")) ->  | AH62: =IF(Z62="","",IF(Météo!$F$6>Z62,(Météo!$F$6-Z62)/24,"")) -> 1.7325 | AI62: =IF(Z62="","",IF(Météo!$F$7<=Z62,(Z62-Météo!$F$7)/24,"")) ->  | CB62: 1 | FN62: 76
A63: 2014-02-02 21:00 | B63: 2014 | C63: 2 | D63: 2 | E63: 21:00:00 | G63: -5.1 | I63: -8.3 | K63: 79 | M63: 28 | O63: 12 | S63: 101.53 | W63: -10 | Y63: ND | Z63: 22.82 | AB63: =IF(Z63="","",IF(Météo!$F$6>Z63,(Météo!$F$6-Z63)/24,"")) -> 1.8825 | AC63: =IF(Z63="","",IF(Météo!$F$7<=Z63,(Z63-Météo!$F$7)/24,"")) ->  | AH63: =IF(Z63="","",IF(Météo!$F$6>Z63,(Météo!$F$6-Z63)/24,"")) -> 1.8825 | AI63: =IF(Z63="","",IF(Météo!$F$7<=Z63,(Z63-Météo!$F$7)/24,"")) ->  | BY63: 1 | FK63: 79
A64: 2014-02-02 22:00 | B64: 2014 | C64: 2 | D64: 2 | E64: 22:00:00 | G64: -6.2 | I64: -9.2 | K64: 79 | M64: 28 | O64: 9 | S64: 101.63 | W64: -10 | Y64: ND | Z64: 20.84 | AB64: =IF(Z64="","",IF(Météo!$F$6>Z64,(Météo!$F$6-Z64)/24,"")) -> 1.965 | AC64: =IF(Z64="","",IF(Météo!$F$7<=Z64,(Z64-Météo!$F$7)/24,"")) ->  | AH64: =IF(Z64="","",IF(Météo!$F$6>Z64,(Météo!$F$6-Z64)/24,"")) -> 1.965 | AI64: =IF(Z64="","",IF(Météo!$F$7<=Z64,(Z64-Météo!$F$7)/24,"")) ->  | BY64: 1 | FK64: 79
A65: 2014-02-02 23:00 | B65: 2014 | C65: 2 | D65: 2 | E65: 23:00:00 | G65: -7.9 | I65: -9.9 | K65: 86 | M65: 31 | O65: 11 | S65: 101.73 | W65: -13 | Y65: ND | Z65: 17.78 | AB65: =IF(Z65="","",IF(Météo!$F$6>Z65,(Météo!$F$6-Z65)/24,"")) -> 2.0925 | AC65: =IF(Z65="","",IF(Météo!$F$7<=Z65,(Z65-Météo!$F$7)/24,"")) ->  | AH65: =IF(Z65="","",IF(Météo!$F$6>Z65,(Météo!$F$6-Z65)/24,"")) -> 2.0925 | AI65: =IF(Z65="","",IF(Météo!$F$7<=Z65,(Z65-Météo!$F$7)/24,"")) ->  | BV65: 1 | FH65: 86
A66: 2014-02-03 00:00 | B66: 2014 | C66: 2 | D66: 3 | E66: 00:00:00 | G66: -8.4 | I66: -10.8 | K66: 82 | M66: 32 | O66: 11 | S66: 101.85 | W66: -14 | Y66: ND | Z66: 16.88 | AB66: =IF(Z66="","",IF(Météo!$F$6>Z66,(Météo!$F$6-Z66)/24,"")) -> 2.13 | AC66: =IF(Z66="","",IF(Météo!$F$7<=Z66,(Z66-Météo!$F$7)/24,"")) ->  | AD66: =IF(Z66="","",IF(Météo!$F$6>Z66,(Météo!$F$6-Z66)/24,"")) -> 2.13 | AE66: =IF(Z66="","",IF(Météo!$F$7<=Z66,(Z66-Météo!$F$7)/24,"")) ->  | AJ66: =IF(AND($Z66>AJ$14,$Z66<=AJ$15),1,"") ->  | AM66: =IF(AND($Z66>AM$14,$Z66<=AM$15),1,"") ->  | AP66: =IF(AND($Z66>AP$14,$Z66<=AP$15),1,"") ->  | AS66: =IF(AND($Z66>AS$14,$Z66<=AS$15),1,"") ->  | AV66: =IF(AND($Z66>AV$14,$Z66<=AV$15),1,"") ->  | AY66: =IF(AND($Z66>AY$14,$Z66<=AY$15),1,"") ->  | BB66: =IF(AND($Z66>BB$14,$Z66<=BB$15),1,"") ->  | BE66: =IF(AND($Z66>BE$14,$Z66<=BE$15),1,"") ->  | BH66: =IF(AND($Z66>BH$14,$Z66<=BH$15),1,"") ->  | BK66: =IF(AND($Z66>BK$14,$Z66<=BK$15),1,"") ->  | BN66: =IF(AND($Z66>BN$14,$Z66<=BN$15),1,"") ->  | BQ66: =IF(AND($Z66>BQ$14,$Z66<=BQ$15),1,"") ->  | BT66: =IF(AND($Z66>BT$14,$Z66<=BT$15),1,"") -> 1 | BW66: =IF(AND($Z66>BW$14,$Z66<=BW$15),1,"") ->  | BZ66: =IF(AND($Z66>BZ$14,$Z66<=BZ$15),1,"") ->  | CC66: =IF(AND($Z66>CC$14,$Z66<=CC$15),1,"") ->  | CF66: =IF(AND($Z66>CF$14,$Z66<=CF$15),1,"") ->  | CI66: =IF(AND($Z66>CI$14,$Z66<=CI$15),1,"") ->  | CL66: =IF(AND($Z66>CL$14,$Z66<=CL$15),1,"") ->  | CO66: =IF(AND($Z66>CO$14,$Z66<=CO$15),1,"") ->  | CR66: =IF(AND($Z66>CR$14,$Z66<=CR$15),1,"") ->  | CU66: =IF(AND($Z66>CU$14,$Z66<=CU$15),1,"") ->  | CX66: =IF(AND($Z66>CX$14,$Z66<=CX$15),1,"") ->  | DA66: =IF(AND($Z66>DA$14,$Z66<=DA$15),1,"") ->  | DD66: =IF(AND($Z66>DD$14,$Z66<=DD$15),1,"") ->  | DG66: =IF(AND($Z66>DG$14,$Z66<=DG$15),1,"") ->  | DJ66: =IF(AND($Z66>DJ$14,$Z66<=DJ$15),1,"") ->  | DM66: =IF(AND($Z66>DM$14,$Z66<=DM$15),1,"") ->  | DP66: =IF(AND($Z66>DP$14,$Z66<=DP$15),1,"") ->  | DV66: =IF(AND($Z66>DV$14,$Z66<=DV$15),$K66,"") ->  | DY66: =IF(AND($Z66>DY$14,$Z66<=DY$15),$K66,"") ->  | EB66: =IF(AND($Z66>EB$14,$Z66<=EB$15),$K66,"") ->  | EE66: =IF(AND($Z66>EE$14,$Z66<=EE$15),$K66,"") ->  | EH66: =IF(AND($Z66>EH$14,$Z66<=EH$15),$K66,"") ->  | EK66: =IF(AND($Z66>EK$14,$Z66<=EK$15),$K66,"") ->  | EN66: =IF(AND($Z66>EN$14,$Z66<=EN$15),$K66,"") ->  | EQ66: =IF(AND($Z66>EQ$14,$Z66<=EQ$15),$K66,"") ->  | ET66: =IF(AND($Z66>ET$14,$Z66<=ET$15),$K66,"") ->  | EW66: =IF(AND($Z66>EW$14,$Z66<=EW$15),$K66,"") ->  | EZ66: =IF(AND($Z66>EZ$14,$Z66<=EZ$15),$K66,"") ->  | FC66: =IF(AND($Z66>FC$14,$Z66<=FC$15),$K66,"") ->  | FF66: =IF(AND($Z66>FF$14,$Z66<=FF$15),$K66,"") -> 82 | FI66: =IF(AND($Z66>FI$14,$Z66<=FI$15),$K66,"") ->  | FL66: =IF(AND($Z66>FL$14,$Z66<=FL$15),$K66,"") ->  | FO66: =IF(AND($Z66>FO$14,$Z66<=FO$15),$K66,"") ->  | FR66: =IF(AND($Z66>FR$14,$Z66<=FR$15),$K66,"") ->  | FU66: =IF(AND($Z66>FU$14,$Z66<=FU$15),$K66,"") ->  | FX66: =IF(AND($Z66>FX$14,$Z66<=FX$15),$K66,"") ->  | GA66: =IF(AND($Z66>GA$14,$Z66<=GA$15),$K66,"") ->  | GD66: =IF(AND($Z66>GD$14,$Z66<=GD$15),$K66,"") ->  | GG66: =IF(AND($Z66>GG$14,$Z66<=GG$15),$K66,"") ->  | GJ66: =IF(AND($Z66>GJ$14,$Z66<=GJ$15),$K66,"") ->  | GM66: =IF(AND($Z66>GM$14,$Z66<=GM$15),$K66,"") ->  | GP66: =IF(AND($Z66>GP$14,$Z66<=GP$15),$K66,"") ->  | GS66: =IF(AND($Z66>GS$14,$Z66<=GS$15),$K66,"") ->  | GV66: =IF(AND($Z66>GV$14,$Z66<=GV$15),$K66,"") ->  | GY66: =IF(AND($Z66>GY$14,$Z66<=GY$15),$K66,"") ->  | HB66: =IF(AND($Z66>HB$14,$Z66<=HB$15),$K66,"") -> 
A67: 2014-02-03 01:00 | B67: 2014 | C67: 2 | D67: 3 | E67: 01:00:00 | G67: -9.6 | I67: -12.5 | K67: 80 | M67: 34 | O67: 7 | S67: 101.83 | W67: -14 | Y67: ND | Z67: 14.72 | AB67: =IF(Z67="","",IF(Météo!$F$6>Z67,(Météo!$F$6-Z67)/24,"")) -> 2.22 | AC67: =IF(Z67="","",IF(Météo!$F$7<=Z67,(Z67-Météo!$F$7)/24,"")) ->  | AD67: =IF(Z67="","",IF(Météo!$F$6>Z67,(Météo!$F$6-Z67)/24,"")) -> 2.22 | AE67: =IF(Z67="","",IF(Météo!$F$7<=Z67,(Z67-Météo!$F$7)/24,"")) ->  | BQ67: 1 | FC67: 80
A68: 2014-02-03 02:00 | B68: 2014 | C68: 2 | D68: 3 | E68: 02:00:00 | G68: -8.4 | I68: -11.8 | K68: 76 | M68: 2 | O68: 9 | S68: 101.96 | W68: -13 | Y68: ND | Z68: 16.88 | AB68: =IF(Z68="","",IF(Météo!$F$6>Z68,(Météo!$F$6-Z68)/24,"")) -> 2.13 | AC68: =IF(Z68="","",IF(Météo!$F$7<=Z68,(Z68-Météo!$F$7)/24,"")) ->  | AD68: =IF(Z68="","",IF(Météo!$F$6>Z68,(Météo!$F$6-Z68)/24,"")) -> 2.13 | AE68: =IF(Z68="","",IF(Météo!$F$7<=Z68,(Z68-Météo!$F$7)/24,"")) ->  | BT68: 1 | FF68: 76
A69: 2014-02-03 03:00 | B69: 2014 | C69: 2 | D69: 3 | E69: 03:00:00 | G69: -9.4 | I69: -13 | K69: 75 | M69: 2 | O69: 10 | S69: 102.02 | W69: -15 | Y69: ND | Z69: 15.08 | AB69: =IF(Z69="","",IF(Météo!$F$6>Z69,(Météo!$F$6-Z69)/24,"")) -> 2.205 | AC69: =IF(Z69="","",IF(Météo!$F$7<=Z69,(Z69-Météo!$F$7)/24,"")) ->  | AD69: =IF(Z69="","",IF(Météo!$F$6>Z69,(Météo!$F$6-Z69)/24,"")) -> 2.205 | AE69: =IF(Z69="","",IF(Météo!$F$7<=Z69,(Z69-Météo!$F$7)/24,"")) ->  | BT69: 1 | FF69: 75
A70: 2014-02-03 04:00 | B70: 2014 | C70: 2 | D70: 3 | E70: 04:00:00 | G70: -9.4 | I70: -13.4 | K70: 72 | M70: 3 | O70: 8 | S70: 102.03 | W70: -14 | Y70: ND | Z70: 15.08 | AB70: =IF(Z70="","",IF(Météo!$F$6>Z70,(Météo!$F$6-Z70)/24,"")) -> 2.205 | AC70: =IF(Z70="","",IF(Météo!$F$7<=Z70,(Z70-Météo!$F$7)/24,"")) ->  | AD70: =IF(Z70="","",IF(Météo!$F$6>Z70,(Météo!$F$6-Z70)/24,"")) -> 2.205 | AE70: =IF(Z70="","",IF(Météo!$F$7<=Z70,(Z70-Météo!$F$7)/24,"")) ->  | BT70: 1 | FF70: 72
A71: 2014-02-03 05:00 | B71: 2014 | C71: 2 | D71: 3 | E71: 05:00:00 | G71: -9.2 | I71: -14.1 | K71: 68 | M71: 4 | O71: 9 | S71: 102.11 | W71: -14 | Y71: ND | Z71: 15.44 | AB71: =IF(Z71="","",IF(Météo!$F$6>Z71,(Météo!$F$6-Z71)/24,"")) -> 2.19 | AC71: =IF(Z71="","",IF(Météo!$F$7<=Z71,(Z71-Météo!$F$7)/24,"")) ->  | AD71: =IF(Z71="","",IF(Météo!$F$6>Z71,(Météo!$F$6-Z71)/24,"")) -> 2.19 | AE71: =IF(Z71="","",IF(Météo!$F$7<=Z71,(Z71-Météo!$F$7)/24,"")) ->  | BT71: 1 | FF71: 68
A72: 2014-02-03 06:00 | B72: 2014 | C72: 2 | D72: 3 | E72: 06:00:00 | G72: -9.4 | I72: -14.7 | K72: 65 | M72: 4 | O72: 8 | S72: 102.12 | W72: -14 | Y72: ND | Z72: 15.08 | AB72: =IF(Z72="","",IF(Météo!$F$6>Z72,(Météo!$F$6-Z72)/24,"")) -> 2.205 | AC72: =IF(Z72="","",IF(Météo!$F$7<=Z72,(Z72-Météo!$F$7)/24,"")) ->  | AD72: =IF(Z72="","",IF(Météo!$F$6>Z72,(Météo!$F$6-Z72)/24,"")) -> 2.205 | AE72: =IF(Z72="","",IF(Météo!$F$7<=Z72,(Z72-Météo!$F$7)/24,"")) ->  | BT72: 1 | FF72: 65
A73: 2014-02-03 07:00 | B73: 2014 | C73: 2 | D73: 3 | E73: 07:00:00 | G73: -10.9 | I73: -15.1 | K73: 71 | M73: 2 | O73: 12 | S73: 102.13 | W73: -17 | Y73: ND | Z73: 12.38 | AB73: =IF(Z73="","",IF(Météo!$F$6>Z73,(Météo!$F$6-Z73)/24,"")) -> 2.3175 | AC73: =IF(Z73="","",IF(Météo!$F$7<=Z73,(Z73-Météo!$F$7)/24,"")) ->  | AD73: =IF(Z73="","",IF(Météo!$F$6>Z73,(Météo!$F$6-Z73)/24,"")) -> 2.3175 | AE73: =IF(Z73="","",IF(Météo!$F$7<=Z73,(Z73-Météo!$F$7)/24,"")) ->  | BQ73: 1 | FC73: 71
A74: 2014-02-03 08:00 | B74: 2014 | C74: 2 | D74: 3 | E74: 08:00:00 | G74: -11.2 | I74: -14.9 | K74: 74 | M74: 1 | O74: 7 | S74: 102.19 | W74: -15 | Y74: ND | Z74: 11.84 | AB74: =IF(Z74="","",IF(Météo!$F$6>Z74,(Météo!$F$6-Z74)/24,"")) -> 2.34 | AC74: =IF(Z74="","",IF(Météo!$F$7<=Z74,(Z74-Météo!$F$7)/24,"")) ->  | AF74: =IF(Z74="","",IF(Météo!$F$6>Z74,(Météo!$F$6-Z74)/24,"")) -> 2.34 | AG74: =IF(Z74="","",IF(Météo!$F$7<=Z74,(Z74-Météo!$F$7)/24,"")) ->  | AK74: =IF(AND($Z74>AJ$14,$Z74<=AJ$15),1,"") ->  | AN74: =IF(AND($Z74>AM$14,$Z74<=AM$15),1,"") ->  | AQ74: =IF(AND($Z74>AP$14,$Z74<=AP$15),1,"") ->  | AT74: =IF(AND($Z74>AS$14,$Z74<=AS$15),1,"") ->  | AW74: =IF(AND($Z74>AV$14,$Z74<=AV$15),1,"") ->  | AZ74: =IF(AND($Z74>AY$14,$Z74<=AY$15),1,"") ->  | BC74: =IF(AND($Z74>BB$14,$Z74<=BB$15),1,"") ->  | BF74: =IF(AND($Z74>BE$14,$Z74<=BE$15),1,"") ->  | BI74: =IF(AND($Z74>BH$14,$Z74<=BH$15),1,"") ->  | BL74: =IF(AND($Z74>BK$14,$Z74<=BK$15),1,"") ->  | BO74: =IF(AND($Z74>BN$14,$Z74<=BN$15),1,"") ->  | BR74: =IF(AND($Z74>BQ$14,$Z74<=BQ$15),1,"") -> 1 | BU74: =IF(AND($Z74>BT$14,$Z74<=BT$15),1,"") ->  | BX74: =IF(AND($Z74>BW$14,$Z74<=BW$15),1,"") ->  | CA74: =IF(AND($Z74>BZ$14,$Z74<=BZ$15),1,"") ->  | CD74: =IF(AND($Z74>CC$14,$Z74<=CC$15),1,"") ->  | CG74: =IF(AND($Z74>CF$14,$Z74<=CF$15),1,"") ->  | CJ74: =IF(AND($Z74>CI$14,$Z74<=CI$15),1,"") ->  | CM74: =IF(AND($Z74>CL$14,$Z74<=CL$15),1,"") ->  | CP74: =IF(AND($Z74>CO$14,$Z74<=CO$15),1,"") ->  | CS74: =IF(AND($Z74>CR$14,$Z74<=CR$15),1,"") ->  | CV74: =IF(AND($Z74>CU$14,$Z74<=CU$15),1,"") ->  | CY74: =IF(AND($Z74>CX$14,$Z74<=CX$15),1,"") ->  | DB74: =IF(AND($Z74>DA$14,$Z74<=DA$15),1,"") ->  | DE74: =IF(AND($Z74>DD$14,$Z74<=DD$15),1,"") ->  | DH74: =IF(AND($Z74>DG$14,$Z74<=DG$15),1,"") ->  | DK74: =IF(AND($Z74>DJ$14,$Z74<=DJ$15),1,"") ->  | DN74: =IF(AND($Z74>DM$14,$Z74<=DM$15),1,"") ->  | DQ74: =IF(AND($Z74>DP$14,$Z74<=DP$15),1,"") ->  | DW74: =IF(AND($Z74>DV$14,$Z74<=DV$15),$K74,"") ->  | DZ74: =IF(AND($Z74>DY$14,$Z74<=DY$15),$K74,"") ->  | EC74: =IF(AND($Z74>EB$14,$Z74<=EB$15),$K74,"") ->  | EF74: =IF(AND($Z74>EE$14,$Z74<=EE$15),$K74,"") ->  | EI74: =IF(AND($Z74>EH$14,$Z74<=EH$15),$K74,"") ->  | EL74: =IF(AND($Z74>EK$14,$Z74<=EK$15),$K74,"") ->  | EO74: =IF(AND($Z74>EN$14,$Z74<=EN$15),$K74,"") ->  | ER74: =IF(AND($Z74>EQ$14,$Z74<=EQ$15),$K74,"") ->  | EU74: =IF(AND($Z74>ET$14,$Z74<=ET$15),$K74,"") ->  | EX74: =IF(AND($Z74>EW$14,$Z74<=EW$15),$K74,"") ->  | FA74: =IF(AND($Z74>EZ$14,$Z74<=EZ$15),$K74,"") ->  | FD74: =IF(AND($Z74>FC$14,$Z74<=FC$15),$K74,"") -> 74 | FG74: =IF(AND($Z74>FF$14,$Z74<=FF$15),$K74,"") ->  | FJ74: =IF(AND($Z74>FI$14,$Z74<=FI$15),$K74,"") ->  | FM74: =IF(AND($Z74>FL$14,$Z74<=FL$15),$K74,"") ->  | FP74: =IF(AND($Z74>FO$14,$Z74<=FO$15),$K74,"") ->  | FS74: =IF(AND($Z74>FR$14,$Z74<=FR$15),$K74,"") ->  | FV74: =IF(AND($Z74>FU$14,$Z74<=FU$15),$K74,"") ->  | FY74: =IF(AND($Z74>FX$14,$Z74<=FX$15),$K74,"") ->  | GB74: =IF(AND($Z74>GA$14,$Z74<=GA$15),$K74,"") ->  | GE74: =IF(AND($Z74>GD$14,$Z74<=GD$15),$K74,"") ->  | GH74: =IF(AND($Z74>GG$14,$Z74<=GG$15),$K74,"") ->  | GK74: =IF(AND($Z74>GJ$14,$Z74<=GJ$15),$K74,"") ->  | GN74: =IF(AND($Z74>GM$14,$Z74<=GM$15),$K74,"") ->  | GQ74: =IF(AND($Z74>GP$14,$Z74<=GP$15),$K74,"") ->  | GT74: =IF(AND($Z74>GS$14,$Z74<=GS$15),$K74,"") ->  | GW74: =IF(AND($Z74>GV$14,$Z74<=GV$15),$K74,"") ->  | GZ74: =IF(AND($Z74>GY$14,$Z74<=GY$15),$K74,"") ->  | HC74: =IF(AND($Z74>HB$14,$Z74<=HB$15),$K74,"") -> 
A75: 2014-02-03 09:00 | B75: 2014 | C75: 2 | D75: 3 | E75: 09:00:00 | G75: -10.7 | I75: -14.7 | K75: 72 | M75: 1 | O75: 9 | S75: 102.21 | W75: -16 | Y75: ND | Z75: 12.74 | AB75: =IF(Z75="","",IF(Météo!$F$6>Z75,(Météo!$F$6-Z75)/24,"")) -> 2.3025 | AC75: =IF(Z75="","",IF(Météo!$F$7<=Z75,(Z75-Météo!$F$7)/24,"")) ->  | AF75: =IF(Z75="","",IF(Météo!$F$6>Z75,(Météo!$F$6-Z75)/24,"")) -> 2.3025 | AG75: =IF(Z75="","",IF(Météo!$F$7<=Z75,(Z75-Météo!$F$7)/24,"")) ->  | BR75: 1 | FD75: 72
A76: 2014-02-03 10:00 | B76: 2014 | C76: 2 | D76: 3 | E76: 10:00:00 | G76: -9.3 | I76: -14.6 | K76: 66 | M76: 2 | O76: 12 | S76: 102.28 | W76: -15 | Y76: ND | Z76: 15.26 | AB76: =IF(Z76="","",IF(Météo!$F$6>Z76,(Météo!$F$6-Z76)/24,"")) -> 2.1975 | AC76: =IF(Z76="","",IF(Météo!$F$7<=Z76,(Z76-Météo!$F$7)/24,"")) ->  | AF76: =IF(Z76="","",IF(Météo!$F$6>Z76,(Météo!$F$6-Z76)/24,"")) -> 2.1975 | AG76: =IF(Z76="","",IF(Météo!$F$7<=Z76,(Z76-Météo!$F$7)/24,"")) ->  | BU76: 1 | FG76: 66
A77: 2014-02-03 11:00 | B77: 2014 | C77: 2 | D77: 3 | E77: 11:00:00 | G77: -8.7 | I77: -13.9 | K77: 66 | M77: 1 | O77: 11 | S77: 102.28 | W77: -14 | Y77: ND | Z77: 16.34 | AB77: =IF(Z77="","",IF(Météo!$F$6>Z77,(Météo!$F$6-Z77)/24,"")) -> 2.1525 | AC77: =IF(Z77="","",IF(Météo!$F$7<=Z77,(Z77-Météo!$F$7)/24,"")) ->  | AF77: =IF(Z77="","",IF(Météo!$F$6>Z77,(Météo!$F$6-Z77)/24,"")) -> 2.1525 | AG77: =IF(Z77="","",IF(Météo!$F$7<=Z77,(Z77-Météo!$F$7)/24,"")) ->  | BU77: 1 | FG77: 66
A78: 2014-02-03 12:00 | B78: 2014 | C78: 2 | D78: 3 | E78: 12:00:00 | G78: -7.9 | I78: -14.4 | K78: 59 | M78: 36 | O78: 8 | S78: 102.19 | W78: -12 | Y78: ND | Z78: 17.78 | AB78: =IF(Z78="","",IF(Météo!$F$6>Z78,(Météo!$F$6-Z78)/24,"")) -> 2.0925 | AC78: =IF(Z78="","",IF(Météo!$F$7<=Z78,(Z78-Météo!$F$7)/24,"")) ->  | AF78: =IF(Z78="","",IF(Météo!$F$6>Z78,(Météo!$F$6-Z78)/24,"")) -> 2.0925 | AG78: =IF(Z78="","",IF(Météo!$F$7<=Z78,(Z78-Météo!$F$7)/24,"")) ->  | BU78: 1 | FG78: 59
A79: 2014-02-03 13:00 | B79: 2014 | C79: 2 | D79: 3 | E79: 13:00:00 | G79: -7.6 | I79: -14.6 | K79: 57 | M79: 1 | O79: 8 | S79: 102.14 | W79: -12 | Y79: ND | Z79: 18.32 | AB79: =IF(Z79="","",IF(Météo!$F$6>Z79,(Météo!$F$6-Z79)/24,"")) -> 2.07 | AC79: =IF(Z79="","",IF(Météo!$F$7<=Z79,(Z79-Météo!$F$7)/24,"")) ->  | AF79: =IF(Z79="","",IF(Météo!$F$6>Z79,(Météo!$F$6-Z79)/24,"")) -> 2.07 | AG79: =IF(Z79="","",IF(Météo!$F$7<=Z79,(Z79-Météo!$F$7)/24,"")) ->  | BU79: 1 | FG79: 57
A80: 2014-02-03 14:00 | B80: 2014 | C80: 2 | D80: 3 | E80: 14:00:00 | G80: -6.7 | I80: -15.4 | K80: 50 | M80: 36 | O80: 6 | S80: 102.12 | W80: -10 | Y80: ND | Z80: 19.94 | AB80: =IF(Z80="","",IF(Météo!$F$6>Z80,(Météo!$F$6-Z80)/24,"")) -> 2.0025 | AC80: =IF(Z80="","",IF(Météo!$F$7<=Z80,(Z80-Météo!$F$7)/24,"")) ->  | AF80: =IF(Z80="","",IF(Météo!$F$6>Z80,(Météo!$F$6-Z80)/24,"")) -> 2.0025 | AG80: =IF(Z80="","",IF(Météo!$F$7<=Z80,(Z80-Météo!$F$7)/24,"")) ->  | BU80: 1 | FG80: 50
